Workbook

Sheet RIS
A1: BridgeMania 2019-20 | D1: 1 | E1: 2 | F1: 3 | G1: 4 | H1: 5 | I1: 6 | J1: 7 | K1: 8 | L1: 9 | M1: 10 | N1: 11 | O1: 12 | P1: 13 | Q1: 14 | R1: 15 | S1: 16 | T1: 17 | U1: 18 | V1: 19 | W1: 20 | X1: 21 | Y1: 22 | Z1: 23 | AA1: 24 | AB1: 25 | AC1: 26 | AD1: 27 | AE1: 28 | AF1: 29 | AG1: 30 | AH1: 31 | AI1: 32 | AJ1: 33 | AK1: 34 | AL1: 35 | AM1: 36 | AN1: 37 | AO1: 38 | AP1: 39 | AQ1: 40 | AR1: 41 | AS1: 42 | AT1: 43 | AU1: 44 | AV1: 45 | AW1: 46 | AX1: 47 | AY1: 48 | AZ1: 49 | BA1: 50
A2: ctrl+q | B2: sel.col. | C2: data | D2: 2019-09-21 | E2: 2019-10-19 | F2: 2019-10-26 | G2: 2019-11-02 | H2: 2019-11-16 | I2: 2019-11-23 | J2: 2019-11-30 | K2: 2019-12-21 | L2: 2020-01-25 | M2: 2020-02-01 | N2: 2020-02-08 | O2: 2020-02-15 | P2: 2020-02-22 | Q2: 2020-02-29
A3: ins.num. coppia | B3: ctrl+s | C3: luogo | D3: Pol | E3: Sav | F3: DeS | G3: Sim | H3: Tor | I3: Cat | J3: Mal | K3: DeS | L3: Sim | M3: Sav | N3: Pre | O3: DeS | P3: Pol | Q3: Tor
A4: ctrl+r | B4: ctrl+t | C4: coppie-mani | D4: 9-18 | E4: 10-18 | F4: 10-18 | G4: 10-18 | H4: 8-21 | I4: 7-21 | J4: 9-18 | K4: 10-27 | L4: 8-21 | M4: 10-18 | N4: 10-18 | O4: 11-22 | P4: 12-22 | Q4: 8-21 | BG4: presenze
A5: Punteggio | B5: Class. | C5: Coppie | D5: =IF(SUM(D6:D55)=0,"",SUM(D6:D55)) -> 450 | E5: =IF(SUM(E6:E55)=0,"",SUM(E6:E55)) -> 500 | F5: 500 | G5: 500 | H5: 400 | I5: 350 | J5: 450 | K5: 500 | L5: 400 | M5: 500 | N5: 500 | O5: 547.7272727 | P5: 600 | Q5: 400 | BF5: # coppia | BG5: coppie base
A6: =IF(SUM(D6:BA6)=0,0,SUMIF(D6:BA6,">0")/COUNTIF(D6:BA6,">0")) -> 59.02777778 | B6: 1 | C6: Marina-Enzo | G6: 59.02777778 | BF6: 15 | BG6: =IF(BF6>11,"",IF(A6=0,0,COUNTIF(D6:BA6,">0"))) -> 
A7: =IF(SUM(D7:BA7)=0,0,SUMIF(D7:BA7,">0")/COUNTIF(D7:BA7,">0")) -> 55.69201287 | B7: 2 | C7: Stefania-Massimo | E7: 65.97222222 | F7: 58.33333333 | G7: 51.38888889 | H7: 43.65079365 | I7: 50 | J7: 68.51851852 | K7: 54.16666667 | L7: 61.11111111 | M7: 56.94444444 | N7: 46.52777778 | O7: 53.40909091 | P7: 48.10030395 | Q7: 65.87301587 | BF7: 10 | BG7: =IF(BF7>11,"",IF(A7=0,0,COUNTIF(D7:BA7,">0"))) -> 13
A8: =IF(SUM(D8:BA8)=0,0,SUMIF(D8:BA8,">0")/COUNTIF(D8:BA8,">0")) -> 55.53304064 | B8: 3 | C8: Isolde-Cristina | D8: 71.2962963 | E8: 53.47222222 | M8: 46.52777778 | P8: 50.83586626 | BF8: 5 | BG8: =IF(BF8>11,"",IF(A8=0,0,COUNTIF(D8:BA8,">0"))) -> 4
A9: =IF(SUM(D9:BA9)=0,0,SUMIF(D9:BA9,">0")/COUNTIF(D9:BA9,">0")) -> 54.25667607 | B9: 4 | C9: Manuela-Roberto | D9: 45.37037037 | E9: 54.86111111 | F9: 69.44444444 | G9: 61.11111111 | H9: 55.55555556 | I9: 54.76190476 | J9: 39.81481481 | K9: 48.14814815 | L9: 60.31746032 | M9: 52.77777778 | N9: 56.94444444 | O9: 50 | P9: 53.34346505 | Q9: 57.14285714 | BF9: 7 | BG9: =IF(BF9>11,"",IF(A9=0,0,COUNTIF(D9:BA9,">0"))) -> 14
A10: =IF(SUM(D10:BA10)=0,0,SUMIF(D10:BA10,">0")/COUNTIF(D10:BA10,">0")) -> 52.74189463 | B10: 5 | C10: Renata-Sandro | N10: 50 | O10: 56.25 | P10: 51.97568389 | BF10: 9 | BG10: =IF(BF10>11,"",IF(A10=0,0,COUNTIF(D10:BA10,">0"))) -> 3
A11: =IF(SUM(D11:BA11)=0,0,SUMIF(D11:BA11,">0")/COUNTIF(D11:BA11,">0")) -> 52.56586892 | B11: 6 | C11: Barbara-Elio | D11: 56.48148148 | E11: 50.69444444 | F11: 52.77777778 | G11: 55.55555556 | H11: 50.79365079 | J11: 51.85185185 | K11: 47.22222222 | L11: 48.41269841 | M11: 56.25 | N11: 50.69444444 | O11: 53.97727273 | P11: 56.07902736 | BF11: 2 | BG11: =IF(BF11>11,"",IF(A11=0,0,COUNTIF(D11:BA11,">0"))) -> 12
A12: =IF(SUM(D12:BA12)=0,0,SUMIF(D12:BA12,">0")/COUNTIF(D12:BA12,">0")) -> 52.08333333 | B12: 7 | C12: June-Vincenzo | F12: 52.08333333 | BF12: 14 | BG12: =IF(BF12>11,"",IF(A12=0,0,COUNTIF(D12:BA12,">0"))) -> 
A13: =IF(SUM(D13:BA13)=0,0,SUMIF(D13:BA13,">0")/COUNTIF(D13:BA13,">0")) -> 51.64053998 | B13: 8 | C13: Letizia-Enzo | K13: 52.31481481 | M13: 46.52777778 | P13: 56.07902736 | BF13: 16 | BG13: =IF(BF13>11,"",IF(A13=0,0,COUNTIF(D13:BA13,">0"))) -> 
A14: =IF(SUM(D14:BA14)=0,0,SUMIF(D14:BA14,">0")/COUNTIF(D14:BA14,">0")) -> 51.36919326 | B14: 9 | C14: Antonella-Dino | D14: 50 | E14: 43.75 | F14: 50 | G14: 52.08333333 | H14: 62.6984127 | J14: 60.18518519 | K14: 47.22222222 | L14: 49.20634921 | M14: 56.25 | N14: 48.61111111 | O14: 51.13636364 | P14: 53.7993921 | Q14: 42.85714286 | BF14: 1 | BG14: =IF(BF14>11,"",IF(A14=0,0,COUNTIF(D14:BA14,">0"))) -> 13
A15: =IF(SUM(D15:BA15)=0,0,SUMIF(D15:BA15,">0")/COUNTIF(D15:BA15,">0")) -> 50.2616133 | B15: 10 | C15: Elena-Stefano | D15: 47.22222222 | E15: 43.05555556 | F15: 43.75 | G15: 43.75 | I15: 46.42857143 | J15: 55.55555556 | K15: 46.75925926 | L15: 60.31746032 | N15: 50.69444444 | O15: 48.86363636 | P15: 57.21884498 | Q15: 59.52380952 | BF15: 4 | BG15: =IF(BF15>11,"",IF(A15=0,0,COUNTIF(D15:BA15,">0"))) -> 12
A16: =IF(SUM(D16:BA16)=0,0,SUMIF(D16:BA16,">0")/COUNTIF(D16:BA16,">0")) -> 47.14139986 | B16: 11 | C16: Olimpia-Sauro | D16: 55.55555556 | E16: 47.22222222 | F16: 51.38888889 | G16: 24.30555556 | H16: 52.38095238 | I16: 46.42857143 | J16: 46.2962963 | M16: 49.30555556 | N16: 59.72222222 | O16: 50.56818182 | P16: 39.6656535 | Q16: 42.85714286 | BF16: 8 | BG16: =IF(BF16>11,"",IF(A16=0,0,COUNTIF(D16:BA16,">0"))) -> 12
A17: =IF(SUM(D17:BA17)=0,0,SUMIF(D17:BA17,">0")/COUNTIF(D17:BA17,">0")) -> 46.87865326 | B17: 12 | C17: Cesarina-Gaetano | D17: 42.59259259 | E17: 43.05555556 | G17: 50 | H17: 53.17460317 | I17: 53.57142857 | J17: 53.7037037 | K17: 49.53703704 | L17: 32.53968254 | M17: 46.52777778 | N17: 48.61111111 | O17: 43.75 | P17: 55.85106383 | Q17: 36.50793651 | BF17: 3 | BG17: =IF(BF17>11,"",IF(A17=0,0,COUNTIF(D17:BA17,">0"))) -> 13
A18: =IF(SUM(D18:BA18)=0,0,SUMIF(D18:BA18,">0")/COUNTIF(D18:BA18,">0")) -> 46.52777778 | B18: 13 | C18: A.Maria-Claudio | F18: 46.52777778 | BF18: 13 | BG18: =IF(BF18>11,"",IF(A18=0,0,COUNTIF(D18:BA18,">0"))) -> 
A19: =IF(SUM(D19:BA19)=0,0,SUMIF(D19:BA19,">0")/COUNTIF(D19:BA19,">0")) -> 45.86086019 | B19: 14 | C19: Tatiana-Julio | D19: 42.59259259 | E19: 43.05555556 | F19: 55.55555556 | G19: 51.38888889 | H19: 42.06349206 | I19: 54.76190476 | J19: 44.44444444 | K19: 54.16666667 | L19: 50 | M19: 34.72222222 | N19: 50 | O19: 40.34090909 | P19: 30.54711246 | Q19: 48.41269841 | BF19: 11 | BG19: =IF(BF19>11,"",IF(A19=0,0,COUNTIF(D19:BA19,">0"))) -> 14
A20: =IF(SUM(D20:BA20)=0,0,SUMIF(D20:BA20,">0")/COUNTIF(D20:BA20,">0")) -> 45.01454023 | B20: 15 | C20: Lilli-Gianni | D20: 38.88888889 | E20: 54.86111111 | G20: 51.38888889 | H20: 39.68253968 | I20: 44.04761905 | J20: 29.62962963 | K20: 47.22222222 | L20: 38.0952381 | M20: 54.16666667 | N20: 38.19444444 | O20: 55.68181818 | P20: 46.50455927 | Q20: 46.82539683 | BF20: 6 | BG20: =IF(BF20>11,"",IF(A20=0,0,COUNTIF(D20:BA20,">0"))) -> 13
A21: =IF(SUM(D21:BA21)=0,0,SUMIF(D21:BA21,">0")/COUNTIF(D21:BA21,">0")) -> 39.04320988 | B21: 16 | C21: Marilena-Sergio | F21: 20.13888889 | K21: 53.24074074 | O21: 43.75 | BF21: 12 | BG21: =IF(BF21>11,"",IF(A21=0,0,COUNTIF(D21:BA21,">0"))) -> 
A22: =IF(SUM(D22:BA22)=0,0,SUMIF(D22:BA22,">0")/COUNTIF(D22:BA22,">0")) -> 0 | B22: 17 | BF22: 17 | BG22: =IF(BF22>11,"",IF(A22=0,0,COUNTIF(D22:BA22,">0"))) -> 
A23: =IF(SUM(D23:BA23)=0,0,SUMIF(D23:BA23,">0")/COUNTIF(D23:BA23,">0")) -> 0 | B23: 18 | BF23: 18 | BG23: =IF(BF23>11,"",IF(A23=0,0,COUNTIF(D23:BA23,">0"))) -> 
A24: =IF(SUM(D24:BA24)=0,0,SUMIF(D24:BA24,">0")/COUNTIF(D24:BA24,">0")) -> 0 | B24: 19 | BF24: 19 | BG24: =IF(BF24>11,"",IF(A24=0,0,COUNTIF(D24:BA24,">0"))) -> 
A25: =IF(SUM(D25:BA25)=0,0,SUMIF(D25:BA25,">0")/COUNTIF(D25:BA25,">0")) -> 0 | B25: 20 | BF25: 20 | BG25: =IF(BF25>11,"",IF(A25=0,0,COUNTIF(D25:BA25,">0"))) -> 
A26: =IF(SUM(D26:BA26)=0,0,SUMIF(D26:BA26,">0")/COUNTIF(D26:BA26,">0")) -> 0 | B26: 21 | BF26: 21 | BG26: =IF(BF26>11,"",IF(A26=0,0,COUNTIF(D26:BA26,">0"))) -> 
A27: =IF(SUM(D27:BA27)=0,0,SUMIF(D27:BA27,">0")/COUNTIF(D27:BA27,">0")) -> 0 | B27: 22 | BF27: 22 | BG27: =IF(BF27>11,"",IF(A27=0,0,COUNTIF(D27:BA27,">0"))) -> 
A28: =IF(SUM(D28:BA28)=0,0,SUMIF(D28:BA28,">0")/COUNTIF(D28:BA28,">0")) -> 0 | B28: 23 | BF28: 23 | BG28: =IF(BF28>11,"",IF(A28=0,0,COUNTIF(D28:BA28,">0"))) -> 
A29: =IF(SUM(D29:BA29)=0,0,SUMIF(D29:BA29,">0")/COUNTIF(D29:BA29,">0")) -> 0 | B29: 24 | BF29: 24 | BG29: =IF(BF29>11,"",IF(A29=0,0,COUNTIF(D29:BA29,">0"))) -> 
A30: =IF(SUM(D30:BA30)=0,0,SUMIF(D30:BA30,">0")/COUNTIF(D30:BA30,">0")) -> 0 | B30: 25 | BF30: 25 | BG30: =IF(BF30>11,"",IF(A30=0,0,COUNTIF(D30:BA30,">0"))) -> 
A31: =IF(SUM(D31:BA31)=0,0,SUMIF(D31:BA31,">0")/COUNTIF(D31:BA31,">0")) -> 0 | B31: 26 | BF31: 26 | BG31: =IF(BF31>11,"",IF(A31=0,0,COUNTIF(D31:BA31,">0"))) -> 
A32: =IF(SUM(D32:BA32)=0,0,SUMIF(D32:BA32,">0")/COUNTIF(D32:BA32,">0")) -> 0 | B32: 27 | BF32: 27 | BG32: =IF(BF32>11,"",IF(A32=0,0,COUNTIF(D32:BA32,">0"))) -> 
A33: =IF(SUM(D33:BA33)=0,0,SUMIF(D33:BA33,">0")/COUNTIF(D33:BA33,">0")) -> 0 | B33: 28 | BF33: 28 | BG33: =IF(BF33>11,"",IF(A33=0,0,COUNTIF(D33:BA33,">0"))) -> 
A34: =IF(SUM(D34:BA34)=0,0,SUMIF(D34:BA34,">0")/COUNTIF(D34:BA34,">0")) -> 0 | B34: 29 | BF34: 29 | BG34: =IF(BF34>11,"",IF(A34=0,0,COUNTIF(D34:BA34,">0"))) -> 
A35: =IF(SUM(D35:BA35)=0,0,SUMIF(D35:BA35,">0")/COUNTIF(D35:BA35,">0")) -> 0 | B35: 30 | BF35: 30 | BG35: =IF(BF35>11,"",IF(A35=0,0,COUNTIF(D35:BA35,">0"))) -> 
A36: =IF(SUM(D36:BA36)=0,0,SUMIF(D36:BA36,">0")/COUNTIF(D36:BA36,">0")) -> 0 | B36: 31 | BF36: 31 | BG36: =IF(BF36>11,"",IF(A36=0,0,COUNTIF(D36:BA36,">0"))) -> 
A37: =IF(SUM(D37:BA37)=0,0,SUMIF(D37:BA37,">0")/COUNTIF(D37:BA37,">0")) -> 0 | B37: 32 | BF37: 32 | BG37: =IF(BF37>11,"",IF(A37=0,0,COUNTIF(D37:BA37,">0"))) -> 
A38: =IF(SUM(D38:BA38)=0,0,SUMIF(D38:BA38,">0")/COUNTIF(D38:BA38,">0")) -> 0 | B38: 33 | BF38: 33 | BG38: =IF(BF38>11,"",IF(A38=0,0,COUNTIF(D38:BA38,">0"))) -> 
A39: =IF(SUM(D39:BA39)=0,0,SUMIF(D39:BA39,">0")/COUNTIF(D39:BA39,">0")) -> 0 | B39: 34 | BF39: 34 | BG39: =IF(BF39>11,"",IF(A39=0,0,COUNTIF(D39:BA39,">0"))) -> 
A40: =IF(SUM(D40:BA40)=0,0,SUMIF(D40:BA40,">0")/COUNTIF(D40:BA40,">0")) -> 0 | B40: 35 | BF40: 35 | BG40: =IF(BF40>11,"",IF(A40=0,0,COUNTIF(D40:BA40,">0"))) -> 
A41: =IF(SUM(D41:BA41)=0,0,SUMIF(D41:BA41,">0")/COUNTIF(D41:BA41,">0")) -> 0 | B41: 36 | BF41: 36 | BG41: =IF(BF41>11,"",IF(A41=0,0,COUNTIF(D41:BA41,">0"))) -> 
A42: =IF(SUM(D42:BA42)=0,0,SUMIF(D42:BA42,">0")/COUNTIF(D42:BA42,">0")) -> 0 | B42: 37 | BF42: 37 | BG42: =IF(BF42>11,"",IF(A42=0,0,COUNTIF(D42:BA42,">0"))) -> 
A43: =IF(SUM(D43:BA43)=0,0,SUMIF(D43:BA43,">0")/COUNTIF(D43:BA43,">0")) -> 0 | B43: 38 | BF43: 38 | BG43: =IF(BF43>11,"",IF(A43=0,0,COUNTIF(D43:BA43,">0"))) -> 
A44: =IF(SUM(D44:BA44)=0,0,SUMIF(D44:BA44,">0")/COUNTIF(D44:BA44,">0")) -> 0 | B44: 39 | BF44: 39 | BG44: =IF(BF44>11,"",IF(A44=0,0,COUNTIF(D44:BA44,">0"))) -> 
A45: =IF(SUM(D45:BA45)=0,0,SUMIF(D45:BA45,">0")/COUNTIF(D45:BA45,">0")) -> 0 | B45: 40 | BF45: 40 | BG45: =IF(BF45>11,"",IF(A45=0,0,COUNTIF(D45:BA45,">0"))) -> 
A46: =IF(SUM(D46:BA46)=0,0,SUMIF(D46:BA46,">0")/COUNTIF(D46:BA46,">0")) -> 0 | B46: 41 | BF46: 41 | BG46: =IF(BF46>11,"",IF(A46=0,0,COUNTIF(D46:BA46,">0"))) -> 
A47: =IF(SUM(D47:BA47)=0,0,SUMIF(D47:BA47,">0")/COUNTIF(D47:BA47,">0")) -> 0 | B47: 42 | BF47: 42 | BG47: =IF(BF47>11,"",IF(A47=0,0,COUNTIF(D47:BA47,">0"))) -> 
A48: =IF(SUM(D48:BA48)=0,0,SUMIF(D48:BA48,">0")/COUNTIF(D48:BA48,">0")) -> 0 | B48: 43 | BF48: 43 | BG48: =IF(BF48>11,"",IF(A48=0,0,COUNTIF(D48:BA48,">0"))) -> 
A49: =IF(SUM(D49:BA49)=0,0,SUMIF(D49:BA49,">0")/COUNTIF(D49:BA49,">0")) -> 0 | B49: 44 | BF49: 44 | BG49: =IF(BF49>11,"",IF(A49=0,0,COUNTIF(D49:BA49,">0"))) -> 
A50: =IF(SUM(D50:BA50)=0,0,SUMIF(D50:BA50,">0")/COUNTIF(D50:BA50,">0")) -> 0 | B50: 45 | BF50: 45 | BG50: =IF(BF50>11,"",IF(A50=0,0,COUNTIF(D50:BA50,">0"))) -> 
A51: =IF(SUM(D51:BA51)=0,0,SUMIF(D51:BA51,">0")/COUNTIF(D51:BA51,">0")) -> 0 | B51: 46 | BF51: 46 | BG51: =IF(BF51>11,"",IF(A51=0,0,COUNTIF(D51:BA51,">0"))) -> 
A52: =IF(SUM(D52:BA52)=0,0,SUMIF(D52:BA52,">0")/COUNTIF(D52:BA52,">0")) -> 0 | B52: 47 | BF52: 47 | BG52: =IF(BF52>11,"",IF(A52=0,0,COUNTIF(D52:BA52,">0"))) -> 
A53: =IF(SUM(D53:BA53)=0,0,SUMIF(D53:BA53,">0")/COUNTIF(D53:BA53,">0")) -> 0 | B53: 48 | BF53: 48 | BG53: =IF(BF53>11,"",IF(A53=0,0,COUNTIF(D53:BA53,">0"))) -> 
A54: =IF(SUM(D54:BA54)=0,0,SUMIF(D54:BA54,">0")/COUNTIF(D54:BA54,">0")) -> 0 | B54: 49 | BF54: 49 | BG54: =IF(BF54>11,"",IF(A54=0,0,COUNTIF(D54:BA54,">0"))) -> 
A55: =IF(SUM(D55:BA55)=0,0,SUMIF(D55:BA55,">0")/COUNTIF(D55:BA55,">0")) -> 0 | B55: 50 | BF55: 50 | BG55: =IF(BF55>11,"",IF(A55=0,0,COUNTIF(D55:BA55,">0"))) -> 
BF60: # coppia base | BG60: presenze
A61: 51.36919326 | B61: 3 | C61: Antonella-Dino | D61: 50 | E61: 43.75 | F61: 50 | G61: 52.08333333 | H61: 62.6984127 | J61: 60.18518519 | K61: 47.22222222 | L61: 49.20634921 | M61: 56.25 | N61: 48.61111111 | O61: 51.13636364 | P61: 53.7993921 | Q61: 42.85714286 | BF61: 1 | BG61: 13
A62: 52.56586892 | C62: Barbara-Elio | D62: 56.48148148 | E62: 50.69444444 | F62: 52.77777778 | G62: 55.55555556 | H62: 50.79365079 | J62: 51.85185185 | K62: 47.22222222 | L62: 48.41269841 | M62: 56.25 | N62: 50.69444444 | O62: 53.97727273 | P62: 56.07902736 | BF62: 2 | BG62: 12
A63: 46.87865326 | B63: 1 | C63: Cesarina-Gaetano | D63: 42.59259259 | E63: 43.05555556 | G63: 50 | H63: 53.17460317 | I63: 53.57142857 | J63: 53.7037037 | K63: 49.53703704 | L63: 32.53968254 | M63: 46.52777778 | N63: 48.61111111 | O63: 43.75 | P63: 55.85106383 | Q63: 36.50793651 | BF63: 3 | BG63: 13
A64: 50.2616133 | B64: 8 | C64: Elena-Stefano | D64: 47.22222222 | E64: 43.05555556 | F64: 43.75 | G64: 43.75 | I64: 46.42857143 | J64: 55.55555556 | K64: 46.75925926 | L64: 60.31746032 | N64: 50.69444444 | O64: 48.86363636 | P64: 57.21884498 | Q64: 59.52380952 | BF64: 4 | BG64: 12
A65: 55.53304064 | C65: Isolde-Cristina | D65: 71.2962963 | E65: 53.47222222 | M65: 46.52777778 | P65: 50.83586626 | BF65: 5 | BG65: 4
A66: 45.01454023 | B66: 2 | C66: Lilli-Gianni | D66: 38.88888889 | E66: 54.86111111 | G66: 51.38888889 | H66: 39.68253968 | I66: 44.04761905 | J66: 29.62962963 | K66: 47.22222222 | L66: 38.0952381 | M66: 54.16666667 | N66: 38.19444444 | O66: 55.68181818 | P66: 46.50455927 | Q66: 46.82539683 | BF66: 6 | BG66: 13
A67: 54.25667607 | B67: 5 | C67: Manuela-Roberto | D67: 45.37037037 | E67: 54.86111111 | F67: 69.44444444 | G67: 61.11111111 | H67: 55.55555556 | I67: 54.76190476 | J67: 39.81481481 | K67: 48.14814815 | L67: 60.31746032 | M67: 52.77777778 | N67: 56.94444444 | O67: 50 | P67: 53.34346505 | Q67: 57.14285714 | BF67: 7 | BG67: 14
A68: 47.14139986 | B68: 4 | C68: Olimpia-Sauro | D68: 55.55555556 | E68: 47.22222222 | F68: 51.38888889 | G68: 24.30555556 | H68: 52.38095238 | I68: 46.42857143 | J68: 46.2962963 | M68: 49.30555556 | N68: 59.72222222 | O68: 50.56818182 | P68: 39.6656535 | Q68: 42.85714286 | BF68: 8 | BG68: 12
A69: 52.74189463 | C69: Renata-Sandro | N69: 50 | O69: 56.25 | P69: 51.97568389 | BF69: 9 | BG69: 3
A70: 55.69201287 | B70: 7 | C70: Stefania-Massimo | E70: 65.97222222 | F70: 58.33333333 | G70: 51.38888889 | H70: 43.65079365 | I70: 50 | J70: 68.51851852 | K70: 54.16666667 | L70: 61.11111111 | M70: 56.94444444 | N70: 46.52777778 | O70: 53.40909091 | P70: 48.10030395 | Q70: 65.87301587 | BF70: 10 | BG70: 13
A71: 45.86086019 | B71: 6 | C71: Tatiana-Julio | D71: 42.59259259 | E71: 43.05555556 | F71: 55.55555556 | G71: 51.38888889 | H71: 42.06349206 | I71: 54.76190476 | J71: 44.44444444 | K71: 54.16666667 | L71: 50 | M71: 34.72222222 | N71: 50 | O71: 40.34090909 | P71: 30.54711246 | Q71: 48.41269841 | BF71: 11 | BG71: 14

Sheet T
A1: Data | D1: BridgeMania 2019-20 - Torneo Howell
A2: luogo | D2: Coppie Ctrl+e | E2: Calcola Ctr+f | F2: Duplica Ctrl+g | G2: Clear Ctrl+h
A3: # coppie | C3: =IF(B5="","",COUNT(B5:B54)) ->  | E3: =IF(E5="","",SUMIF(E5:E54,">0")) ->  | G3: =IF(G5="","",SUM(G5:G54)) ->  | H3: =IF(H5="","",SUM(H5:H54)) ->  | I3: =SUM(I5:I54) -> 0 | J3: =SUM(J5:J54) -> 0 | K3: =SUM(K5:K54) -> 0 | L3: =SUM(L5:L54) -> 0 | M3: 0 | N3: 0 | O3: 0 | P3: 0 | Q3: 0 | R3: 0 | S3: 0 | T3: 0 | U3: 0 | V3: 0 | W3: 0 | X3: 0 | Y3: 0 | Z3: 0 | AA3: 0 | AB3: 0 | AC3: 0 | AD3: 0 | AE3: 0 | AF3: 0 | AG3: 0 | AH3: 0 | AI3: 0 | AJ3: 0 | AK3: 0 | AL3: 0 | AM3: 0 | AN3: 0 | AO3: 0 | AP3: 0 | AQ3: 0 | AR3: 0 | AS3: 0 | AT3: 0 | AU3: 0 | AV3: 0 | AW3: 0 | AX3: 0
A4: Class. | B4: # | C4: Coppie | D4: Inserire a mano "1" = + 1 PTS "2" = PTS medio | E4: Punteggio Serata | G4: Punteggio % | H4: Punteggio Torneo | I4: Penalità (-) | J4: Totale punti mano | K4: 1 | L4: 2 | M4: 3 | N4: 4 | O4: 5 | P4: 6 | Q4: 7 | R4: 8 | S4: 9 | T4: 10 | U4: 11 | V4: 12 | W4: 13 | X4: 14 | Y4: 15 | Z4: 16 | AA4: 17 | AB4: 18 | AC4: 19 | AD4: 20 | AE4: 21 | AF4: 22 | AG4: 23 | AH4: 24 | AI4: 25 | AJ4: 26 | AK4: 27 | AL4: 28 | AM4: 29 | AN4: 30 | AO4: 31 | AP4: 32 | AQ4: 33 | AR4: 34 | AS4: 35 | AT4: 36 | AU4: 37 | AV4: 38 | AW4: 39 | AX4: 40 | AZ4: F1 Fast | BA4: IndyCar Hard | BB4: F1 Hybrid | BF4: # std coppie
A5: =IF(J$2="","",IF($E5="","",IF($E5=MAX($E$5:$E$54),1,IF($E5=$E4,$A4,COUNT($E$5:$E5))))) ->  | E5: =IF(J$2="","",IF(G5=0,0,F5+G5)) ->  | G5: =IF(J$2="","",IF($J5=0,0,(H5*$C$3/$J$3)*50)) ->  | H5: =IF(J$2="","",IF(SUM($K5:$AX5)=0,0,SUM($K5:$AX5)+$I5)) ->  | J5: =IF(B5="",0,IF(SUM($K5:$AX5)=0,0,SUM($K5:$AX5))) -> 0
A6: =IF(J$2="","",IF($E6="","",IF($E6=MAX($E$5:$E$54),1,IF($E6=$E5,$A5,COUNT($E$5:$E6))))) ->  | E6: =IF(J$2="","",IF(G6=0,0,F6+G6)) ->  | G6: =IF(J$2="","",IF($J6=0,0,(H6*$C$3/$J$3)*50)) ->  | H6: =IF(J$2="","",IF(SUM($K6:$AX6)=0,0,SUM($K6:$AX6)+$I6)) ->  | J6: =IF(B6="",0,IF(SUM($K6:$AX6)=0,0,SUM($K6:$AX6))) -> 0
A7: =IF(J$2="","",IF($E7="","",IF($E7=MAX($E$5:$E$54),1,IF($E7=$E6,$A6,COUNT($E$5:$E7))))) ->  | E7: =IF(J$2="","",IF(G7=0,0,F7+G7)) ->  | G7: =IF(J$2="","",IF($J7=0,0,(H7*$C$3/$J$3)*50)) ->  | H7: =IF(J$2="","",IF(SUM($K7:$AX7)=0,0,SUM($K7:$AX7)+$I7)) ->  | J7: =IF(B7="",0,IF(SUM($K7:$AX7)=0,0,SUM($K7:$AX7))) -> 0
A8: =IF(J$2="","",IF($E8="","",IF($E8=MAX($E$5:$E$54),1,IF($E8=$E7,$A7,COUNT($E$5:$E8))))) ->  | E8: =IF(J$2="","",IF(G8=0,0,F8+G8)) ->  | G8: =IF(J$2="","",IF($J8=0,0,(H8*$C$3/$J$3)*50)) ->  | H8: =IF(J$2="","",IF(SUM($K8:$AX8)=0,0,SUM($K8:$AX8)+$I8)) ->  | J8: =IF(B8="",0,IF(SUM($K8:$AX8)=0,0,SUM($K8:$AX8))) -> 0
A9: =IF(J$2="","",IF($E9="","",IF($E9=MAX($E$5:$E$54),1,IF($E9=$E8,$A8,COUNT($E$5:$E9))))) ->  | E9: =IF(J$2="","",IF(G9=0,0,F9+G9)) ->  | G9: =IF(J$2="","",IF($J9=0,0,(H9*$C$3/$J$3)*50)) ->  | H9: =IF(J$2="","",IF(SUM($K9:$AX9)=0,0,SUM($K9:$AX9)+$I9)) ->  | J9: =IF(B9="",0,IF(SUM($K9:$AX9)=0,0,SUM($K9:$AX9))) -> 0
A10: =IF(J$2="","",IF($E10="","",IF($E10=MAX($E$5:$E$54),1,IF($E10=$E9,$A9,COUNT($E$5:$E10))))) ->  | E10: =IF(J$2="","",IF(G10=0,0,F10+G10)) ->  | G10: =IF(J$2="","",IF($J10=0,0,(H10*$C$3/$J$3)*50)) ->  | H10: =IF(J$2="","",IF(SUM($K10:$AX10)=0,0,SUM($K10:$AX10)+$I10)) ->  | J10: =IF(B10="",0,IF(SUM($K10:$AX10)=0,0,SUM($K10:$AX10))) -> 0
A11: =IF(J$2="","",IF($E11="","",IF($E11=MAX($E$5:$E$54),1,IF($E11=$E10,$A10,COUNT($E$5:$E11))))) ->  | E11: =IF(J$2="","",IF(G11=0,0,F11+G11)) ->  | G11: =IF(J$2="","",IF($J11=0,0,(H11*$C$3/$J$3)*50)) ->  | H11: =IF(J$2="","",IF(SUM($K11:$AX11)=0,0,SUM($K11:$AX11)+$I11)) ->  | J11: =IF(B11="",0,IF(SUM($K11:$AX11)=0,0,SUM($K11:$AX11))) -> 0
A12: =IF(J$2="","",IF($E12="","",IF($E12=MAX($E$5:$E$54),1,IF($E12=$E11,$A11,COUNT($E$5:$E12))))) ->  | E12: =IF(J$2="","",IF(G12=0,0,F12+G12)) ->  | G12: =IF(J$2="","",IF($J12=0,0,(H12*$C$3/$J$3)*50)) ->  | H12: =IF(J$2="","",IF(SUM($K12:$AX12)=0,0,SUM($K12:$AX12)+$I12)) ->  | J12: =IF(B12="",0,IF(SUM($K12:$AX12)=0,0,SUM($K12:$AX12))) -> 0
A13: =IF(J$2="","",IF($E13="","",IF($E13=MAX($E$5:$E$54),1,IF($E13=$E12,$A12,COUNT($E$5:$E13))))) ->  | E13: =IF(J$2="","",IF(G13=0,0,F13+G13)) ->  | G13: =IF(J$2="","",IF($J13=0,0,(H13*$C$3/$J$3)*50)) ->  | H13: =IF(J$2="","",IF(SUM($K13:$AX13)=0,0,SUM($K13:$AX13)+$I13)) ->  | J13: =IF(B13="",0,IF(SUM($K13:$AX13)=0,0,SUM($K13:$AX13))) -> 0
A14: =IF(J$2="","",IF($E14="","",IF($E14=MAX($E$5:$E$54),1,IF($E14=$E13,$A13,COUNT($E$5:$E14))))) ->  | E14: =IF(J$2="","",IF(G14=0,0,F14+G14)) ->  | G14: =IF(J$2="","",IF($J14=0,0,(H14*$C$3/$J$3)*50)) ->  | H14: =IF(J$2="","",IF(SUM($K14:$AX14)=0,0,SUM($K14:$AX14)+$I14)) ->  | J14: =IF(B14="",0,IF(SUM($K14:$AX14)=0,0,SUM($K14:$AX14))) -> 0
A15: =IF(J$2="","",IF($E15="","",IF($E15=MAX($E$5:$E$54),1,IF($E15=$E14,$A14,COUNT($E$5:$E15))))) ->  | E15: =IF(J$2="","",IF(G15=0,0,F15+G15)) ->  | G15: =IF(J$2="","",IF($J15=0,0,(H15*$C$3/$J$3)*50)) ->  | H15: =IF(J$2="","",IF(SUM($K15:$AX15)=0,0,SUM($K15:$AX15)+$I15)) ->  | J15: =IF(B15="",0,IF(SUM($K15:$AX15)=0,0,SUM($K15:$AX15))) -> 0
A16: =IF(J$2="","",IF($E16="","",IF($E16=MAX($E$5:$E$54),1,IF($E16=$E15,$A15,COUNT($E$5:$E16))))) ->  | E16: =IF(J$2="","",IF(G16=0,0,F16+G16)) ->  | G16: =IF(J$2="","",IF($J16=0,0,(H16*$C$3/$J$3)*50)) ->  | H16: =IF(J$2="","",IF(SUM($K16:$AX16)=0,0,SUM($K16:$AX16)+$I16)) ->  | J16: =IF(B16="",0,IF(SUM($K16:$AX16)=0,0,SUM($K16:$AX16))) -> 0
A17: =IF(J$2="","",IF($E17="","",IF($E17=MAX($E$5:$E$54),1,IF($E17=$E16,$A16,COUNT($E$5:$E17))))) ->  | E17: =IF(J$2="","",IF(G17=0,0,F17+G17)) ->  | G17: =IF(J$2="","",IF($J17=0,0,(H17*$C$3/$J$3)*50)) ->  | H17: =IF(J$2="","",IF(SUM($K17:$AX17)=0,0,SUM($K17:$AX17)+$I17)) ->  | J17: =IF(B17="",0,IF(SUM($K17:$AX17)=0,0,SUM($K17:$AX17))) -> 0
A18: =IF(J$2="","",IF($E18="","",IF($E18=MAX($E$5:$E$54),1,IF($E18=$E17,$A17,COUNT($E$5:$E18))))) ->  | E18: =IF(J$2="","",IF(G18=0,0,F18+G18)) ->  | G18: =IF(J$2="","",IF($J18=0,0,(H18*$C$3/$J$3)*50)) ->  | H18: =IF(J$2="","",IF(SUM($K18:$AX18)=0,0,SUM($K18:$AX18)+$I18)) ->  | J18: =IF(B18="",0,IF(SUM($K18:$AX18)=0,0,SUM($K18:$AX18))) -> 0
A19: =IF(J$2="","",IF($E19="","",IF($E19=MAX($E$5:$E$54),1,IF($E19=$E18,$A18,COUNT($E$5:$E19))))) ->  | E19: =IF(J$2="","",IF(G19=0,0,F19+G19)) ->  | G19: =IF(J$2="","",IF($J19=0,0,(H19*$C$3/$J$3)*50)) ->  | H19: =IF(J$2="","",IF(SUM($K19:$AX19)=0,0,SUM($K19:$AX19)+$I19)) ->  | J19: =IF(B19="",0,IF(SUM($K19:$AX19)=0,0,SUM($K19:$AX19))) -> 0
A20: =IF(J$2="","",IF($E20="","",IF($E20=MAX($E$5:$E$54),1,IF($E20=$E19,$A19,COUNT($E$5:$E20))))) ->  | E20: =IF(J$2="","",IF(G20=0,0,F20+G20)) ->  | G20: =IF(J$2="","",IF($J20=0,0,(H20*$C$3/$J$3)*50)) ->  | H20: =IF(J$2="","",IF(SUM($K20:$AX20)=0,0,SUM($K20:$AX20)+$I20)) ->  | J20: =IF(B20="",0,IF(SUM($K20:$AX20)=0,0,SUM($K20:$AX20))) -> 0
A21: =IF(J$2="","",IF($E21="","",IF($E21=MAX($E$5:$E$54),1,IF($E21=$E20,$A20,COUNT($E$5:$E21))))) ->  | E21: =IF(J$2="","",IF(G21=0,0,F21+G21)) ->  | G21: =IF(J$2="","",IF($J21=0,0,(H21*$C$3/$J$3)*50)) ->  | H21: =IF(J$2="","",IF(SUM($K21:$AX21)=0,0,SUM($K21:$AX21)+$I21)) ->  | J21: =IF(B21="",0,IF(SUM($K21:$AX21)=0,0,SUM($K21:$AX21))) -> 0
A22: =IF(J$2="","",IF($E22="","",IF($E22=MAX($E$5:$E$54),1,IF($E22=$E21,$A21,COUNT($E$5:$E22))))) ->  | E22: =IF(J$2="","",IF(G22=0,0,F22+G22)) ->  | G22: =IF(J$2="","",IF($J22=0,0,(H22*$C$3/$J$3)*50)) ->  | H22: =IF(J$2="","",IF(SUM($K22:$AX22)=0,0,SUM($K22:$AX22)+$I22)) ->  | J22: =IF(B22="",0,IF(SUM($K22:$AX22)=0,0,SUM($K22:$AX22))) -> 0
A23: =IF(J$2="","",IF($E23="","",IF($E23=MAX($E$5:$E$54),1,IF($E23=$E22,$A22,COUNT($E$5:$E23))))) ->  | E23: =IF(J$2="","",IF(G23=0,0,F23+G23)) ->  | G23: =IF(J$2="","",IF($J23=0,0,(H23*$C$3/$J$3)*50)) ->  | H23: =IF(J$2="","",IF(SUM($K23:$AX23)=0,0,SUM($K23:$AX23)+$I23)) ->  | J23: =IF(B23="",0,IF(SUM($K23:$AX23)=0,0,SUM($K23:$AX23))) -> 0
A24: =IF(J$2="","",IF($E24="","",IF($E24=MAX($E$5:$E$54),1,IF($E24=$E23,$A23,COUNT($E$5:$E24))))) ->  | E24: =IF(J$2="","",IF(G24=0,0,F24+G24)) ->  | G24: =IF(J$2="","",IF($J24=0,0,(H24*$C$3/$J$3)*50)) ->  | H24: =IF(J$2="","",IF(SUM($K24:$AX24)=0,0,SUM($K24:$AX24)+$I24)) ->  | J24: =IF(B24="",0,IF(SUM($K24:$AX24)=0,0,SUM($K24:$AX24))) -> 0
A25: =IF(J$2="","",IF($E25="","",IF($E25=MAX($E$5:$E$54),1,IF($E25=$E24,$A24,COUNT($E$5:$E25))))) ->  | E25: =IF(J$2="","",IF(G25=0,0,F25+G25)) ->  | G25: =IF(J$2="","",IF($J25=0,0,(H25*$C$3/$J$3)*50)) ->  | H25: =IF(J$2="","",IF(SUM($K25:$AX25)=0,0,SUM($K25:$AX25)+$I25)) ->  | J25: =IF(B25="",0,IF(SUM($K25:$AX25)=0,0,SUM($K25:$AX25))) -> 0
A26: =IF(J$2="","",IF($E26="","",IF($E26=MAX($E$5:$E$54),1,IF($E26=$E25,$A25,COUNT($E$5:$E26))))) ->  | E26: =IF(J$2="","",IF(G26=0,0,F26+G26)) ->  | G26: =IF(J$2="","",IF($J26=0,0,(H26*$C$3/$J$3)*50)) ->  | H26: =IF(J$2="","",IF(SUM($K26:$AX26)=0,0,SUM($K26:$AX26)+$I26)) ->  | J26: =IF(B26="",0,IF(SUM($K26:$AX26)=0,0,SUM($K26:$AX26))) -> 0
A27: =IF(J$2="","",IF($E27="","",IF($E27=MAX($E$5:$E$54),1,IF($E27=$E26,$A26,COUNT($E$5:$E27))))) ->  | E27: =IF(J$2="","",IF(G27=0,0,F27+G27)) ->  | G27: =IF(J$2="","",IF($J27=0,0,(H27*$C$3/$J$3)*50)) ->  | H27: =IF(J$2="","",IF(SUM($K27:$AX27)=0,0,SUM($K27:$AX27)+$I27)) ->  | J27: =IF(B27="",0,IF(SUM($K27:$AX27)=0,0,SUM($K27:$AX27))) -> 0
A28: =IF(J$2="","",IF($E28="","",IF($E28=MAX($E$5:$E$54),1,IF($E28=$E27,$A27,COUNT($E$5:$E28))))) ->  | E28: =IF(J$2="","",IF(G28=0,0,F28+G28)) ->  | G28: =IF(J$2="","",IF($J28=0,0,(H28*$C$3/$J$3)*50)) ->  | H28: =IF(J$2="","",IF(SUM($K28:$AX28)=0,0,SUM($K28:$AX28)+$I28)) ->  | J28: =IF(B28="",0,IF(SUM($K28:$AX28)=0,0,SUM($K28:$AX28))) -> 0
A29: =IF(J$2="","",IF($E29="","",IF($E29=MAX($E$5:$E$54),1,IF($E29=$E28,$A28,COUNT($E$5:$E29))))) ->  | E29: =IF(J$2="","",IF(G29=0,0,F29+G29)) ->  | G29: =IF(J$2="","",IF($J29=0,0,(H29*$C$3/$J$3)*50)) ->  | H29: =IF(J$2="","",IF(SUM($K29:$AX29)=0,0,SUM($K29:$AX29)+$I29)) ->  | J29: =IF(B29="",0,IF(SUM($K29:$AX29)=0,0,SUM($K29:$AX29))) -> 0
A30: =IF(J$2="","",IF($E30="","",IF($E30=MAX($E$5:$E$54),1,IF($E30=$E29,$A29,COUNT($E$5:$E30))))) ->  | E30: =IF(J$2="","",IF(G30=0,0,F30+G30)) ->  | G30: =IF(J$2="","",IF($J30=0,0,(H30*$C$3/$J$3)*50)) ->  | H30: =IF(J$2="","",IF(SUM($K30:$AX30)=0,0,SUM($K30:$AX30)+$I30)) ->  | J30: =IF(B30="",0,IF(SUM($K30:$AX30)=0,0,SUM($K30:$AX30))) -> 0
A31: =IF(J$2="","",IF($E31="","",IF($E31=MAX($E$5:$E$54),1,IF($E31=$E30,$A30,COUNT($E$5:$E31))))) ->  | E31: =IF(J$2="","",IF(G31=0,0,F31+G31)) ->  | G31: =IF(J$2="","",IF($J31=0,0,(H31*$C$3/$J$3)*50)) ->  | H31: =IF(J$2="","",IF(SUM($K31:$AX31)=0,0,SUM($K31:$AX31)+$I31)) ->  | J31: =IF(B31="",0,IF(SUM($K31:$AX31)=0,0,SUM($K31:$AX31))) -> 0
A32: =IF(J$2="","",IF($E32="","",IF($E32=MAX($E$5:$E$54),1,IF($E32=$E31,$A31,COUNT($E$5:$E32))))) ->  | E32: =IF(J$2="","",IF(G32=0,0,F32+G32)) ->  | G32: =IF(J$2="","",IF($J32=0,0,(H32*$C$3/$J$3)*50)) ->  | H32: =IF(J$2="","",IF(SUM($K32:$AX32)=0,0,SUM($K32:$AX32)+$I32)) ->  | J32: =IF(B32="",0,IF(SUM($K32:$AX32)=0,0,SUM($K32:$AX32))) -> 0
A33: =IF(J$2="","",IF($E33="","",IF($E33=MAX($E$5:$E$54),1,IF($E33=$E32,$A32,COUNT($E$5:$E33))))) ->  | E33: =IF(J$2="","",IF(G33=0,0,F33+G33)) ->  | G33: =IF(J$2="","",IF($J33=0,0,(H33*$C$3/$J$3)*50)) ->  | H33: =IF(J$2="","",IF(SUM($K33:$AX33)=0,0,SUM($K33:$AX33)+$I33)) ->  | J33: =IF(B33="",0,IF(SUM($K33:$AX33)=0,0,SUM($K33:$AX33))) -> 0
A34: =IF(J$2="","",IF($E34="","",IF($E34=MAX($E$5:$E$54),1,IF($E34=$E33,$A33,COUNT($E$5:$E34))))) ->  | E34: =IF(J$2="","",IF(G34=0,0,F34+G34)) ->  | G34: =IF(J$2="","",IF($J34=0,0,(H34*$C$3/$J$3)*50)) ->  | H34: =IF(J$2="","",IF(SUM($K34:$AX34)=0,0,SUM($K34:$AX34)+$I34)) ->  | J34: =IF(B34="",0,IF(SUM($K34:$AX34)=0,0,SUM($K34:$AX34))) -> 0
A35: =IF(J$2="","",IF($E35="","",IF($E35=MAX($E$5:$E$54),1,IF($E35=$E34,$A34,COUNT($E$5:$E35))))) ->  | E35: =IF(J$2="","",IF(G35=0,0,F35+G35)) ->  | G35: =IF(J$2="","",IF($J35=0,0,(H35*$C$3/$J$3)*50)) ->  | H35: =IF(J$2="","",IF(SUM($K35:$AX35)=0,0,SUM($K35:$AX35)+$I35)) ->  | J35: =IF(B35="",0,IF(SUM($K35:$AX35)=0,0,SUM($K35:$AX35))) -> 0
A36: =IF(J$2="","",IF($E36="","",IF($E36=MAX($E$5:$E$54),1,IF($E36=$E35,$A35,COUNT($E$5:$E36))))) ->  | E36: =IF(J$2="","",IF(G36=0,0,F36+G36)) ->  | G36: =IF(J$2="","",IF($J36=0,0,(H36*$C$3/$J$3)*50)) ->  | H36: =IF(J$2="","",IF(SUM($K36:$AX36)=0,0,SUM($K36:$AX36)+$I36)) ->  | J36: =IF(B36="",0,IF(SUM($K36:$AX36)=0,0,SUM($K36:$AX36))) -> 0
A37: =IF(J$2="","",IF($E37="","",IF($E37=MAX($E$5:$E$54),1,IF($E37=$E36,$A36,COUNT($E$5:$E37))))) ->  | E37: =IF(J$2="","",IF(G37=0,0,F37+G37)) ->  | G37: =IF(J$2="","",IF($J37=0,0,(H37*$C$3/$J$3)*50)) ->  | H37: =IF(J$2="","",IF(SUM($K37:$AX37)=0,0,SUM($K37:$AX37)+$I37)) ->  | J37: =IF(B37="",0,IF(SUM($K37:$AX37)=0,0,SUM($K37:$AX37))) -> 0
A38: =IF(J$2="","",IF($E38="","",IF($E38=MAX($E$5:$E$54),1,IF($E38=$E37,$A37,COUNT($E$5:$E38))))) ->  | E38: =IF(J$2="","",IF(G38=0,0,F38+G38)) ->  | G38: =IF(J$2="","",IF($J38=0,0,(H38*$C$3/$J$3)*50)) ->  | H38: =IF(J$2="","",IF(SUM($K38:$AX38)=0,0,SUM($K38:$AX38)+$I38)) ->  | J38: =IF(B38="",0,IF(SUM($K38:$AX38)=0,0,SUM($K38:$AX38))) -> 0
A39: =IF(J$2="","",IF($E39="","",IF($E39=MAX($E$5:$E$54),1,IF($E39=$E38,$A38,COUNT($E$5:$E39))))) ->  | E39: =IF(J$2="","",IF(G39=0,0,F39+G39)) ->  | G39: =IF(J$2="","",IF($J39=0,0,(H39*$C$3/$J$3)*50)) ->  | H39: =IF(J$2="","",IF(SUM($K39:$AX39)=0,0,SUM($K39:$AX39)+$I39)) ->  | J39: =IF(B39="",0,IF(SUM($K39:$AX39)=0,0,SUM($K39:$AX39))) -> 0
A40: =IF(J$2="","",IF($E40="","",IF($E40=MAX($E$5:$E$54),1,IF($E40=$E39,$A39,COUNT($E$5:$E40))))) ->  | E40: =IF(J$2="","",IF(G40=0,0,F40+G40)) ->  | G40: =IF(J$2="","",IF($J40=0,0,(H40*$C$3/$J$3)*50)) ->  | H40: =IF(J$2="","",IF(SUM($K40:$AX40)=0,0,SUM($K40:$AX40)+$I40)) ->  | J40: =IF(B40="",0,IF(SUM($K40:$AX40)=0,0,SUM($K40:$AX40))) -> 0
A41: =IF(J$2="","",IF($E41="","",IF($E41=MAX($E$5:$E$54),1,IF($E41=$E40,$A40,COUNT($E$5:$E41))))) ->  | E41: =IF(J$2="","",IF(G41=0,0,F41+G41)) ->  | G41: =IF(J$2="","",IF($J41=0,0,(H41*$C$3/$J$3)*50)) ->  | H41: =IF(J$2="","",IF(SUM($K41:$AX41)=0,0,SUM($K41:$AX41)+$I41)) ->  | J41: =IF(B41="",0,IF(SUM($K41:$AX41)=0,0,SUM($K41:$AX41))) -> 0
A42: =IF(J$2="","",IF($E42="","",IF($E42=MAX($E$5:$E$54),1,IF($E42=$E41,$A41,COUNT($E$5:$E42))))) ->  | E42: =IF(J$2="","",IF(G42=0,0,F42+G42)) ->  | G42: =IF(J$2="","",IF($J42=0,0,(H42*$C$3/$J$3)*50)) ->  | H42: =IF(J$2="","",IF(SUM($K42:$AX42)=0,0,SUM($K42:$AX42)+$I42)) ->  | J42: =IF(B42="",0,IF(SUM($K42:$AX42)=0,0,SUM($K42:$AX42))) -> 0
A43: =IF(J$2="","",IF($E43="","",IF($E43=MAX($E$5:$E$54),1,IF($E43=$E42,$A42,COUNT($E$5:$E43))))) ->  | E43: =IF(J$2="","",IF(G43=0,0,F43+G43)) ->  | G43: =IF(J$2="","",IF($J43=0,0,(H43*$C$3/$J$3)*50)) ->  | H43: =IF(J$2="","",IF(SUM($K43:$AX43)=0,0,SUM($K43:$AX43)+$I43)) ->  | J43: =IF(B43="",0,IF(SUM($K43:$AX43)=0,0,SUM($K43:$AX43))) -> 0
A44: =IF(J$2="","",IF($E44="","",IF($E44=MAX($E$5:$E$54),1,IF($E44=$E43,$A43,COUNT($E$5:$E44))))) ->  | E44: =IF(J$2="","",IF(G44=0,0,F44+G44)) ->  | G44: =IF(J$2="","",IF($J44=0,0,(H44*$C$3/$J$3)*50)) ->  | H44: =IF(J$2="","",IF(SUM($K44:$AX44)=0,0,SUM($K44:$AX44)+$I44)) ->  | J44: =IF(B44="",0,IF(SUM($K44:$AX44)=0,0,SUM($K44:$AX44))) -> 0
A45: =IF(J$2="","",IF($E45="","",IF($E45=MAX($E$5:$E$54),1,IF($E45=$E44,$A44,COUNT($E$5:$E45))))) ->  | E45: =IF(J$2="","",IF(G45=0,0,F45+G45)) ->  | G45: =IF(J$2="","",IF($J45=0,0,(H45*$C$3/$J$3)*50)) ->  | H45: =IF(J$2="","",IF(SUM($K45:$AX45)=0,0,SUM($K45:$AX45)+$I45)) ->  | J45: =IF(B45="",0,IF(SUM($K45:$AX45)=0,0,SUM($K45:$AX45))) -> 0
A46: =IF(J$2="","",IF($E46="","",IF($E46=MAX($E$5:$E$54),1,IF($E46=$E45,$A45,COUNT($E$5:$E46))))) ->  | E46: =IF(J$2="","",IF(G46=0,0,F46+G46)) ->  | G46: =IF(J$2="","",IF($J46=0,0,(H46*$C$3/$J$3)*50)) ->  | H46: =IF(J$2="","",IF(SUM($K46:$AX46)=0,0,SUM($K46:$AX46)+$I46)) ->  | J46: =IF(B46="",0,IF(SUM($K46:$AX46)=0,0,SUM($K46:$AX46))) -> 0
A47: =IF(J$2="","",IF($E47="","",IF($E47=MAX($E$5:$E$54),1,IF($E47=$E46,$A46,COUNT($E$5:$E47))))) ->  | E47: =IF(J$2="","",IF(G47=0,0,F47+G47)) ->  | G47: =IF(J$2="","",IF($J47=0,0,(H47*$C$3/$J$3)*50)) ->  | H47: =IF(J$2="","",IF(SUM($K47:$AX47)=0,0,SUM($K47:$AX47)+$I47)) ->  | J47: =IF(B47="",0,IF(SUM($K47:$AX47)=0,0,SUM($K47:$AX47))) -> 0
A48: =IF(J$2="","",IF($E48="","",IF($E48=MAX($E$5:$E$54),1,IF($E48=$E47,$A47,COUNT($E$5:$E48))))) ->  | E48: =IF(J$2="","",IF(G48=0,0,F48+G48)) ->  | G48: =IF(J$2="","",IF($J48=0,0,(H48*$C$3/$J$3)*50)) ->  | H48: =IF(J$2="","",IF(SUM($K48:$AX48)=0,0,SUM($K48:$AX48)+$I48)) ->  | J48: =IF(B48="",0,IF(SUM($K48:$AX48)=0,0,SUM($K48:$AX48))) -> 0
A49: =IF(J$2="","",IF($E49="","",IF($E49=MAX($E$5:$E$54),1,IF($E49=$E48,$A48,COUNT($E$5:$E49))))) ->  | E49: =IF(J$2="","",IF(G49=0,0,F49+G49)) ->  | G49: =IF(J$2="","",IF($J49=0,0,(H49*$C$3/$J$3)*50)) ->  | H49: =IF(J$2="","",IF(SUM($K49:$AX49)=0,0,SUM($K49:$AX49)+$I49)) ->  | J49: =IF(B49="",0,IF(SUM($K49:$AX49)=0,0,SUM($K49:$AX49))) -> 0
A50: =IF(J$2="","",IF($E50="","",IF($E50=MAX($E$5:$E$54),1,IF($E50=$E49,$A49,COUNT($E$5:$E50))))) ->  | E50: =IF(J$2="","",IF(G50=0,0,F50+G50)) ->  | G50: =IF(J$2="","",IF($J50=0,0,(H50*$C$3/$J$3)*50)) ->  | H50: =IF(J$2="","",IF(SUM($K50:$AX50)=0,0,SUM($K50:$AX50)+$I50)) ->  | J50: =IF(B50="",0,IF(SUM($K50:$AX50)=0,0,SUM($K50:$AX50))) -> 0
A51: =IF(J$2="","",IF($E51="","",IF($E51=MAX($E$5:$E$54),1,IF($E51=$E50,$A50,COUNT($E$5:$E51))))) ->  | E51: =IF(J$2="","",IF(G51=0,0,F51+G51)) ->  | G51: =IF(J$2="","",IF($J51=0,0,(H51*$C$3/$J$3)*50)) ->  | H51: =IF(J$2="","",IF(SUM($K51:$AX51)=0,0,SUM($K51:$AX51)+$I51)) ->  | J51: =IF(B51="",0,IF(SUM($K51:$AX51)=0,0,SUM($K51:$AX51))) -> 0
A52: =IF(J$2="","",IF($E52="","",IF($E52=MAX($E$5:$E$54),1,IF($E52=$E51,$A51,COUNT($E$5:$E52))))) ->  | E52: =IF(J$2="","",IF(G52=0,0,F52+G52)) ->  | G52: =IF(J$2="","",IF($J52=0,0,(H52*$C$3/$J$3)*50)) ->  | H52: =IF(J$2="","",IF(SUM($K52:$AX52)=0,0,SUM($K52:$AX52)+$I52)) ->  | J52: =IF(B52="",0,IF(SUM($K52:$AX52)=0,0,SUM($K52:$AX52))) -> 0
A53: =IF(J$2="","",IF($E53="","",IF($E53=MAX($E$5:$E$54),1,IF($E53=$E52,$A52,COUNT($E$5:$E53))))) ->  | E53: =IF(J$2="","",IF(G53=0,0,F53+G53)) ->  | G53: =IF(J$2="","",IF($J53=0,0,(H53*$C$3/$J$3)*50)) ->  | H53: =IF(J$2="","",IF(SUM($K53:$AX53)=0,0,SUM($K53:$AX53)+$I53)) ->  | J53: =IF(B53="",0,IF(SUM($K53:$AX53)=0,0,SUM($K53:$AX53))) -> 0
A54: =IF(J$2="","",IF($E54="","",IF($E54=MAX($E$5:$E$54),1,IF($E54=$E53,$A53,COUNT($E$5:$E54))))) ->  | E54: =IF(J$2="","",IF(G54=0,0,F54+G54)) ->  | G54: =IF(J$2="","",IF($J54=0,0,(H54*$C$3/$J$3)*50)) ->  | H54: =IF(J$2="","",IF(SUM($K54:$AX54)=0,0,SUM($K54:$AX54)+$I54)) ->  | J54: =IF(B54="",0,IF(SUM($K54:$AX54)=0,0,SUM($K54:$AX54))) -> 0
D59: punteggi torneo ordinati per # di coppia
B60: # coppia | E60: con zeri | F60: senza zeri | G60: senza zeri
F61: =IF(E61=0,"",E61) -> 
F62: =IF(E62=0,"",E62) ->  | I62: =IF(H62=0,"",H62) -> 
F63: =IF(E63=0,"",E63) -> 
F64: =IF(E64=0,"",E64) -> 
F65: =IF(E65=0,"",E65) ->  | I65: =IF(H65=0,"",H65) -> 
F66: =IF(E66=0,"",E66) -> 
F67: =IF(E67=0,"",E67) ->  | I67: =IF(H67=0,"",H67) -> 
F68: =IF(E68=0,"",E68) ->  | I68: =IF(H68=0,"",H68) -> 
F69: =IF(E69=0,"",E69) -> 
F70: =IF(E70=0,"",E70) -> 
F71: =IF(E71=0,"",E71) ->  | I71: =IF(H71=0,"",H71) -> 
F72: =IF(E72=0,"",E72) ->  | I72: =IF(H72=0,"",H72) -> 
F73: =IF(E73=0,"",E73) -> 
F74: =IF(E74=0,"",E74) ->  | I74: =IF(H74=0,"",H74) -> 
F75: =IF(E75=0,"",E75) ->  | I75: =IF(H75=0,"",H75) -> 
F76: =IF(E76=0,"",E76) ->  | I76: =IF(H76=0,"",H76) -> 
F77: =IF(E77=0,"",E77) -> 
F78: =IF(E78=0,"",E78) -> 
F79: =IF(E79=0,"",E79) ->  | I79: =IF(H79=0,"",H79) -> 
F80: =IF(E80=0,"",E80) ->  | I80: =IF(H80=0,"",H80) -> 
F81: =IF(E81=0,"",E81) -> 
F82: =IF(E82=0,"",E82) -> 
F83: =IF(E83=0,"",E83) -> 
F84: =IF(E84=0,"",E84) -> 
F85: =IF(E85=0,"",E85) -> 
F86: =IF(E86=0,"",E86) -> 
F87: =IF(E87=0,"",E87) -> 
F88: =IF(E88=0,"",E88) -> 
F89: =IF(E89=0,"",E89) -> 
F90: =IF(E90=0,"",E90) -> 
F91: =IF(E91=0,"",E91) -> 
F92: =IF(E92=0,"",E92) -> 
F93: =IF(E93=0,"",E93) -> 
F94: =IF(E94=0,"",E94) -> 
F95: =IF(E95=0,"",E95) -> 
F96: =IF(E96=0,"",E96) -> 
F97: =IF(E97=0,"",E97) -> 
F98: =IF(E98=0,"",E98) -> 
F99: =IF(E99=0,"",E99) -> 
F100: =IF(E100=0,"",E100) -> 
F101: =IF(E101=0,"",E101) -> 
F102: =IF(E102=0,"",E102) -> 
F103: =IF(E103=0,"",E103) -> 
F104: =IF(E104=0,"",E104) -> 
F105: =IF(E105=0,"",E105) -> 
F106: =IF(E106=0,"",E106) -> 
F107: =IF(E107=0,"",E107) -> 
F108: =IF(E108=0,"",E108) -> 
F109: =IF(E109=0,"",E109) -> 
F110: =IF(E110=0,"",E110) -> 
A119: PTS ordinati per numero standard di coppia base
A120: #STD | B120: PTS
BF121: 1
BF122: 2
BF123: 3
I124: =IF(H124=0,"",H124) ->  | BF124: 4
BF125: 5
I126: =IF(H126=0,"",H126) ->  | BF126: 6
I127: =IF(H127=0,"",H127) ->  | BF127: 7
BF128: 8
I129: =IF(H129=0,"",H129) ->  | BF129: 9
I130: =IF(H130=0,"",H130) ->  | BF130: 10
BF131: 11
B198: F1 Fast | C198: IndyCar Hard | D198: F1 Hibryd | AY198: F1 Fast | AZ198: IndyCar Hard | BA198: F1 Hybrid | BB198: F1 Fast | BC198: IndyCar Hard | BD198: F1 Hybrid
A199: classifica | D199: 6+ | E199: 5.5 | F199: 5 | G199: 4.5 | H199: 4 | I199: 3.5 | J199: 3 | AY199: scale-punti base | BB199: con medie e parimerito | BH199: con correzioni (punti finali)
A200: p.medio | B200: 8.417 | C200: 28.667 | D200: 10.17 | E200: 9.64 | F200: 9 | G200: 8.33 | H200: 7.38 | I200: 6.43 | J200: 5.5 | BB200: =B200 -> 8.417 | BC200: =C200 -> 28.667 | BD200: =IF($B4=0,0,IF($C$3=6,J200))+IF($C$3=7,I200)+IF($C$3=8,H200)+IF($C$3=9,G200)+IF($C$3=10,F200)+IF($C$3=11,E200)+IF($C$3>=12,D200) -> 10.17 | BH200: F1 Fast | BI200: HindyCar Hard | BJ200: F1 Hibryd
A201: 1 | B201: 25 | C201: 50 | D201: 25 | E201: 22 | F201: 20 | G201: 18 | H201: 16 | I201: 14 | J201: 12 | AY201: =IF($B5=0,0,B201) -> 0 | AZ201: =IF($B5=0,0,C201) -> 0 | BA201: =IF($B5=0,0,IF($C$3=6,J201))+IF($C$3=7,I201)+IF($C$3=8,H201)+IF($C$3=9,G201)+IF($C$3=10,F201)+IF($C$3=11,E201)+IF($C$3>=12,D201) -> 25 | BB201: =IF($B5="",0,IF($E5>$E6,AY201,IF($E6>$E7,(AY201+AY202)/2,IF($E7>$E8,(AY201+AY202+AY203)/3,(AY201+AY202+AY203+AY204)/4)))) -> 0 | BC201: =IF($B5="",0,IF($E5>$E6,AZ201,IF($E6>$E7,(AZ201+AZ202)/2,IF($E7>$E8,(AZ201+AZ202+AZ203)/3,(AZ201+AZ202+AZ203+AZ204)/4)))) -> 0 | BD201: 0 | BH201: =IF($D5=1,BB201+1,IF($D5=2,B$200,BB201)) -> 0 | BI201: =IF($D5=1,BC201+1,IF($D5=2,C$200,BC201)) -> 0 | BJ201: =IF($D5=1,BD201+1,IF($D5=2,BD$200,BD201)) -> 0
A202: 2 | B202: 18 | C202: 40 | D202: 19 | E202: 18 | F202: 16 | G202: 14 | H202: 12 | I202: 10 | J202: 8 | AY202: =IF($B6=0,0,B202) -> 0 | AZ202: 0 | BA202: =IF($B6=0,0,IF($C$3=6,J202))+IF($C$3=7,I202)+IF($C$3=8,H202)+IF($C$3=9,G202)+IF($C$3=10,F202)+IF($C$3=11,E202)+IF($C$3>=12,D202) -> 19 | BB202: =IF($B6="",0,IF($E6=$E5,BB201,IF($E6>$E7,AY202,IF($E7>$E8,(AY202+AY203)/2,IF($E8>$E9,(AY202+AY203+AY204)/3,(AY202+AY203+AY204+AY205)/4))))) -> 0 | BC202: =IF($B6="",0,IF($E6=$E5,BC201,IF($E6>$E7,AZ202,IF($E7>$E8,(AZ202+AZ203)/2,IF($E8>$E9,(AZ202+AZ203+AZ204)/3,(AZ202+AZ203+AZ204+AZ205)/4))))) -> 0 | BD202: =IF($B6="",0,IF($E6=$E5,BD201,IF($E6>$E7,BA202,IF($E7>$E8,(BA202+BA203)/2,IF($E8>$E9,(BA202+BA203+BA204)/3,(BA202+BA203+BA204+BA205)/4))))) -> 0 | BH202: =IF($D6=1,BB202+1,IF($D6=2,B$200,BB202)) -> 0 | BI202: 0 | BJ202: =IF($D6=1,BD202+1,IF($D6=2,BD$200,BD202)) -> 0
A203: 3 | B203: 15 | C203: 35 | D203: 16 | E203: 15 | F203: 13 | G203: 12 | H203: 10 | I203: 8 | J203: 6 | AY203: =IF($B7=0,0,B203) -> 0 | AZ203: 0 | BA203: 16 | BB203: =IF($B7="",0,IF($E7=$E6,BB202,IF($E7>$E8,AY203,IF($E8>$E9,(AY203+AY204)/2,IF($E9>$E10,(AY203+AY204+AY205)/3,(AY203+AY204+AY205+AY206)/4))))) -> 0 | BC203: 0 | BD203: 0 | BH203: =IF($D7=1,BB203+1,IF($D7=2,B$200,BB203)) -> 0 | BI203: 0 | BJ203: 0
A204: 4 | B204: 12 | C204: 32 | D204: 13 | E204: 12 | F204: 11 | G204: 10 | H204: 8 | I204: 6 | J204: 4 | AY204: =IF($B8=0,0,B204) -> 0 | AZ204: 0 | BA204: 13 | BB204: =IF($B8="",0,IF($E8=$E7,BB203,IF($E8>$E9,AY204,IF($E9>$E10,(AY204+AY205)/2,IF($E10>$E11,(AY204+AY205+AY206)/3,(AY204+AY205+AY206+AY207)/4))))) -> 0 | BC204: 0 | BD204: 0 | BH204: =IF($D8=1,BB204+1,IF($D8=2,B$200,BB204)) -> 0 | BI204: 0 | BJ204: 0
A205: 5 | B205: 10 | C205: 30 | D205: 11 | E205: 10 | F205: 9 | G205: 8 | H205: 6 | I205: 4 | J205: 2 | AY205: =IF($B9=0,0,B205) -> 0 | AZ205: 0 | BA205: 11 | BB205: =IF($B9="",0,IF($E9=$E8,BB204,IF($E9>$E10,AY205,IF($E10>$E11,(AY205+AY206)/2,IF($E11>$E12,(AY205+AY206+AY207)/3,(AY205+AY206+AY207+AY208)/4))))) -> 0 | BC205: 0 | BD205: 0 | BH205: =IF($D9=1,BB205+1,IF($D9=2,B$200,BB205)) -> 0 | BI205: 0 | BJ205: 0
A206: 6 | B206: 8 | C206: 28 | D206: 10 | E206: 9 | F206: 8 | G206: 6 | H206: 4 | I206: 2 | J206: 1 | AY206: =IF($B10=0,0,B206) -> 0 | AZ206: 0 | BA206: 10 | BB206: =IF($B10="",0,IF($E10=$E9,BB205,IF($E10>$E11,AY206,IF($E11>$E12,(AY206+AY207)/2,IF($E12>$E13,(AY206+AY207+AY208)/3,(AY206+AY207+AY208+AY209)/4))))) -> 0 | BC206: 0 | BD206: 0 | BH206: =IF($D10=1,BB206+1,IF($D10=2,B$200,BB206)) -> 0 | BI206: 0 | BJ206: 0
A207: 7 | B207: 6 | C207: 26 | D207: 8 | E207: 7 | F207: 6 | G207: 4 | H207: 2 | I207: 1 | J207: 0 | AY207: =IF($B11=0,0,B207) -> 0 | AZ207: 0 | BA207: 8 | BB207: =IF($B11="",0,IF($E11=$E10,BB206,IF($E11>$E12,AY207,IF($E12>$E13,(AY207+AY208)/2,IF($E13>$E14,(AY207+AY208+AY209)/3,(AY207+AY208+AY209+AY210)/4))))) -> 0 | BC207: 0 | BD207: 0 | BH207: =IF($D11=1,BB207+1,IF($D11=2,B$200,BB207)) -> 0 | BI207: 0 | BJ207: 0
A208: 8 | B208: 4 | C208: 24 | D208: 7 | E208: 6 | F208: 4 | G208: 2 | H208: 1 | I208: 0 | J208: 0 | AY208: =IF($B12=0,0,B208) -> 0 | AZ208: 0 | BA208: 7 | BB208: =IF($B12="",0,IF($E12=$E11,BB207,IF($E12>$E13,AY208,IF($E13>$E14,(AY208+AY209)/2,IF($E14>$E15,(AY208+AY209+AY210)/3,(AY208+AY209+AY210+AY211)/4))))) -> 0 | BC208: 0 | BD208: 0 | BH208: =IF($D12=1,BB208+1,IF($D12=2,B$200,BB208)) -> 0 | BI208: 0 | BJ208: 0
A209: 9 | B209: 2 | C209: 22 | D209: 6 | E209: 4 | F209: 2 | G209: 1 | H209: 0 | I209: 0 | J209: 0 | AY209: =IF($B13=0,0,B209) -> 0 | AZ209: 0 | BA209: 6 | BB209: =IF($B13="",0,IF($E13=$E12,BB208,IF($E13>$E14,AY209,IF($E14>$E15,(AY209+AY210)/2,IF($E15>$E16,(AY209+AY210+AY211)/3,(AY209+AY210+AY211+AY212)/4))))) -> 0 | BC209: 0 | BD209: 0 | BH209: =IF($D13=1,BB209+1,IF($D13=2,B$200,BB209)) -> 0 | BI209: 0 | BJ209: 0
A210: 10 | B210: 1 | C210: 20 | D210: 4 | E210: 2 | F210: 1 | G210: 0 | H210: 0 | I210: 0 | J210: 0 | AY210: =IF($B14=0,0,B210) -> 0 | AZ210: 0 | BA210: 4 | BB210: =IF($B14="",0,IF($E14=$E13,BB209,IF($E14>$E15,AY210,IF($E15>$E16,(AY210+AY211)/2,IF($E16>$E17,(AY210+AY211+AY212)/3,(AY210+AY211+AY212+AY213)/4))))) -> 0 | BC210: 0 | BD210: 0 | BH210: =IF($D14=1,BB210+1,IF($D14=2,B$200,BB210)) -> 0 | BI210: 0 | BJ210: 0
A211: 11 | B211: 0 | C211: 19 | D211: 2 | E211: 1 | F211: 0 | G211: 0 | H211: 0 | I211: 0 | J211: 0 | AY211: =IF($B15=0,0,B211) -> 0 | AZ211: 0 | BA211: 2 | BB211: =IF($B15="",0,IF($E15=$E14,BB210,IF($E15>$E16,AY211,IF($E16>$E17,(AY211+AY212)/2,IF($E17>$E18,(AY211+AY212+AY213)/3,(AY211+AY212+AY213+AY214)/4))))) -> 0 | BC211: 0 | BD211: 0 | BH211: =IF($D15=1,BB211+1,IF($D15=2,B$200,BB211)) -> 0 | BI211: 0 | BJ211: 0
A212: 12 | B212: 0 | C212: 18 | D212: 1 | E212: 0 | F212: 0 | G212: 0 | H212: 0 | I212: 0 | J212: 0 | AY212: =IF($B16=0,0,B212) -> 0 | AZ212: 0 | BA212: 1 | BB212: =IF($B16="",0,IF($E16=$E15,BB211,IF($E16>$E17,AY212,IF($E17>$E18,(AY212+AY213)/2,IF($E18>$E19,(AY212+AY213+AY214)/3,(AY212+AY213+AY214+AY215)/4))))) -> 0 | BC212: 0 | BD212: 0 | BH212: =IF($D16=1,BB212+1,IF($D16=2,B$200,BB212)) -> 0 | BI212: 0 | BJ212: 0
A213: 13 | B213: 0 | C213: 0 | D213: 0 | E213: 0 | F213: 0 | G213: 0 | H213: 0 | I213: 0 | J213: 0 | AY213: =IF($B17=0,0,B213) -> 0 | AZ213: 0 | BA213: 0 | BB213: =IF($B17="",0,IF($E17=$E16,BB212,IF($E17>$E18,AY213,IF($E18>$E19,(AY213+AY214)/2,IF($E19>$E20,(AY213+AY214+AY215)/3,(AY213+AY214+AY215+AY216)/4))))) -> 0 | BC213: 0 | BD213: 0 | BH213: =IF($D17=1,BB213+1,IF($D17=2,B$200,BB213)) -> 0 | BI213: 0 | BJ213: 0
A214: 14 | B214: 0 | C214: 0 | D214: 0 | E214: 0 | F214: 0 | G214: 0 | H214: 0 | I214: 0 | J214: 0 | AY214: =IF($B18=0,0,B214) -> 0 | AZ214: 0 | BA214: 0 | BB214: =IF($B18="",0,IF($E18=$E17,BB213,IF($E18>$E19,AY214,IF($E19>$E20,(AY214+AY215)/2,IF($E20>$E21,(AY214+AY215+AY216)/3,(AY214+AY215+AY216+AY217)/4))))) -> 0 | BC214: 0 | BD214: 0 | BH214: =IF($D18=1,BB214+1,IF($D18=2,B$200,BB214)) -> 0 | BI214: 0 | BJ214: 0
A215: 15 | B215: 0 | C215: 0 | D215: 0 | E215: 0 | F215: 0 | G215: 0 | H215: 0 | I215: 0 | J215: 0 | AY215: =IF($B19=0,0,B215) -> 0 | AZ215: 0 | BA215: 0 | BB215: =IF($B19="",0,IF($E19=$E18,BB214,IF($E19>$E20,AY215,IF($E20>$E21,(AY215+AY216)/2,IF($E21>$E22,(AY215+AY216+AY217)/3,(AY215+AY216+AY217+AY218)/4))))) -> 0 | BC215: 0 | BD215: 0 | BH215: =IF($D19=1,BB215+1,IF($D19=2,B$200,BB215)) -> 0 | BI215: 0 | BJ215: 0
A216: 16 | B216: 0 | C216: 0 | D216: 0 | E216: 0 | F216: 0 | G216: 0 | H216: 0 | I216: 0 | J216: 0 | AY216: =IF($B20=0,0,B216) -> 0 | AZ216: 0 | BA216: 0 | BB216: =IF($B20="",0,IF($E20=$E19,BB215,IF($E20>$E21,AY216,IF($E21>$E22,(AY216+AY217)/2,IF($E22>$E23,(AY216+AY217+AY218)/3,(AY216+AY217+AY218+AY219)/4))))) -> 0 | BC216: 0 | BD216: 0 | BH216: =IF($D20=1,BB216+1,IF($D20=2,B$200,BB216)) -> 0 | BI216: 0 | BJ216: 0
A217: 17 | B217: 0 | C217: 0 | D217: 0 | E217: 0 | F217: 0 | G217: 0 | H217: 0 | I217: 0 | J217: 0 | AY217: =IF($B21=0,0,B217) -> 0 | AZ217: 0 | BA217: 0 | BB217: =IF($B21="",0,IF($E21=$E20,BB216,IF($E21>$E22,AY217,IF($E22>$E23,(AY217+AY218)/2,IF($E23>$E24,(AY217+AY218+AY219)/3,(AY217+AY218+AY219+AY220)/4))))) -> 0 | BC217: 0 | BD217: 0 | BH217: =IF($D21=1,BB217+1,IF($D21=2,B$200,BB217)) -> 0 | BI217: 0 | BJ217: 0
A218: 18 | B218: 0 | C218: 0 | D218: 0 | E218: 0 | F218: 0 | G218: 0 | H218: 0 | I218: 0 | J218: 0 | AY218: =IF($B22=0,0,B218) -> 0 | AZ218: 0 | BA218: 0 | BB218: =IF($B22="",0,IF($E22=$E21,BB217,IF($E22>$E23,AY218,IF($E23>$E24,(AY218+AY219)/2,IF($E24>$E25,(AY218+AY219+AY220)/3,(AY218+AY219+AY220+AY221)/4))))) -> 0 | BC218: 0 | BD218: 0 | BH218: =IF($D22=1,BB218+1,IF($D22=2,B$200,BB218)) -> 0 | BI218: 0 | BJ218: 0
A219: 19 | B219: 0 | C219: 0 | D219: 0 | E219: 0 | F219: 0 | G219: 0 | H219: 0 | I219: 0 | J219: 0 | AY219: =IF($B23=0,0,B219) -> 0 | AZ219: 0 | BA219: 0 | BB219: =IF($B23="",0,IF($E23=$E22,BB218,IF($E23>$E24,AY219,IF($E24>$E25,(AY219+AY220)/2,IF($E25>$E26,(AY219+AY220+AY221)/3,(AY219+AY220+AY221+AY222)/4))))) -> 0 | BC219: 0 | BD219: 0 | BH219: =IF($D23=1,BB219+1,IF($D23=2,B$200,BB219)) -> 0 | BI219: 0 | BJ219: 0
A220: 20 | B220: 0 | C220: 0 | D220: 0 | E220: 0 | F220: 0 | G220: 0 | H220: 0 | I220: 0 | J220: 0 | AY220: =IF($B24=0,0,B220) -> 0 | AZ220: 0 | BA220: 0 | BB220: =IF($B24="",0,IF($E24=$E23,BB219,IF($E24>$E25,AY220,IF($E25>$E26,(AY220+AY221)/2,IF($E26>$E27,(AY220+AY221+AY222)/3,(AY220+AY221+AY222+AY223)/4))))) -> 0 | BC220: 0 | BD220: 0 | BH220: =IF($D24=1,BB220+1,IF($D24=2,B$200,BB220)) -> 0 | BI220: 0 | BJ220: 0
A221: 21 | B221: 0 | C221: 0 | D221: 0 | E221: 0 | F221: 0 | G221: 0 | H221: 0 | I221: 0 | J221: 0 | AY221: =IF($B25=0,0,B221) -> 0 | AZ221: 0 | BA221: 0 | BB221: =IF($B25="",0,IF($E25=$E24,BB220,IF($E25>$E26,AY221,IF($E26>$E27,(AY221+AY222)/2,IF($E27>$E28,(AY221+AY222+AY223)/3,(AY221+AY222+AY223+AY224)/4))))) -> 0 | BC221: 0 | BD221: 0 | BH221: =IF($D25=1,BB221+1,IF($D25=2,B$200,BB221)) -> 0 | BI221: 0 | BJ221: 0
A222: 22 | B222: 0 | C222: 0 | D222: 0 | E222: 0 | F222: 0 | G222: 0 | H222: 0 | I222: 0 | J222: 0 | AY222: =IF($B26=0,0,B222) -> 0 | AZ222: 0 | BA222: 0 | BB222: =IF($B26="",0,IF($E26=$E25,BB221,IF($E26>$E27,AY222,IF($E27>$E28,(AY222+AY223)/2,IF($E28>$E29,(AY222+AY223+AY224)/3,(AY222+AY223+AY224+AY225)/4))))) -> 0 | BC222: 0 | BD222: 0 | BH222: =IF($D26=1,BB222+1,IF($D26=2,B$200,BB222)) -> 0 | BI222: 0 | BJ222: 0
A223: 23 | B223: 0 | C223: 0 | D223: 0 | E223: 0 | F223: 0 | G223: 0 | H223: 0 | I223: 0 | J223: 0 | AY223: =IF($B27=0,0,B223) -> 0 | AZ223: 0 | BA223: 0 | BB223: =IF($B27="",0,IF($E27=$E26,BB222,IF($E27>$E28,AY223,IF($E28>$E29,(AY223+AY224)/2,IF($E29>$E30,(AY223+AY224+AY225)/3,(AY223+AY224+AY225+AY226)/4))))) -> 0 | BC223: 0 | BD223: 0 | BH223: =IF($D27=1,BB223+1,IF($D27=2,B$200,BB223)) -> 0 | BI223: 0 | BJ223: 0
A224: 24 | B224: 0 | C224: 0 | D224: 0 | E224: 0 | F224: 0 | G224: 0 | H224: 0 | I224: 0 | J224: 0 | AY224: =IF($B28=0,0,B224) -> 0 | AZ224: 0 | BA224: 0 | BB224: =IF($B28="",0,IF($E28=$E27,BB223,IF($E28>$E29,AY224,IF($E29>$E30,(AY224+AY225)/2,IF($E30>$E31,(AY224+AY225+AY226)/3,(AY224+AY225+AY226+AY227)/4))))) -> 0 | BC224: 0 | BD224: 0 | BH224: =IF($D28=1,BB224+1,IF($D28=2,B$200,BB224)) -> 0 | BI224: 0 | BJ224: 0
A225: 25 | B225: 0 | C225: 0 | D225: 0 | E225: 0 | F225: 0 | G225: 0 | H225: 0 | I225: 0 | J225: 0 | AY225: =IF($B29=0,0,B225) -> 0 | AZ225: 0 | BA225: 0 | BB225: =IF($B29="",0,IF($E29=$E28,BB224,IF($E29>$E30,AY225,IF($E30>$E31,(AY225+AY226)/2,IF($E31>$E32,(AY225+AY226+AY227)/3,(AY225+AY226+AY227+AY228)/4))))) -> 0 | BC225: 0 | BD225: 0 | BH225: =IF($D29=1,BB225+1,IF($D29=2,B$200,BB225)) -> 0 | BI225: 0 | BJ225: 0
A226: 26 | B226: 0 | C226: 0 | D226: 0 | E226: 0 | F226: 0 | G226: 0 | H226: 0 | I226: 0 | J226: 0 | AY226: =IF($B30=0,0,B226) -> 0 | AZ226: 0 | BA226: 0 | BB226: =IF($B30="",0,IF($E30=$E29,BB225,IF($E30>$E31,AY226,IF($E31>$E32,(AY226+AY227)/2,IF($E32>$E33,(AY226+AY227+AY228)/3,(AY226+AY227+AY228+AY229)/4))))) -> 0 | BC226: 0 | BD226: 0 | BH226: =IF($D30=1,BB226+1,IF($D30=2,B$200,BB226)) -> 0 | BI226: 0 | BJ226: 0
A227: 27 | B227: 0 | C227: 0 | D227: 0 | E227: 0 | F227: 0 | G227: 0 | H227: 0 | I227: 0 | J227: 0 | AY227: =IF($B31=0,0,B227) -> 0 | AZ227: 0 | BA227: 0 | BB227: =IF($B31="",0,IF($E31=$E30,BB226,IF($E31>$E32,AY227,IF($E32>$E33,(AY227+AY228)/2,IF($E33>$E34,(AY227+AY228+AY229)/3,(AY227+AY228+AY229+AY230)/4))))) -> 0 | BC227: 0 | BD227: 0 | BH227: =IF($D31=1,BB227+1,IF($D31=2,B$200,BB227)) -> 0 | BI227: 0 | BJ227: 0
A228: 28 | B228: 0 | C228: 0 | D228: 0 | E228: 0 | F228: 0 | G228: 0 | H228: 0 | I228: 0 | J228: 0 | AY228: =IF($B32=0,0,B228) -> 0 | AZ228: 0 | BA228: 0 | BB228: =IF($B32="",0,IF($E32=$E31,BB227,IF($E32>$E33,AY228,IF($E33>$E34,(AY228+AY229)/2,IF($E34>$E35,(AY228+AY229+AY230)/3,(AY228+AY229+AY230+AY231)/4))))) -> 0 | BC228: 0 | BD228: 0 | BH228: =IF($D32=1,BB228+1,IF($D32=2,B$200,BB228)) -> 0 | BI228: 0 | BJ228: 0
A229: 29 | B229: 0 | C229: 0 | D229: 0 | E229: 0 | F229: 0 | G229: 0 | H229: 0 | I229: 0 | J229: 0 | AY229: =IF($B33=0,0,B229) -> 0 | AZ229: 0 | BA229: 0 | BB229: =IF($B33="",0,IF($E33=$E32,BB228,IF($E33>$E34,AY229,IF($E34>$E35,(AY229+AY230)/2,IF($E35>$E36,(AY229+AY230+AY231)/3,(AY229+AY230+AY231+AY232)/4))))) -> 0 | BC229: 0 | BD229: 0 | BH229: =IF($D33=1,BB229+1,IF($D33=2,B$200,BB229)) -> 0 | BI229: 0 | BJ229: 0
A230: 30 | B230: 0 | C230: 0 | D230: 0 | E230: 0 | F230: 0 | G230: 0 | H230: 0 | I230: 0 | J230: 0 | AY230: =IF($B34=0,0,B230) -> 0 | AZ230: 0 | BA230: 0 | BB230: =IF($B34="",0,IF($E34=$E33,BB229,IF($E34>$E35,AY230,IF($E35>$E36,(AY230+AY231)/2,IF($E36>$E37,(AY230+AY231+AY232)/3,(AY230+AY231+AY232+AY233)/4))))) -> 0 | BC230: 0 | BD230: 0 | BH230: =IF($D34=1,BB230+1,IF($D34=2,B$200,BB230)) -> 0 | BI230: 0 | BJ230: 0
A231: 31 | B231: 0 | C231: 0 | D231: 0 | E231: 0 | F231: 0 | G231: 0 | H231: 0 | I231: 0 | J231: 0 | AY231: =IF($B35=0,0,B231) -> 0 | AZ231: 0 | BA231: 0 | BB231: =IF($B35="",0,IF($E35=$E34,BB230,IF($E35>$E36,AY231,IF($E36>$E37,(AY231+AY232)/2,IF($E37>$E38,(AY231+AY232+AY233)/3,(AY231+AY232+AY233+AY234)/4))))) -> 0 | BC231: 0 | BD231: 0 | BH231: =IF($D35=1,BB231+1,IF($D35=2,B$200,BB231)) -> 0 | BI231: 0 | BJ231: 0
A232: 32 | B232: 0 | C232: 0 | D232: 0 | E232: 0 | F232: 0 | G232: 0 | H232: 0 | I232: 0 | J232: 0 | AY232: =IF($B36=0,0,B232) -> 0 | AZ232: 0 | BA232: 0 | BB232: =IF($B36="",0,IF($E36=$E35,BB231,IF($E36>$E37,AY232,IF($E37>$E38,(AY232+AY233)/2,IF($E38>$E39,(AY232+AY233+AY234)/3,(AY232+AY233+AY234+AY235)/4))))) -> 0 | BC232: 0 | BD232: 0 | BH232: =IF($D36=1,BB232+1,IF($D36=2,B$200,BB232)) -> 0 | BI232: 0 | BJ232: 0
A233: 33 | B233: 0 | C233: 0 | D233: 0 | E233: 0 | F233: 0 | G233: 0 | H233: 0 | I233: 0 | J233: 0 | AY233: =IF($B37=0,0,B233) -> 0 | AZ233: 0 | BA233: 0 | BB233: =IF($B37="",0,IF($E37=$E36,BB232,IF($E37>$E38,AY233,IF($E38>$E39,(AY233+AY234)/2,IF($E39>$E40,(AY233+AY234+AY235)/3,(AY233+AY234+AY235+AY236)/4))))) -> 0 | BC233: 0 | BD233: 0 | BH233: =IF($D37=1,BB233+1,IF($D37=2,B$200,BB233)) -> 0 | BI233: 0 | BJ233: 0
A234: 34 | B234: 0 | C234: 0 | D234: 0 | E234: 0 | F234: 0 | G234: 0 | H234: 0 | I234: 0 | J234: 0 | AY234: =IF($B38=0,0,B234) -> 0 | AZ234: 0 | BA234: 0 | BB234: =IF($B38="",0,IF($E38=$E37,BB233,IF($E38>$E39,AY234,IF($E39>$E40,(AY234+AY235)/2,IF($E40>$E41,(AY234+AY235+AY236)/3,(AY234+AY235+AY236+AY237)/4))))) -> 0 | BC234: 0 | BD234: 0 | BH234: =IF($D38=1,BB234+1,IF($D38=2,B$200,BB234)) -> 0 | BI234: 0 | BJ234: 0
A235: 35 | B235: 0 | C235: 0 | D235: 0 | E235: 0 | F235: 0 | G235: 0 | H235: 0 | I235: 0 | J235: 0 | AY235: =IF($B39=0,0,B235) -> 0 | AZ235: 0 | BA235: 0 | BB235: =IF($B39="",0,IF($E39=$E38,BB234,IF($E39>$E40,AY235,IF($E40>$E41,(AY235+AY236)/2,IF($E41>$E42,(AY235+AY236+AY237)/3,(AY235+AY236+AY237+AY238)/4))))) -> 0 | BC235: 0 | BD235: 0 | BH235: =IF($D39=1,BB235+1,IF($D39=2,B$200,BB235)) -> 0 | BI235: 0 | BJ235: 0
A236: 36 | B236: 0 | C236: 0 | D236: 0 | E236: 0 | F236: 0 | G236: 0 | H236: 0 | I236: 0 | J236: 0 | AY236: =IF($B40=0,0,B236) -> 0 | AZ236: 0 | BA236: 0 | BB236: =IF($B40="",0,IF($E40=$E39,BB235,IF($E40>$E41,AY236,IF($E41>$E42,(AY236+AY237)/2,IF($E42>$E43,(AY236+AY237+AY238)/3,(AY236+AY237+AY238+AY239)/4))))) -> 0 | BC236: 0 | BD236: 0 | BH236: =IF($D40=1,BB236+1,IF($D40=2,B$200,BB236)) -> 0 | BI236: 0 | BJ236: 0
A237: 37 | B237: 0 | C237: 0 | D237: 0 | E237: 0 | F237: 0 | G237: 0 | H237: 0 | I237: 0 | J237: 0 | AY237: =IF($B41=0,0,B237) -> 0 | AZ237: 0 | BA237: 0 | BB237: =IF($B41="",0,IF($E41=$E40,BB236,IF($E41>$E42,AY237,IF($E42>$E43,(AY237+AY238)/2,IF($E43>$E44,(AY237+AY238+AY239)/3,(AY237+AY238+AY239+AY240)/4))))) -> 0 | BC237: 0 | BD237: 0 | BH237: =IF($D41=1,BB237+1,IF($D41=2,B$200,BB237)) -> 0 | BI237: 0 | BJ237: 0
A238: 38 | B238: 0 | C238: 0 | D238: 0 | E238: 0 | F238: 0 | G238: 0 | H238: 0 | I238: 0 | J238: 0 | AY238: =IF($B42=0,0,B238) -> 0 | AZ238: 0 | BA238: 0 | BB238: =IF($B42="",0,IF($E42=$E41,BB237,IF($E42>$E43,AY238,IF($E43>$E44,(AY238+AY239)/2,IF($E44>$E45,(AY238+AY239+AY240)/3,(AY238+AY239+AY240+AY241)/4))))) -> 0 | BC238: 0 | BD238: 0 | BH238: =IF($D42=1,BB238+1,IF($D42=2,B$200,BB238)) -> 0 | BI238: 0 | BJ238: 0
A239: 39 | B239: 0 | C239: 0 | D239: 0 | E239: 0 | F239: 0 | G239: 0 | H239: 0 | I239: 0 | J239: 0 | AY239: =IF($B43=0,0,B239) -> 0 | AZ239: 0 | BA239: 0 | BB239: =IF($B43="",0,IF($E43=$E42,BB238,IF($E43>$E44,AY239,IF($E44>$E45,(AY239+AY240)/2,IF($E45>$E46,(AY239+AY240+AY241)/3,(AY239+AY240+AY241+AY242)/4))))) -> 0 | BC239: 0 | BD239: 0 | BH239: =IF($D43=1,BB239+1,IF($D43=2,B$200,BB239)) -> 0 | BI239: 0 | BJ239: 0
A240: 40 | B240: 0 | C240: 0 | D240: 0 | E240: 0 | F240: 0 | G240: 0 | H240: 0 | I240: 0 | J240: 0 | AY240: =IF($B44=0,0,B240) -> 0 | AZ240: 0 | BA240: 0 | BB240: =IF($B44="",0,IF($E44=$E43,BB239,IF($E44>$E45,AY240,IF($E45>$E46,(AY240+AY241)/2,IF($E46>$E47,(AY240+AY241+AY242)/3,(AY240+AY241+AY242+AY243)/4))))) -> 0 | BC240: 0 | BD240: 0 | BH240: =IF($D44=1,BB240+1,IF($D44=2,B$200,BB240)) -> 0 | BI240: 0 | BJ240: 0
A241: 41 | B241: 0 | C241: 0 | D241: 0 | E241: 0 | F241: 0 | G241: 0 | H241: 0 | I241: 0 | J241: 0 | AY241: =IF($B45=0,0,B241) -> 0 | AZ241: 0 | BA241: 0 | BB241: =IF($B45="",0,IF($E45=$E44,BB240,IF($E45>$E46,AY241,IF($E46>$E47,(AY241+AY242)/2,IF($E47>$E48,(AY241+AY242+AY243)/3,(AY241+AY242+AY243+AY244)/4))))) -> 0 | BC241: 0 | BD241: 0 | BH241: =IF($D45=1,BB241+1,IF($D45=2,B$200,BB241)) -> 0 | BI241: 0 | BJ241: 0
A242: 42 | B242: 0 | C242: 0 | D242: 0 | E242: 0 | F242: 0 | G242: 0 | H242: 0 | I242: 0 | J242: 0 | AY242: =IF($B46=0,0,B242) -> 0 | AZ242: 0 | BA242: 0 | BB242: =IF($B46="",0,IF($E46=$E45,BB241,IF($E46>$E47,AY242,IF($E47>$E48,(AY242+AY243)/2,IF($E48>$E49,(AY242+AY243+AY244)/3,(AY242+AY243+AY244+AY245)/4))))) -> 0 | BC242: 0 | BD242: 0 | BH242: =IF($D46=1,BB242+1,IF($D46=2,B$200,BB242)) -> 0 | BI242: 0 | BJ242: 0
A243: 43 | B243: 0 | C243: 0 | D243: 0 | E243: 0 | F243: 0 | G243: 0 | H243: 0 | I243: 0 | J243: 0 | AY243: =IF($B47=0,0,B243) -> 0 | AZ243: 0 | BA243: 0 | BB243: =IF($B47="",0,IF($E47=$E46,BB242,IF($E47>$E48,AY243,IF($E48>$E49,(AY243+AY244)/2,IF($E49>$E50,(AY243+AY244+AY245)/3,(AY243+AY244+AY245+AY246)/4))))) -> 0 | BC243: 0 | BD243: 0 | BH243: =IF($D47=1,BB243+1,IF($D47=2,B$200,BB243)) -> 0 | BI243: 0 | BJ243: 0
A244: 44 | B244: 0 | C244: 0 | D244: 0 | E244: 0 | F244: 0 | G244: 0 | H244: 0 | I244: 0 | J244: 0 | AY244: =IF($B48=0,0,B244) -> 0 | AZ244: 0 | BA244: 0 | BB244: =IF($B48="",0,IF($E48=$E47,BB243,IF($E48>$E49,AY244,IF($E49>$E50,(AY244+AY245)/2,IF($E50>$E51,(AY244+AY245+AY246)/3,(AY244+AY245+AY246+AY247)/4))))) -> 0 | BC244: 0 | BD244: 0 | BH244: =IF($D48=1,BB244+1,IF($D48=2,B$200,BB244)) -> 0 | BI244: 0 | BJ244: 0
A245: 45 | B245: 0 | C245: 0 | D245: 0 | E245: 0 | F245: 0 | G245: 0 | H245: 0 | I245: 0 | J245: 0 | AY245: =IF($B49=0,0,B245) -> 0 | AZ245: 0 | BA245: 0 | BB245: =IF($B49="",0,IF($E49=$E48,BB244,IF($E49>$E50,AY245,IF($E50>$E51,(AY245+AY246)/2,IF($E51>$E52,(AY245+AY246+AY247)/3,(AY245+AY246+AY247+AY248)/4))))) -> 0 | BC245: 0 | BD245: 0 | BH245: =IF($D49=1,BB245+1,IF($D49=2,B$200,BB245)) -> 0 | BI245: 0 | BJ245: 0
A246: 46 | B246: 0 | C246: 0 | D246: 0 | E246: 0 | F246: 0 | G246: 0 | H246: 0 | I246: 0 | J246: 0 | AY246: =IF($B50=0,0,B246) -> 0 | AZ246: 0 | BA246: 0 | BB246: =IF($B50="",0,IF($E50=$E49,BB245,IF($E50>$E51,AY246,IF($E51>$E52,(AY246+AY247)/2,IF($E52>$E53,(AY246+AY247+AY248)/3,(AY246+AY247+AY248+AY249)/4))))) -> 0 | BC246: 0 | BD246: 0 | BH246: =IF($D50=1,BB246+1,IF($D50=2,B$200,BB246)) -> 0 | BI246: 0 | BJ246: 0
A247: 47 | B247: 0 | C247: 0 | D247: 0 | E247: 0 | F247: 0 | G247: 0 | H247: 0 | I247: 0 | J247: 0 | AY247: =IF($B51=0,0,B247) -> 0 | AZ247: 0 | BA247: 0 | BB247: =IF($B51="",0,IF($E51=$E50,BB246,IF($E51>$E52,AY247,IF($E52>$E53,(AY247+AY248)/2,IF($E53>$E54,(AY247+AY248+AY249)/3,(AY247+AY248+AY249+AY250)/4))))) -> 0 | BC247: 0 | BD247: 0 | BH247: =IF($D51=1,BB247+1,IF($D51=2,B$200,BB247)) -> 0 | BI247: 0 | BJ247: 0
A248: 48 | B248: 0 | C248: 0 | D248: 0 | E248: 0 | F248: 0 | G248: 0 | H248: 0 | I248: 0 | J248: 0 | AY248: =IF($B52=0,0,B248) -> 0 | AZ248: 0 | BA248: 0 | BB248: =IF($B52="",0,IF($E52=$E51,BB247,IF($E52>$E53,AY248,IF($E53>$E54,(AY248+AY249)/2,IF($E54>$E55,(AY248+AY249+AY250)/3,(AY248+AY249+AY250+AY251)/4))))) -> 0 | BC248: 0 | BD248: 0 | BH248: =IF($D52=1,BB248+1,IF($D52=2,B$200,BB248)) -> 0 | BI248: 0 | BJ248: 0
A249: 49 | B249: 0 | C249: 0 | D249: 0 | E249: 0 | F249: 0 | G249: 0 | H249: 0 | I249: 0 | J249: 0 | AY249: =IF($B53=0,0,B249) -> 0 | AZ249: 0 | BA249: 0 | BB249: =IF($B53="",0,IF($E53=$E52,BB248,IF($E53>$E54,AY249,IF($E54>$E55,(AY249+AY250)/2,IF($E55>$E56,(AY249+AY250+AY251)/3,(AY249+AY250+AY251+AY252)/4))))) -> 0 | BC249: 0 | BD249: 0 | BH249: =IF($D53=1,BB249+1,IF($D53=2,B$200,BB249)) -> 0 | BI249: 0 | BJ249: 0
A250: 50 | B250: 0 | C250: 0 | D250: 0 | E250: 0 | F250: 0 | G250: 0 | H250: 0 | I250: 0 | J250: 0 | AY250: =IF($B54=0,0,B250) -> 0 | AZ250: 0 | BA250: 0 | BB250: =IF($B54="",0,IF($E54=$E53,BB249,IF($E54>$E55,AY250,IF($E55>$E56,(AY250+AY251)/2,IF($E56>$E57,(AY250+AY251+AY252)/3,(AY250+AY251+AY252+AY253)/4))))) -> 0 | BC250: 0 | BD250: 0 | BH250: =IF($D54=1,BB250+1,IF($D54=2,B$200,BB250)) -> 0 | BI250: 0 | BJ250: 0

Sheet P
A1: BridgeMania 2019-20 | BC1: selezionare la 1^ cella libera di questa colonna, poi digitare ctrl+i | BH1: Tabella Pivot 1 (somma i punti delle 3 classifiche)
A3: Progr. CAMPIONATO | D3: 1 | E3: 2 | F3: 3 | G3: 4 | H3: 5 | I3: 6 | J3: 7 | K3: 8 | L3: 9 | M3: 10 | N3: 11 | O3: 12 | P3: 13 | Q3: 14 | R3: 15 | S3: 16 | T3: 17 | U3: 18 | V3: 19 | W3: 20 | X3: 21 | Y3: 22 | Z3: 23 | AA3: 24 | AB3: 25 | AC3: 26 | AD3: 27 | AE3: 28 | AF3: 29 | AG3: 30 | AH3: 31 | AI3: 32 | AJ3: 33 | AK3: 34 | AL3: 35 | AM3: 36 | AN3: 37 | AO3: 38 | AP3: 39 | AQ3: 40 | AR3: 41 | AS3: 42 | AT3: 43 | AU3: 44 | AV3: 45 | AW3: 46 | AX3: 47 | AY3: 48 | AZ3: 49 | BA3: 50 | BC3: coppie | BD3: F1 Fast | BE3: IndyCar H. | BF3: F1 Hbryd | BG3: Etichette di riga | BH3: Somma di F1 Fast | BI3: Somma di IndyCar H. | BJ3: Somma di F1 Hbryd
B4: sel.col | C4: data | D4: =IF(RIS!D2="","",RIS!D2) -> 2019-09-21 | E4: =IF(RIS!E2="","",RIS!E2) -> 2019-10-19 | F4: =IF(RIS!F2="","",RIS!F2) -> 2019-10-26 | G4: =IF(RIS!G2="","",RIS!G2) -> 2019-11-02 | H4: =IF(RIS!H2="","",RIS!H2) -> 2019-11-16 | I4: =IF(RIS!I2="","",RIS!I2) -> 2019-11-23 | J4: =IF(RIS!J2="","",RIS!J2) -> 2019-11-30 | K4: =IF(RIS!K2="","",RIS!K2) -> 2019-12-21 | L4: =IF(RIS!L2="","",RIS!L2) -> 2020-01-25 | M4: =IF(RIS!M2="","",RIS!M2) -> 2020-02-01 | N4: =IF(RIS!N2="","",RIS!N2) -> 2020-02-08 | O4: =IF(RIS!O2="","",RIS!O2) -> 2020-02-15 | P4: =IF(RIS!P2="","",RIS!P2) -> 2020-02-22 | Q4: =IF(RIS!Q2="","",RIS!Q2) -> 2020-02-29 | R4: =IF(RIS!R2="","",RIS!R2) ->  | S4: =IF(RIS!S2="","",RIS!S2) ->  | T4: =IF(RIS!T2="","",RIS!T2) ->  | U4: =IF(RIS!U2="","",RIS!U2) ->  | V4: =IF(RIS!V2="","",RIS!V2) ->  | W4: =IF(RIS!W2="","",RIS!W2) ->  | X4: =IF(RIS!X2="","",RIS!X2) ->  | Y4: =IF(RIS!Y2="","",RIS!Y2) ->  | Z4: =IF(RIS!Z2="","",RIS!Z2) ->  | AA4: =IF(RIS!AA2="","",RIS!AA2) ->  | AB4: =IF(RIS!AB2="","",RIS!AB2) ->  | AC4: =IF(RIS!AC2="","",RIS!AC2) ->  | AD4: =IF(RIS!AD2="","",RIS!AD2) ->  | AE4: =IF(RIS!AE2="","",RIS!AE2) ->  | AF4: =IF(RIS!AF2="","",RIS!AF2) ->  | AG4: =IF(RIS!AG2="","",RIS!AG2) ->  | AH4: =IF(RIS!AH2="","",RIS!AH2) ->  | AI4: =IF(RIS!AI2="","",RIS!AI2) ->  | AJ4: =IF(RIS!AJ2="","",RIS!AJ2) ->  | AK4: =IF(RIS!AK2="","",RIS!AK2) ->  | AL4: =IF(RIS!AL2="","",RIS!AL2) ->  | AM4: =IF(RIS!AM2="","",RIS!AM2) ->  | AN4: =IF(RIS!AN2="","",RIS!AN2) ->  | AO4: =IF(RIS!AO2="","",RIS!AO2) ->  | AP4: =IF(RIS!AP2="","",RIS!AP2) ->  | AQ4: =IF(RIS!AQ2="","",RIS!AQ2) ->  | AR4: =IF(RIS!AR2="","",RIS!AR2) ->  | AS4: =IF(RIS!AS2="","",RIS!AS2) ->  | AT4: =IF(RIS!AT2="","",RIS!AT2) ->  | AU4: =IF(RIS!AU2="","",RIS!AU2) ->  | AV4: =IF(RIS!AV2="","",RIS!AV2) ->  | AW4: =IF(RIS!AW2="","",RIS!AW2) ->  | AX4: =IF(RIS!AX2="","",RIS!AX2) ->  | AY4: =IF(RIS!AY2="","",RIS!AY2) ->  | AZ4: =IF(RIS!AZ2="","",RIS!AZ2) ->  | BA4: =IF(RIS!BA2="","",RIS!BA2) ->  | BC4: Antonella-Dino | BD4: 12 | BE4: 32 | BF4: 10 | BG4: Antonella-Dino | BH4: 144.5 | BI4: 412.5 | BJ4: 119.5
B5: ctrl+j | C5: luogo | D5: =IF(RIS!D3="","",RIS!D3) -> Pol | E5: =IF(RIS!E3="","",RIS!E3) -> Sav | F5: =IF(RIS!F3="","",RIS!F3) -> DeS | G5: =IF(RIS!G3="","",RIS!G3) -> Sim | H5: =IF(RIS!H3="","",RIS!H3) -> Tor | I5: =IF(RIS!I3="","",RIS!I3) -> Cat | J5: =IF(RIS!J3="","",RIS!J3) -> Mal | K5: =IF(RIS!K3="","",RIS!K3) -> DeS | L5: =IF(RIS!L3="","",RIS!L3) -> Sim | M5: =IF(RIS!M3="","",RIS!M3) -> Sav | N5: =IF(RIS!N3="","",RIS!N3) -> Pre | O5: =IF(RIS!O3="","",RIS!O3) -> DeS | P5: =IF(RIS!P3="","",RIS!P3) -> Pol | Q5: =IF(RIS!Q3="","",RIS!Q3) -> Tor | R5: =IF(RIS!R3="","",RIS!R3) ->  | S5: =IF(RIS!S3="","",RIS!S3) ->  | T5: =IF(RIS!T3="","",RIS!T3) ->  | U5: =IF(RIS!U3="","",RIS!U3) ->  | V5: =IF(RIS!V3="","",RIS!V3) ->  | W5: =IF(RIS!W3="","",RIS!W3) ->  | X5: =IF(RIS!X3="","",RIS!X3) ->  | Y5: =IF(RIS!Y3="","",RIS!Y3) ->  | Z5: =IF(RIS!Z3="","",RIS!Z3) ->  | AA5: =IF(RIS!AA3="","",RIS!AA3) ->  | AB5: =IF(RIS!AB3="","",RIS!AB3) ->  | AC5: =IF(RIS!AC3="","",RIS!AC3) ->  | AD5: =IF(RIS!AD3="","",RIS!AD3) ->  | AE5: =IF(RIS!AE3="","",RIS!AE3) ->  | AF5: =IF(RIS!AF3="","",RIS!AF3) ->  | AG5: =IF(RIS!AG3="","",RIS!AG3) ->  | AH5: =IF(RIS!AH3="","",RIS!AH3) ->  | AI5: =IF(RIS!AI3="","",RIS!AI3) ->  | AJ5: =IF(RIS!AJ3="","",RIS!AJ3) ->  | AK5: =IF(RIS!AK3="","",RIS!AK3) ->  | AL5: =IF(RIS!AL3="","",RIS!AL3) ->  | AM5: =IF(RIS!AM3="","",RIS!AM3) ->  | AN5: =IF(RIS!AN3="","",RIS!AN3) ->  | AO5: =IF(RIS!AO3="","",RIS!AO3) ->  | AP5: =IF(RIS!AP3="","",RIS!AP3) ->  | AQ5: =IF(RIS!AQ3="","",RIS!AQ3) ->  | AR5: =IF(RIS!AR3="","",RIS!AR3) ->  | AS5: =IF(RIS!AS3="","",RIS!AS3) ->  | AT5: =IF(RIS!AT3="","",RIS!AT3) ->  | AU5: =IF(RIS!AU3="","",RIS!AU3) ->  | AV5: =IF(RIS!AV3="","",RIS!AV3) ->  | AW5: =IF(RIS!AW3="","",RIS!AW3) ->  | AX5: =IF(RIS!AX3="","",RIS!AX3) ->  | AY5: =IF(RIS!AY3="","",RIS!AY3) ->  | AZ5: =IF(RIS!AZ3="","",RIS!AZ3) ->  | BA5: =IF(RIS!BA3="","",RIS!BA3) ->  | BC5: Barbara-Elio | BD5: 18 | BE5: 40 | BF5: 14 | BG5: Barbara-Elio | BH5: 150.5 | BI5: 394.5 | BJ5: 130
C6: coppie-mani | D6: =IF(RIS!D4="","",RIS!D4) -> 9-18 | E6: =IF(RIS!E4="","",RIS!E4) -> 10-18 | F6: =IF(RIS!F4="","",RIS!F4) -> 10-18 | G6: =IF(RIS!G4="","",RIS!G4) -> 10-18 | H6: =IF(RIS!H4="","",RIS!H4) -> 8-21 | I6: =IF(RIS!I4="","",RIS!I4) -> 7-21 | J6: =IF(RIS!J4="","",RIS!J4) -> 9-18 | K6: =IF(RIS!K4="","",RIS!K4) -> 10-27 | L6: =IF(RIS!L4="","",RIS!L4) -> 8-21 | M6: =IF(RIS!M4="","",RIS!M4) -> 10-18 | N6: =IF(RIS!N4="","",RIS!N4) -> 10-18 | O6: =IF(RIS!O4="","",RIS!O4) -> 11-22 | P6: =IF(RIS!P4="","",RIS!P4) -> 12-22 | Q6: =IF(RIS!Q4="","",RIS!Q4) -> 8-21 | R6: =IF(RIS!R4="","",RIS!R4) ->  | S6: =IF(RIS!S4="","",RIS!S4) ->  | T6: =IF(RIS!T4="","",RIS!T4) ->  | U6: =IF(RIS!U4="","",RIS!U4) ->  | V6: =IF(RIS!V4="","",RIS!V4) ->  | W6: =IF(RIS!W4="","",RIS!W4) ->  | X6: =IF(RIS!X4="","",RIS!X4) ->  | Y6: =IF(RIS!Y4="","",RIS!Y4) ->  | Z6: =IF(RIS!Z4="","",RIS!Z4) ->  | AA6: =IF(RIS!AA4="","",RIS!AA4) ->  | AB6: =IF(RIS!AB4="","",RIS!AB4) ->  | AC6: =IF(RIS!AC4="","",RIS!AC4) ->  | AD6: =IF(RIS!AD4="","",RIS!AD4) ->  | AE6: =IF(RIS!AE4="","",RIS!AE4) ->  | AF6: =IF(RIS!AF4="","",RIS!AF4) ->  | AG6: =IF(RIS!AG4="","",RIS!AG4) ->  | AH6: =IF(RIS!AH4="","",RIS!AH4) ->  | AI6: =IF(RIS!AI4="","",RIS!AI4) ->  | AJ6: =IF(RIS!AJ4="","",RIS!AJ4) ->  | AK6: =IF(RIS!AK4="","",RIS!AK4) ->  | AL6: =IF(RIS!AL4="","",RIS!AL4) ->  | AM6: =IF(RIS!AM4="","",RIS!AM4) ->  | AN6: =IF(RIS!AN4="","",RIS!AN4) ->  | AO6: =IF(RIS!AO4="","",RIS!AO4) ->  | AP6: =IF(RIS!AP4="","",RIS!AP4) ->  | AQ6: =IF(RIS!AQ4="","",RIS!AQ4) ->  | AR6: =IF(RIS!AR4="","",RIS!AR4) ->  | AS6: =IF(RIS!AS4="","",RIS!AS4) ->  | AT6: =IF(RIS!AT4="","",RIS!AT4) ->  | AU6: =IF(RIS!AU4="","",RIS!AU4) ->  | AV6: =IF(RIS!AV4="","",RIS!AV4) ->  | AW6: =IF(RIS!AW4="","",RIS!AW4) ->  | AX6: =IF(RIS!AX4="","",RIS!AX4) ->  | AY6: =IF(RIS!AY4="","",RIS!AY4) ->  | AZ6: =IF(RIS!AZ4="","",RIS!AZ4) ->  | BA6: =IF(RIS!BA4="","",RIS!BA4) ->  | BC6: Cesarina-Gaetano | BD6: 5 | BE6: 25 | BF6: 3 | BG6: Cesarina-Gaetano | BH6: 96.83333333 | BI6: 356 | BJ6: 76.33333333
BC7: Elena-Stefano | BD7: 11 | BE7: 31 | BF7: 9 | BG7: Elena-Stefano | BH7: 120.3333333 | BI7: 367 | BJ7: 98.33333333
C8: Antonella-Dino | D8: 24 | E8: 42 | F8: 40 | G8: 28 | H8: 18 | I8: 32 | J8: 20 | K8: 22 | L8: 22 | M8: 20 | N8: 24 | O8: 28 | P8: 28 | Q8: 26 | BC8: Isolde-Cristina | BD8: 26 | BE8: 51 | BF8: 19 | BG8: Isolde-Cristina | BH8: 54.417 | BI8: 159.667 | BJ8: 50.64
C9: Barbara-Elio | D9: 12 | E9: 12 | F9: 16 | G9: 12 | H9: 12 | I9: 22 | J9: 30 | K9: 30 | L9: 34 | M9: 26 | N9: 22 | O9: 22 | P9: 18 | Q9: 24 | BC9: Lilli-Gianni | BD9: 3 | BE9: 23 | BF9: 2 | BG9: Lilli-Gianni | BH9: 93.5 | BI9: 354.5 | BJ9: 75.16666667
C10: Cesarina-Gaetano | D10: 51 | E10: 60 | F10: 66 | G10: 66 | H10: 58 | I10: 48 | J10: 48 | K10: 42 | L10: 42 | M10: 44 | N10: 47 | O10: 54 | P10: 50 | Q10: 52 | BC10: Manuela-Roberto | BD10: 8 | BE10: 28 | BF10: 6 | BG10: Manuela-Roberto | BH10: 199.5 | BI10: 499 | BJ10: 157.5
C11: Elena-Stefano | D11: 30 | E11: 52 | F11: 58 | G11: 56 | H11: 64 | I11: 64 | J11: 54 | K11: 58 | L11: 52 | M11: 60 | N11: 56 | O11: 60 | P11: 44 | Q11: 40 | BC11: Olimpia-Sauro | BD11: 15 | BE11: 35 | BF11: 12 | BG11: Olimpia-Sauro | BH11: 110 | BI11: 353 | BJ11: 89
C12: Isolde-Cristina | D12: 6 | E12: 6 | F12: 30 | G12: 40 | H12: 50 | I12: 60 | J12: 64 | K12: 66 | L12: 66 | M12: 66 | N12: 66 | O12: 66 | P12: 66 | Q12: 66 | BC12: Renata-Sandro | BD12: 8.417 | BE12: 28.667 | BF12: 8.33 | BG12: Renata-Sandro | BH12: 132.587 | BI12: 420.337 | BJ12: 128.73
C13: Lilli-Gianni | D13: 60 | E13: 34 | F13: 56 | G13: 54 | H13: 52 | I13: 56 | J13: 62 | K13: 56 | L13: 58 | M13: 52 | N13: 58 | O13: 48 | P13: 60 | Q13: 58 | BC13: Stefania-Massimo | BD13: 0 | BE13: 0 | BF13: 0 | BG13: Stefania-Massimo | BH13: 210.5 | BI13: 501 | BJ13: 163.6666667
C14: Manuela-Roberto | D14: 42 | E14: 20 | F14: 6 | G14: 6 | H14: 6 | I14: 6 | J14: 6 | K14: 6 | L14: 9 | M14: 12 | N14: 6 | O14: 10 | P14: 7 | Q14: 12 | BC14: Tatiana-Julio | BD14: 5 | BE14: 25 | BF14: 3 | BG14: Tatiana-Julio | BH14: 121.3333333 | BI14: 404 | BJ14: 91.5
C15: Olimpia-Sauro | D15: 18 | E15: 27 | F15: 26 | G15: 40 | H15: 34 | I15: 36 | J15: 36 | K15: 48 | L15: 52 | M15: 48 | N15: 41 | O15: 40 | P15: 46 | Q15: 52 | BC15: Antonella-Dino | BD15: 6 | BE15: 26 | BF15: 6 | BG15: Totale complessivo | BH15: 1434.004 | BI15: 4221.504 | BJ15: 1180.37
C16: Renata-Sandro | D16: 36 | E16: 44 | F16: 34 | G16: 30 | H16: 32 | I16: 30 | J16: 34 | K16: 32 | L16: 30 | M16: 34 | N16: 36 | O16: 22 | P16: 26 | Q16: 24 | BC16: Barbara-Elio | BD16: 10 | BE16: 30 | BF16: 9
C17: Stefania-Massimo | D17: 66 | E17: 33 | F17: 16 | G17: 18 | H17: 24 | I17: 16 | J17: 12 | K17: 12 | L17: 9 | M17: 6 | N17: 12 | O17: 8 | P17: 11 | Q17: 6 | BC17: Cesarina-Gaetano | BD17: 3.333333333 | BE17: 23 | BF17: 3.333333333
C18: Tatiana-Julio | D18: 51 | E18: 66 | F18: 48 | G18: 46 | H18: 46 | I18: 26 | J18: 30 | K18: 24 | L18: 22 | M18: 28 | N18: 28 | O18: 38 | P18: 40 | Q18: 36 | BC18: Elena-Stefano | BD18: 2.333333333 | BE18: 22 | BF18: 2.333333333
BC19: Isolde-Cristina | BD19: 12 | BE19: 32 | BF19: 11
A20: Progr. F1 Fast | D20: 1 | E20: 2 | F20: 3 | G20: 4 | H20: 5 | I20: 6 | J20: 7 | K20: 8 | L20: 9 | M20: 10 | N20: 11 | O20: 12 | P20: 13 | Q20: 14 | R20: 15 | S20: 16 | T20: 17 | U20: 18 | V20: 19 | W20: 20 | X20: 21 | Y20: 22 | Z20: 23 | AA20: 24 | AB20: 25 | AC20: 26 | AD20: 27 | AE20: 28 | AF20: 29 | AG20: 30 | AH20: 31 | AI20: 32 | AJ20: 33 | AK20: 34 | AL20: 35 | AM20: 36 | AN20: 37 | AO20: 38 | AP20: 39 | AQ20: 40 | AR20: 41 | AS20: 42 | AT20: 43 | AU20: 44 | AV20: 45 | AW20: 46 | AX20: 47 | AY20: 48 | AZ20: 49 | BA20: 50 | BC20: Lilli-Gianni | BD20: 17.5 | BE20: 38.5 | BF20: 15.5
B21: sel.col | C21: data | D21: =IF(RIS!D2="","",RIS!D2) -> 2019-09-21 | E21: =IF(RIS!E2="","",RIS!E2) -> 2019-10-19 | F21: =IF(RIS!F2="","",RIS!F2) -> 2019-10-26 | G21: =IF(RIS!G2="","",RIS!G2) -> 2019-11-02 | H21: =IF(RIS!H2="","",RIS!H2) -> 2019-11-16 | I21: =IF(RIS!I2="","",RIS!I2) -> 2019-11-23 | J21: =IF(RIS!J2="","",RIS!J2) -> 2019-11-30 | K21: =IF(RIS!K2="","",RIS!K2) -> 2019-12-21 | L21: =IF(RIS!L2="","",RIS!L2) -> 2020-01-25 | M21: =IF(RIS!M2="","",RIS!M2) -> 2020-02-01 | N21: =IF(RIS!N2="","",RIS!N2) -> 2020-02-08 | O21: =IF(RIS!O2="","",RIS!O2) -> 2020-02-15 | P21: =IF(RIS!P2="","",RIS!P2) -> 2020-02-22 | Q21: =IF(RIS!Q2="","",RIS!Q2) -> 2020-02-29 | R21: =IF(RIS!R2="","",RIS!R2) ->  | S21: =IF(RIS!S2="","",RIS!S2) ->  | T21: =IF(RIS!T2="","",RIS!T2) ->  | U21: =IF(RIS!U2="","",RIS!U2) ->  | V21: =IF(RIS!V2="","",RIS!V2) ->  | W21: =IF(RIS!W2="","",RIS!W2) ->  | X21: =IF(RIS!X2="","",RIS!X2) ->  | Y21: =IF(RIS!Y2="","",RIS!Y2) ->  | Z21: =IF(RIS!Z2="","",RIS!Z2) ->  | AA21: =IF(RIS!AA2="","",RIS!AA2) ->  | AB21: =IF(RIS!AB2="","",RIS!AB2) ->  | AC21: =IF(RIS!AC2="","",RIS!AC2) ->  | AD21: =IF(RIS!AD2="","",RIS!AD2) ->  | AE21: =IF(RIS!AE2="","",RIS!AE2) ->  | AF21: =IF(RIS!AF2="","",RIS!AF2) ->  | AG21: =IF(RIS!AG2="","",RIS!AG2) ->  | AH21: =IF(RIS!AH2="","",RIS!AH2) ->  | AI21: =IF(RIS!AI2="","",RIS!AI2) ->  | AJ21: =IF(RIS!AJ2="","",RIS!AJ2) ->  | AK21: =IF(RIS!AK2="","",RIS!AK2) ->  | AL21: =IF(RIS!AL2="","",RIS!AL2) ->  | AM21: =IF(RIS!AM2="","",RIS!AM2) ->  | AN21: =IF(RIS!AN2="","",RIS!AN2) ->  | AO21: =IF(RIS!AO2="","",RIS!AO2) ->  | AP21: =IF(RIS!AP2="","",RIS!AP2) ->  | AQ21: =IF(RIS!AQ2="","",RIS!AQ2) ->  | AR21: =IF(RIS!AR2="","",RIS!AR2) ->  | AS21: =IF(RIS!AS2="","",RIS!AS2) ->  | AT21: =IF(RIS!AT2="","",RIS!AT2) ->  | AU21: =IF(RIS!AU2="","",RIS!AU2) ->  | AV21: =IF(RIS!AV2="","",RIS!AV2) ->  | AW21: =IF(RIS!AW2="","",RIS!AW2) ->  | AX21: =IF(RIS!AX2="","",RIS!AX2) ->  | AY21: =IF(RIS!AY2="","",RIS!AY2) ->  | AZ21: =IF(RIS!AZ2="","",RIS!AZ2) ->  | BA21: =IF(RIS!BA2="","",RIS!BA2) ->  | BC21: Manuela-Roberto | BD21: 16.5 | BE21: 37.5 | BF21: 14.5
C22: luogo | D22: =IF(RIS!D3="","",RIS!D3) -> Pol | E22: =IF(RIS!E3="","",RIS!E3) -> Sav | F22: =IF(RIS!F3="","",RIS!F3) -> DeS | G22: =IF(RIS!G3="","",RIS!G3) -> Sim | H22: =IF(RIS!H3="","",RIS!H3) -> Tor | I22: =IF(RIS!I3="","",RIS!I3) -> Cat | J22: =IF(RIS!J3="","",RIS!J3) -> Mal | K22: =IF(RIS!K3="","",RIS!K3) -> DeS | L22: =IF(RIS!L3="","",RIS!L3) -> Sim | M22: =IF(RIS!M3="","",RIS!M3) -> Sav | N22: =IF(RIS!N3="","",RIS!N3) -> Pre | O22: =IF(RIS!O3="","",RIS!O3) -> DeS | P22: =IF(RIS!P3="","",RIS!P3) -> Pol | Q22: =IF(RIS!Q3="","",RIS!Q3) -> Tor | R22: =IF(RIS!R3="","",RIS!R3) ->  | S22: =IF(RIS!S3="","",RIS!S3) ->  | T22: =IF(RIS!T3="","",RIS!T3) ->  | U22: =IF(RIS!U3="","",RIS!U3) ->  | V22: =IF(RIS!V3="","",RIS!V3) ->  | W22: =IF(RIS!W3="","",RIS!W3) ->  | X22: =IF(RIS!X3="","",RIS!X3) ->  | Y22: =IF(RIS!Y3="","",RIS!Y3) ->  | Z22: =IF(RIS!Z3="","",RIS!Z3) ->  | AA22: =IF(RIS!AA3="","",RIS!AA3) ->  | AB22: =IF(RIS!AB3="","",RIS!AB3) ->  | AC22: =IF(RIS!AC3="","",RIS!AC3) ->  | AD22: =IF(RIS!AD3="","",RIS!AD3) ->  | AE22: =IF(RIS!AE3="","",RIS!AE3) ->  | AF22: =IF(RIS!AF3="","",RIS!AF3) ->  | AG22: =IF(RIS!AG3="","",RIS!AG3) ->  | AH22: =IF(RIS!AH3="","",RIS!AH3) ->  | AI22: =IF(RIS!AI3="","",RIS!AI3) ->  | AJ22: =IF(RIS!AJ3="","",RIS!AJ3) ->  | AK22: =IF(RIS!AK3="","",RIS!AK3) ->  | AL22: =IF(RIS!AL3="","",RIS!AL3) ->  | AM22: =IF(RIS!AM3="","",RIS!AM3) ->  | AN22: =IF(RIS!AN3="","",RIS!AN3) ->  | AO22: =IF(RIS!AO3="","",RIS!AO3) ->  | AP22: =IF(RIS!AP3="","",RIS!AP3) ->  | AQ22: =IF(RIS!AQ3="","",RIS!AQ3) ->  | AR22: =IF(RIS!AR3="","",RIS!AR3) ->  | AS22: =IF(RIS!AS3="","",RIS!AS3) ->  | AT22: =IF(RIS!AT3="","",RIS!AT3) ->  | AU22: =IF(RIS!AU3="","",RIS!AU3) ->  | AV22: =IF(RIS!AV3="","",RIS!AV3) ->  | AW22: =IF(RIS!AW3="","",RIS!AW3) ->  | AX22: =IF(RIS!AX3="","",RIS!AX3) ->  | AY22: =IF(RIS!AY3="","",RIS!AY3) ->  | AZ22: =IF(RIS!AZ3="","",RIS!AZ3) ->  | BA22: =IF(RIS!BA3="","",RIS!BA3) ->  | BC22: Olimpia-Sauro | BD22: 8 | BE22: 28 | BF22: 8
C23: coppie-mani | D23: =IF(RIS!D4="","",RIS!D4) -> 9-18 | E23: =IF(RIS!E4="","",RIS!E4) -> 10-18 | F23: =IF(RIS!F4="","",RIS!F4) -> 10-18 | G23: =IF(RIS!G4="","",RIS!G4) -> 10-18 | H23: =IF(RIS!H4="","",RIS!H4) -> 8-21 | I23: =IF(RIS!I4="","",RIS!I4) -> 7-21 | J23: =IF(RIS!J4="","",RIS!J4) -> 9-18 | K23: =IF(RIS!K4="","",RIS!K4) -> 10-27 | L23: =IF(RIS!L4="","",RIS!L4) -> 8-21 | M23: =IF(RIS!M4="","",RIS!M4) -> 10-18 | N23: =IF(RIS!N4="","",RIS!N4) -> 10-18 | O23: =IF(RIS!O4="","",RIS!O4) -> 11-22 | P23: =IF(RIS!P4="","",RIS!P4) -> 12-22 | Q23: =IF(RIS!Q4="","",RIS!Q4) -> 8-21 | R23: =IF(RIS!R4="","",RIS!R4) ->  | S23: =IF(RIS!S4="","",RIS!S4) ->  | T23: =IF(RIS!T4="","",RIS!T4) ->  | U23: =IF(RIS!U4="","",RIS!U4) ->  | V23: =IF(RIS!V4="","",RIS!V4) ->  | W23: =IF(RIS!W4="","",RIS!W4) ->  | X23: =IF(RIS!X4="","",RIS!X4) ->  | Y23: =IF(RIS!Y4="","",RIS!Y4) ->  | Z23: =IF(RIS!Z4="","",RIS!Z4) ->  | AA23: =IF(RIS!AA4="","",RIS!AA4) ->  | AB23: =IF(RIS!AB4="","",RIS!AB4) ->  | AC23: =IF(RIS!AC4="","",RIS!AC4) ->  | AD23: =IF(RIS!AD4="","",RIS!AD4) ->  | AE23: =IF(RIS!AE4="","",RIS!AE4) ->  | AF23: =IF(RIS!AF4="","",RIS!AF4) ->  | AG23: =IF(RIS!AG4="","",RIS!AG4) ->  | AH23: =IF(RIS!AH4="","",RIS!AH4) ->  | AI23: =IF(RIS!AI4="","",RIS!AI4) ->  | AJ23: =IF(RIS!AJ4="","",RIS!AJ4) ->  | AK23: =IF(RIS!AK4="","",RIS!AK4) ->  | AL23: =IF(RIS!AL4="","",RIS!AL4) ->  | AM23: =IF(RIS!AM4="","",RIS!AM4) ->  | AN23: =IF(RIS!AN4="","",RIS!AN4) ->  | AO23: =IF(RIS!AO4="","",RIS!AO4) ->  | AP23: =IF(RIS!AP4="","",RIS!AP4) ->  | AQ23: =IF(RIS!AQ4="","",RIS!AQ4) ->  | AR23: =IF(RIS!AR4="","",RIS!AR4) ->  | AS23: =IF(RIS!AS4="","",RIS!AS4) ->  | AT23: =IF(RIS!AT4="","",RIS!AT4) ->  | AU23: =IF(RIS!AU4="","",RIS!AU4) ->  | AV23: =IF(RIS!AV4="","",RIS!AV4) ->  | AW23: =IF(RIS!AW4="","",RIS!AW4) ->  | AX23: =IF(RIS!AX4="","",RIS!AX4) ->  | AY23: =IF(RIS!AY4="","",RIS!AY4) ->  | AZ23: =IF(RIS!AZ4="","",RIS!AZ4) ->  | BA23: =IF(RIS!BA4="","",RIS!BA4) ->  | BC23: Renata-Sandro | BD23: 8.417 | BE23: 28.667 | BF23: 9
BC24: Stefania-Massimo | BD24: 25 | BE24: 50 | BF24: 20
C25: Antonella-Dino | D25: 12 | E25: 18 | F25: 24 | G25: 36 | H25: 61 | I25: 61 | J25: 80 | K25: 84 | L25: 95 | M25: 111.5 | N25: 117.5 | O25: 127.5 | P25: 137.5 | Q25: 144.5 | BC25: Tatiana-Julio | BD25: 2.333333333 | BE25: 22 | BF25: 2.333333333
C26: Barbara-Elio | D26: 18 | E26: 28 | F26: 41 | G26: 56 | H26: 66 | I26: 66 | J26: 77 | K26: 81 | L26: 89 | M26: 105.5 | N26: 119 | O26: 134 | P26: 150.5 | Q26: 150.5 | BC26: Antonella-Dino | BD26: 6 | BE26: 26 | BF26: 6
C27: Cesarina-Gaetano | D27: 5 | E27: 8.333333333 | F27: 8.333333333 | G27: 13.33333333 | H27: 29.33333333 | I27: 44.33333333 | J27: 56.33333333 | K27: 66.33333333 | L27: 70.33333333 | M27: 74.33333333 | N27: 79.33333333 | O27: 80.83333333 | P27: 92.83333333 | Q27: 96.83333333 | BC27: Barbara-Elio | BD27: 13 | BE27: 33 | BF27: 12
C28: Elena-Stefano | D28: 11 | E28: 13.33333333 | F28: 15.33333333 | G28: 17.33333333 | H28: 17.33333333 | I28: 27.33333333 | J28: 42.33333333 | K28: 43.33333333 | L28: 59.83333333 | M28: 59.83333333 | N28: 73.33333333 | O28: 77.33333333 | P28: 102.3333333 | Q28: 120.3333333 | BC28: Cesarina-Gaetano | BD28: 0 | BE28: 0 | BF28: 0
C29: Isolde-Cristina | D29: 26 | E29: 38 | F29: 38 | G29: 38 | H29: 38 | I29: 38 | J29: 38 | K29: 38 | L29: 38 | M29: 42 | N29: 42 | O29: 50.417 | P29: 54.417 | Q29: 54.417 | BC29: Elena-Stefano | BD29: 2 | BE29: 22 | BF29: 2
C30: Lilli-Gianni | D30: 3 | E30: 20.5 | F30: 20.5 | G30: 28.5 | H30: 32.5 | I30: 38.5 | J30: 40.5 | K30: 44.5 | L30: 50.5 | M30: 62.5 | N30: 63.5 | O30: 81.5 | P30: 82.5 | Q30: 93.5 | BC30: Isolde-Cristina | BD30: 0 | BE30: 0 | BF30: 0
C31: Manuela-Roberto | D31: 8 | E31: 24.5 | F31: 49.5 | G31: 74.5 | H31: 92.5 | I31: 114 | J31: 118 | K31: 126 | L31: 142.5 | M31: 152.5 | N31: 170.5 | O31: 176.5 | P31: 184.5 | Q31: 199.5 | BC31: Lilli-Gianni | BD31: 0 | BE31: 0 | BF31: 0
C32: Olimpia-Sauro | D32: 15 | E32: 23 | F32: 31 | G32: 32 | H32: 44 | I32: 53 | J32: 61 | K32: 61 | L32: 61 | M32: 70 | N32: 95 | O32: 103 | P32: 103 | Q32: 110 | BC32: Manuela-Roberto | BD32: 25 | BE32: 50 | BF32: 20
C33: Renata-Sandro | D33: 8.417 | E33: 16.834 | F33: 25.251 | G33: 33.668 | H33: 42.085 | I33: 50.502 | J33: 58.919 | K33: 67.336 | L33: 75.753 | M33: 84.17 | N33: 93.17 | O33: 118.17 | P33: 124.17 | Q33: 132.587 | BC33: Olimpia-Sauro | BD33: 8 | BE33: 28 | BF33: 8
C34: Stefania-Massimo | D34: 0 | E34: 25 | F34: 43 | G34: 51 | H34: 59 | I34: 71 | J34: 96 | K34: 117.5 | L34: 142.5 | M34: 167.5 | N34: 169.5 | O34: 182.5 | P34: 184.5 | Q34: 210.5 | BC34: Renata-Sandro | BD34: 8.417 | BE34: 28.667 | BF34: 9
C35: Tatiana-Julio | D35: 5 | E35: 7.333333333 | F35: 22.33333333 | G35: 30.33333333 | H35: 37.33333333 | I35: 58.83333333 | J35: 64.83333333 | K35: 87.33333333 | L35: 99.33333333 | M35: 100.3333333 | N35: 109.3333333 | O35: 109.3333333 | P35: 109.3333333 | Q35: 121.3333333 | BC35: Stefania-Massimo | BD35: 18 | BE35: 40 | BF35: 16
BC36: Tatiana-Julio | BD36: 15 | BE36: 35 | BF36: 13
A37: Progr. IndyCar Hard | D37: 1 | E37: 2 | F37: 3 | G37: 4 | H37: 5 | I37: 6 | J37: 7 | K37: 8 | L37: 9 | M37: 10 | N37: 11 | O37: 12 | P37: 13 | Q37: 14 | R37: 15 | S37: 16 | T37: 17 | U37: 18 | V37: 19 | W37: 20 | X37: 21 | Y37: 22 | Z37: 23 | AA37: 24 | AB37: 25 | AC37: 26 | AD37: 27 | AE37: 28 | AF37: 29 | AG37: 30 | AH37: 31 | AI37: 32 | AJ37: 33 | AK37: 34 | AL37: 35 | AM37: 36 | AN37: 37 | AO37: 38 | AP37: 39 | AQ37: 40 | AR37: 41 | AS37: 42 | AT37: 43 | AU37: 44 | AV37: 45 | AW37: 46 | AX37: 47 | AY37: 48 | AZ37: 49 | BA37: 50 | BC37: Antonella-Dino | BD37: 12 | BE37: 32 | BF37: 11
B38: sel.col | C38: data | D38: =IF(RIS!D2="","",RIS!D2) -> 2019-09-21 | E38: =IF(RIS!E2="","",RIS!E2) -> 2019-10-19 | F38: =IF(RIS!F2="","",RIS!F2) -> 2019-10-26 | G38: =IF(RIS!G2="","",RIS!G2) -> 2019-11-02 | H38: =IF(RIS!H2="","",RIS!H2) -> 2019-11-16 | I38: =IF(RIS!I2="","",RIS!I2) -> 2019-11-23 | J38: =IF(RIS!J2="","",RIS!J2) -> 2019-11-30 | K38: =IF(RIS!K2="","",RIS!K2) -> 2019-12-21 | L38: =IF(RIS!L2="","",RIS!L2) -> 2020-01-25 | M38: =IF(RIS!M2="","",RIS!M2) -> 2020-02-01 | N38: =IF(RIS!N2="","",RIS!N2) -> 2020-02-08 | O38: =IF(RIS!O2="","",RIS!O2) -> 2020-02-15 | P38: =IF(RIS!P2="","",RIS!P2) -> 2020-02-22 | Q38: =IF(RIS!Q2="","",RIS!Q2) -> 2020-02-29 | R38: =IF(RIS!R2="","",RIS!R2) ->  | S38: =IF(RIS!S2="","",RIS!S2) ->  | T38: =IF(RIS!T2="","",RIS!T2) ->  | U38: =IF(RIS!U2="","",RIS!U2) ->  | V38: =IF(RIS!V2="","",RIS!V2) ->  | W38: =IF(RIS!W2="","",RIS!W2) ->  | X38: =IF(RIS!X2="","",RIS!X2) ->  | Y38: =IF(RIS!Y2="","",RIS!Y2) ->  | Z38: =IF(RIS!Z2="","",RIS!Z2) ->  | AA38: =IF(RIS!AA2="","",RIS!AA2) ->  | AB38: =IF(RIS!AB2="","",RIS!AB2) ->  | AC38: =IF(RIS!AC2="","",RIS!AC2) ->  | AD38: =IF(RIS!AD2="","",RIS!AD2) ->  | AE38: =IF(RIS!AE2="","",RIS!AE2) ->  | AF38: =IF(RIS!AF2="","",RIS!AF2) ->  | AG38: =IF(RIS!AG2="","",RIS!AG2) ->  | AH38: =IF(RIS!AH2="","",RIS!AH2) ->  | AI38: =IF(RIS!AI2="","",RIS!AI2) ->  | AJ38: =IF(RIS!AJ2="","",RIS!AJ2) ->  | AK38: =IF(RIS!AK2="","",RIS!AK2) ->  | AL38: =IF(RIS!AL2="","",RIS!AL2) ->  | AM38: =IF(RIS!AM2="","",RIS!AM2) ->  | AN38: =IF(RIS!AN2="","",RIS!AN2) ->  | AO38: =IF(RIS!AO2="","",RIS!AO2) ->  | AP38: =IF(RIS!AP2="","",RIS!AP2) ->  | AQ38: =IF(RIS!AQ2="","",RIS!AQ2) ->  | AR38: =IF(RIS!AR2="","",RIS!AR2) ->  | AS38: =IF(RIS!AS2="","",RIS!AS2) ->  | AT38: =IF(RIS!AT2="","",RIS!AT2) ->  | AU38: =IF(RIS!AU2="","",RIS!AU2) ->  | AV38: =IF(RIS!AV2="","",RIS!AV2) ->  | AW38: =IF(RIS!AW2="","",RIS!AW2) ->  | AX38: =IF(RIS!AX2="","",RIS!AX2) ->  | AY38: =IF(RIS!AY2="","",RIS!AY2) ->  | AZ38: =IF(RIS!AZ2="","",RIS!AZ2) ->  | BA38: =IF(RIS!BA2="","",RIS!BA2) ->  | BC38: Barbara-Elio | BD38: 15 | BE38: 35 | BF38: 13
C39: luogo | D39: =IF(RIS!D3="","",RIS!D3) -> Pol | E39: =IF(RIS!E3="","",RIS!E3) -> Sav | F39: =IF(RIS!F3="","",RIS!F3) -> DeS | G39: =IF(RIS!G3="","",RIS!G3) -> Sim | H39: =IF(RIS!H3="","",RIS!H3) -> Tor | I39: =IF(RIS!I3="","",RIS!I3) -> Cat | J39: =IF(RIS!J3="","",RIS!J3) -> Mal | K39: =IF(RIS!K3="","",RIS!K3) -> DeS | L39: =IF(RIS!L3="","",RIS!L3) -> Sim | M39: =IF(RIS!M3="","",RIS!M3) -> Sav | N39: =IF(RIS!N3="","",RIS!N3) -> Pre | O39: =IF(RIS!O3="","",RIS!O3) -> DeS | P39: =IF(RIS!P3="","",RIS!P3) -> Pol | Q39: =IF(RIS!Q3="","",RIS!Q3) -> Tor | R39: =IF(RIS!R3="","",RIS!R3) ->  | S39: =IF(RIS!S3="","",RIS!S3) ->  | T39: =IF(RIS!T3="","",RIS!T3) ->  | U39: =IF(RIS!U3="","",RIS!U3) ->  | V39: =IF(RIS!V3="","",RIS!V3) ->  | W39: =IF(RIS!W3="","",RIS!W3) ->  | X39: =IF(RIS!X3="","",RIS!X3) ->  | Y39: =IF(RIS!Y3="","",RIS!Y3) ->  | Z39: =IF(RIS!Z3="","",RIS!Z3) ->  | AA39: =IF(RIS!AA3="","",RIS!AA3) ->  | AB39: =IF(RIS!AB3="","",RIS!AB3) ->  | AC39: =IF(RIS!AC3="","",RIS!AC3) ->  | AD39: =IF(RIS!AD3="","",RIS!AD3) ->  | AE39: =IF(RIS!AE3="","",RIS!AE3) ->  | AF39: =IF(RIS!AF3="","",RIS!AF3) ->  | AG39: =IF(RIS!AG3="","",RIS!AG3) ->  | AH39: =IF(RIS!AH3="","",RIS!AH3) ->  | AI39: =IF(RIS!AI3="","",RIS!AI3) ->  | AJ39: =IF(RIS!AJ3="","",RIS!AJ3) ->  | AK39: =IF(RIS!AK3="","",RIS!AK3) ->  | AL39: =IF(RIS!AL3="","",RIS!AL3) ->  | AM39: =IF(RIS!AM3="","",RIS!AM3) ->  | AN39: =IF(RIS!AN3="","",RIS!AN3) ->  | AO39: =IF(RIS!AO3="","",RIS!AO3) ->  | AP39: =IF(RIS!AP3="","",RIS!AP3) ->  | AQ39: =IF(RIS!AQ3="","",RIS!AQ3) ->  | AR39: =IF(RIS!AR3="","",RIS!AR3) ->  | AS39: =IF(RIS!AS3="","",RIS!AS3) ->  | AT39: =IF(RIS!AT3="","",RIS!AT3) ->  | AU39: =IF(RIS!AU3="","",RIS!AU3) ->  | AV39: =IF(RIS!AV3="","",RIS!AV3) ->  | AW39: =IF(RIS!AW3="","",RIS!AW3) ->  | AX39: =IF(RIS!AX3="","",RIS!AX3) ->  | AY39: =IF(RIS!AY3="","",RIS!AY3) ->  | AZ39: =IF(RIS!AZ3="","",RIS!AZ3) ->  | BA39: =IF(RIS!BA3="","",RIS!BA3) ->  | BC39: Cesarina-Gaetano | BD39: 5 | BE39: 25 | BF39: 5
C40: coppie-mani | D40: =IF(RIS!D4="","",RIS!D4) -> 9-18 | E40: =IF(RIS!E4="","",RIS!E4) -> 10-18 | F40: =IF(RIS!F4="","",RIS!F4) -> 10-18 | G40: =IF(RIS!G4="","",RIS!G4) -> 10-18 | I40: =IF(RIS!I4="","",RIS!I4) -> 7-21 | J40: =IF(RIS!J4="","",RIS!J4) -> 9-18 | K40: =IF(RIS!K4="","",RIS!K4) -> 10-27 | L40: =IF(RIS!L4="","",RIS!L4) -> 8-21 | M40: =IF(RIS!M4="","",RIS!M4) -> 10-18 | N40: =IF(RIS!N4="","",RIS!N4) -> 10-18 | O40: =IF(RIS!O4="","",RIS!O4) -> 11-22 | P40: =IF(RIS!P4="","",RIS!P4) -> 12-22 | Q40: =IF(RIS!Q4="","",RIS!Q4) -> 8-21 | R40: =IF(RIS!R4="","",RIS!R4) ->  | S40: =IF(RIS!S4="","",RIS!S4) ->  | T40: =IF(RIS!T4="","",RIS!T4) ->  | U40: =IF(RIS!U4="","",RIS!U4) ->  | V40: =IF(RIS!V4="","",RIS!V4) ->  | W40: =IF(RIS!W4="","",RIS!W4) ->  | X40: =IF(RIS!X4="","",RIS!X4) ->  | Y40: =IF(RIS!Y4="","",RIS!Y4) ->  | Z40: =IF(RIS!Z4="","",RIS!Z4) ->  | AA40: =IF(RIS!AA4="","",RIS!AA4) ->  | AB40: =IF(RIS!AB4="","",RIS!AB4) ->  | AC40: =IF(RIS!AC4="","",RIS!AC4) ->  | AD40: =IF(RIS!AD4="","",RIS!AD4) ->  | AE40: =IF(RIS!AE4="","",RIS!AE4) ->  | AF40: =IF(RIS!AF4="","",RIS!AF4) ->  | AG40: =IF(RIS!AG4="","",RIS!AG4) ->  | AH40: =IF(RIS!AH4="","",RIS!AH4) ->  | AI40: =IF(RIS!AI4="","",RIS!AI4) ->  | AJ40: =IF(RIS!AJ4="","",RIS!AJ4) ->  | AK40: =IF(RIS!AK4="","",RIS!AK4) ->  | AL40: =IF(RIS!AL4="","",RIS!AL4) ->  | AM40: =IF(RIS!AM4="","",RIS!AM4) ->  | AN40: =IF(RIS!AN4="","",RIS!AN4) ->  | AO40: =IF(RIS!AO4="","",RIS!AO4) ->  | AP40: =IF(RIS!AP4="","",RIS!AP4) ->  | AQ40: =IF(RIS!AQ4="","",RIS!AQ4) ->  | AR40: =IF(RIS!AR4="","",RIS!AR4) ->  | AS40: =IF(RIS!AS4="","",RIS!AS4) ->  | AT40: =IF(RIS!AT4="","",RIS!AT4) ->  | AU40: =IF(RIS!AU4="","",RIS!AU4) ->  | AV40: =IF(RIS!AV4="","",RIS!AV4) ->  | AW40: =IF(RIS!AW4="","",RIS!AW4) ->  | AX40: =IF(RIS!AX4="","",RIS!AX4) ->  | AY40: =IF(RIS!AY4="","",RIS!AY4) ->  | AZ40: =IF(RIS!AZ4="","",RIS!AZ4) ->  | BA40: =IF(RIS!BA4="","",RIS!BA4) ->  | BC40: Elena-Stefano | BD40: 2 | BE40: 22 | BF40: 2
BC41: Isolde-Cristina | BD41: 0 | BE41: 0 | BF41: 0
C42: Antonella-Dino | D42: 32 | E42: 58 | F42: 84 | G42: 116 | H42: 166 | I42: 166 | J42: 207 | K42: 231 | L42: 262 | M42: 299.5 | N42: 325.5 | O42: 355.5 | P42: 385.5 | Q42: 412.5 | BC42: Lilli-Gianni | BD42: 8 | BE42: 28 | BF42: 7.666666667
C43: Barbara-Elio | D43: 40 | E43: 70 | F43: 103 | G43: 138 | H43: 168 | I43: 168 | J43: 199 | K43: 223 | L43: 251 | M43: 288.5 | N43: 322 | O43: 357 | P43: 394.5 | Q43: 394.5 | BC43: Manuela-Roberto | BD43: 25 | BE43: 50 | BF43: 20
C44: Cesarina-Gaetano | D44: 25 | E44: 48 | F44: 48 | G44: 73 | H44: 109 | I44: 144 | J44: 176 | K44: 206 | L44: 230 | M44: 254 | N44: 279 | O44: 300 | P44: 332 | Q44: 356 | BC44: Olimpia-Sauro | BD44: 1 | BE44: 20 | BF44: 1
C45: Elena-Stefano | D45: 31 | E45: 53 | F45: 75 | G45: 97 | H45: 97 | I45: 127 | J45: 162 | K45: 182 | L45: 219.5 | M45: 219.5 | N45: 253 | O45: 277 | P45: 327 | Q45: 367 | BC45: Renata-Sandro | BD45: 8.417 | BE45: 28.667 | BF45: 9
C46: Isolde-Cristina | D46: 51 | E46: 83 | F46: 83 | G46: 83 | H46: 83 | I46: 83 | J46: 83 | K46: 83 | L46: 83 | M46: 107 | N46: 107 | O46: 135.667 | P46: 159.667 | Q46: 159.667 | BC46: Stefania-Massimo | BD46: 8 | BE46: 28 | BF46: 7.666666667
C47: Lilli-Gianni | D47: 23 | E47: 61.5 | F47: 61.5 | G47: 89.5 | H47: 113.5 | I47: 139.5 | J47: 161.5 | K47: 185.5 | L47: 211.5 | M47: 243.5 | N47: 263.5 | O47: 303.5 | P47: 323.5 | Q47: 354.5 | BC47: Tatiana-Julio | BD47: 8 | BE47: 28 | BF47: 7.666666667
C48: Manuela-Roberto | D48: 28 | E48: 65.5 | F48: 115.5 | G48: 165.5 | H48: 205.5 | I48: 250.5 | J48: 274.5 | K48: 302.5 | L48: 340 | M48: 370 | N48: 410 | O48: 436 | P48: 464 | Q48: 499 | BC48: Antonella-Dino | BD48: 25 | BE48: 50 | BF48: 16
C49: Olimpia-Sauro | D49: 35 | E49: 63 | F49: 91 | G49: 111 | H49: 143 | I49: 172 | J49: 200 | K49: 200 | L49: 200 | M49: 229 | N49: 279 | O49: 307 | P49: 326 | Q49: 353 | BC49: Barbara-Elio | BD49: 10 | BE49: 30 | BF49: 6
C50: Renata-Sandro | D50: 28.667 | E50: 57.334 | F50: 86.001 | G50: 114.668 | H50: 143.335 | I50: 172.002 | J50: 200.669 | K50: 229.336 | L50: 258.003 | M50: 286.67 | N50: 315.67 | O50: 365.67 | P50: 391.67 | Q50: 420.337 | BC50: Cesarina-Gaetano | BD50: 16 | BE50: 36 | BF50: 11
C51: Stefania-Massimo | D51: 0 | E51: 50 | F51: 90 | G51: 118 | H51: 146 | I51: 178 | J51: 228 | K51: 273 | L51: 323 | M51: 373 | N51: 395 | O51: 428 | P51: 450 | Q51: 501 | BC51: Elena-Stefano | BD51: 0 | BE51: 0 | BF51: 0
C52: Tatiana-Julio | D52: 25 | E52: 47 | F52: 82 | G52: 110 | H52: 137 | I52: 182 | J52: 208 | K52: 254 | L52: 286 | M52: 306 | N52: 335 | O52: 354 | P52: 372 | Q52: 404 | BC52: Isolde-Cristina | BD52: 0 | BE52: 0 | BF52: 0
BC53: Lilli-Gianni | BD53: 4 | BE53: 24 | BF53: 1
A54: Progr. F1 Hybrid | D54: 1 | E54: 2 | F54: 3 | G54: 4 | H54: 5 | I54: 6 | J54: 7 | K54: 8 | L54: 9 | M54: 10 | N54: 11 | O54: 12 | P54: 13 | Q54: 14 | R54: 15 | S54: 16 | T54: 17 | U54: 18 | V54: 19 | W54: 20 | X54: 21 | Y54: 22 | Z54: 23 | AA54: 24 | AB54: 25 | AC54: 26 | AD54: 27 | AE54: 28 | AF54: 29 | AG54: 30 | AH54: 31 | AI54: 32 | AJ54: 33 | AK54: 34 | AL54: 35 | AM54: 36 | AN54: 37 | AO54: 38 | AP54: 39 | AQ54: 40 | AR54: 41 | AS54: 42 | AT54: 43 | AU54: 44 | AV54: 45 | AW54: 46 | AX54: 47 | AY54: 48 | AZ54: 49 | BA54: 50 | BC54: Manuela-Roberto | BD54: 18 | BE54: 40 | BF54: 12
B55: sel.col | C55: data | D55: =IF(RIS!D2="","",RIS!D2) -> 2019-09-21 | E55: =IF(RIS!E2="","",RIS!E2) -> 2019-10-19 | F55: =IF(RIS!F2="","",RIS!F2) -> 2019-10-26 | G55: =IF(RIS!G2="","",RIS!G2) -> 2019-11-02 | H55: =IF(RIS!H2="","",RIS!H2) -> 2019-11-16 | I55: =IF(RIS!I2="","",RIS!I2) -> 2019-11-23 | J55: =IF(RIS!J2="","",RIS!J2) -> 2019-11-30 | K55: =IF(RIS!K2="","",RIS!K2) -> 2019-12-21 | L55: =IF(RIS!L2="","",RIS!L2) -> 2020-01-25 | M55: =IF(RIS!M2="","",RIS!M2) -> 2020-02-01 | N55: =IF(RIS!N2="","",RIS!N2) -> 2020-02-08 | O55: =IF(RIS!O2="","",RIS!O2) -> 2020-02-15 | P55: =IF(RIS!P2="","",RIS!P2) -> 2020-02-22 | Q55: =IF(RIS!Q2="","",RIS!Q2) -> 2020-02-29 | R55: =IF(RIS!R2="","",RIS!R2) ->  | S55: =IF(RIS!S2="","",RIS!S2) ->  | T55: =IF(RIS!T2="","",RIS!T2) ->  | U55: =IF(RIS!U2="","",RIS!U2) ->  | V55: =IF(RIS!V2="","",RIS!V2) ->  | W55: =IF(RIS!W2="","",RIS!W2) ->  | X55: =IF(RIS!X2="","",RIS!X2) ->  | Y55: =IF(RIS!Y2="","",RIS!Y2) ->  | Z55: =IF(RIS!Z2="","",RIS!Z2) ->  | AA55: =IF(RIS!AA2="","",RIS!AA2) ->  | AB55: =IF(RIS!AB2="","",RIS!AB2) ->  | AC55: =IF(RIS!AC2="","",RIS!AC2) ->  | AD55: =IF(RIS!AD2="","",RIS!AD2) ->  | AE55: =IF(RIS!AE2="","",RIS!AE2) ->  | AF55: =IF(RIS!AF2="","",RIS!AF2) ->  | AG55: =IF(RIS!AG2="","",RIS!AG2) ->  | AH55: =IF(RIS!AH2="","",RIS!AH2) ->  | AI55: =IF(RIS!AI2="","",RIS!AI2) ->  | AJ55: =IF(RIS!AJ2="","",RIS!AJ2) ->  | AK55: =IF(RIS!AK2="","",RIS!AK2) ->  | AL55: =IF(RIS!AL2="","",RIS!AL2) ->  | AM55: =IF(RIS!AM2="","",RIS!AM2) ->  | AN55: =IF(RIS!AN2="","",RIS!AN2) ->  | AO55: =IF(RIS!AO2="","",RIS!AO2) ->  | AP55: =IF(RIS!AP2="","",RIS!AP2) ->  | AQ55: =IF(RIS!AQ2="","",RIS!AQ2) ->  | AR55: =IF(RIS!AR2="","",RIS!AR2) ->  | AS55: =IF(RIS!AS2="","",RIS!AS2) ->  | AT55: =IF(RIS!AT2="","",RIS!AT2) ->  | AU55: =IF(RIS!AU2="","",RIS!AU2) ->  | AV55: =IF(RIS!AV2="","",RIS!AV2) ->  | AW55: =IF(RIS!AW2="","",RIS!AW2) ->  | AX55: =IF(RIS!AX2="","",RIS!AX2) ->  | AY55: =IF(RIS!AY2="","",RIS!AY2) ->  | AZ55: =IF(RIS!AZ2="","",RIS!AZ2) ->  | BA55: =IF(RIS!BA2="","",RIS!BA2) ->  | BC55: Olimpia-Sauro | BD55: 12 | BE55: 32 | BF55: 8
C56: luogo | D56: =IF(RIS!D3="","",RIS!D3) -> Pol | E56: =IF(RIS!E3="","",RIS!E3) -> Sav | F56: =IF(RIS!F3="","",RIS!F3) -> DeS | G56: =IF(RIS!G3="","",RIS!G3) -> Sim | H56: =IF(RIS!H3="","",RIS!H3) -> Tor | I56: =IF(RIS!I3="","",RIS!I3) -> Cat | J56: =IF(RIS!J3="","",RIS!J3) -> Mal | K56: =IF(RIS!K3="","",RIS!K3) -> DeS | L56: =IF(RIS!L3="","",RIS!L3) -> Sim | M56: =IF(RIS!M3="","",RIS!M3) -> Sav | N56: =IF(RIS!N3="","",RIS!N3) -> Pre | O56: =IF(RIS!O3="","",RIS!O3) -> DeS | P56: =IF(RIS!P3="","",RIS!P3) -> Pol | Q56: =IF(RIS!Q3="","",RIS!Q3) -> Tor | R56: =IF(RIS!R3="","",RIS!R3) ->  | S56: =IF(RIS!S3="","",RIS!S3) ->  | T56: =IF(RIS!T3="","",RIS!T3) ->  | U56: =IF(RIS!U3="","",RIS!U3) ->  | V56: =IF(RIS!V3="","",RIS!V3) ->  | W56: =IF(RIS!W3="","",RIS!W3) ->  | X56: =IF(RIS!X3="","",RIS!X3) ->  | Y56: =IF(RIS!Y3="","",RIS!Y3) ->  | Z56: =IF(RIS!Z3="","",RIS!Z3) ->  | AA56: =IF(RIS!AA3="","",RIS!AA3) ->  | AB56: =IF(RIS!AB3="","",RIS!AB3) ->  | AC56: =IF(RIS!AC3="","",RIS!AC3) ->  | AD56: =IF(RIS!AD3="","",RIS!AD3) ->  | AE56: =IF(RIS!AE3="","",RIS!AE3) ->  | AF56: =IF(RIS!AF3="","",RIS!AF3) ->  | AG56: =IF(RIS!AG3="","",RIS!AG3) ->  | AH56: =IF(RIS!AH3="","",RIS!AH3) ->  | AI56: =IF(RIS!AI3="","",RIS!AI3) ->  | AJ56: =IF(RIS!AJ3="","",RIS!AJ3) ->  | AK56: =IF(RIS!AK3="","",RIS!AK3) ->  | AL56: =IF(RIS!AL3="","",RIS!AL3) ->  | AM56: =IF(RIS!AM3="","",RIS!AM3) ->  | AN56: =IF(RIS!AN3="","",RIS!AN3) ->  | AO56: =IF(RIS!AO3="","",RIS!AO3) ->  | AP56: =IF(RIS!AP3="","",RIS!AP3) ->  | AQ56: =IF(RIS!AQ3="","",RIS!AQ3) ->  | AR56: =IF(RIS!AR3="","",RIS!AR3) ->  | AS56: =IF(RIS!AS3="","",RIS!AS3) ->  | AT56: =IF(RIS!AT3="","",RIS!AT3) ->  | AU56: =IF(RIS!AU3="","",RIS!AU3) ->  | AV56: =IF(RIS!AV3="","",RIS!AV3) ->  | AW56: =IF(RIS!AW3="","",RIS!AW3) ->  | AX56: =IF(RIS!AX3="","",RIS!AX3) ->  | AY56: =IF(RIS!AY3="","",RIS!AY3) ->  | AZ56: =IF(RIS!AZ3="","",RIS!AZ3) ->  | BA56: =IF(RIS!BA3="","",RIS!BA3) ->  | BC56: Renata-Sandro | BD56: 8.417 | BE56: 28.667 | BF56: 7.38
C57: coppie-mani | D57: =IF(RIS!D4="","",RIS!D4) -> 9-18 | E57: =IF(RIS!E4="","",RIS!E4) -> 10-18 | F57: =IF(RIS!F4="","",RIS!F4) -> 10-18 | G57: =IF(RIS!G4="","",RIS!G4) -> 10-18 | H57: =IF(RIS!H4="","",RIS!H4) -> 8-21 | I57: =IF(RIS!I4="","",RIS!I4) -> 7-21 | J57: =IF(RIS!J4="","",RIS!J4) -> 9-18 | K57: =IF(RIS!K4="","",RIS!K4) -> 10-27 | L57: =IF(RIS!L4="","",RIS!L4) -> 8-21 | M57: =IF(RIS!M4="","",RIS!M4) -> 10-18 | N57: =IF(RIS!N4="","",RIS!N4) -> 10-18 | O57: =IF(RIS!O4="","",RIS!O4) -> 11-22 | P57: =IF(RIS!P4="","",RIS!P4) -> 12-22 | Q57: =IF(RIS!Q4="","",RIS!Q4) -> 8-21 | R57: =IF(RIS!R4="","",RIS!R4) ->  | S57: =IF(RIS!S4="","",RIS!S4) ->  | T57: =IF(RIS!T4="","",RIS!T4) ->  | U57: =IF(RIS!U4="","",RIS!U4) ->  | V57: =IF(RIS!V4="","",RIS!V4) ->  | W57: =IF(RIS!W4="","",RIS!W4) ->  | X57: =IF(RIS!X4="","",RIS!X4) ->  | Y57: =IF(RIS!Y4="","",RIS!Y4) ->  | Z57: =IF(RIS!Z4="","",RIS!Z4) ->  | AA57: =IF(RIS!AA4="","",RIS!AA4) ->  | AB57: =IF(RIS!AB4="","",RIS!AB4) ->  | AC57: =IF(RIS!AC4="","",RIS!AC4) ->  | AD57: =IF(RIS!AD4="","",RIS!AD4) ->  | AE57: =IF(RIS!AE4="","",RIS!AE4) ->  | AF57: =IF(RIS!AF4="","",RIS!AF4) ->  | AG57: =IF(RIS!AG4="","",RIS!AG4) ->  | AH57: =IF(RIS!AH4="","",RIS!AH4) ->  | AI57: =IF(RIS!AI4="","",RIS!AI4) ->  | AJ57: =IF(RIS!AJ4="","",RIS!AJ4) ->  | AK57: =IF(RIS!AK4="","",RIS!AK4) ->  | AL57: =IF(RIS!AL4="","",RIS!AL4) ->  | AM57: =IF(RIS!AM4="","",RIS!AM4) ->  | AN57: =IF(RIS!AN4="","",RIS!AN4) ->  | AO57: =IF(RIS!AO4="","",RIS!AO4) ->  | AP57: =IF(RIS!AP4="","",RIS!AP4) ->  | AQ57: =IF(RIS!AQ4="","",RIS!AQ4) ->  | AR57: =IF(RIS!AR4="","",RIS!AR4) ->  | AS57: =IF(RIS!AS4="","",RIS!AS4) ->  | AT57: =IF(RIS!AT4="","",RIS!AT4) ->  | AU57: =IF(RIS!AU4="","",RIS!AU4) ->  | AV57: =IF(RIS!AV4="","",RIS!AV4) ->  | AW57: =IF(RIS!AW4="","",RIS!AW4) ->  | AX57: =IF(RIS!AX4="","",RIS!AX4) ->  | AY57: =IF(RIS!AY4="","",RIS!AY4) ->  | AZ57: =IF(RIS!AZ4="","",RIS!AZ4) ->  | BA57: =IF(RIS!BA4="","",RIS!BA4) ->  | BC57: Stefania-Massimo | BD57: 8 | BE57: 28 | BF57: 4
BC58: Tatiana-Julio | BD58: 7 | BE58: 27 | BF58: 3
C59: Antonella-Dino | D59: 10 | E59: 16 | F59: 22 | G59: 33 | H59: 49 | I59: 49 | J59: 64 | K59: 68 | L59: 75 | M59: 89.5 | N59: 95.5 | O59: 105.5 | P59: 116.5 | Q59: 119.5 | BC59: Antonella-Dino | BD59: 0 | BE59: 0 | BF59: 0
C60: Barbara-Elio | D60: 14 | E60: 23 | F60: 35 | G60: 48 | H60: 54 | I60: 54 | J60: 63 | K60: 67 | L60: 71 | M60: 85.5 | N60: 97.5 | O60: 112.5 | P60: 130 | Q60: 130 | BC60: Barbara-Elio | BD60: 0 | BE60: 0 | BF60: 0
C61: Cesarina-Gaetano | D61: 3 | E61: 6.333333333 | F61: 6.333333333 | G61: 11.33333333 | H61: 22.33333333 | I61: 30.33333333 | J61: 40.33333333 | K61: 49.33333333 | L61: 50.33333333 | M61: 54.33333333 | N61: 59.33333333 | O61: 62.33333333 | P61: 75.33333333 | Q61: 76.33333333 | BC61: Cesarina-Gaetano | BD61: 15 | BE61: 35 | BF61: 8
C62: Elena-Stefano | D62: 9 | E62: 11.33333333 | F62: 13.33333333 | G62: 15.33333333 | H62: 15.33333333 | I62: 19.33333333 | J62: 31.33333333 | K62: 32.33333333 | L62: 43.33333333 | M62: 43.33333333 | N62: 55.33333333 | O62: 61.33333333 | P62: 86.33333333 | Q62: 98.33333333 | BC62: Elena-Stefano | BD62: 10 | BE62: 30 | BF62: 4
C63: Isolde-Cristina | D63: 19 | E63: 30 | F63: 30 | G63: 30 | H63: 30 | I63: 30 | J63: 30 | K63: 30 | L63: 30 | M63: 34 | N63: 34 | O63: 43.64 | P63: 50.64 | Q63: 50.64 | BC63: Isolde-Cristina | BD63: 0 | BE63: 0 | BF63: 0
C64: Lilli-Gianni | D64: 2 | E64: 17.5 | F64: 17.5 | G64: 25.16666667 | H64: 26.16666667 | I64: 27.16666667 | J64: 28.16666667 | K64: 32.16666667 | L64: 34.16666667 | M64: 45.16666667 | N64: 46.16666667 | O64: 64.16666667 | P64: 68.16666667 | Q64: 75.16666667 | BC64: Lilli-Gianni | BD64: 6 | BE64: 26 | BF64: 1
C65: Manuela-Roberto | D65: 6 | E65: 20.5 | F65: 40.5 | G65: 60.5 | H65: 72.5 | I65: 84.5 | J65: 86.5 | K65: 94.5 | L65: 105.5 | M65: 114.5 | N65: 130.5 | O65: 137.5 | P65: 147.5 | Q65: 157.5 | BC65: Manuela-Roberto | BD65: 21.5 | BE65: 45 | BF65: 12
C66: Olimpia-Sauro | D66: 12 | E66: 20 | F66: 28 | G66: 29 | H66: 37 | I66: 40 | J66: 46 | K66: 46 | L66: 46 | M66: 55 | N66: 75 | O66: 84 | P66: 86 | Q66: 89 | BC66: Olimpia-Sauro | BD66: 9 | BE66: 29 | BF66: 3
C67: Renata-Sandro | D67: 8.33 | E67: 17.33 | F67: 26.33 | G67: 35.33 | H67: 42.71 | I67: 49.14 | J67: 57.47 | K67: 66.47 | L67: 73.85 | M67: 82.85 | N67: 91.35 | O67: 113.35 | P67: 121.35 | Q67: 128.73 | BC67: Renata-Sandro | BD67: 8.417 | BE67: 28.667 | BF67: 6.43
C68: Stefania-Massimo | D68: 0 | E68: 20 | F68: 36 | G68: 43.66666667 | H68: 47.66666667 | I68: 53.66666667 | J68: 71.66666667 | K68: 89.66666667 | L68: 105.6666667 | M68: 125.6666667 | N68: 127.6666667 | O68: 140.6666667 | P68: 146.6666667 | Q68: 163.6666667 | BC68: Stefania-Massimo | BD68: 12 | BE68: 32 | BF68: 6
C69: Tatiana-Julio | D69: 3 | E69: 5.333333333 | F69: 18.33333333 | G69: 26 | H69: 29 | I69: 41 | J69: 45 | K69: 64 | L69: 72 | M69: 73 | N69: 81.5 | O69: 82.5 | P69: 83.5 | Q69: 91.5 | BC69: Tatiana-Julio | BD69: 21.5 | BE69: 45 | BF69: 12
BC70: Antonella-Dino | BD70: 19 | BE70: 41 | BF70: 15
BC71: Barbara-Elio | BD71: 11 | BE71: 31 | BF71: 9
BC72: Cesarina-Gaetano | BD72: 12 | BE72: 32 | BF72: 10
BC73: Elena-Stefano | BD73: 15 | BE73: 35 | BF73: 12
BC74: Isolde-Cristina | BD74: 0 | BE74: 0 | BF74: 0
BC75: Lilli-Gianni | BD75: 2 | BE75: 22 | BF75: 1
BC76: Manuela-Roberto | BD76: 4 | BE76: 24 | BF76: 2
BC77: Olimpia-Sauro | BD77: 8 | BE77: 28 | BF77: 6
BC78: Renata-Sandro | BD78: 8.417 | BE78: 28.667 | BF78: 8.33
BC79: Stefania-Massimo | BD79: 25 | BE79: 50 | BF79: 18
BC80: Tatiana-Julio | BD80: 6 | BE80: 26 | BF80: 4
BC81: Antonella-Dino | BD81: 4 | BE81: 24 | BF81: 4
BC82: Barbara-Elio | BD82: 4 | BE82: 24 | BF82: 4
BC83: Cesarina-Gaetano | BD83: 10 | BE83: 30 | BF83: 9
BC84: Elena-Stefano | BD84: 1 | BE84: 20 | BF84: 1
BC85: Isolde-Cristina | BD85: 0 | BE85: 0 | BF85: 0
BC86: Lilli-Gianni | BD86: 4 | BE86: 24 | BF86: 4
BC87: Manuela-Roberto | BD87: 8 | BE87: 28 | BF87: 8
BC88: Olimpia-Sauro | BD88: 0 | BE88: 0 | BF88: 0
BC89: Renata-Sandro | BD89: 8.417 | BE89: 28.667 | BF89: 9
BC90: Stefania-Massimo | BD90: 21.5 | BE90: 45 | BF90: 18
BC91: Tatiana-Julio | BD91: 22.5 | BE91: 46 | BF91: 19
BC92: Antonella-Dino | BD92: 11 | BE92: 31 | BF92: 7
BC93: Barbara-Elio | BD93: 8 | BE93: 28 | BF93: 4
BC94: Cesarina-Gaetano | BD94: 4 | BE94: 24 | BF94: 1
BC95: Elena-Stefano | BD95: 16.5 | BE95: 37.5 | BF95: 11
BC96: Isolde-Cristina | BD96: 0 | BE96: 0 | BF96: 0
BC97: Lilli-Gianni | BD97: 6 | BE97: 26 | BF97: 2
BC98: Manuela-Roberto | BD98: 16.5 | BE98: 37.5 | BF98: 11
BC99: Olimpia-Sauro | BD99: 0 | BE99: 0 | BF99: 0
BC100: Renata-Sandro | BD100: 8.417 | BE100: 28.667 | BF100: 7.38
BC101: Stefania-Massimo | BD101: 25 | BE101: 50 | BF101: 16
BC102: Tatiana-Julio | BD102: 12 | BE102: 32 | BF102: 8
BC103: Antonella-Dino | BD103: 16.5 | BE103: 37.5 | BF103: 14.5
BC104: Barbara-Elio | BD104: 16.5 | BE104: 37.5 | BF104: 14.5
BC105: Cesarina-Gaetano | BD105: 4 | BE105: 24 | BF105: 4
BC106: Elena-Stefano | BD106: 0 | BE106: 0 | BF106: 0
BC107: Isolde-Cristina | BD107: 4 | BE107: 24 | BF107: 4
BC108: Lilli-Gianni | BD108: 12 | BE108: 32 | BF108: 11
BC109: Manuela-Roberto | BD109: 10 | BE109: 30 | BF109: 9
BC110: Olimpia-Sauro | BD110: 9 | BE110: 29 | BF110: 9
BC111: Renata-Sandro | BD111: 8.417 | BE111: 28.667 | BF111: 9
BC112: Stefania-Massimo | BD112: 25 | BE112: 50 | BF112: 20
BC113: Tatiana-Julio | BD113: 1 | BE113: 20 | BF113: 1
BC114: Antonella-Dino | BD114: 6 | BE114: 26 | BF114: 6
BC115: Barbara-Elio | BD115: 13.5 | BE115: 33.5 | BF115: 12
BC116: Cesarina-Gaetano | BD116: 5 | BE116: 25 | BF116: 5
BC117: Elena-Stefano | BD117: 13.5 | BE117: 33.5 | BF117: 12
BC118: Isolde-Cristina | BD118: 0 | BE118: 0 | BF118: 0
BC119: Lilli-Gianni | BD119: 1 | BE119: 20 | BF119: 1
BC120: Manuela-Roberto | BD120: 18 | BE120: 40 | BF120: 16
BC121: Olimpia-Sauro | BD121: 25 | BE121: 50 | BF121: 20
BC122: Renata-Sandro | BD122: 9 | BE122: 29 | BF122: 8.5
BC123: Stefania-Massimo | BD123: 2 | BE123: 22 | BF123: 2
BC124: Tatiana-Julio | BD124: 9 | BE124: 29 | BF124: 8.5
BC125: Antonella-Dino | BD125: 10 | BE125: 30 | BF125: 10
BC126: Barbara-Elio | BD126: 15 | BE126: 35 | BF126: 15
BC127: Cesarina-Gaetano | BD127: 1.5 | BE127: 21 | BF127: 3
BC128: Elena-Stefano | BD128: 4 | BE128: 24 | BF128: 6
BC129: Isolde-Cristina | BD129: 8.417 | BE129: 28.667 | BF129: 9.64
BC130: Lilli-Gianni | BD130: 18 | BE130: 40 | BF130: 18
BC131: Manuela-Roberto | BD131: 6 | BE131: 26 | BF131: 7
BC132: Olimpia-Sauro | BD132: 8 | BE132: 28 | BF132: 9
BC133: Renata-Sandro | BD133: 25 | BE133: 50 | BF133: 22
BC134: Stefania-Massimo | BD134: 13 | BE134: 33 | BF134: 13
BC135: Tatiana-Julio | BD135: 0 | BE135: 19 | BF135: 1
BC136: Antonella-Dino | BD136: 10 | BE136: 30 | BF136: 11
BC137: Barbara-Elio | BD137: 16.5 | BE137: 37.5 | BF137: 17.5
BC138: Cesarina-Gaetano | BD138: 12 | BE138: 32 | BF138: 13
BC139: Elena-Stefano | BD139: 25 | BE139: 50 | BF139: 25
BC140: Isolde-Cristina | BD140: 4 | BE140: 24 | BF140: 7
BC141: Lilli-Gianni | BD141: 1 | BE141: 20 | BF141: 4
BC142: Manuela-Roberto | BD142: 8 | BE142: 28 | BF142: 10
BC143: Olimpia-Sauro | BD143: 0 | BE143: 19 | BF143: 2
BC144: Renata-Sandro | BD144: 6 | BE144: 26 | BF144: 8
BC145: Stefania-Massimo | BD145: 2 | BE145: 22 | BF145: 6
BC146: Tatiana-Julio | BD146: 0 | BE146: 18 | BF146: 1
BC147: Antonella-Dino | BD147: 7 | BE147: 27 | BF147: 3
BC148: Barbara-Elio | BD148: 0 | BE148: 0 | BF148: 0
BC149: Cesarina-Gaetano | BD149: 4 | BE149: 24 | BF149: 1
BC150: Elena-Stefano | BD150: 18 | BE150: 40 | BF150: 12
BC151: Isolde-Cristina | BD151: 0 | BE151: 0 | BF151: 0
BC152: Lilli-Gianni | BD152: 11 | BE152: 31 | BF152: 7
BC153: Manuela-Roberto | BD153: 15 | BE153: 35 | BF153: 10
BC154: Olimpia-Sauro | BD154: 7 | BE154: 27 | BF154: 3
BC155: Renata-Sandro | BD155: 8.417 | BE155: 28.667 | BF155: 7.38
BC156: Stefania-Massimo | BD156: 26 | BE156: 51 | BF156: 17
BC157: Tatiana-Julio | BD157: 12 | BE157: 32 | BF157: 8

Sheet C
D1: BridgeMania 2019-20
A3: ctrl+a | B3: 3 classifiche | E3: CLASSIFICA CAMPIONATO
A4: ctrl+b | B4: class. campionato | E4: class. | F4: coppie | G4: punti
E5: 1 | F5: Stefania-Massimo | G5: 6
E6: =IF(G6=G5,E5,COUNT(G$5:G6)) -> 2 | F6: Manuela-Roberto | G6: 12
E7: =IF(G7=G6,E6,COUNT(G$5:G7)) -> 3 | F7: Barbara-Elio | G7: 24
E8: =IF(G8=G7,E7,COUNT(G$5:G8)) -> 3 | F8: Renata-Sandro | G8: 24
E9: =IF(G9=G8,E8,COUNT(G$5:G9)) -> 5 | F9: Antonella-Dino | G9: 26
E10: =IF(G10=G9,E9,COUNT(G$5:G10)) -> 6 | F10: Tatiana-Julio | G10: 36
E11: =IF(G11=G10,E10,COUNT(G$5:G11)) -> 7 | F11: Elena-Stefano | G11: 40
E12: =IF(G12=G11,E11,COUNT(G$5:G12)) -> 8 | F12: Olimpia-Sauro | G12: 52
E13: =IF(G13=G12,E12,COUNT(G$5:G13)) -> 8 | F13: Cesarina-Gaetano | G13: 52
E14: =IF(G14=G13,E13,COUNT(G$5:G14)) -> 10 | F14: Lilli-Gianni | G14: 58
E15: =IF(G15=G14,E14,COUNT(G$5:G15)) -> 11 | F15: Isolde-Cristina | G15: 66
A17: Classifica F1 Fast | E17: Classifica IndyCar Hard | I17: Classifica F1 Hybrid
A18: class. | B18: coppie | C18: punti | E18: class. | F18: coppie | G18: punti | I18: class. | J18: coppie | K18: punti
A19: 1 | B19: Stefania-Massimo | C19: 210.5 | E19: 1 | F19: Stefania-Massimo | G19: 501 | I19: 1 | J19: Stefania-Massimo | K19: 163.6666667
A20: =IF(C20=C19,A19,COUNT(C$19:C20)) -> 2 | B20: Manuela-Roberto | C20: 199.5 | E20: =IF(G20=G19,E19,COUNT(G$19:G20)) -> 2 | F20: Manuela-Roberto | G20: 499 | I20: =IF(K20=K19,I19,COUNT(K$19:K20)) -> 2 | J20: Manuela-Roberto | K20: 157.5
A21: =IF(C21=C20,A20,COUNT(C$19:C21)) -> 3 | B21: Barbara-Elio | C21: 150.5 | E21: =IF(G21=G20,E20,COUNT(G$19:G21)) -> 3 | F21: Renata-Sandro | G21: 420.337 | I21: =IF(K21=K20,I20,COUNT(K$19:K21)) -> 3 | J21: Barbara-Elio | K21: 130
A22: =IF(C22=C21,A21,COUNT(C$19:C22)) -> 4 | B22: Antonella-Dino | C22: 144.5 | E22: =IF(G22=G21,E21,COUNT(G$19:G22)) -> 4 | F22: Antonella-Dino | G22: 412.5 | I22: =IF(K22=K21,I21,COUNT(K$19:K22)) -> 4 | J22: Renata-Sandro | K22: 128.73
A23: =IF(C23=C22,A22,COUNT(C$19:C23)) -> 5 | B23: Renata-Sandro | C23: 132.587 | E23: =IF(G23=G22,E22,COUNT(G$19:G23)) -> 5 | F23: Tatiana-Julio | G23: 404 | I23: =IF(K23=K22,I22,COUNT(K$19:K23)) -> 5 | J23: Antonella-Dino | K23: 119.5
A24: =IF(C24=C23,A23,COUNT(C$19:C24)) -> 6 | B24: Tatiana-Julio | C24: 121.3333333 | E24: =IF(G24=G23,E23,COUNT(G$19:G24)) -> 6 | F24: Barbara-Elio | G24: 394.5 | I24: =IF(K24=K23,I23,COUNT(K$19:K24)) -> 6 | J24: Elena-Stefano | K24: 98.33333333
A25: =IF(C25=C24,A24,COUNT(C$19:C25)) -> 7 | B25: Elena-Stefano | C25: 120.3333333 | E25: =IF(G25=G24,E24,COUNT(G$19:G25)) -> 7 | F25: Elena-Stefano | G25: 367 | I25: =IF(K25=K24,I24,COUNT(K$19:K25)) -> 7 | J25: Tatiana-Julio | K25: 91.5
A26: =IF(C26=C25,A25,COUNT(C$19:C26)) -> 8 | B26: Olimpia-Sauro | C26: 110 | E26: =IF(G26=G25,E25,COUNT(G$19:G26)) -> 8 | F26: Cesarina-Gaetano | G26: 356 | I26: =IF(K26=K25,I25,COUNT(K$19:K26)) -> 8 | J26: Olimpia-Sauro | K26: 89
A27: =IF(C27=C26,A26,COUNT(C$19:C27)) -> 9 | B27: Cesarina-Gaetano | C27: 96.83333333 | E27: =IF(G27=G26,E26,COUNT(G$19:G27)) -> 9 | F27: Lilli-Gianni | G27: 354.5 | I27: =IF(K27=K26,I26,COUNT(K$19:K27)) -> 9 | J27: Cesarina-Gaetano | K27: 76.33333333
A28: =IF(C28=C27,A27,COUNT(C$19:C28)) -> 10 | B28: Lilli-Gianni | C28: 93.5 | E28: =IF(G28=G27,E27,COUNT(G$19:G28)) -> 10 | F28: Olimpia-Sauro | G28: 353 | I28: =IF(K28=K27,I27,COUNT(K$19:K28)) -> 10 | J28: Lilli-Gianni | K28: 75.16666667
A29: =IF(C29=C28,A28,COUNT(C$19:C29)) -> 11 | B29: Isolde-Cristina | C29: 54.417 | E29: =IF(G29=G28,E28,COUNT(G$19:G29)) -> 11 | F29: Isolde-Cristina | G29: 159.667 | I29: =IF(K29=K28,I28,COUNT(K$19:K29)) -> 11 | J29: Isolde-Cristina | K29: 50.64
A37: Assegnazione dei Punti Campionato in base alla posizione delle coppie base nelle 3 classifiche
A38: Classifica F1 Fast | E38: Classifica HindyCar Hard | I38: Classifica F1 Hibryd | P38: Scala
C39: Punti | G39: Punti | K39: Punti | P39: Punti
C40: Cl.Camp. | G40: Cl.Camp. | K40: Cl.Camp. | P40: Cl.Camp.
A41: =A19 -> 1 | B41: =B19 -> Stefania-Massimo | C41: =IF(A41<A42,$P41,IF(A42<A43,($P41+$P42)/2,IF(A43<A44,($P41+$P42+$P43)/3,IF(A44<A43,($P41+$P42+$P43+$P44/4))))) -> 2 | D41: =C19 -> 210.5 | E41: =E19 -> 1 | F41: =F19 -> Stefania-Massimo | G41: =IF(E41<E42,$P41,IF(E42<E43,($P41+$P42)/2,IF(E43<E44,($P41+$P42+$P43)/3,IF(E44<E43,($P41+$P42+$P43+$P44/4))))) -> 2 | H41: =G19 -> 501 | I41: =I19 -> 1 | J41: =J19 -> Stefania-Massimo | K41: =IF(I41<I42,$P41,IF(I42<I43,($P41+$P42)/2,IF(I43<I44,($P41+$P42+$P43)/3,IF(I44<I43,($P41+$P42+$P43+$P44/4))))) -> 2 | L41: =K19 -> 163.6666667 | P41: 2
A42: =A20 -> 2 | B42: Manuela-Roberto | C42: =IF(A42=A41,C41,IF(A42<A43,$P42,IF(A43<A44,($P42+$P43)/2,IF(A44<A45,($P42+$P43+$P44)/3,IF(A45<A44,($P42+$P43+$P44+$P45/4)))))) -> 4 | D42: =C20 -> 199.5 | E42: =E20 -> 2 | F42: Manuela-Roberto | G42: =IF(E42=E41,G41,IF(E42<E43,$P42,IF(E43<E44,($P42+$P43)/2,IF(E44<E45,($P42+$P43+$P44)/3,IF(E45<E44,($P42+$P43+$P44+$P45/4)))))) -> 4 | H42: =G20 -> 499 | I42: =I20 -> 2 | J42: Manuela-Roberto | K42: =IF(I42=I41,K41,IF(I42<I43,$P42,IF(I43<I44,($P42+$P43)/2,IF(I44<I45,($P42+$P43+$P44)/3,IF(I45<I44,($P42+$P43+$P44+$P45/4)))))) -> 4 | L42: =K20 -> 157.5 | P42: 4
A43: =A21 -> 3 | B43: Barbara-Elio | C43: =IF(A43=A42,C42,IF(A43<A44,$P43,IF(A44<A45,($P43+$P44)/2,IF(A45<A46,($P43+$P44+$P45)/3,IF(A46<A45,($P43+$P44+$P45+$P46/4)))))) -> 6 | D43: 150.5 | E43: =E21 -> 3 | F43: Renata-Sandro | G43: =IF(E43=E42,G42,IF(E43<E44,$P43,IF(E44<E45,($P43+$P44)/2,IF(E45<E46,($P43+$P44+$P45)/3,IF(E46<E45,($P43+$P44+$P45+$P46/4)))))) -> 6 | H43: 420.337 | I43: =I21 -> 3 | J43: Barbara-Elio | K43: =IF(I43=I42,K42,IF(I43<I44,$P43,IF(I44<I45,($P43+$P44)/2,IF(I45<I46,($P43+$P44+$P45)/3,IF(I46<I45,($P43+$P44+$P45+$P46/4)))))) -> 6 | L43: 130 | P43: 6
A44: =A22 -> 4 | B44: Antonella-Dino | C44: 8 | D44: 144.5 | E44: =E22 -> 4 | F44: Antonella-Dino | G44: 8 | H44: 412.5 | I44: =I22 -> 4 | J44: Renata-Sandro | K44: 8 | L44: 128.73 | P44: 8
A45: =A23 -> 5 | B45: Renata-Sandro | C45: 10 | D45: 132.587 | E45: =E23 -> 5 | F45: Tatiana-Julio | G45: 10 | H45: 404 | I45: =I23 -> 5 | J45: Antonella-Dino | K45: 10 | L45: 119.5 | P45: 10
A46: =A24 -> 6 | B46: Tatiana-Julio | C46: 12 | D46: 121.3333333 | E46: =E24 -> 6 | F46: Barbara-Elio | G46: 12 | H46: 394.5 | I46: =I24 -> 6 | J46: Elena-Stefano | K46: 12 | L46: 98.33333333 | P46: 12
A47: =A25 -> 7 | B47: Elena-Stefano | C47: 14 | D47: 120.3333333 | E47: =E25 -> 7 | F47: Elena-Stefano | G47: 14 | H47: 367 | I47: =I25 -> 7 | J47: Tatiana-Julio | K47: 14 | L47: 91.5 | P47: 14
A48: =A26 -> 8 | B48: Olimpia-Sauro | C48: 16 | D48: 110 | E48: =E26 -> 8 | F48: Cesarina-Gaetano | G48: 16 | H48: 356 | I48: =I26 -> 8 | J48: Olimpia-Sauro | K48: 16 | L48: 89 | P48: 16
A49: =A27 -> 9 | B49: Cesarina-Gaetano | C49: 18 | D49: 96.83333333 | E49: =E27 -> 9 | F49: Lilli-Gianni | G49: 18 | H49: 354.5 | I49: =I27 -> 9 | J49: Cesarina-Gaetano | K49: 18 | L49: 76.33333333 | P49: 18
A50: =A28 -> 10 | B50: Lilli-Gianni | C50: =IF(A50=A49,C49,IF(A50<A51,$P50,($P50+$P51)/2)) -> 20 | D50: 93.5 | E50: =E28 -> 10 | F50: Olimpia-Sauro | G50: =IF(E50=E49,G49,IF(E50<E51,$P50,($P50+$P51)/2)) -> 20 | H50: 353 | I50: =I28 -> 10 | J50: Lilli-Gianni | K50: =IF(I50=I49,K49,IF(I50<I51,$P50,($P50+$P51)/2)) -> 20 | L50: 75.16666667 | P50: 20
A51: =A29 -> 11 | B51: Isolde-Cristina | C51: =IF(A51=A50,C50,$P51) -> 22 | D51: 54.417 | E51: =E29 -> 11 | F51: Isolde-Cristina | G51: =IF(E51=E50,G50,$P51) -> 22 | H51: 159.667 | I51: =I29 -> 11 | J51: Isolde-Cristina | K51: =IF(I51=I50,K50,$P51) -> 22 | L51: 50.64 | P51: 22
G58: Tabella Pivot 2 (somma i Punti Campionato)
B60: Coppie | C60: Punti Camp. | F60: Etichette di riga | G60: Somma di Punti Camp.
A61: F1 Fast | B61: Stefania-Massimo | C61: 2 | F61: Isolde-Cristina | G61: 66
B62: Manuela-Roberto | C62: 4 | F62: Barbara-Elio | G62: 24
B63: Barbara-Elio | C63: 6 | F63: Olimpia-Sauro | G63: 52
B64: Antonella-Dino | C64: 8 | F64: Antonella-Dino | G64: 26
B65: Renata-Sandro | C65: 10 | F65: Elena-Stefano | G65: 40
B66: Tatiana-Julio | C66: 12 | F66: Renata-Sandro | G66: 24
B67: Elena-Stefano | C67: 14 | F67: Manuela-Roberto | G67: 12
B68: Olimpia-Sauro | C68: 16 | F68: Cesarina-Gaetano | G68: 52
B69: Cesarina-Gaetano | C69: 18 | F69: Tatiana-Julio | G69: 36
B70: Lilli-Gianni | C70: 20 | F70: Lilli-Gianni | G70: 58
B71: Isolde-Cristina | C71: 22 | F71: Stefania-Massimo | G71: 6
A72: HindyCar H. | B72: Stefania-Massimo | C72: 2 | F72: Totale complessivo | G72: 396 | I72: 396 | J72: totale corretto
B73: Manuela-Roberto | C73: 4
B74: Renata-Sandro | C74: 6
B75: Antonella-Dino | C75: 8
B76: Tatiana-Julio | C76: 10
B77: Barbara-Elio | C77: 12
B78: Elena-Stefano | C78: 14
B79: Cesarina-Gaetano | C79: 16
B80: Lilli-Gianni | C80: 18
B81: Olimpia-Sauro | C81: 20 | F81: Antonella-Dino | G81: 26
B82: Isolde-Cristina | C82: 22 | F82: Barbara-Elio | G82: 24
A83: F1 Hibryd | B83: Stefania-Massimo | C83: 2 | F83: Cesarina-Gaetano | G83: 52
B84: Manuela-Roberto | C84: 4 | F84: Elena-Stefano | G84: 40
B85: Barbara-Elio | C85: 6 | F85: Isolde-Cristina | G85: 66
B86: Renata-Sandro | C86: 8 | F86: Lilli-Gianni | G86: 58
B87: Antonella-Dino | C87: 10 | F87: Manuela-Roberto | G87: 12
B88: Elena-Stefano | C88: 12 | F88: Olimpia-Sauro | G88: 52
B89: Tatiana-Julio | C89: 14 | F89: Renata-Sandro | G89: 24
B90: Olimpia-Sauro | C90: 16 | F90: Stefania-Massimo | G90: 6
B91: Cesarina-Gaetano | C91: 18 | F91: Tatiana-Julio | G91: 36
B92: Lilli-Gianni | C92: 20
B93: Isolde-Cristina | C93: 22
B101: Antonella-Dino | C101: 144.5 | F101: Antonella-Dino | G101: 412.5 | J101: Antonella-Dino | K101: 119.5
B102: Barbara-Elio | C102: 150.5 | F102: Barbara-Elio | G102: 394.5 | J102: Barbara-Elio | K102: 130
B103: Cesarina-Gaetano | C103: 96.83333333 | F103: Cesarina-Gaetano | G103: 356 | J103: Cesarina-Gaetano | K103: 76.33333333
B104: Elena-Stefano | C104: 120.3333333 | F104: Elena-Stefano | G104: 367 | J104: Elena-Stefano | K104: 98.33333333
B105: Isolde-Cristina | C105: 54.417 | F105: Isolde-Cristina | G105: 159.667 | J105: Isolde-Cristina | K105: 50.64
B106: Lilli-Gianni | C106: 93.5 | F106: Lilli-Gianni | G106: 354.5 | J106: Lilli-Gianni | K106: 75.16666667
B107: Manuela-Roberto | C107: 199.5 | F107: Manuela-Roberto | G107: 499 | J107: Manuela-Roberto | K107: 157.5
B108: Olimpia-Sauro | C108: 110 | F108: Olimpia-Sauro | G108: 353 | J108: Olimpia-Sauro | K108: 89
B109: Renata-Sandro | C109: 132.587 | F109: Renata-Sandro | G109: 420.337 | J109: Renata-Sandro | K109: 128.73
B110: Stefania-Massimo | C110: 210.5 | F110: Stefania-Massimo | G110: 501 | J110: Stefania-Massimo | K110: 163.6666667
B111: Tatiana-Julio | C111: 121.3333333 | F111: Tatiana-Julio | G111: 404 | J111: Tatiana-Julio | K111: 91.5

Sheet GC

Sheet G1

Sheet G2

Sheet G3

Sheet turni
A1: BridgeMania 2019-20 | E1: copia lista ctrl+k | H1: cancella O/I ctrl+d | I1: Inserire O / I | J1: crea nuova lista ctrl+w | L1: BridgeMania 2019-20
A2: 2020-02-29
A3: coppie base | C3: 8 | F3: tornei | L3: coppie base
A4: # | B4: coppie | C4: status | D4: # coppia base | F4: giocati | G4: status code (*) | I4: O / I | J4: indice | L4: # | M4: coppie | N4: status | O4: # coppia base
A5: 1 | B5: tj | C5: O | D5: 11 | F5: =INDEX(RIS!BG$61:BG$71,MATCH(D5,RIS!BF$61:BF$71,0)) -> 14 | G5: =IF(C5="A",0,IF(C5="I",1,IF(C5="O",2,3))) -> 2 | J5: =IF(I5="O",0,IF(I5="I",(MAX($F$5:$F$15)+1)*10000+A5,F5*10000+G5*100+A5)) -> 140201 | K5: 0 | L5: 1 | O5: 11
A6: 2 | B6: os | C6: P | D6: 8 | F6: =INDEX(RIS!BG$61:BG$71,MATCH(D6,RIS!BF$61:BF$71,0)) -> 12 | G6: 3 | J6: 120302 | K6: 120304 | L6: 2 | O6: 8
A7: 3 | B7: es | C7: P | D7: 4 | F7: =INDEX(RIS!BG$61:BG$71,MATCH(D7,RIS!BF$61:BF$71,0)) -> 12 | G7: 3 | J7: 120303 | K7: 120305 | L7: 3 | O7: 4
A8: 4 | B8: ad | C8: P | D8: 1 | F8: =INDEX(RIS!BG$61:BG$71,MATCH(D8,RIS!BF$61:BF$71,0)) -> 13 | G8: 3 | J8: 130304 | K8: 130306 | L8: 4 | O8: 1
A9: 5 | B9: sm | C9: P | D9: 10 | F9: =INDEX(RIS!BG$61:BG$71,MATCH(D9,RIS!BF$61:BF$71,0)) -> 13 | G9: 3 | J9: 130305 | K9: 130307 | L9: 5 | O9: 10
A10: 6 | B10: lg | C10: P | D10: 6 | F10: =INDEX(RIS!BG$61:BG$71,MATCH(D10,RIS!BF$61:BF$71,0)) -> 13 | G10: 3 | J10: 130306 | K10: 130308 | L10: 6 | O10: 6
A11: 7 | B11: cg | C11: P | D11: 3 | F11: =INDEX(RIS!BG$61:BG$71,MATCH(D11,RIS!BF$61:BF$71,0)) -> 13 | G11: 3 | J11: 130307 | K11: 130309 | L11: 7 | O11: 3
A12: 8 | B12: mr | C12: P | D12: 7 | F12: =INDEX(RIS!BG$61:BG$71,MATCH(D12,RIS!BF$61:BF$71,0)) -> 14 | G12: 3 | J12: 140308 | K12: 140311 | L12: 8 | O12: 7
A13: 9 | B13: be | C13: I | D13: 2 | F13: =INDEX(RIS!BG$61:BG$71,MATCH(D13,RIS!BF$61:BF$71,0)) -> 12 | G13: 1 | J13: 120109 | K13: 150001 | L13: 9 | O13: 2
A14: 10 | B14: rs | C14: I | D14: 9 | F14: =INDEX(RIS!BG$61:BG$71,MATCH(D14,RIS!BF$61:BF$71,0)) -> 3 | G14: 1 | J14: 30110 | K14: 150002 | L14: 10 | O14: 9
A15: 11 | B15: ic | C15: I | D15: 5 | F15: =INDEX(RIS!BG$61:BG$71,MATCH(D15,RIS!BF$61:BF$71,0)) -> 4 | G15: 1 | J15: 40111 | K15: 150003 | L15: 11 | O15: 5
H16: (*) status code al turno precedente
G17: A = 0 | H17: in lista di attesa | L17: O = | M17: ospitante/organizz.
G18: I = 1 | H18: impossibilitata | L18: P = | M18: partecipante
G19: O = 2 | H19: ospitante/organizzatrice | L19: A = | M19: in lista di attesa
G20: P = 3 | H20: partecipante | L20: I = | M20: impossibilitata
A21: Istruzioni: | L21: ? = | M21: da confermare
A22: A inizio campionato estrarre a sorte la lista di riferimento iniziale; inserire i numeri estratti in A5:A15; controllare/correggere i numeri di coppia base in D5:D15.
A23: Ordinare A5:D15 per A5 crescente; copiare A5:B15 in L5:M15; copiare D5:D15 in O5:O15.
A24: In colonna I inserire manualmente gli status O ed I facendo riferimento alle coppie in colonna B.
A25: digitare ctrl + w
A27: Copiare manualmente L1:N15 nelle prime colonne libere dell'area "colonne da A a O" e "righe da 38 in poi" (per avere una memoria delle convocazioni passate)
A29: ctrl+k (solo una volta, per inizializzare l'elaborazione del nuovo turno per il torneo successivo)
A30: ctrl+d (cancella I5:I12)
A31: Per il torneo successivo inserire la data in L2:N2 e il numero delle coppie base partecipanti in N3
A32: Facendo riferimento alla colonna B, in colonna I inserire O per la coppia ospitante e I per le coppie impossibilitate.
A33: ctrl+w (elabora il turno del torneo successivo)
A34: In colonna N si legge lo status delle coppie (O - P - A - I )
A35: Se bisogna cambiare la coppia ospitante O e/o le coppie impossibilitate I e/o il numero delle coppie base partecipanti, digitare ctrl+d e poi inserire ex-novo i dati.
A38: BridgeMania 2019-20 | D38: BridgeMania 2019-20 | G38: BridgeMania 2019-20 | J38: BridgeMania 2019-20 | M38: BridgeMania 2019-20
A39: 2019-09-21 | D39: 2019-10-19 | G39: 2019-10-26 | J39: 2019-11-02 | M39: 2019-11-16
A40: coppie base | C40: 11 | D40: coppie base | F40: 11 | G40: coppie base | I40: 11 | J40: coppie base | L40: 11 | M40: coppie base | O40: 8
A41: # | B41: coppie | C41: status | D41: # | E41: coppie | F41: status | G41: # | H41: coppie | I41: status | J41: # | K41: coppie | L41: status | M41: # | N41: coppie | O41: status
A42: 1 | B42: be | C42: O | D42: 1 | E42: sm | F42: O | G42: 1 | H42: ad | I42: O | J42: 1 | K42: es | L42: O | M42: 1 | N42: tj | O42: O
A43: 2 | B43: es | C43: P | D43: 2 | E43: be | F43: P | G43: 2 | H43: sm | I43: P | J43: 2 | K43: lg | L43: P | M43: 2 | N43: lg | O43: P
A44: 3 | B44: tj | C44: P | D44: 3 | E44: es | F44: P | G44: 3 | H44: be | I44: P | J44: 3 | K44: cg | L44: P | M44: 3 | N44: cg | O44: P
A45: 4 | B45: mr | C45: P | D45: 4 | E45: tj | F45: P | G45: 4 | H45: es | I45: P | J45: 4 | K45: sm | L45: P | M45: 4 | N45: sm | O45: P
A46: 5 | B46: ic | C46: P | D46: 5 | E46: mr | F46: P | G46: 5 | H46: tj | I46: P | J46: 5 | K46: ad | L46: P | M46: 5 | N46: ad | O46: P
A47: 6 | B47: lg | C47: P | D47: 6 | E47: ic | F47: P | G47: 6 | H47: mr | I47: P | J47: 6 | K47: be | L47: P | M47: 6 | N47: be | O47: P
A48: 7 | B48: os | C48: P | D48: 7 | E48: lg | F48: P | G48: 7 | H48: os | I48: P | J48: 7 | K48: tj | L48: P | M48: 7 | N48: mr | O48: P
A49: 8 | B49: cg | C49: P | D49: 8 | E49: os | F49: P | G49: 8 | H49: ic | I49: I | J49: 8 | K49: mr | L49: P | M49: 8 | N49: os | O49: P
A50: 9 | B50: ad | C50: P | D50: 9 | E50: cg | F50: P | G50: 9 | H50: lg | I50: I | J50: 9 | K50: os | L50: P | M50: 9 | N50: es | O50: I
A51: 10 | B51: rs | C51: I | D51: 10 | E51: ad | F51: P | G51: 10 | H51: cg | I51: I | J51: 10 | K51: ic | L51: I | M51: 10 | N51: ic | O51: I
A52: 11 | B52: sm | C52: I | D52: 11 | E52: rs | F52: I | G52: 11 | H52: rs | I52: I | J52: 11 | K52: rs | L52: I | M52: 11 | N52: rs | O52: I
A54: BridgeMania 2019-20 | D54: BridgeMania 2019-20 | G54: BridgeMania 2019-20 | J54: BridgeMania 2019-20 | M54: BridgeMania 2019-20
A55: 2019-11-23 | D55: 2019-11-30 | G55: 2019-12-21 | J55: 2020-01-25 | M55: 2020-02-01
A56: coppie base | C56: 8 | D56: coppie base | F56: 9 | G56: coppie base | I56: 11 | J56: coppie base | L56: 11 | M56: coppie base | O56: 11
A57: # | B57: coppie | C57: status | D57: # | E57: coppie | F57: status | G57: # | H57: coppie | I57: status | J57: # | K57: coppie | L57: status | M57: # | N57: coppie | O57: status
A58: 1 | B58: cg | C58: O | D58: 1 | E58: lg | F58: O | G58: 1 | H58: ad | I58: O | J58: 1 | K58: es | L58: O | M58: 1 | N58: sm | O58: O
A59: 2 | B59: es | C59: P | D59: 2 | E59: ad | F59: P | G59: 2 | H59: lg | I59: P | J59: 2 | K59: ad | L59: P | M59: 2 | N59: ic | O59: P
A60: 3 | B60: lg | C60: P | D60: 3 | E60: be | F60: P | G60: 3 | H60: be | I60: P | J60: 3 | K60: lg | L60: P | M60: 3 | N60: os | O60: P
A61: 4 | B61: sm | C61: P | D61: 4 | E61: cg | F61: P | G61: 4 | H61: cg | I61: P | J61: 4 | K61: be | L61: P | M61: 4 | N61: ad | O61: P
A62: 5 | B62: tj | C62: P | D62: 5 | E62: es | F62: P | G62: 5 | H62: es | I62: P | J62: 5 | K62: cg | L62: P | M62: 5 | N62: lg | O62: P
A63: 6 | B63: mr | C63: P | D63: 6 | E63: sm | F63: P | G63: 6 | H63: sm | I63: P | J63: 6 | K63: sm | L63: P | M63: 6 | N63: be | O63: P
A64: 7 | B64: os | C64: P | D64: 7 | E64: tj | F64: P | G64: 7 | H64: tj | I64: P | J64: 7 | K64: tj | L64: P | M64: 7 | N64: cg | O64: P
A65: 8 | B65: ad | C65: I | D65: 8 | E65: mr | F65: P | G65: 8 | H65: mr | I65: P | J65: 8 | K65: mr | L65: P | M65: 8 | N65: tj | O65: P
A66: 9 | B66: be | C66: I | D66: 9 | E66: os | F66: P | G66: 9 | H66: os | I66: I | J66: 9 | K66: os | L66: I | M66: 9 | N66: mr | O66: P
A67: 10 | B67: ic | C67: I | D67: 10 | E67: ic | F67: I | G67: 10 | H67: ic | I67: I | J67: 10 | K67: ic | L67: I | M67: 10 | N67: es | O67: I
A68: 11 | B68: rs | C68: I | D68: 11 | E68: rs | F68: I | G68: 11 | H68: rs | I68: I | J68: 11 | K68: rs | L68: I | M68: 11 | N68: rs | O68: I
A70: BridgeMania 2019-20 | D70: BridgeMania 2019-20 | G70: BridgeMania 2019-20 | J70: BridgeMania 2019-20
A71: 2020-02-08 | D71: 2020-02-15 | G71: 2020-02-22 | J71: 2020-02-29
A72: coppie base | C72: 11 | D72: coppie base | F72: 11 | G72: coppie base | I72: 11 | J72: coppie base | L72: 8
A73: # | B73: coppie | C73: status | D73: # | E73: coppie | F73: status | G73: # | H73: coppie | I73: status | J73: # | K73: coppie | L73: status
A74: 1 | B74: os | C74: O | D74: 1 | E74: ad | F74: O | G74: 1 | H74: be | I74: O | J74: 1 | K74: tj | L74: O
A75: 2 | B75: rs | C75: P | D75: 2 | E75: rs | F75: P | G75: 2 | H75: rs | I75: P | J75: 2 | K75: os | L75: P
A76: 3 | B76: es | C76: P | D76: 3 | E76: os | F76: P | G76: 3 | H76: ic | I76: P | J76: 3 | K76: es | L76: P
A77: 4 | B77: sm | C77: P | D77: 4 | E77: es | F77: P | G77: 4 | H77: os | I77: P | J77: 4 | K77: ad | L77: P
A78: 5 | B78: ad | C78: P | D78: 5 | E78: sm | F78: P | G78: 5 | H78: es | I78: P | J78: 5 | K78: sm | L78: P
A79: 6 | B79: lg | C79: P | D79: 6 | E79: lg | F79: P | G79: 6 | H79: ad | I79: P | J79: 6 | K79: lg | L79: P
A80: 7 | B80: be | C80: P | D80: 7 | E80: be | F80: P | G80: 7 | H80: sm | I80: P | J80: 7 | K80: cg | L80: P
A81: 8 | B81: cg | C81: P | D81: 8 | E81: cg | F81: P | G81: 8 | H81: lg | I81: P | J81: 8 | K81: mr | L81: P
A82: 9 | B82: tj | C82: P | D82: 9 | E82: tj | F82: P | G82: 9 | H82: cg | I82: P | J82: 9 | K82: be | L82: I
A83: 10 | B83: mr | C83: P | D83: 10 | E83: mr | F83: P | G83: 10 | H83: tj | I83: P | J83: 10 | K83: rs | L83: I
A84: 11 | B84: ic | C84: I | D84: 11 | E84: ic | F84: I | G84: 11 | H84: mr | I84: P | J84: 11 | K84: ic | L84: I

Sheet Istruzioni
A1: Premessa
A2: Il foglio "RIS" (risultati) contiene il sommario dei punteggi dei tornei (serate).
A3: Nella parte alta di RIS (righe da 1 a 55) c'è il sommario generale del campionato (tutte le coppie standard, puntegi campionato calcolati "senza scarti" e classifica generale)
A4: Nella parte bassa di RIS (righe da 76 a 91) c'è un sommario analogo limitato alle 11 coppie base (punteggi campionato "con scarti" e classifica "base").
A5: Nel foglio P (andamento punteggi campionato) sono elencate soltanto le 11 coppie base.
A6: Nei fogli torneo - e in generale in tutti i fogli del file - introdurre manualmente i dati solo nelle caselle bianche o verdi (non toccare le caselle rosa !!).
A7: Il file contiene alcune macro che si lanciano premendo insieme Ctrl e una lettera minuscola (vedi nel seguito).
A8: Se ci sono X nuove coppie standard che partecipano al campionato per la prima volta:
A9: - nel foglio RIS, aggiungerle manualmente (colonne B e C) subito dopo le altre coppie preesistenti.
A10: ATTENZIONE: nel file, persone diverse DEVONO essere chiamate con nomi diversi (per risolvere eventuali omonimie usare diminutivi oppure Mario, Mario2, Mario3, o altrimenti).
A11: Inoltre, se una stessa persona partecipa più volte al campionato giocando con partner diversi, e quindi in coppie standard diverse,
A12: allora è necessario differenziare il suo nome partner per partner (usando ad esempio suffissi tipo "bis", "ter" ecc.: ad es. Maria-Mario, Paolo-Mario_bis, Carlo-Mario_ter, ecc.).
A13: l fogli "……._template" (templates) sono copie protette di riserva dei fogli torneo (normalmente non vanno usati).
A14: Operazioni preliminari (valide per tutti i tipi di torneo)
A15: Aprire il foglio "RIS" e:
A16: - Compilare l'intestazione della prima colonna libera sulla destra: inserire data (gg-mm), luogo (es. Mal), numero di coppie e di mani (xx-yy).
A17: - Digitare ctrl+q (cancella i numeri di classifica dalla colonna B e porta in alto le 11 coppie base).
A18: continuare seguendo le istruzioni riportare qui sotto per il particolare tipo di torneo che si sta giocando:
A19: Torneo Howell(T)
A20: Nel foglio RIS:
A21: - nella colonna B, inserire manualmente i numeri di coppia
A22: - Digitare ctrl+r (ordina le coppie presenti in base ai numeri di coppia e sposta in basso le coppie assenti).
A23: Passare al foglio T. In questo foglio:
A24: - inserire manualmente la data (nella cella C1) e il luogo del torneo (nella cella C2)
A25: - digitare ctrl+e (scrive le coppie: prima le coppie presenti ordinate per numero di coppia, poi le coppie assenti).
A26: - inserire manualmente i Punti Mano e le eventuali penalità; verificare che i totali siano esatti.
A27: - digitare ctrl+f (stila la classifica del torneo)
A28: - inserire manualmente nella colonna D le correzioni 1 (punteggio + alto di serata) e 2 (assenze per malattia)
A29: Tornare al foglio RIS e:
A30: - nella colonna del torneo in questione, selezionare la cella del rigo 6 e:
A31: - digitare ctrl+s (scrive i punteggi di serata delle coppie presenti)
A32: - digitare ctrl+t (aggiorna i punteggi e la classifica generale del campionato)
A33: Passare al foglio P e:
A34: - nella colonna BC selezionare la prima cella vuota
A35: - digitare ctrl+i (assegna alle coppie base i Punti Speciali del torneo e aggiorna i totali)
A36: Passare al foglio C e:
A37: - digitare ctrl+a (aggiorna le 3 classifiche)
A38: - digitare ctrl+b (aggiorna la classifica campionato)
A39: Passare al foglio P e:
A40: - in riga 8 selezionare la cella della prima colonna libera e digitare ctrl+j
A41: Passare ai fogli GC, G1, G2 e G3 per visualizzare i grafici delle classifiche
A42: Tornare al foglio T e:
A43: - digitare ctrl+g (duplica il foglio T creando un foglio T(2)
A44: - rinominare il foglio duplicato T (2) con la data del torneo (es. "22nov")
A45: - digitare ctrl+h (cancella i dati dal foglio T e lo reinizializza)

Sheet 29feb
A1: Data | C1: 2020-02-29 | D1: BridgeMania 2019-20 - Torneo Howell
A2: luogo | C2: Torgovnick | D2: Coppie Ctrl+e | E2: Calcola Ctr+f | F2: Duplica Ctrl+g | G2: Clear Ctrl+h | J2: &
A3: # coppie | C3: =IF(B5="","",COUNT(B5:B54)) -> 8 | E3: =IF(E5="","",SUMIF(E5:E54,">0")) -> 400 | G3: =IF(G5="","",SUM(G5:G54)) -> 400 | H3: =IF(H5="","",SUM(H5:H54)) -> 504 | I3: =SUM(I5:I54) -> 0 | J3: =SUM(J5:J54) -> 504 | K3: =SUM(K5:K54) -> 24 | L3: =SUM(L5:L54) -> 24 | M3: 24 | N3: 24 | O3: 24 | P3: 24 | Q3: 24 | R3: 24 | S3: 24 | T3: 24 | U3: 24 | V3: 24 | W3: 24 | X3: 24 | Y3: 24 | Z3: 24 | AA3: 24 | AB3: 24 | AC3: 24 | AD3: 24 | AE3: 24 | AF3: 0 | AG3: 0 | AH3: 0 | AI3: 0 | AJ3: 0 | AK3: 0 | AL3: 0 | AM3: 0 | AN3: 0 | AO3: 0 | AP3: 0 | AQ3: 0 | AR3: 0 | AS3: 0 | AT3: 0 | AU3: 0 | AV3: 0 | AW3: 0 | AX3: 0
A4: Class. | B4: # | C4: Coppie | D4: Inserire a mano "1" = + 1 PTS "2" = PTS medio | E4: Punteggio Serata | G4: Punteggio % | H4: Punteggio Torneo | I4: Penalità (-) | J4: Totale punti mano | K4: 1 | L4: 2 | M4: 3 | N4: 4 | O4: 5 | P4: 6 | Q4: 7 | R4: 8 | S4: 9 | T4: 10 | U4: 11 | V4: 12 | W4: 13 | X4: 14 | Y4: 15 | Z4: 16 | AA4: 17 | AB4: 18 | AC4: 19 | AD4: 20 | AE4: 21 | AF4: 22 | AG4: 23 | AH4: 24 | AI4: 25 | AJ4: 26 | AK4: 27 | AL4: 28 | AM4: 29 | AN4: 30 | AO4: 31 | AP4: 32 | AQ4: 33 | AR4: 34 | AS4: 35 | AT4: 36 | AU4: 37 | AV4: 38 | AW4: 39 | AX4: 40 | AZ4: F1 Fast | BA4: IndyCar Hard | BB4: F1 Hybrid | BF4: # std coppie
A5: =IF(J$2="","",IF($E5="","",IF($E5=MAX($E$5:$E$54),1,IF($E5=$E4,$A4,COUNT($E$5:$E5))))) -> 1 | B5: 7 | C5: Stefania-Massimo | D5: 1 | E5: =IF(J$2="","",IF(G5=0,0,F5+G5)) -> 65.87301587 | G5: =IF(J$2="","",IF($J5=0,0,(H5*$C$3/$J$3)*50)) -> 65.87301587 | H5: =IF(J$2="","",IF(SUM($K5:$AX5)=0,0,SUM($K5:$AX5)+$I5)) -> 83 | J5: =IF(B5="",0,IF(SUM($K5:$AX5)=0,0,SUM($K5:$AX5))) -> 83 | K5: 6 | L5: 5 | M5: 5 | N5: 6 | O5: 3 | P5: 0 | Q5: 6 | R5: 6 | S5: 5 | T5: 3 | U5: 3 | V5: 4 | W5: 6 | X5: 6 | Y5: 4 | Z5: 2 | AA5: 1 | AB5: 4 | AC5: 3 | AD5: 1 | AE5: 4 | AY5: Stefania-Massimo | AZ5: 26 | BA5: 51 | BB5: 17 | BF5: 10
A6: =IF(J$2="","",IF($E6="","",IF($E6=MAX($E$5:$E$54),1,IF($E6=$E5,$A5,COUNT($E$5:$E6))))) -> 2 | B6: 8 | C6: Elena-Stefano | E6: =IF(J$2="","",IF(G6=0,0,F6+G6)) -> 59.52380952 | G6: =IF(J$2="","",IF($J6=0,0,(H6*$C$3/$J$3)*50)) -> 59.52380952 | H6: =IF(J$2="","",IF(SUM($K6:$AX6)=0,0,SUM($K6:$AX6)+$I6)) -> 75 | J6: =IF(B6="",0,IF(SUM($K6:$AX6)=0,0,SUM($K6:$AX6))) -> 75 | K6: 6 | L6: 1 | M6: 6 | N6: 4 | O6: 3 | P6: 6 | Q6: 5 | R6: 4 | S6: 6 | T6: 3 | U6: 3 | V6: 0 | W6: 1 | X6: 4 | Y6: 2 | Z6: 6 | AA6: 5 | AB6: 0 | AC6: 3 | AD6: 5 | AE6: 2 | AY6: Elena-Stefano | AZ6: 18 | BA6: 40 | BB6: 12 | BF6: 4
A7: =IF(J$2="","",IF($E7="","",IF($E7=MAX($E$5:$E$54),1,IF($E7=$E6,$A6,COUNT($E$5:$E7))))) -> 3 | B7: 5 | C7: Manuela-Roberto | E7: =IF(J$2="","",IF(G7=0,0,F7+G7)) -> 57.14285714 | G7: =IF(J$2="","",IF($J7=0,0,(H7*$C$3/$J$3)*50)) -> 57.14285714 | H7: =IF(J$2="","",IF(SUM($K7:$AX7)=0,0,SUM($K7:$AX7)+$I7)) -> 72 | J7: =IF(B7="",0,IF(SUM($K7:$AX7)=0,0,SUM($K7:$AX7))) -> 72 | K7: 2 | L7: 0 | M7: 2 | N7: 5 | O7: 3 | P7: 3 | Q7: 2 | R7: 6 | S7: 4 | T7: 3 | U7: 3 | V7: 2 | W7: 5 | X7: 2 | Y7: 4 | Z7: 4 | AA7: 5 | AB7: 2 | AC7: 6 | AD7: 5 | AE7: 4 | AY7: Manuela-Roberto | AZ7: 15 | BA7: 35 | BB7: 10 | BF7: 7
A8: =IF(J$2="","",IF($E8="","",IF($E8=MAX($E$5:$E$54),1,IF($E8=$E7,$A7,COUNT($E$5:$E8))))) -> 4 | B8: 6 | C8: Tatiana-Julio | E8: =IF(J$2="","",IF(G8=0,0,F8+G8)) -> 48.41269841 | G8: =IF(J$2="","",IF($J8=0,0,(H8*$C$3/$J$3)*50)) -> 48.41269841 | H8: =IF(J$2="","",IF(SUM($K8:$AX8)=0,0,SUM($K8:$AX8)+$I8)) -> 61 | J8: =IF(B8="",0,IF(SUM($K8:$AX8)=0,0,SUM($K8:$AX8))) -> 61 | K8: 4 | L8: 6 | M8: 4 | N8: 0 | O8: 3 | P8: 6 | Q8: 1 | R8: 4 | S8: 5 | T8: 3 | U8: 3 | V8: 5 | W8: 1 | X8: 2 | Y8: 0 | Z8: 0 | AA8: 1 | AB8: 6 | AC8: 3 | AD8: 4 | AE8: 0 | AY8: Tatiana-Julio | AZ8: 12 | BA8: 32 | BB8: 8 | BF8: 11
A9: =IF(J$2="","",IF($E9="","",IF($E9=MAX($E$5:$E$54),1,IF($E9=$E8,$A8,COUNT($E$5:$E9))))) -> 5 | B9: 2 | C9: Lilli-Gianni | D9: 1 | E9: =IF(J$2="","",IF(G9=0,0,F9+G9)) -> 46.82539683 | G9: =IF(J$2="","",IF($J9=0,0,(H9*$C$3/$J$3)*50)) -> 46.82539683 | H9: =IF(J$2="","",IF(SUM($K9:$AX9)=0,0,SUM($K9:$AX9)+$I9)) -> 59 | J9: =IF(B9="",0,IF(SUM($K9:$AX9)=0,0,SUM($K9:$AX9))) -> 59 | K9: 2 | L9: 4 | M9: 1 | N9: 2 | O9: 3 | P9: 0 | Q9: 4 | R9: 0 | S9: 2 | T9: 3 | U9: 3 | V9: 5 | W9: 2 | X9: 6 | Y9: 0 | Z9: 4 | AA9: 5 | AB9: 2 | AC9: 3 | AD9: 2 | AE9: 6 | AY9: Lilli-Gianni | AZ9: 11 | BA9: 31 | BB9: 7 | BF9: 6
A10: =IF(J$2="","",IF($E10="","",IF($E10=MAX($E$5:$E$54),1,IF($E10=$E9,$A9,COUNT($E$5:$E10))))) -> 6 | B10: 3 | C10: Antonella-Dino | E10: =IF(J$2="","",IF(G10=0,0,F10+G10)) -> 42.85714286 | G10: =IF(J$2="","",IF($J10=0,0,(H10*$C$3/$J$3)*50)) -> 42.85714286 | H10: =IF(J$2="","",IF(SUM($K10:$AX10)=0,0,SUM($K10:$AX10)+$I10)) -> 54 | J10: =IF(B10="",0,IF(SUM($K10:$AX10)=0,0,SUM($K10:$AX10))) -> 54 | K10: 0 | L10: 1 | M10: 1 | N10: 1 | O10: 3 | P10: 3 | Q10: 1 | R10: 2 | S10: 0 | T10: 3 | U10: 3 | V10: 1 | W10: 4 | X10: 0 | Y10: 6 | Z10: 4 | AA10: 1 | AB10: 2 | AC10: 6 | AD10: 6 | AE10: 6 | AY10: Antonella-Dino | AZ10: 7 | BA10: 27 | BB10: 3 | BF10: 1
A11: =IF(J$2="","",IF($E11="","",IF($E11=MAX($E$5:$E$54),1,IF($E11=$E10,$A10,COUNT($E$5:$E11))))) -> 6 | B11: 4 | C11: Olimpia-Sauro | E11: =IF(J$2="","",IF(G11=0,0,F11+G11)) -> 42.85714286 | G11: =IF(J$2="","",IF($J11=0,0,(H11*$C$3/$J$3)*50)) -> 42.85714286 | H11: =IF(J$2="","",IF(SUM($K11:$AX11)=0,0,SUM($K11:$AX11)+$I11)) -> 54 | J11: =IF(B11="",0,IF(SUM($K11:$AX11)=0,0,SUM($K11:$AX11))) -> 54 | K11: 4 | L11: 2 | M11: 5 | N11: 1 | O11: 3 | P11: 3 | Q11: 5 | R11: 2 | S11: 1 | T11: 3 | U11: 3 | V11: 6 | W11: 0 | X11: 0 | Y11: 2 | Z11: 2 | AA11: 5 | AB11: 4 | AC11: 0 | AD11: 1 | AE11: 2 | AY11: Olimpia-Sauro | AZ11: 7 | BA11: 27 | BB11: 3 | BF11: 8
A12: =IF(J$2="","",IF($E12="","",IF($E12=MAX($E$5:$E$54),1,IF($E12=$E11,$A11,COUNT($E$5:$E12))))) -> 8 | B12: 1 | C12: Cesarina-Gaetano | E12: =IF(J$2="","",IF(G12=0,0,F12+G12)) -> 36.50793651 | G12: =IF(J$2="","",IF($J12=0,0,(H12*$C$3/$J$3)*50)) -> 36.50793651 | H12: =IF(J$2="","",IF(SUM($K12:$AX12)=0,0,SUM($K12:$AX12)+$I12)) -> 46 | J12: =IF(B12="",0,IF(SUM($K12:$AX12)=0,0,SUM($K12:$AX12))) -> 46 | K12: 0 | L12: 5 | M12: 0 | N12: 5 | O12: 3 | P12: 3 | Q12: 0 | R12: 0 | S12: 1 | T12: 3 | U12: 3 | V12: 1 | W12: 5 | X12: 4 | Y12: 6 | Z12: 2 | AA12: 1 | AB12: 4 | AC12: 0 | AD12: 0 | AE12: 0 | AY12: Cesarina-Gaetano | AZ12: 4 | BA12: 24 | BB12: 1 | BF12: 3
A13: =IF(J$2="","",IF($E13="","",IF($E13=MAX($E$5:$E$54),1,IF($E13=$E12,$A12,COUNT($E$5:$E13))))) -> 9 | C13: Barbara-Elio | E13: =IF(J$2="","",IF(G13=0,0,F13+G13)) -> 0 | G13: =IF(J$2="","",IF($J13=0,0,(H13*$C$3/$J$3)*50)) -> 0 | H13: =IF(J$2="","",IF(SUM($K13:$AX13)=0,0,SUM($K13:$AX13)+$I13)) -> 0 | J13: =IF(B13="",0,IF(SUM($K13:$AX13)=0,0,SUM($K13:$AX13))) -> 0 | AY13: Barbara-Elio | AZ13: 0 | BA13: 0 | BB13: 0 | BF13: 2
A14: =IF(J$2="","",IF($E14="","",IF($E14=MAX($E$5:$E$54),1,IF($E14=$E13,$A13,COUNT($E$5:$E14))))) -> 9 | C14: Isolde-Cristina | E14: =IF(J$2="","",IF(G14=0,0,F14+G14)) -> 0 | G14: =IF(J$2="","",IF($J14=0,0,(H14*$C$3/$J$3)*50)) -> 0 | H14: =IF(J$2="","",IF(SUM($K14:$AX14)=0,0,SUM($K14:$AX14)+$I14)) -> 0 | J14: =IF(B14="",0,IF(SUM($K14:$AX14)=0,0,SUM($K14:$AX14))) -> 0 | AY14: Isolde-Cristina | AZ14: 0 | BA14: 0 | BB14: 0 | BF14: 5
A15: =IF(J$2="","",IF($E15="","",IF($E15=MAX($E$5:$E$54),1,IF($E15=$E14,$A14,COUNT($E$5:$E15))))) -> 9 | C15: Renata-Sandro | D15: 2 | E15: =IF(J$2="","",IF(G15=0,0,F15+G15)) -> 0 | G15: =IF(J$2="","",IF($J15=0,0,(H15*$C$3/$J$3)*50)) -> 0 | H15: =IF(J$2="","",IF(SUM($K15:$AX15)=0,0,SUM($K15:$AX15)+$I15)) -> 0 | J15: =IF(B15="",0,IF(SUM($K15:$AX15)=0,0,SUM($K15:$AX15))) -> 0 | AY15: Renata-Sandro | AZ15: 8.417 | BA15: 28.667 | BB15: 7.38 | BF15: 9
A16: =IF(J$2="","",IF($E16="","",IF($E16=MAX($E$5:$E$54),1,IF($E16=$E15,$A15,COUNT($E$5:$E16))))) -> 9 | C16: Marilena-Sergio | E16: =IF(J$2="","",IF(G16=0,0,F16+G16)) -> 0 | G16: =IF(J$2="","",IF($J16=0,0,(H16*$C$3/$J$3)*50)) -> 0 | H16: =IF(J$2="","",IF(SUM($K16:$AX16)=0,0,SUM($K16:$AX16)+$I16)) -> 0 | J16: =IF(B16="",0,IF(SUM($K16:$AX16)=0,0,SUM($K16:$AX16))) -> 0 | AY16: Marilena-Sergio | AZ16: 0 | BA16: 0 | BB16: 0 | BF16: 12
A17: =IF(J$2="","",IF($E17="","",IF($E17=MAX($E$5:$E$54),1,IF($E17=$E16,$A16,COUNT($E$5:$E17))))) -> 9 | C17: A.Maria-Claudio | E17: =IF(J$2="","",IF(G17=0,0,F17+G17)) -> 0 | G17: =IF(J$2="","",IF($J17=0,0,(H17*$C$3/$J$3)*50)) -> 0 | H17: =IF(J$2="","",IF(SUM($K17:$AX17)=0,0,SUM($K17:$AX17)+$I17)) -> 0 | J17: =IF(B17="",0,IF(SUM($K17:$AX17)=0,0,SUM($K17:$AX17))) -> 0 | AY17: A.Maria-Claudio | AZ17: 0 | BA17: 0 | BB17: 0 | BF17: 13
A18: =IF(J$2="","",IF($E18="","",IF($E18=MAX($E$5:$E$54),1,IF($E18=$E17,$A17,COUNT($E$5:$E18))))) -> 9 | C18: June-Vincenzo | E18: =IF(J$2="","",IF(G18=0,0,F18+G18)) -> 0 | G18: =IF(J$2="","",IF($J18=0,0,(H18*$C$3/$J$3)*50)) -> 0 | H18: =IF(J$2="","",IF(SUM($K18:$AX18)=0,0,SUM($K18:$AX18)+$I18)) -> 0 | J18: =IF(B18="",0,IF(SUM($K18:$AX18)=0,0,SUM($K18:$AX18))) -> 0 | AY18: June-Vincenzo | AZ18: 0 | BA18: 0 | BB18: 0 | BF18: 14
A19: =IF(J$2="","",IF($E19="","",IF($E19=MAX($E$5:$E$54),1,IF($E19=$E18,$A18,COUNT($E$5:$E19))))) -> 9 | C19: Marina-Enzo | E19: =IF(J$2="","",IF(G19=0,0,F19+G19)) -> 0 | G19: =IF(J$2="","",IF($J19=0,0,(H19*$C$3/$J$3)*50)) -> 0 | H19: =IF(J$2="","",IF(SUM($K19:$AX19)=0,0,SUM($K19:$AX19)+$I19)) -> 0 | J19: =IF(B19="",0,IF(SUM($K19:$AX19)=0,0,SUM($K19:$AX19))) -> 0 | AY19: Marina-Enzo | AZ19: 0 | BA19: 0 | BB19: 0 | BF19: 15
A20: =IF(J$2="","",IF($E20="","",IF($E20=MAX($E$5:$E$54),1,IF($E20=$E19,$A19,COUNT($E$5:$E20))))) -> 9 | C20: Letizia-Enzo | E20: =IF(J$2="","",IF(G20=0,0,F20+G20)) -> 0 | G20: =IF(J$2="","",IF($J20=0,0,(H20*$C$3/$J$3)*50)) -> 0 | H20: =IF(J$2="","",IF(SUM($K20:$AX20)=0,0,SUM($K20:$AX20)+$I20)) -> 0 | J20: =IF(B20="",0,IF(SUM($K20:$AX20)=0,0,SUM($K20:$AX20))) -> 0 | AY20: Letizia-Enzo | AZ20: 0 | BA20: 0 | BB20: 0 | BF20: 16
A21: =IF(J$2="","",IF($E21="","",IF($E21=MAX($E$5:$E$54),1,IF($E21=$E20,$A20,COUNT($E$5:$E21))))) -> 9 | E21: =IF(J$2="","",IF(G21=0,0,F21+G21)) -> 0 | G21: =IF(J$2="","",IF($J21=0,0,(H21*$C$3/$J$3)*50)) -> 0 | H21: =IF(J$2="","",IF(SUM($K21:$AX21)=0,0,SUM($K21:$AX21)+$I21)) -> 0 | J21: =IF(B21="",0,IF(SUM($K21:$AX21)=0,0,SUM($K21:$AX21))) -> 0 | AZ21: 0 | BA21: 0 | BB21: 0 | BF21: 17
A22: =IF(J$2="","",IF($E22="","",IF($E22=MAX($E$5:$E$54),1,IF($E22=$E21,$A21,COUNT($E$5:$E22))))) -> 9 | E22: =IF(J$2="","",IF(G22=0,0,F22+G22)) -> 0 | G22: =IF(J$2="","",IF($J22=0,0,(H22*$C$3/$J$3)*50)) -> 0 | H22: =IF(J$2="","",IF(SUM($K22:$AX22)=0,0,SUM($K22:$AX22)+$I22)) -> 0 | J22: =IF(B22="",0,IF(SUM($K22:$AX22)=0,0,SUM($K22:$AX22))) -> 0 | AZ22: 0 | BA22: 0 | BB22: 0 | BF22: 18
A23: =IF(J$2="","",IF($E23="","",IF($E23=MAX($E$5:$E$54),1,IF($E23=$E22,$A22,COUNT($E$5:$E23))))) -> 9 | E23: =IF(J$2="","",IF(G23=0,0,F23+G23)) -> 0 | G23: =IF(J$2="","",IF($J23=0,0,(H23*$C$3/$J$3)*50)) -> 0 | H23: =IF(J$2="","",IF(SUM($K23:$AX23)=0,0,SUM($K23:$AX23)+$I23)) -> 0 | J23: =IF(B23="",0,IF(SUM($K23:$AX23)=0,0,SUM($K23:$AX23))) -> 0 | AZ23: 0 | BA23: 0 | BB23: 0 | BF23: 19
A24: =IF(J$2="","",IF($E24="","",IF($E24=MAX($E$5:$E$54),1,IF($E24=$E23,$A23,COUNT($E$5:$E24))))) -> 9 | E24: =IF(J$2="","",IF(G24=0,0,F24+G24)) -> 0 | G24: =IF(J$2="","",IF($J24=0,0,(H24*$C$3/$J$3)*50)) -> 0 | H24: =IF(J$2="","",IF(SUM($K24:$AX24)=0,0,SUM($K24:$AX24)+$I24)) -> 0 | J24: =IF(B24="",0,IF(SUM($K24:$AX24)=0,0,SUM($K24:$AX24))) -> 0 | AZ24: 0 | BA24: 0 | BB24: 0 | BF24: 20
A25: =IF(J$2="","",IF($E25="","",IF($E25=MAX($E$5:$E$54),1,IF($E25=$E24,$A24,COUNT($E$5:$E25))))) -> 9 | E25: =IF(J$2="","",IF(G25=0,0,F25+G25)) -> 0 | G25: =IF(J$2="","",IF($J25=0,0,(H25*$C$3/$J$3)*50)) -> 0 | H25: =IF(J$2="","",IF(SUM($K25:$AX25)=0,0,SUM($K25:$AX25)+$I25)) -> 0 | J25: =IF(B25="",0,IF(SUM($K25:$AX25)=0,0,SUM($K25:$AX25))) -> 0 | AZ25: 0 | BA25: 0 | BB25: 0 | BF25: 21
A26: =IF(J$2="","",IF($E26="","",IF($E26=MAX($E$5:$E$54),1,IF($E26=$E25,$A25,COUNT($E$5:$E26))))) -> 9 | E26: =IF(J$2="","",IF(G26=0,0,F26+G26)) -> 0 | G26: =IF(J$2="","",IF($J26=0,0,(H26*$C$3/$J$3)*50)) -> 0 | H26: =IF(J$2="","",IF(SUM($K26:$AX26)=0,0,SUM($K26:$AX26)+$I26)) -> 0 | J26: =IF(B26="",0,IF(SUM($K26:$AX26)=0,0,SUM($K26:$AX26))) -> 0 | AZ26: 0 | BA26: 0 | BB26: 0 | BF26: 22
A27: =IF(J$2="","",IF($E27="","",IF($E27=MAX($E$5:$E$54),1,IF($E27=$E26,$A26,COUNT($E$5:$E27))))) -> 9 | E27: =IF(J$2="","",IF(G27=0,0,F27+G27)) -> 0 | G27: =IF(J$2="","",IF($J27=0,0,(H27*$C$3/$J$3)*50)) -> 0 | H27: =IF(J$2="","",IF(SUM($K27:$AX27)=0,0,SUM($K27:$AX27)+$I27)) -> 0 | J27: =IF(B27="",0,IF(SUM($K27:$AX27)=0,0,SUM($K27:$AX27))) -> 0 | AZ27: 0 | BA27: 0 | BB27: 0 | BF27: 23
A28: =IF(J$2="","",IF($E28="","",IF($E28=MAX($E$5:$E$54),1,IF($E28=$E27,$A27,COUNT($E$5:$E28))))) -> 9 | E28: =IF(J$2="","",IF(G28=0,0,F28+G28)) -> 0 | G28: =IF(J$2="","",IF($J28=0,0,(H28*$C$3/$J$3)*50)) -> 0 | H28: =IF(J$2="","",IF(SUM($K28:$AX28)=0,0,SUM($K28:$AX28)+$I28)) -> 0 | J28: =IF(B28="",0,IF(SUM($K28:$AX28)=0,0,SUM($K28:$AX28))) -> 0 | AZ28: 0 | BA28: 0 | BB28: 0 | BF28: 24
A29: =IF(J$2="","",IF($E29="","",IF($E29=MAX($E$5:$E$54),1,IF($E29=$E28,$A28,COUNT($E$5:$E29))))) -> 9 | E29: =IF(J$2="","",IF(G29=0,0,F29+G29)) -> 0 | G29: =IF(J$2="","",IF($J29=0,0,(H29*$C$3/$J$3)*50)) -> 0 | H29: =IF(J$2="","",IF(SUM($K29:$AX29)=0,0,SUM($K29:$AX29)+$I29)) -> 0 | J29: =IF(B29="",0,IF(SUM($K29:$AX29)=0,0,SUM($K29:$AX29))) -> 0 | AZ29: 0 | BA29: 0 | BB29: 0 | BF29: 25
A30: =IF(J$2="","",IF($E30="","",IF($E30=MAX($E$5:$E$54),1,IF($E30=$E29,$A29,COUNT($E$5:$E30))))) -> 9 | E30: =IF(J$2="","",IF(G30=0,0,F30+G30)) -> 0 | G30: =IF(J$2="","",IF($J30=0,0,(H30*$C$3/$J$3)*50)) -> 0 | H30: =IF(J$2="","",IF(SUM($K30:$AX30)=0,0,SUM($K30:$AX30)+$I30)) -> 0 | J30: =IF(B30="",0,IF(SUM($K30:$AX30)=0,0,SUM($K30:$AX30))) -> 0 | AZ30: 0 | BA30: 0 | BB30: 0 | BF30: 26
A31: =IF(J$2="","",IF($E31="","",IF($E31=MAX($E$5:$E$54),1,IF($E31=$E30,$A30,COUNT($E$5:$E31))))) -> 9 | E31: =IF(J$2="","",IF(G31=0,0,F31+G31)) -> 0 | G31: =IF(J$2="","",IF($J31=0,0,(H31*$C$3/$J$3)*50)) -> 0 | H31: =IF(J$2="","",IF(SUM($K31:$AX31)=0,0,SUM($K31:$AX31)+$I31)) -> 0 | J31: =IF(B31="",0,IF(SUM($K31:$AX31)=0,0,SUM($K31:$AX31))) -> 0 | AZ31: 0 | BA31: 0 | BB31: 0 | BF31: 27
A32: =IF(J$2="","",IF($E32="","",IF($E32=MAX($E$5:$E$54),1,IF($E32=$E31,$A31,COUNT($E$5:$E32))))) -> 9 | E32: =IF(J$2="","",IF(G32=0,0,F32+G32)) -> 0 | G32: =IF(J$2="","",IF($J32=0,0,(H32*$C$3/$J$3)*50)) -> 0 | H32: =IF(J$2="","",IF(SUM($K32:$AX32)=0,0,SUM($K32:$AX32)+$I32)) -> 0 | J32: =IF(B32="",0,IF(SUM($K32:$AX32)=0,0,SUM($K32:$AX32))) -> 0 | AZ32: 0 | BA32: 0 | BB32: 0 | BF32: 28
A33: =IF(J$2="","",IF($E33="","",IF($E33=MAX($E$5:$E$54),1,IF($E33=$E32,$A32,COUNT($E$5:$E33))))) -> 9 | E33: =IF(J$2="","",IF(G33=0,0,F33+G33)) -> 0 | G33: =IF(J$2="","",IF($J33=0,0,(H33*$C$3/$J$3)*50)) -> 0 | H33: =IF(J$2="","",IF(SUM($K33:$AX33)=0,0,SUM($K33:$AX33)+$I33)) -> 0 | J33: =IF(B33="",0,IF(SUM($K33:$AX33)=0,0,SUM($K33:$AX33))) -> 0 | AZ33: 0 | BA33: 0 | BB33: 0 | BF33: 29
A34: =IF(J$2="","",IF($E34="","",IF($E34=MAX($E$5:$E$54),1,IF($E34=$E33,$A33,COUNT($E$5:$E34))))) -> 9 | E34: =IF(J$2="","",IF(G34=0,0,F34+G34)) -> 0 | G34: =IF(J$2="","",IF($J34=0,0,(H34*$C$3/$J$3)*50)) -> 0 | H34: =IF(J$2="","",IF(SUM($K34:$AX34)=0,0,SUM($K34:$AX34)+$I34)) -> 0 | J34: =IF(B34="",0,IF(SUM($K34:$AX34)=0,0,SUM($K34:$AX34))) -> 0 | AZ34: 0 | BA34: 0 | BB34: 0 | BF34: 30
A35: =IF(J$2="","",IF($E35="","",IF($E35=MAX($E$5:$E$54),1,IF($E35=$E34,$A34,COUNT($E$5:$E35))))) -> 9 | E35: =IF(J$2="","",IF(G35=0,0,F35+G35)) -> 0 | G35: =IF(J$2="","",IF($J35=0,0,(H35*$C$3/$J$3)*50)) -> 0 | H35: =IF(J$2="","",IF(SUM($K35:$AX35)=0,0,SUM($K35:$AX35)+$I35)) -> 0 | J35: =IF(B35="",0,IF(SUM($K35:$AX35)=0,0,SUM($K35:$AX35))) -> 0 | AZ35: 0 | BA35: 0 | BB35: 0 | BF35: 31
A36: =IF(J$2="","",IF($E36="","",IF($E36=MAX($E$5:$E$54),1,IF($E36=$E35,$A35,COUNT($E$5:$E36))))) -> 9 | E36: =IF(J$2="","",IF(G36=0,0,F36+G36)) -> 0 | G36: =IF(J$2="","",IF($J36=0,0,(H36*$C$3/$J$3)*50)) -> 0 | H36: =IF(J$2="","",IF(SUM($K36:$AX36)=0,0,SUM($K36:$AX36)+$I36)) -> 0 | J36: =IF(B36="",0,IF(SUM($K36:$AX36)=0,0,SUM($K36:$AX36))) -> 0 | AZ36: 0 | BA36: 0 | BB36: 0 | BF36: 32
A37: =IF(J$2="","",IF($E37="","",IF($E37=MAX($E$5:$E$54),1,IF($E37=$E36,$A36,COUNT($E$5:$E37))))) -> 9 | E37: =IF(J$2="","",IF(G37=0,0,F37+G37)) -> 0 | G37: =IF(J$2="","",IF($J37=0,0,(H37*$C$3/$J$3)*50)) -> 0 | H37: =IF(J$2="","",IF(SUM($K37:$AX37)=0,0,SUM($K37:$AX37)+$I37)) -> 0 | J37: =IF(B37="",0,IF(SUM($K37:$AX37)=0,0,SUM($K37:$AX37))) -> 0 | AZ37: 0 | BA37: 0 | BB37: 0 | BF37: 33
A38: =IF(J$2="","",IF($E38="","",IF($E38=MAX($E$5:$E$54),1,IF($E38=$E37,$A37,COUNT($E$5:$E38))))) -> 9 | E38: =IF(J$2="","",IF(G38=0,0,F38+G38)) -> 0 | G38: =IF(J$2="","",IF($J38=0,0,(H38*$C$3/$J$3)*50)) -> 0 | H38: =IF(J$2="","",IF(SUM($K38:$AX38)=0,0,SUM($K38:$AX38)+$I38)) -> 0 | J38: =IF(B38="",0,IF(SUM($K38:$AX38)=0,0,SUM($K38:$AX38))) -> 0 | AZ38: 0 | BA38: 0 | BB38: 0 | BF38: 34
A39: =IF(J$2="","",IF($E39="","",IF($E39=MAX($E$5:$E$54),1,IF($E39=$E38,$A38,COUNT($E$5:$E39))))) -> 9 | E39: =IF(J$2="","",IF(G39=0,0,F39+G39)) -> 0 | G39: =IF(J$2="","",IF($J39=0,0,(H39*$C$3/$J$3)*50)) -> 0 | H39: =IF(J$2="","",IF(SUM($K39:$AX39)=0,0,SUM($K39:$AX39)+$I39)) -> 0 | J39: =IF(B39="",0,IF(SUM($K39:$AX39)=0,0,SUM($K39:$AX39))) -> 0 | AZ39: 0 | BA39: 0 | BB39: 0 | BF39: 35
A40: =IF(J$2="","",IF($E40="","",IF($E40=MAX($E$5:$E$54),1,IF($E40=$E39,$A39,COUNT($E$5:$E40))))) -> 9 | E40: =IF(J$2="","",IF(G40=0,0,F40+G40)) -> 0 | G40: =IF(J$2="","",IF($J40=0,0,(H40*$C$3/$J$3)*50)) -> 0 | H40: =IF(J$2="","",IF(SUM($K40:$AX40)=0,0,SUM($K40:$AX40)+$I40)) -> 0 | J40: =IF(B40="",0,IF(SUM($K40:$AX40)=0,0,SUM($K40:$AX40))) -> 0 | AZ40: 0 | BA40: 0 | BB40: 0 | BF40: 36
A41: =IF(J$2="","",IF($E41="","",IF($E41=MAX($E$5:$E$54),1,IF($E41=$E40,$A40,COUNT($E$5:$E41))))) -> 9 | E41: =IF(J$2="","",IF(G41=0,0,F41+G41)) -> 0 | G41: =IF(J$2="","",IF($J41=0,0,(H41*$C$3/$J$3)*50)) -> 0 | H41: =IF(J$2="","",IF(SUM($K41:$AX41)=0,0,SUM($K41:$AX41)+$I41)) -> 0 | J41: =IF(B41="",0,IF(SUM($K41:$AX41)=0,0,SUM($K41:$AX41))) -> 0 | AZ41: 0 | BA41: 0 | BB41: 0 | BF41: 37
A42: =IF(J$2="","",IF($E42="","",IF($E42=MAX($E$5:$E$54),1,IF($E42=$E41,$A41,COUNT($E$5:$E42))))) -> 9 | E42: =IF(J$2="","",IF(G42=0,0,F42+G42)) -> 0 | G42: =IF(J$2="","",IF($J42=0,0,(H42*$C$3/$J$3)*50)) -> 0 | H42: =IF(J$2="","",IF(SUM($K42:$AX42)=0,0,SUM($K42:$AX42)+$I42)) -> 0 | J42: =IF(B42="",0,IF(SUM($K42:$AX42)=0,0,SUM($K42:$AX42))) -> 0 | AZ42: 0 | BA42: 0 | BB42: 0 | BF42: 38
A43: =IF(J$2="","",IF($E43="","",IF($E43=MAX($E$5:$E$54),1,IF($E43=$E42,$A42,COUNT($E$5:$E43))))) -> 9 | E43: =IF(J$2="","",IF(G43=0,0,F43+G43)) -> 0 | G43: =IF(J$2="","",IF($J43=0,0,(H43*$C$3/$J$3)*50)) -> 0 | H43: =IF(J$2="","",IF(SUM($K43:$AX43)=0,0,SUM($K43:$AX43)+$I43)) -> 0 | J43: =IF(B43="",0,IF(SUM($K43:$AX43)=0,0,SUM($K43:$AX43))) -> 0 | AZ43: 0 | BA43: 0 | BB43: 0 | BF43: 39
A44: =IF(J$2="","",IF($E44="","",IF($E44=MAX($E$5:$E$54),1,IF($E44=$E43,$A43,COUNT($E$5:$E44))))) -> 9 | E44: =IF(J$2="","",IF(G44=0,0,F44+G44)) -> 0 | G44: =IF(J$2="","",IF($J44=0,0,(H44*$C$3/$J$3)*50)) -> 0 | H44: =IF(J$2="","",IF(SUM($K44:$AX44)=0,0,SUM($K44:$AX44)+$I44)) -> 0 | J44: =IF(B44="",0,IF(SUM($K44:$AX44)=0,0,SUM($K44:$AX44))) -> 0 | AZ44: 0 | BA44: 0 | BB44: 0 | BF44: 40
A45: =IF(J$2="","",IF($E45="","",IF($E45=MAX($E$5:$E$54),1,IF($E45=$E44,$A44,COUNT($E$5:$E45))))) -> 9 | E45: =IF(J$2="","",IF(G45=0,0,F45+G45)) -> 0 | G45: =IF(J$2="","",IF($J45=0,0,(H45*$C$3/$J$3)*50)) -> 0 | H45: =IF(J$2="","",IF(SUM($K45:$AX45)=0,0,SUM($K45:$AX45)+$I45)) -> 0 | J45: =IF(B45="",0,IF(SUM($K45:$AX45)=0,0,SUM($K45:$AX45))) -> 0 | AZ45: 0 | BA45: 0 | BB45: 0 | BF45: 41
A46: =IF(J$2="","",IF($E46="","",IF($E46=MAX($E$5:$E$54),1,IF($E46=$E45,$A45,COUNT($E$5:$E46))))) -> 9 | E46: =IF(J$2="","",IF(G46=0,0,F46+G46)) -> 0 | G46: =IF(J$2="","",IF($J46=0,0,(H46*$C$3/$J$3)*50)) -> 0 | H46: =IF(J$2="","",IF(SUM($K46:$AX46)=0,0,SUM($K46:$AX46)+$I46)) -> 0 | J46: =IF(B46="",0,IF(SUM($K46:$AX46)=0,0,SUM($K46:$AX46))) -> 0 | AZ46: 0 | BA46: 0 | BB46: 0 | BF46: 42
A47: =IF(J$2="","",IF($E47="","",IF($E47=MAX($E$5:$E$54),1,IF($E47=$E46,$A46,COUNT($E$5:$E47))))) -> 9 | E47: =IF(J$2="","",IF(G47=0,0,F47+G47)) -> 0 | G47: =IF(J$2="","",IF($J47=0,0,(H47*$C$3/$J$3)*50)) -> 0 | H47: =IF(J$2="","",IF(SUM($K47:$AX47)=0,0,SUM($K47:$AX47)+$I47)) -> 0 | J47: =IF(B47="",0,IF(SUM($K47:$AX47)=0,0,SUM($K47:$AX47))) -> 0 | AZ47: 0 | BA47: 0 | BB47: 0 | BF47: 43
A48: =IF(J$2="","",IF($E48="","",IF($E48=MAX($E$5:$E$54),1,IF($E48=$E47,$A47,COUNT($E$5:$E48))))) -> 9 | E48: =IF(J$2="","",IF(G48=0,0,F48+G48)) -> 0 | G48: =IF(J$2="","",IF($J48=0,0,(H48*$C$3/$J$3)*50)) -> 0 | H48: =IF(J$2="","",IF(SUM($K48:$AX48)=0,0,SUM($K48:$AX48)+$I48)) -> 0 | J48: =IF(B48="",0,IF(SUM($K48:$AX48)=0,0,SUM($K48:$AX48))) -> 0 | AZ48: 0 | BA48: 0 | BB48: 0 | BF48: 44
A49: =IF(J$2="","",IF($E49="","",IF($E49=MAX($E$5:$E$54),1,IF($E49=$E48,$A48,COUNT($E$5:$E49))))) -> 9 | E49: =IF(J$2="","",IF(G49=0,0,F49+G49)) -> 0 | G49: =IF(J$2="","",IF($J49=0,0,(H49*$C$3/$J$3)*50)) -> 0 | H49: =IF(J$2="","",IF(SUM($K49:$AX49)=0,0,SUM($K49:$AX49)+$I49)) -> 0 | J49: =IF(B49="",0,IF(SUM($K49:$AX49)=0,0,SUM($K49:$AX49))) -> 0 | AZ49: 0 | BA49: 0 | BB49: 0 | BF49: 45
A50: =IF(J$2="","",IF($E50="","",IF($E50=MAX($E$5:$E$54),1,IF($E50=$E49,$A49,COUNT($E$5:$E50))))) -> 9 | E50: =IF(J$2="","",IF(G50=0,0,F50+G50)) -> 0 | G50: =IF(J$2="","",IF($J50=0,0,(H50*$C$3/$J$3)*50)) -> 0 | H50: =IF(J$2="","",IF(SUM($K50:$AX50)=0,0,SUM($K50:$AX50)+$I50)) -> 0 | J50: =IF(B50="",0,IF(SUM($K50:$AX50)=0,0,SUM($K50:$AX50))) -> 0 | AZ50: 0 | BA50: 0 | BB50: 0 | BF50: 46
A51: =IF(J$2="","",IF($E51="","",IF($E51=MAX($E$5:$E$54),1,IF($E51=$E50,$A50,COUNT($E$5:$E51))))) -> 9 | E51: =IF(J$2="","",IF(G51=0,0,F51+G51)) -> 0 | G51: =IF(J$2="","",IF($J51=0,0,(H51*$C$3/$J$3)*50)) -> 0 | H51: =IF(J$2="","",IF(SUM($K51:$AX51)=0,0,SUM($K51:$AX51)+$I51)) -> 0 | J51: =IF(B51="",0,IF(SUM($K51:$AX51)=0,0,SUM($K51:$AX51))) -> 0 | AZ51: 0 | BA51: 0 | BB51: 0 | BF51: 47
A52: =IF(J$2="","",IF($E52="","",IF($E52=MAX($E$5:$E$54),1,IF($E52=$E51,$A51,COUNT($E$5:$E52))))) -> 9 | E52: =IF(J$2="","",IF(G52=0,0,F52+G52)) -> 0 | G52: =IF(J$2="","",IF($J52=0,0,(H52*$C$3/$J$3)*50)) -> 0 | H52: =IF(J$2="","",IF(SUM($K52:$AX52)=0,0,SUM($K52:$AX52)+$I52)) -> 0 | J52: =IF(B52="",0,IF(SUM($K52:$AX52)=0,0,SUM($K52:$AX52))) -> 0 | AZ52: 0 | BA52: 0 | BB52: 0 | BF52: 48
A53: =IF(J$2="","",IF($E53="","",IF($E53=MAX($E$5:$E$54),1,IF($E53=$E52,$A52,COUNT($E$5:$E53))))) -> 9 | E53: =IF(J$2="","",IF(G53=0,0,F53+G53)) -> 0 | G53: =IF(J$2="","",IF($J53=0,0,(H53*$C$3/$J$3)*50)) -> 0 | H53: =IF(J$2="","",IF(SUM($K53:$AX53)=0,0,SUM($K53:$AX53)+$I53)) -> 0 | J53: =IF(B53="",0,IF(SUM($K53:$AX53)=0,0,SUM($K53:$AX53))) -> 0 | AZ53: 0 | BA53: 0 | BB53: 0 | BF53: 49
A54: =IF(J$2="","",IF($E54="","",IF($E54=MAX($E$5:$E$54),1,IF($E54=$E53,$A53,COUNT($E$5:$E54))))) -> 9 | E54: =IF(J$2="","",IF(G54=0,0,F54+G54)) -> 0 | G54: =IF(J$2="","",IF($J54=0,0,(H54*$C$3/$J$3)*50)) -> 0 | H54: =IF(J$2="","",IF(SUM($K54:$AX54)=0,0,SUM($K54:$AX54)+$I54)) -> 0 | J54: =IF(B54="",0,IF(SUM($K54:$AX54)=0,0,SUM($K54:$AX54))) -> 0 | AZ54: 0 | BA54: 0 | BB54: 0 | BF54: 50
D59: punteggi torneo ordinati per # di coppia
B60: # coppia | E60: con zeri | F60: senza zeri | G60: senza zeri
B61: 1 | E61: 36.50793651 | F61: =IF(E61=0,"",E61) -> 36.50793651 | G61: 36.50793651 | BF61: 3
B62: 2 | E62: 46.82539683 | F62: =IF(E62=0,"",E62) -> 46.82539683 | G62: 46.82539683 | I62: =IF(H62=0,"",H62) ->  | BF62: 6
B63: 3 | E63: 42.85714286 | F63: =IF(E63=0,"",E63) -> 42.85714286 | G63: 42.85714286 | BF63: 1
B64: 4 | E64: 42.85714286 | F64: =IF(E64=0,"",E64) -> 42.85714286 | G64: 42.85714286 | BF64: 8
B65: 5 | E65: 57.14285714 | F65: =IF(E65=0,"",E65) -> 57.14285714 | G65: 57.14285714 | I65: =IF(H65=0,"",H65) ->  | BF65: 7
B66: 6 | E66: 48.41269841 | F66: =IF(E66=0,"",E66) -> 48.41269841 | G66: 48.41269841 | BF66: 11
B67: 7 | E67: 65.87301587 | F67: =IF(E67=0,"",E67) -> 65.87301587 | G67: 65.87301587 | I67: =IF(H67=0,"",H67) ->  | BF67: 10
B68: 8 | E68: 59.52380952 | F68: =IF(E68=0,"",E68) -> 59.52380952 | G68: 59.52380952 | I68: =IF(H68=0,"",H68) ->  | BF68: 4
E69: 0 | F69: =IF(E69=0,"",E69) ->  | BF69: 2
E70: 0 | F70: =IF(E70=0,"",E70) ->  | BF70: 5
E71: 0 | F71: =IF(E71=0,"",E71) ->  | I71: =IF(H71=0,"",H71) ->  | BF71: 9
E72: 0 | F72: =IF(E72=0,"",E72) ->  | I72: =IF(H72=0,"",H72) ->  | BF72: 12
E73: 0 | F73: =IF(E73=0,"",E73) ->  | BF73: 13
E74: 0 | F74: =IF(E74=0,"",E74) ->  | I74: =IF(H74=0,"",H74) ->  | BF74: 14
E75: 0 | F75: =IF(E75=0,"",E75) ->  | I75: =IF(H75=0,"",H75) ->  | BF75: 15
E76: 0 | F76: =IF(E76=0,"",E76) ->  | I76: =IF(H76=0,"",H76) ->  | BF76: 16
E77: 0 | F77: =IF(E77=0,"",E77) ->  | BF77: 17
E78: 0 | F78: =IF(E78=0,"",E78) ->  | BF78: 18
E79: 0 | F79: =IF(E79=0,"",E79) ->  | I79: =IF(H79=0,"",H79) ->  | BF79: 19
E80: 0 | F80: =IF(E80=0,"",E80) ->  | I80: =IF(H80=0,"",H80) ->  | BF80: 20
E81: 0 | F81: =IF(E81=0,"",E81) ->  | BF81: 21
E82: 0 | F82: =IF(E82=0,"",E82) ->  | BF82: 22
E83: 0 | F83: =IF(E83=0,"",E83) ->  | BF83: 23
E84: 0 | F84: =IF(E84=0,"",E84) ->  | BF84: 24
E85: 0 | F85: =IF(E85=0,"",E85) ->  | BF85: 25
E86: 0 | F86: =IF(E86=0,"",E86) ->  | BF86: 26
E87: 0 | F87: =IF(E87=0,"",E87) ->  | BF87: 27
E88: 0 | F88: =IF(E88=0,"",E88) ->  | BF88: 28
E89: 0 | F89: =IF(E89=0,"",E89) ->  | BF89: 29
E90: 0 | F90: =IF(E90=0,"",E90) ->  | BF90: 30
E91: 0 | F91: =IF(E91=0,"",E91) ->  | BF91: 31
E92: 0 | F92: =IF(E92=0,"",E92) ->  | BF92: 32
E93: 0 | F93: =IF(E93=0,"",E93) ->  | BF93: 33
E94: 0 | F94: =IF(E94=0,"",E94) ->  | BF94: 34
E95: 0 | F95: =IF(E95=0,"",E95) ->  | BF95: 35
E96: 0 | F96: =IF(E96=0,"",E96) ->  | BF96: 36
E97: 0 | F97: =IF(E97=0,"",E97) ->  | BF97: 37
E98: 0 | F98: =IF(E98=0,"",E98) ->  | BF98: 38
E99: 0 | F99: =IF(E99=0,"",E99) ->  | BF99: 39
E100: 0 | F100: =IF(E100=0,"",E100) ->  | BF100: 40
E101: 0 | F101: =IF(E101=0,"",E101) ->  | BF101: 41
E102: 0 | F102: =IF(E102=0,"",E102) ->  | BF102: 42
E103: 0 | F103: =IF(E103=0,"",E103) ->  | BF103: 43
E104: 0 | F104: =IF(E104=0,"",E104) ->  | BF104: 44
E105: 0 | F105: =IF(E105=0,"",E105) ->  | BF105: 45
E106: 0 | F106: =IF(E106=0,"",E106) ->  | BF106: 46
E107: 0 | F107: =IF(E107=0,"",E107) ->  | BF107: 47
E108: 0 | F108: =IF(E108=0,"",E108) ->  | BF108: 48
E109: 0 | F109: =IF(E109=0,"",E109) ->  | BF109: 49
E110: 0 | F110: =IF(E110=0,"",E110) ->  | BF110: 50
A119: PTS ordinati per numero standard di coppia base
A120: #STD | B120: PTS
B121: 3 | E121: 42.85714286 | F121: =IF(E121=0,"",E121) -> 42.85714286 | G121: 42.85714286 | BF121: 1
E122: 0 | F122: =IF(E122=0,"",E122) ->  | BF122: 2
B123: 1 | E123: 36.50793651 | F123: =IF(E123=0,"",E123) -> 36.50793651 | G123: 36.50793651 | BF123: 3
B124: 8 | E124: 59.52380952 | F124: =IF(E124=0,"",E124) -> 59.52380952 | G124: 59.52380952 | I124: =IF(H124=0,"",H124) ->  | BF124: 4
E125: 0 | F125: =IF(E125=0,"",E125) ->  | BF125: 5
B126: 2 | E126: 46.82539683 | F126: =IF(E126=0,"",E126) -> 46.82539683 | G126: 46.82539683 | I126: =IF(H126=0,"",H126) ->  | BF126: 6
B127: 5 | E127: 57.14285714 | F127: =IF(E127=0,"",E127) -> 57.14285714 | G127: 57.14285714 | I127: =IF(H127=0,"",H127) ->  | BF127: 7
B128: 4 | E128: 42.85714286 | F128: =IF(E128=0,"",E128) -> 42.85714286 | G128: 42.85714286 | BF128: 8
E129: 0 | F129: =IF(E129=0,"",E129) ->  | I129: =IF(H129=0,"",H129) ->  | BF129: 9
B130: 7 | E130: 65.87301587 | F130: =IF(E130=0,"",E130) -> 65.87301587 | G130: 65.87301587 | I130: =IF(H130=0,"",H130) ->  | BF130: 10
B131: 6 | E131: 48.41269841 | F131: =IF(E131=0,"",E131) -> 48.41269841 | G131: 48.41269841 | BF131: 11
B198: F1 Fast | C198: IndyCar Hard | D198: F1 Hibryd | AY198: F1 Fast | AZ198: IndyCar Hard | BA198: F1 Hybrid | BB198: F1 Fast | BC198: IndyCar Hard | BD198: F1 Hybrid
A199: classifica | D199: 6+ | E199: 5.5 | F199: 5 | G199: 4.5 | H199: 4 | I199: 3.5 | J199: 3 | AY199: scale-punti base | BB199: con medie e parimerito | BH199: con correzioni (punti finali)
A200: p.medio | B200: 8.417 | C200: 28.667 | D200: 10.17 | E200: 9.64 | F200: 9 | G200: 8.33 | H200: 7.38 | I200: 6.43 | J200: 5.5 | BB200: =B200 -> 8.417 | BC200: =C200 -> 28.667 | BD200: =IF($B4=0,0,IF($C$3=6,J200))+IF($C$3=7,I200)+IF($C$3=8,H200)+IF($C$3=9,G200)+IF($C$3=10,F200)+IF($C$3=11,E200)+IF($C$3>=12,D200) -> 7.38 | BH200: F1 Fast | BI200: HindyCar Hard | BJ200: F1 Hibryd
A201: 1 | B201: 25 | C201: 50 | D201: 25 | E201: 22 | F201: 20 | G201: 18 | H201: 16 | I201: 14 | J201: 12 | AY201: =IF($B5=0,0,B201) -> 25 | AZ201: =IF($B5=0,0,C201) -> 50 | BA201: =IF($B5=0,0,IF($C$3=6,J201))+IF($C$3=7,I201)+IF($C$3=8,H201)+IF($C$3=9,G201)+IF($C$3=10,F201)+IF($C$3=11,E201)+IF($C$3>=12,D201) -> 16 | BB201: =IF($B5="",0,IF($E5>$E6,AY201,IF($E6>$E7,(AY201+AY202)/2,IF($E7>$E8,(AY201+AY202+AY203)/3,(AY201+AY202+AY203+AY204)/4)))) -> 25 | BC201: =IF($B5="",0,IF($E5>$E6,AZ201,IF($E6>$E7,(AZ201+AZ202)/2,IF($E7>$E8,(AZ201+AZ202+AZ203)/3,(AZ201+AZ202+AZ203+AZ204)/4)))) -> 50 | BD201: 16 | BH201: =IF($D5=1,BB201+1,IF($D5=2,B$200,BB201)) -> 26 | BI201: =IF($D5=1,BC201+1,IF($D5=2,C$200,BC201)) -> 51 | BJ201: =IF($D5=1,BD201+1,IF($D5=2,BD$200,BD201)) -> 17
A202: 2 | B202: 18 | C202: 40 | D202: 19 | E202: 18 | F202: 16 | G202: 14 | H202: 12 | I202: 10 | J202: 8 | AY202: =IF($B6=0,0,B202) -> 18 | AZ202: 40 | BA202: =IF($B6=0,0,IF($C$3=6,J202))+IF($C$3=7,I202)+IF($C$3=8,H202)+IF($C$3=9,G202)+IF($C$3=10,F202)+IF($C$3=11,E202)+IF($C$3>=12,D202) -> 12 | BB202: =IF($B6="",0,IF($E6=$E5,BB201,IF($E6>$E7,AY202,IF($E7>$E8,(AY202+AY203)/2,IF($E8>$E9,(AY202+AY203+AY204)/3,(AY202+AY203+AY204+AY205)/4))))) -> 18 | BC202: =IF($B6="",0,IF($E6=$E5,BC201,IF($E6>$E7,AZ202,IF($E7>$E8,(AZ202+AZ203)/2,IF($E8>$E9,(AZ202+AZ203+AZ204)/3,(AZ202+AZ203+AZ204+AZ205)/4))))) -> 40 | BD202: =IF($B6="",0,IF($E6=$E5,BD201,IF($E6>$E7,BA202,IF($E7>$E8,(BA202+BA203)/2,IF($E8>$E9,(BA202+BA203+BA204)/3,(BA202+BA203+BA204+BA205)/4))))) -> 12 | BH202: =IF($D6=1,BB202+1,IF($D6=2,B$200,BB202)) -> 18 | BI202: 40 | BJ202: =IF($D6=1,BD202+1,IF($D6=2,BD$200,BD202)) -> 12
A203: 3 | B203: 15 | C203: 35 | D203: 16 | E203: 15 | F203: 13 | G203: 12 | H203: 10 | I203: 8 | J203: 6 | AY203: 15 | AZ203: 35 | BA203: 10 | BB203: =IF($B7="",0,IF($E7=$E6,BB202,IF($E7>$E8,AY203,IF($E8>$E9,(AY203+AY204)/2,IF($E9>$E10,(AY203+AY204+AY205)/3,(AY203+AY204+AY205+AY206)/4))))) -> 15 | BC203: 35 | BD203: 10 | BH203: 15 | BI203: 35 | BJ203: 10
A204: 4 | B204: 12 | C204: 32 | D204: 13 | E204: 12 | F204: 11 | G204: 10 | H204: 8 | I204: 6 | J204: 4 | AY204: 12 | AZ204: 32 | BA204: 8 | BB204: 12 | BC204: 32 | BD204: 8 | BH204: 12 | BI204: 32 | BJ204: 8
A205: 5 | B205: 10 | C205: 30 | D205: 11 | E205: 10 | F205: 9 | G205: 8 | H205: 6 | I205: 4 | J205: 2 | AY205: 10 | AZ205: 30 | BA205: 6 | BB205: 10 | BC205: 30 | BD205: 6 | BH205: 11 | BI205: 31 | BJ205: 7
A206: 6 | B206: 8 | C206: 28 | D206: 10 | E206: 9 | F206: 8 | G206: 6 | H206: 4 | I206: 2 | J206: 1 | AY206: 8 | AZ206: 28 | BA206: 4 | BB206: 7 | BC206: 27 | BD206: 3 | BH206: 7 | BI206: 27 | BJ206: 3
A207: 7 | B207: 6 | C207: 26 | D207: 8 | E207: 7 | F207: 6 | G207: 4 | H207: 2 | I207: 1 | J207: 0 | AY207: 6 | AZ207: 26 | BA207: 2 | BB207: 7 | BC207: 27 | BD207: 3 | BH207: 7 | BI207: 27 | BJ207: 3
A208: 8 | B208: 4 | C208: 24 | D208: 7 | E208: 6 | F208: 4 | G208: 2 | H208: 1 | I208: 0 | J208: 0 | AY208: 4 | AZ208: 24 | BA208: 1 | BB208: 4 | BC208: 24 | BD208: 1 | BH208: 4 | BI208: 24 | BJ208: 1
A209: 9 | B209: 2 | C209: 22 | D209: 6 | E209: 4 | F209: 2 | G209: 1 | H209: 0 | I209: 0 | J209: 0 | AY209: 0 | AZ209: 0 | BA209: 0 | BB209: 0 | BC209: 0 | BD209: 0 | BH209: 0 | BI209: 0 | BJ209: 0
A210: 10 | B210: 1 | C210: 20 | D210: 4 | E210: 2 | F210: 1 | G210: 0 | H210: 0 | I210: 0 | J210: 0 | AY210: 0 | AZ210: 0 | BA210: 0 | BB210: 0 | BC210: 0 | BD210: 0 | BH210: 0 | BI210: 0 | BJ210: 0
A211: 11 | B211: 0 | C211: 19 | D211: 2 | E211: 1 | F211: 0 | G211: 0 | H211: 0 | I211: 0 | J211: 0 | AY211: 0 | AZ211: 0 | BA211: 0 | BB211: 0 | BC211: 0 | BD211: 0 | BH211: 8.417 | BI211: 28.667 | BJ211: 7.38
A212: 12 | B212: 0 | C212: 18 | D212: 1 | E212: 0 | F212: 0 | G212: 0 | H212: 0 | I212: 0 | J212: 0 | AY212: 0 | AZ212: 0 | BA212: 0 | BB212: 0 | BC212: 0 | BD212: 0 | BH212: 0 | BI212: 0 | BJ212: 0
A213: 13 | B213: 0 | C213: 0 | D213: 0 | E213: 0 | F213: 0 | G213: 0 | H213: 0 | I213: 0 | J213: 0 | AY213: 0 | AZ213: 0 | BA213: 0 | BB213: 0 | BC213: 0 | BD213: 0 | BH213: 0 | BI213: 0 | BJ213: 0
A214: 14 | B214: 0 | C214: 0 | D214: 0 | E214: 0 | F214: 0 | G214: 0 | H214: 0 | I214: 0 | J214: 0 | AY214: 0 | AZ214: 0 | BA214: 0 | BB214: 0 | BC214: 0 | BD214: 0 | BH214: 0 | BI214: 0 | BJ214: 0
A215: 15 | B215: 0 | C215: 0 | D215: 0 | E215: 0 | F215: 0 | G215: 0 | H215: 0 | I215: 0 | J215: 0 | AY215: 0 | AZ215: 0 | BA215: 0 | BB215: 0 | BC215: 0 | BD215: 0 | BH215: 0 | BI215: 0 | BJ215: 0
A216: 16 | B216: 0 | C216: 0 | D216: 0 | E216: 0 | F216: 0 | G216: 0 | H216: 0 | I216: 0 | J216: 0 | AY216: 0 | AZ216: 0 | BA216: 0 | BB216: 0 | BC216: 0 | BD216: 0 | BH216: 0 | BI216: 0 | BJ216: 0
A217: 17 | B217: 0 | C217: 0 | D217: 0 | E217: 0 | F217: 0 | G217: 0 | H217: 0 | I217: 0 | J217: 0 | AY217: 0 | AZ217: 0 | BA217: 0 | BB217: 0 | BC217: 0 | BD217: 0 | BH217: 0 | BI217: 0 | BJ217: 0
A218: 18 | B218: 0 | C218: 0 | D218: 0 | E218: 0 | F218: 0 | G218: 0 | H218: 0 | I218: 0 | J218: 0 | AY218: =IF($B22=0,0,B218) -> 0 | AZ218: 0 | BA218: 0 | BB218: 0 | BC218: 0 | BD218: 0 | BH218: =IF($D22=1,BB218+1,IF($D22=2,B$200,BB218)) -> 0 | BI218: 0 | BJ218: 0
A219: 19 | B219: 0 | C219: 0 | D219: 0 | E219: 0 | F219: 0 | G219: 0 | H219: 0 | I219: 0 | J219: 0 | AY219: 0 | AZ219: 0 | BA219: 0 | BB219: =IF($B23="",0,IF($E23=$E22,BB218,IF($E23>$E24,AY219,IF($E24>$E25,(AY219+AY220)/2,IF($E25>$E26,(AY219+AY220+AY221)/3,(AY219+AY220+AY221+AY222)/4))))) -> 0 | BC219: 0 | BD219: 0 | BH219: 0 | BI219: 0 | BJ219: 0
A220: 20 | B220: 0 | C220: 0 | D220: 0 | E220: 0 | F220: 0 | G220: 0 | H220: 0 | I220: 0 | J220: 0 | AY220: 0 | AZ220: 0 | BA220: 0 | BB220: 0 | BC220: 0 | BD220: 0 | BH220: 0 | BI220: 0 | BJ220: 0
A221: 21 | B221: 0 | C221: 0 | D221: 0 | E221: 0 | F221: 0 | G221: 0 | H221: 0 | I221: 0 | J221: 0 | AY221: 0 | AZ221: 0 | BA221: 0 | BB221: 0 | BC221: 0 | BD221: 0 | BH221: 0 | BI221: 0 | BJ221: 0
A222: 22 | B222: 0 | C222: 0 | D222: 0 | E222: 0 | F222: 0 | G222: 0 | H222: 0 | I222: 0 | J222: 0 | AY222: 0 | AZ222: 0 | BA222: 0 | BB222: 0 | BC222: 0 | BD222: 0 | BH222: 0 | BI222: 0 | BJ222: 0
A223: 23 | B223: 0 | C223: 0 | D223: 0 | E223: 0 | F223: 0 | G223: 0 | H223: 0 | I223: 0 | J223: 0 | AY223: 0 | AZ223: 0 | BA223: 0 | BB223: 0 | BC223: 0 | BD223: 0 | BH223: 0 | BI223: 0 | BJ223: 0
A224: 24 | B224: 0 | C224: 0 | D224: 0 | E224: 0 | F224: 0 | G224: 0 | H224: 0 | I224: 0 | J224: 0 | AY224: 0 | AZ224: 0 | BA224: 0 | BB224: 0 | BC224: 0 | BD224: 0 | BH224: 0 | BI224: 0 | BJ224: 0
A225: 25 | B225: 0 | C225: 0 | D225: 0 | E225: 0 | F225: 0 | G225: 0 | H225: 0 | I225: 0 | J225: 0 | AY225: 0 | AZ225: 0 | BA225: 0 | BB225: 0 | BC225: 0 | BD225: 0 | BH225: 0 | BI225: 0 | BJ225: 0
A226: 26 | B226: 0 | C226: 0 | D226: 0 | E226: 0 | F226: 0 | G226: 0 | H226: 0 | I226: 0 | J226: 0 | AY226: 0 | AZ226: 0 | BA226: 0 | BB226: 0 | BC226: 0 | BD226: 0 | BH226: 0 | BI226: 0 | BJ226: 0
A227: 27 | B227: 0 | C227: 0 | D227: 0 | E227: 0 | F227: 0 | G227: 0 | H227: 0 | I227: 0 | J227: 0 | AY227: 0 | AZ227: 0 | BA227: 0 | BB227: 0 | BC227: 0 | BD227: 0 | BH227: 0 | BI227: 0 | BJ227: 0
A228: 28 | B228: 0 | C228: 0 | D228: 0 | E228: 0 | F228: 0 | G228: 0 | H228: 0 | I228: 0 | J228: 0 | AY228: 0 | AZ228: 0 | BA228: 0 | BB228: 0 | BC228: 0 | BD228: 0 | BH228: 0 | BI228: 0 | BJ228: 0
A229: 29 | B229: 0 | C229: 0 | D229: 0 | E229: 0 | F229: 0 | G229: 0 | H229: 0 | I229: 0 | J229: 0 | AY229: 0 | AZ229: 0 | BA229: 0 | BB229: 0 | BC229: 0 | BD229: 0 | BH229: 0 | BI229: 0 | BJ229: 0
A230: 30 | B230: 0 | C230: 0 | D230: 0 | E230: 0 | F230: 0 | G230: 0 | H230: 0 | I230: 0 | J230: 0 | AY230: 0 | AZ230: 0 | BA230: 0 | BB230: 0 | BC230: 0 | BD230: 0 | BH230: 0 | BI230: 0 | BJ230: 0
A231: 31 | B231: 0 | C231: 0 | D231: 0 | E231: 0 | F231: 0 | G231: 0 | H231: 0 | I231: 0 | J231: 0 | AY231: 0 | AZ231: 0 | BA231: 0 | BB231: 0 | BC231: 0 | BD231: 0 | BH231: 0 | BI231: 0 | BJ231: 0
A232: 32 | B232: 0 | C232: 0 | D232: 0 | E232: 0 | F232: 0 | G232: 0 | H232: 0 | I232: 0 | J232: 0 | AY232: 0 | AZ232: 0 | BA232: 0 | BB232: 0 | BC232: 0 | BD232: 0 | BH232: 0 | BI232: 0 | BJ232: 0
A233: 33 | B233: 0 | C233: 0 | D233: 0 | E233: 0 | F233: 0 | G233: 0 | H233: 0 | I233: 0 | J233: 0 | AY233: 0 | AZ233: 0 | BA233: 0 | BB233: 0 | BC233: 0 | BD233: 0 | BH233: 0 | BI233: 0 | BJ233: 0
A234: 34 | B234: 0 | C234: 0 | D234: 0 | E234: 0 | F234: 0 | G234: 0 | H234: 0 | I234: 0 | J234: 0 | AY234: =IF($B38=0,0,B234) -> 0 | AZ234: 0 | BA234: 0 | BB234: 0 | BC234: 0 | BD234: 0 | BH234: =IF($D38=1,BB234+1,IF($D38=2,B$200,BB234)) -> 0 | BI234: 0 | BJ234: 0
A235: 35 | B235: 0 | C235: 0 | D235: 0 | E235: 0 | F235: 0 | G235: 0 | H235: 0 | I235: 0 | J235: 0 | AY235: 0 | AZ235: 0 | BA235: 0 | BB235: =IF($B39="",0,IF($E39=$E38,BB234,IF($E39>$E40,AY235,IF($E40>$E41,(AY235+AY236)/2,IF($E41>$E42,(AY235+AY236+AY237)/3,(AY235+AY236+AY237+AY238)/4))))) -> 0 | BC235: 0 | BD235: 0 | BH235: 0 | BI235: 0 | BJ235: 0
A236: 36 | B236: 0 | C236: 0 | D236: 0 | E236: 0 | F236: 0 | G236: 0 | H236: 0 | I236: 0 | J236: 0 | AY236: 0 | AZ236: 0 | BA236: 0 | BB236: 0 | BC236: 0 | BD236: 0 | BH236: 0 | BI236: 0 | BJ236: 0
A237: 37 | B237: 0 | C237: 0 | D237: 0 | E237: 0 | F237: 0 | G237: 0 | H237: 0 | I237: 0 | J237: 0 | AY237: 0 | AZ237: 0 | BA237: 0 | BB237: 0 | BC237: 0 | BD237: 0 | BH237: 0 | BI237: 0 | BJ237: 0
A238: 38 | B238: 0 | C238: 0 | D238: 0 | E238: 0 | F238: 0 | G238: 0 | H238: 0 | I238: 0 | J238: 0 | AY238: 0 | AZ238: 0 | BA238: 0 | BB238: 0 | BC238: 0 | BD238: 0 | BH238: 0 | BI238: 0 | BJ238: 0
A239: 39 | B239: 0 | C239: 0 | D239: 0 | E239: 0 | F239: 0 | G239: 0 | H239: 0 | I239: 0 | J239: 0 | AY239: 0 | AZ239: 0 | BA239: 0 | BB239: 0 | BC239: 0 | BD239: 0 | BH239: 0 | BI239: 0 | BJ239: 0
A240: 40 | B240: 0 | C240: 0 | D240: 0 | E240: 0 | F240: 0 | G240: 0 | H240: 0 | I240: 0 | J240: 0 | AY240: 0 | AZ240: 0 | BA240: 0 | BB240: 0 | BC240: 0 | BD240: 0 | BH240: 0 | BI240: 0 | BJ240: 0
A241: 41 | B241: 0 | C241: 0 | D241: 0 | E241: 0 | F241: 0 | G241: 0 | H241: 0 | I241: 0 | J241: 0 | AY241: 0 | AZ241: 0 | BA241: 0 | BB241: 0 | BC241: 0 | BD241: 0 | BH241: 0 | BI241: 0 | BJ241: 0
A242: 42 | B242: 0 | C242: 0 | D242: 0 | E242: 0 | F242: 0 | G242: 0 | H242: 0 | I242: 0 | J242: 0 | AY242: 0 | AZ242: 0 | BA242: 0 | BB242: 0 | BC242: 0 | BD242: 0 | BH242: 0 | BI242: 0 | BJ242: 0
A243: 43 | B243: 0 | C243: 0 | D243: 0 | E243: 0 | F243: 0 | G243: 0 | H243: 0 | I243: 0 | J243: 0 | AY243: 0 | AZ243: 0 | BA243: 0 | BB243: 0 | BC243: 0 | BD243: 0 | BH243: 0 | BI243: 0 | BJ243: 0
A244: 44 | B244: 0 | C244: 0 | D244: 0 | E244: 0 | F244: 0 | G244: 0 | H244: 0 | I244: 0 | J244: 0 | AY244: 0 | AZ244: 0 | BA244: 0 | BB244: 0 | BC244: 0 | BD244: 0 | BH244: 0 | BI244: 0 | BJ244: 0
A245: 45 | B245: 0 | C245: 0 | D245: 0 | E245: 0 | F245: 0 | G245: 0 | H245: 0 | I245: 0 | J245: 0 | AY245: 0 | AZ245: 0 | BA245: 0 | BB245: 0 | BC245: 0 | BD245: 0 | BH245: 0 | BI245: 0 | BJ245: 0
A246: 46 | B246: 0 | C246: 0 | D246: 0 | E246: 0 | F246: 0 | G246: 0 | H246: 0 | I246: 0 | J246: 0 | AY246: 0 | AZ246: 0 | BA246: 0 | BB246: 0 | BC246: 0 | BD246: 0 | BH246: 0 | BI246: 0 | BJ246: 0
A247: 47 | B247: 0 | C247: 0 | D247: 0 | E247: 0 | F247: 0 | G247: 0 | H247: 0 | I247: 0 | J247: 0 | AY247: 0 | AZ247: 0 | BA247: 0 | BB247: 0 | BC247: 0 | BD247: 0 | BH247: 0 | BI247: 0 | BJ247: 0
A248: 48 | B248: 0 | C248: 0 | D248: 0 | E248: 0 | F248: 0 | G248: 0 | H248: 0 | I248: 0 | J248: 0 | AY248: 0 | AZ248: 0 | BA248: 0 | BB248: 0 | BC248: 0 | BD248: 0 | BH248: 0 | BI248: 0 | BJ248: 0
A249: 49 | B249: 0 | C249: 0 | D249: 0 | E249: 0 | F249: 0 | G249: 0 | H249: 0 | I249: 0 | J249: 0 | AY249: 0 | AZ249: 0 | BA249: 0 | BB249: 0 | BC249: 0 | BD249: 0 | BH249: 0 | BI249: 0 | BJ249: 0
A250: 50 | B250: 0 | C250: 0 | D250: 0 | E250: 0 | F250: 0 | G250: 0 | H250: 0 | I250: 0 | J250: 0 | AY250: =IF($B54=0,0,B250) -> 0 | AZ250: 0 | BA250: 0 | BB250: 0 | BC250: 0 | BD250: 0 | BH250: =IF($D54=1,BB250+1,IF($D54=2,B$200,BB250)) -> 0 | BI250: 0 | BJ250: 0

Sheet 22feb
A1: Data | C1: 2020-02-22 | D1: BridgeMania 2019-20 - Torneo Howell
A2: luogo | C2: Polichetti | D2: Coppie Ctrl+e | E2: Calcola Ctr+f | F2: Duplica Ctrl+g | G2: Clear Ctrl+h | J2: &
A3: # coppie | C3: =IF(B5="","",COUNT(B5:B54)) -> 12 | E3: =IF(E5="","",SUMIF(E5:E54,">0")) -> 600 | G3: =IF(G5="","",SUM(G5:G54)) -> 600 | H3: =IF(H5="","",SUM(H5:H54)) -> 1316 | I3: =SUM(I5:I54) -> 0 | J3: =SUM(J5:J54) -> 1316 | K3: =SUM(K5:K54) -> 1316 | L3: =SUM(L5:L54) -> 0 | M3: 0 | N3: 0 | O3: 0 | P3: 0 | Q3: 0 | R3: 0 | S3: 0 | T3: 0 | U3: 0 | V3: 0 | W3: 0 | X3: 0 | Y3: 0 | Z3: 0 | AA3: 0 | AB3: 0 | AC3: 0 | AD3: 0 | AE3: 0 | AF3: 0 | AG3: 0 | AH3: 0 | AI3: 0 | AJ3: 0 | AK3: 0 | AL3: 0 | AM3: 0 | AN3: 0 | AO3: 0 | AP3: 0 | AQ3: 0 | AR3: 0 | AS3: 0 | AT3: 0 | AU3: 0 | AV3: 0 | AW3: 0 | AX3: 0
A4: Class. | B4: # | C4: Coppie | D4: Inserire a mano "1" = + 1 PTS "2" = PTS medio | E4: Punteggio Serata | G4: Punteggio % | H4: Punteggio Torneo | I4: Penalità (-) | J4: Totale punti mano | K4: 1 | L4: 2 | M4: 3 | N4: 4 | O4: 5 | P4: 6 | Q4: 7 | R4: 8 | S4: 9 | T4: 10 | U4: 11 | V4: 12 | W4: 13 | X4: 14 | Y4: 15 | Z4: 16 | AA4: 17 | AB4: 18 | AC4: 19 | AD4: 20 | AE4: 21 | AF4: 22 | AG4: 23 | AH4: 24 | AI4: 25 | AJ4: 26 | AK4: 27 | AL4: 28 | AM4: 29 | AN4: 30 | AO4: 31 | AP4: 32 | AQ4: 33 | AR4: 34 | AS4: 35 | AT4: 36 | AU4: 37 | AV4: 38 | AW4: 39 | AX4: 40 | AZ4: F1 Fast | BA4: IndyCar Hard | BB4: F1 Hybrid | BF4: # std coppie
A5: =IF(J$2="","",IF($E5="","",IF($E5=MAX($E$5:$E$54),1,IF($E5=$E4,$A4,COUNT($E$5:$E5))))) -> 1 | B5: 4 | C5: Elena-Stefano | E5: =IF(J$2="","",IF(G5=0,0,F5+G5)) -> 57.21884498 | G5: =IF(J$2="","",IF($J5=0,0,(H5*$C$3/$J$3)*50)) -> 57.21884498 | H5: =IF(J$2="","",IF(SUM($K5:$AX5)=0,0,SUM($K5:$AX5)+$I5)) -> 125.5 | J5: =IF(B5="",0,IF(SUM($K5:$AX5)=0,0,SUM($K5:$AX5))) -> 125.5 | K5: 125.5 | AY5: Elena-Stefano | AZ5: 25 | BA5: 50 | BB5: 25 | BF5: 4
A6: =IF(J$2="","",IF($E6="","",IF($E6=MAX($E$5:$E$54),1,IF($E6=$E5,$A5,COUNT($E$5:$E6))))) -> 2 | B6: 2 | C6: Barbara-Elio | E6: 56.07902736 | G6: 56.07902736 | H6: 123 | J6: 123 | K6: 123 | AY6: Barbara-Elio | AZ6: 16.5 | BA6: 37.5 | BB6: 17.5 | BF6: 2
A7: =IF(J$2="","",IF($E7="","",IF($E7=MAX($E$5:$E$54),1,IF($E7=$E6,$A6,COUNT($E$5:$E7))))) -> 2 | B7: 12 | C7: Letizia-Enzo | E7: 56.07902736 | G7: 56.07902736 | H7: 123 | J7: 123 | K7: 123 | AY7: Letizia-Enzo | AZ7: 16.5 | BA7: 37.5 | BB7: 17.5 | BF7: 16
A8: =IF(J$2="","",IF($E8="","",IF($E8=MAX($E$5:$E$54),1,IF($E8=$E7,$A7,COUNT($E$5:$E8))))) -> 4 | B8: 3 | C8: Cesarina-Gaetano | E8: 55.85106383 | G8: 55.85106383 | H8: 122.5 | J8: 122.5 | K8: 122.5 | AY8: Cesarina-Gaetano | AZ8: 12 | BA8: 32 | BB8: 13 | BF8: 3
A9: =IF(J$2="","",IF($E9="","",IF($E9=MAX($E$5:$E$54),1,IF($E9=$E8,$A8,COUNT($E$5:$E9))))) -> 5 | B9: 1 | C9: Antonella-Dino | E9: 53.7993921 | G9: 53.7993921 | H9: 118 | J9: 118 | K9: 118 | AY9: Antonella-Dino | AZ9: 10 | BA9: 30 | BB9: 11 | BF9: 1
A10: =IF(J$2="","",IF($E10="","",IF($E10=MAX($E$5:$E$54),1,IF($E10=$E9,$A9,COUNT($E$5:$E10))))) -> 6 | B10: 7 | C10: Manuela-Roberto | E10: 53.34346505 | G10: 53.34346505 | H10: 117 | J10: 117 | K10: 117 | AY10: Manuela-Roberto | AZ10: 8 | BA10: 28 | BB10: 10 | BF10: 7
A11: =IF(J$2="","",IF($E11="","",IF($E11=MAX($E$5:$E$54),1,IF($E11=$E10,$A10,COUNT($E$5:$E11))))) -> 7 | B11: 9 | C11: Renata-Sandro | E11: 51.97568389 | G11: 51.97568389 | H11: 114 | J11: 114 | K11: 114 | AY11: Renata-Sandro | AZ11: 6 | BA11: 26 | BB11: 8 | BF11: 9
A12: =IF(J$2="","",IF($E12="","",IF($E12=MAX($E$5:$E$54),1,IF($E12=$E11,$A11,COUNT($E$5:$E12))))) -> 8 | B12: 5 | C12: Isolde-Cristina | E12: 50.83586626 | G12: 50.83586626 | H12: 111.5 | J12: 111.5 | K12: 111.5 | AY12: Isolde-Cristina | AZ12: 4 | BA12: 24 | BB12: 7 | BF12: 5
A13: =IF(J$2="","",IF($E13="","",IF($E13=MAX($E$5:$E$54),1,IF($E13=$E12,$A12,COUNT($E$5:$E13))))) -> 9 | B13: 10 | C13: Stefania-Massimo | E13: 48.10030395 | G13: 48.10030395 | H13: 105.5 | J13: 105.5 | K13: 105.5 | AY13: Stefania-Massimo | AZ13: 2 | BA13: 22 | BB13: 6 | BF13: 10
A14: =IF(J$2="","",IF($E14="","",IF($E14=MAX($E$5:$E$54),1,IF($E14=$E13,$A13,COUNT($E$5:$E14))))) -> 10 | B14: 6 | C14: Lilli-Gianni | E14: 46.50455927 | G14: 46.50455927 | H14: 102 | J14: 102 | K14: 102 | AY14: Lilli-Gianni | AZ14: 1 | BA14: 20 | BB14: 4 | BF14: 6
A15: =IF(J$2="","",IF($E15="","",IF($E15=MAX($E$5:$E$54),1,IF($E15=$E14,$A14,COUNT($E$5:$E15))))) -> 11 | B15: 8 | C15: Olimpia-Sauro | E15: 39.6656535 | G15: 39.6656535 | H15: 87 | J15: 87 | K15: 87 | AY15: Olimpia-Sauro | AZ15: 0 | BA15: 19 | BB15: 2 | BF15: 8
A16: =IF(J$2="","",IF($E16="","",IF($E16=MAX($E$5:$E$54),1,IF($E16=$E15,$A15,COUNT($E$5:$E16))))) -> 12 | B16: 11 | C16: Tatiana-Julio | E16: 30.54711246 | G16: 30.54711246 | H16: 67 | J16: 67 | K16: 67 | AY16: Tatiana-Julio | AZ16: 0 | BA16: 18 | BB16: 1 | BF16: 11
A17: =IF(J$2="","",IF($E17="","",IF($E17=MAX($E$5:$E$54),1,IF($E17=$E16,$A16,COUNT($E$5:$E17))))) -> 13 | C17: Marilena-Sergio | E17: 0 | G17: 0 | H17: 0 | J17: 0 | AY17: Marilena-Sergio | AZ17: 0 | BA17: 0 | BB17: 0 | BF17: 12
A18: =IF(J$2="","",IF($E18="","",IF($E18=MAX($E$5:$E$54),1,IF($E18=$E17,$A17,COUNT($E$5:$E18))))) -> 13 | C18: A.Maria-Claudio | E18: 0 | G18: 0 | H18: 0 | J18: 0 | AY18: A.Maria-Claudio | AZ18: 0 | BA18: 0 | BB18: 0 | BF18: 13
A19: =IF(J$2="","",IF($E19="","",IF($E19=MAX($E$5:$E$54),1,IF($E19=$E18,$A18,COUNT($E$5:$E19))))) -> 13 | C19: June-Vincenzo | E19: 0 | G19: 0 | H19: 0 | J19: 0 | AY19: June-Vincenzo | AZ19: 0 | BA19: 0 | BB19: 0 | BF19: 14
A20: =IF(J$2="","",IF($E20="","",IF($E20=MAX($E$5:$E$54),1,IF($E20=$E19,$A19,COUNT($E$5:$E20))))) -> 13 | C20: Marina-Enzo | E20: 0 | G20: 0 | H20: 0 | J20: 0 | AY20: Marina-Enzo | AZ20: 0 | BA20: 0 | BB20: 0 | BF20: 15
A21: =IF(J$2="","",IF($E21="","",IF($E21=MAX($E$5:$E$54),1,IF($E21=$E20,$A20,COUNT($E$5:$E21))))) -> 13 | E21: 0 | G21: 0 | H21: 0 | J21: 0 | AZ21: 0 | BA21: 0 | BB21: 0 | BF21: 17
A22: =IF(J$2="","",IF($E22="","",IF($E22=MAX($E$5:$E$54),1,IF($E22=$E21,$A21,COUNT($E$5:$E22))))) -> 13 | E22: 0 | G22: 0 | H22: 0 | J22: 0 | AZ22: 0 | BA22: 0 | BB22: 0 | BF22: 18
A23: =IF(J$2="","",IF($E23="","",IF($E23=MAX($E$5:$E$54),1,IF($E23=$E22,$A22,COUNT($E$5:$E23))))) -> 13 | E23: 0 | G23: 0 | H23: 0 | J23: 0 | AZ23: 0 | BA23: 0 | BB23: 0 | BF23: 19
A24: =IF(J$2="","",IF($E24="","",IF($E24=MAX($E$5:$E$54),1,IF($E24=$E23,$A23,COUNT($E$5:$E24))))) -> 13 | E24: 0 | G24: 0 | H24: 0 | J24: 0 | AZ24: 0 | BA24: 0 | BB24: 0 | BF24: 20
A25: =IF(J$2="","",IF($E25="","",IF($E25=MAX($E$5:$E$54),1,IF($E25=$E24,$A24,COUNT($E$5:$E25))))) -> 13 | E25: 0 | G25: 0 | H25: 0 | J25: 0 | AZ25: 0 | BA25: 0 | BB25: 0 | BF25: 21
A26: =IF(J$2="","",IF($E26="","",IF($E26=MAX($E$5:$E$54),1,IF($E26=$E25,$A25,COUNT($E$5:$E26))))) -> 13 | E26: 0 | G26: 0 | H26: 0 | J26: 0 | AZ26: 0 | BA26: 0 | BB26: 0 | BF26: 22
A27: =IF(J$2="","",IF($E27="","",IF($E27=MAX($E$5:$E$54),1,IF($E27=$E26,$A26,COUNT($E$5:$E27))))) -> 13 | E27: 0 | G27: 0 | H27: 0 | J27: 0 | AZ27: 0 | BA27: 0 | BB27: 0 | BF27: 23
A28: =IF(J$2="","",IF($E28="","",IF($E28=MAX($E$5:$E$54),1,IF($E28=$E27,$A27,COUNT($E$5:$E28))))) -> 13 | E28: 0 | G28: 0 | H28: 0 | J28: 0 | AZ28: 0 | BA28: 0 | BB28: 0 | BF28: 24
A29: =IF(J$2="","",IF($E29="","",IF($E29=MAX($E$5:$E$54),1,IF($E29=$E28,$A28,COUNT($E$5:$E29))))) -> 13 | E29: 0 | G29: 0 | H29: 0 | J29: 0 | AZ29: 0 | BA29: 0 | BB29: 0 | BF29: 25
A30: =IF(J$2="","",IF($E30="","",IF($E30=MAX($E$5:$E$54),1,IF($E30=$E29,$A29,COUNT($E$5:$E30))))) -> 13 | E30: 0 | G30: 0 | H30: 0 | J30: 0 | AZ30: 0 | BA30: 0 | BB30: 0 | BF30: 26
A31: =IF(J$2="","",IF($E31="","",IF($E31=MAX($E$5:$E$54),1,IF($E31=$E30,$A30,COUNT($E$5:$E31))))) -> 13 | E31: 0 | G31: 0 | H31: 0 | J31: 0 | AZ31: 0 | BA31: 0 | BB31: 0 | BF31: 27
A32: =IF(J$2="","",IF($E32="","",IF($E32=MAX($E$5:$E$54),1,IF($E32=$E31,$A31,COUNT($E$5:$E32))))) -> 13 | E32: 0 | G32: 0 | H32: 0 | J32: 0 | AZ32: 0 | BA32: 0 | BB32: 0 | BF32: 28
A33: =IF(J$2="","",IF($E33="","",IF($E33=MAX($E$5:$E$54),1,IF($E33=$E32,$A32,COUNT($E$5:$E33))))) -> 13 | E33: 0 | G33: 0 | H33: 0 | J33: 0 | AZ33: 0 | BA33: 0 | BB33: 0 | BF33: 29
A34: =IF(J$2="","",IF($E34="","",IF($E34=MAX($E$5:$E$54),1,IF($E34=$E33,$A33,COUNT($E$5:$E34))))) -> 13 | E34: 0 | G34: 0 | H34: 0 | J34: 0 | AZ34: 0 | BA34: 0 | BB34: 0 | BF34: 30
A35: =IF(J$2="","",IF($E35="","",IF($E35=MAX($E$5:$E$54),1,IF($E35=$E34,$A34,COUNT($E$5:$E35))))) -> 13 | E35: 0 | G35: 0 | H35: 0 | J35: 0 | AZ35: 0 | BA35: 0 | BB35: 0 | BF35: 31
A36: =IF(J$2="","",IF($E36="","",IF($E36=MAX($E$5:$E$54),1,IF($E36=$E35,$A35,COUNT($E$5:$E36))))) -> 13 | E36: 0 | G36: 0 | H36: 0 | J36: 0 | AZ36: 0 | BA36: 0 | BB36: 0 | BF36: 32
A37: =IF(J$2="","",IF($E37="","",IF($E37=MAX($E$5:$E$54),1,IF($E37=$E36,$A36,COUNT($E$5:$E37))))) -> 13 | E37: 0 | G37: 0 | H37: 0 | J37: 0 | AZ37: 0 | BA37: 0 | BB37: 0 | BF37: 33
A38: =IF(J$2="","",IF($E38="","",IF($E38=MAX($E$5:$E$54),1,IF($E38=$E37,$A37,COUNT($E$5:$E38))))) -> 13 | E38: 0 | G38: 0 | H38: 0 | J38: 0 | AZ38: 0 | BA38: 0 | BB38: 0 | BF38: 34
A39: =IF(J$2="","",IF($E39="","",IF($E39=MAX($E$5:$E$54),1,IF($E39=$E38,$A38,COUNT($E$5:$E39))))) -> 13 | E39: 0 | G39: 0 | H39: 0 | J39: 0 | AZ39: 0 | BA39: 0 | BB39: 0 | BF39: 35
A40: =IF(J$2="","",IF($E40="","",IF($E40=MAX($E$5:$E$54),1,IF($E40=$E39,$A39,COUNT($E$5:$E40))))) -> 13 | E40: 0 | G40: 0 | H40: 0 | J40: 0 | AZ40: 0 | BA40: 0 | BB40: 0 | BF40: 36
A41: =IF(J$2="","",IF($E41="","",IF($E41=MAX($E$5:$E$54),1,IF($E41=$E40,$A40,COUNT($E$5:$E41))))) -> 13 | E41: 0 | G41: 0 | H41: 0 | J41: 0 | AZ41: 0 | BA41: 0 | BB41: 0 | BF41: 37
A42: =IF(J$2="","",IF($E42="","",IF($E42=MAX($E$5:$E$54),1,IF($E42=$E41,$A41,COUNT($E$5:$E42))))) -> 13 | E42: 0 | G42: 0 | H42: 0 | J42: 0 | AZ42: 0 | BA42: 0 | BB42: 0 | BF42: 38
A43: =IF(J$2="","",IF($E43="","",IF($E43=MAX($E$5:$E$54),1,IF($E43=$E42,$A42,COUNT($E$5:$E43))))) -> 13 | E43: 0 | G43: 0 | H43: 0 | J43: 0 | AZ43: 0 | BA43: 0 | BB43: 0 | BF43: 39
A44: =IF(J$2="","",IF($E44="","",IF($E44=MAX($E$5:$E$54),1,IF($E44=$E43,$A43,COUNT($E$5:$E44))))) -> 13 | E44: 0 | G44: 0 | H44: 0 | J44: 0 | AZ44: 0 | BA44: 0 | BB44: 0 | BF44: 40
A45: =IF(J$2="","",IF($E45="","",IF($E45=MAX($E$5:$E$54),1,IF($E45=$E44,$A44,COUNT($E$5:$E45))))) -> 13 | E45: 0 | G45: 0 | H45: 0 | J45: 0 | AZ45: 0 | BA45: 0 | BB45: 0 | BF45: 41
A46: =IF(J$2="","",IF($E46="","",IF($E46=MAX($E$5:$E$54),1,IF($E46=$E45,$A45,COUNT($E$5:$E46))))) -> 13 | E46: 0 | G46: 0 | H46: 0 | J46: 0 | AZ46: 0 | BA46: 0 | BB46: 0 | BF46: 42
A47: =IF(J$2="","",IF($E47="","",IF($E47=MAX($E$5:$E$54),1,IF($E47=$E46,$A46,COUNT($E$5:$E47))))) -> 13 | E47: 0 | G47: 0 | H47: 0 | J47: 0 | AZ47: 0 | BA47: 0 | BB47: 0 | BF47: 43
A48: =IF(J$2="","",IF($E48="","",IF($E48=MAX($E$5:$E$54),1,IF($E48=$E47,$A47,COUNT($E$5:$E48))))) -> 13 | E48: 0 | G48: 0 | H48: 0 | J48: 0 | AZ48: 0 | BA48: 0 | BB48: 0 | BF48: 44
A49: =IF(J$2="","",IF($E49="","",IF($E49=MAX($E$5:$E$54),1,IF($E49=$E48,$A48,COUNT($E$5:$E49))))) -> 13 | E49: 0 | G49: 0 | H49: 0 | J49: 0 | AZ49: 0 | BA49: 0 | BB49: 0 | BF49: 45
A50: =IF(J$2="","",IF($E50="","",IF($E50=MAX($E$5:$E$54),1,IF($E50=$E49,$A49,COUNT($E$5:$E50))))) -> 13 | E50: 0 | G50: 0 | H50: 0 | J50: 0 | AZ50: 0 | BA50: 0 | BB50: 0 | BF50: 46
A51: =IF(J$2="","",IF($E51="","",IF($E51=MAX($E$5:$E$54),1,IF($E51=$E50,$A50,COUNT($E$5:$E51))))) -> 13 | E51: 0 | G51: 0 | H51: 0 | J51: 0 | AZ51: 0 | BA51: 0 | BB51: 0 | BF51: 47
A52: =IF(J$2="","",IF($E52="","",IF($E52=MAX($E$5:$E$54),1,IF($E52=$E51,$A51,COUNT($E$5:$E52))))) -> 13 | E52: 0 | G52: 0 | H52: 0 | J52: 0 | AZ52: 0 | BA52: 0 | BB52: 0 | BF52: 48
A53: =IF(J$2="","",IF($E53="","",IF($E53=MAX($E$5:$E$54),1,IF($E53=$E52,$A52,COUNT($E$5:$E53))))) -> 13 | E53: 0 | G53: 0 | H53: 0 | J53: 0 | AZ53: 0 | BA53: 0 | BB53: 0 | BF53: 49
A54: =IF(J$2="","",IF($E54="","",IF($E54=MAX($E$5:$E$54),1,IF($E54=$E53,$A53,COUNT($E$5:$E54))))) -> 13 | E54: 0 | G54: 0 | H54: 0 | J54: 0 | AZ54: 0 | BA54: 0 | BB54: 0 | BF54: 50
D59: punteggi torneo ordinati per # di coppia
B60: # coppia | E60: con zeri | F60: senza zeri | G60: senza zeri
B61: 1 | E61: 53.7993921 | F61: =IF(E61=0,"",E61) -> 53.7993921 | G61: 53.7993921 | BF61: 1
B62: 2 | E62: 56.07902736 | F62: 56.07902736 | G62: 56.07902736 | I62: =IF(H62=0,"",H62) ->  | BF62: 2
B63: 3 | E63: 55.85106383 | F63: 55.85106383 | G63: 55.85106383 | BF63: 3
B64: 4 | E64: 57.21884498 | F64: 57.21884498 | G64: 57.21884498 | BF64: 4
B65: 5 | E65: 50.83586626 | F65: 50.83586626 | G65: 50.83586626 | I65: =IF(H65=0,"",H65) ->  | BF65: 5
B66: 6 | E66: 46.50455927 | F66: 46.50455927 | G66: 46.50455927 | BF66: 6
B67: 7 | E67: 53.34346505 | F67: 53.34346505 | G67: 53.34346505 | I67: =IF(H67=0,"",H67) ->  | BF67: 7
B68: 8 | E68: 39.6656535 | F68: 39.6656535 | G68: 39.6656535 | I68: =IF(H68=0,"",H68) ->  | BF68: 8
B69: 9 | E69: 51.97568389 | F69: 51.97568389 | G69: 51.97568389 | BF69: 9
B70: 10 | E70: 48.10030395 | F70: 48.10030395 | G70: 48.10030395 | BF70: 10
B71: 11 | E71: 30.54711246 | F71: 30.54711246 | G71: 30.54711246 | I71: =IF(H71=0,"",H71) ->  | BF71: 11
B72: 12 | E72: 56.07902736 | F72: 56.07902736 | G72: 56.07902736 | I72: =IF(H72=0,"",H72) ->  | BF72: 16
E73: 0 | BF73: 12
E74: 0 | I74: =IF(H74=0,"",H74) ->  | BF74: 13
E75: 0 | I75: =IF(H75=0,"",H75) ->  | BF75: 14
E76: 0 | I76: =IF(H76=0,"",H76) ->  | BF76: 15
E77: 0 | BF77: 17
E78: 0 | BF78: 18
E79: 0 | I79: =IF(H79=0,"",H79) ->  | BF79: 19
E80: 0 | I80: =IF(H80=0,"",H80) ->  | BF80: 20
E81: 0 | BF81: 21
E82: 0 | BF82: 22
E83: 0 | BF83: 23
E84: 0 | BF84: 24
E85: 0 | BF85: 25
E86: 0 | BF86: 26
E87: 0 | BF87: 27
E88: 0 | BF88: 28
E89: 0 | BF89: 29
E90: 0 | BF90: 30
E91: 0 | BF91: 31
E92: 0 | BF92: 32
E93: 0 | BF93: 33
E94: 0 | BF94: 34
E95: 0 | BF95: 35
E96: 0 | BF96: 36
E97: 0 | BF97: 37
E98: 0 | BF98: 38
E99: 0 | BF99: 39
E100: 0 | BF100: 40
E101: 0 | BF101: 41
E102: 0 | BF102: 42
E103: 0 | BF103: 43
E104: 0 | BF104: 44
E105: 0 | BF105: 45
E106: 0 | BF106: 46
E107: 0 | BF107: 47
E108: 0 | BF108: 48
E109: 0 | BF109: 49
E110: 0 | BF110: 50
A119: PTS ordinati per numero standard di coppia base
A120: #STD | B120: PTS
B121: 1 | E121: 53.7993921 | F121: =IF(E121=0,"",E121) -> 53.7993921 | G121: 53.7993921 | BF121: 1
B122: 2 | E122: 56.07902736 | F122: 56.07902736 | G122: 56.07902736 | I122: =IF(H122=0,"",H122) ->  | BF122: 2
B123: 3 | E123: 55.85106383 | F123: 55.85106383 | G123: 55.85106383 | BF123: 3
B124: 4 | E124: 57.21884498 | F124: 57.21884498 | G124: 57.21884498 | BF124: 4
B125: 5 | E125: 50.83586626 | F125: 50.83586626 | G125: 50.83586626 | I125: =IF(H125=0,"",H125) ->  | BF125: 5
B126: 6 | E126: 46.50455927 | F126: 46.50455927 | G126: 46.50455927 | BF126: 6
B127: 7 | E127: 53.34346505 | F127: 53.34346505 | G127: 53.34346505 | I127: =IF(H127=0,"",H127) ->  | BF127: 7
B128: 8 | E128: 39.6656535 | F128: 39.6656535 | G128: 39.6656535 | I128: =IF(H128=0,"",H128) ->  | BF128: 8
B129: 9 | E129: 51.97568389 | F129: 51.97568389 | G129: 51.97568389 | BF129: 9
B130: 10 | E130: 48.10030395 | F130: 48.10030395 | G130: 48.10030395 | BF130: 10
B131: 11 | E131: 30.54711246 | F131: 30.54711246 | G131: 30.54711246 | I131: =IF(H131=0,"",H131) ->  | BF131: 11
B198: F1 Fast | C198: IndyCar Hard | D198: F1 Hibryd | AY198: F1 Fast | AZ198: IndyCar Hard | BA198: F1 Hybrid | BB198: F1 Fast | BC198: IndyCar Hard | BD198: F1 Hybrid
A199: classifica | D199: 6+ | E199: 5.5 | F199: 5 | G199: 4.5 | H199: 4 | I199: 3.5 | J199: 3 | AY199: scale-punti base | BB199: con medie e parimerito | BH199: con correzioni (punti finali)
A200: p.medio | B200: 8.417 | C200: 28.667 | D200: 10.17 | E200: 9.64 | F200: 9 | G200: 8.33 | H200: 7.38 | I200: 6.43 | J200: 5.5 | BB200: =B200 -> 8.417 | BC200: =C200 -> 28.667 | BD200: =IF($B4=0,0,IF($C$3=6,J200))+IF($C$3=7,I200)+IF($C$3=8,H200)+IF($C$3=9,G200)+IF($C$3=10,F200)+IF($C$3=11,E200)+IF($C$3>=12,D200) -> 10.17 | BH200: F1 Fast | BI200: HindyCar Hard | BJ200: F1 Hibryd
A201: 1 | B201: 25 | C201: 50 | D201: 25 | E201: 22 | F201: 20 | G201: 18 | H201: 16 | I201: 14 | J201: 12 | AY201: =IF($B5=0,0,B201) -> 25 | AZ201: =IF($B5=0,0,C201) -> 50 | BA201: =IF($B5=0,0,IF($C$3=6,J201))+IF($C$3=7,I201)+IF($C$3=8,H201)+IF($C$3=9,G201)+IF($C$3=10,F201)+IF($C$3=11,E201)+IF($C$3>=12,D201) -> 25 | BB201: =IF($B5="",0,IF($E5>$E6,AY201,IF($E6>$E7,(AY201+AY202)/2,IF($E7>$E8,(AY201+AY202+AY203)/3,(AY201+AY202+AY203+AY204)/4)))) -> 25 | BC201: =IF($B5="",0,IF($E5>$E6,AZ201,IF($E6>$E7,(AZ201+AZ202)/2,IF($E7>$E8,(AZ201+AZ202+AZ203)/3,(AZ201+AZ202+AZ203+AZ204)/4)))) -> 50 | BD201: 25 | BH201: =IF($D5=1,BB201+1,IF($D5=2,B$200,BB201)) -> 25 | BI201: =IF($D5=1,BC201+1,IF($D5=2,C$200,BC201)) -> 50 | BJ201: =IF($D5=1,BD201+1,IF($D5=2,BD$200,BD201)) -> 25
A202: 2 | B202: 18 | C202: 40 | D202: 19 | E202: 18 | F202: 16 | G202: 14 | H202: 12 | I202: 10 | J202: 8 | AY202: =IF($B6=0,0,B202) -> 18 | AZ202: 40 | BA202: =IF($B6=0,0,IF($C$3=6,J202))+IF($C$3=7,I202)+IF($C$3=8,H202)+IF($C$3=9,G202)+IF($C$3=10,F202)+IF($C$3=11,E202)+IF($C$3>=12,D202) -> 19 | BB202: =IF($B6="",0,IF($E6=$E5,BB201,IF($E6>$E7,AY202,IF($E7>$E8,(AY202+AY203)/2,IF($E8>$E9,(AY202+AY203+AY204)/3,(AY202+AY203+AY204+AY205)/4))))) -> 16.5 | BC202: =IF($B6="",0,IF($E6=$E5,BC201,IF($E6>$E7,AZ202,IF($E7>$E8,(AZ202+AZ203)/2,IF($E8>$E9,(AZ202+AZ203+AZ204)/3,(AZ202+AZ203+AZ204+AZ205)/4))))) -> 37.5 | BD202: =IF($B6="",0,IF($E6=$E5,BD201,IF($E6>$E7,BA202,IF($E7>$E8,(BA202+BA203)/2,IF($E8>$E9,(BA202+BA203+BA204)/3,(BA202+BA203+BA204+BA205)/4))))) -> 17.5 | BH202: =IF($D6=1,BB202+1,IF($D6=2,B$200,BB202)) -> 16.5 | BI202: 37.5 | BJ202: =IF($D6=1,BD202+1,IF($D6=2,BD$200,BD202)) -> 17.5
A203: 3 | B203: 15 | C203: 35 | D203: 16 | E203: 15 | F203: 13 | G203: 12 | H203: 10 | I203: 8 | J203: 6 | AY203: 15 | AZ203: 35 | BA203: 16 | BB203: =IF($B7="",0,IF($E7=$E6,BB202,IF($E7>$E8,AY203,IF($E8>$E9,(AY203+AY204)/2,IF($E9>$E10,(AY203+AY204+AY205)/3,(AY203+AY204+AY205+AY206)/4))))) -> 16.5 | BC203: 37.5 | BD203: 17.5 | BH203: 16.5 | BI203: 37.5 | BJ203: 17.5
A204: 4 | B204: 12 | C204: 32 | D204: 13 | E204: 12 | F204: 11 | G204: 10 | H204: 8 | I204: 6 | J204: 4 | AY204: 12 | AZ204: 32 | BA204: 13 | BB204: 12 | BC204: 32 | BD204: 13 | BH204: 12 | BI204: 32 | BJ204: 13
A205: 5 | B205: 10 | C205: 30 | D205: 11 | E205: 10 | F205: 9 | G205: 8 | H205: 6 | I205: 4 | J205: 2 | AY205: 10 | AZ205: 30 | BA205: 11 | BB205: 10 | BC205: 30 | BD205: 11 | BH205: 10 | BI205: 30 | BJ205: 11
A206: 6 | B206: 8 | C206: 28 | D206: 10 | E206: 9 | F206: 8 | G206: 6 | H206: 4 | I206: 2 | J206: 1 | AY206: 8 | AZ206: 28 | BA206: 10 | BB206: 8 | BC206: 28 | BD206: 10 | BH206: 8 | BI206: 28 | BJ206: 10
A207: 7 | B207: 6 | C207: 26 | D207: 8 | E207: 7 | F207: 6 | G207: 4 | H207: 2 | I207: 1 | J207: 0 | AY207: 6 | AZ207: 26 | BA207: 8 | BB207: 6 | BC207: 26 | BD207: 8 | BH207: 6 | BI207: 26 | BJ207: 8
A208: 8 | B208: 4 | C208: 24 | D208: 7 | E208: 6 | F208: 4 | G208: 2 | H208: 1 | I208: 0 | J208: 0 | AY208: 4 | AZ208: 24 | BA208: 7 | BB208: 4 | BC208: 24 | BD208: 7 | BH208: 4 | BI208: 24 | BJ208: 7
A209: 9 | B209: 2 | C209: 22 | D209: 6 | E209: 4 | F209: 2 | G209: 1 | H209: 0 | I209: 0 | J209: 0 | AY209: 2 | AZ209: 22 | BA209: 6 | BB209: 2 | BC209: 22 | BD209: 6 | BH209: 2 | BI209: 22 | BJ209: 6
A210: 10 | B210: 1 | C210: 20 | D210: 4 | E210: 2 | F210: 1 | G210: 0 | H210: 0 | I210: 0 | J210: 0 | AY210: 1 | AZ210: 20 | BA210: 4 | BB210: 1 | BC210: 20 | BD210: 4 | BH210: 1 | BI210: 20 | BJ210: 4
A211: 11 | B211: 0 | C211: 19 | D211: 2 | E211: 1 | F211: 0 | G211: 0 | H211: 0 | I211: 0 | J211: 0 | AY211: 0 | AZ211: 19 | BA211: 2 | BB211: 0 | BC211: 19 | BD211: 2 | BH211: 0 | BI211: 19 | BJ211: 2
A212: 12 | B212: 0 | C212: 18 | D212: 1 | E212: 0 | F212: 0 | G212: 0 | H212: 0 | I212: 0 | J212: 0 | AY212: 0 | AZ212: 18 | BA212: 1 | BB212: 0 | BC212: 18 | BD212: 1 | BH212: 0 | BI212: 18 | BJ212: 1
A213: 13 | B213: 0 | C213: 0 | D213: 0 | E213: 0 | F213: 0 | G213: 0 | H213: 0 | I213: 0 | J213: 0 | AY213: 0 | AZ213: 0 | BA213: 0 | BB213: 0 | BC213: 0 | BD213: 0 | BH213: 0 | BI213: 0 | BJ213: 0
A214: 14 | B214: 0 | C214: 0 | D214: 0 | E214: 0 | F214: 0 | G214: 0 | H214: 0 | I214: 0 | J214: 0 | AY214: 0 | AZ214: 0 | BA214: 0 | BB214: 0 | BC214: 0 | BD214: 0 | BH214: 0 | BI214: 0 | BJ214: 0
A215: 15 | B215: 0 | C215: 0 | D215: 0 | E215: 0 | F215: 0 | G215: 0 | H215: 0 | I215: 0 | J215: 0 | AY215: 0 | AZ215: 0 | BA215: 0 | BB215: 0 | BC215: 0 | BD215: 0 | BH215: 0 | BI215: 0 | BJ215: 0
A216: 16 | B216: 0 | C216: 0 | D216: 0 | E216: 0 | F216: 0 | G216: 0 | H216: 0 | I216: 0 | J216: 0 | AY216: 0 | AZ216: 0 | BA216: 0 | BB216: 0 | BC216: 0 | BD216: 0 | BH216: 0 | BI216: 0 | BJ216: 0
A217: 17 | B217: 0 | C217: 0 | D217: 0 | E217: 0 | F217: 0 | G217: 0 | H217: 0 | I217: 0 | J217: 0 | AY217: 0 | AZ217: 0 | BA217: 0 | BB217: 0 | BC217: 0 | BD217: 0 | BH217: 0 | BI217: 0 | BJ217: 0
A218: 18 | B218: 0 | C218: 0 | D218: 0 | E218: 0 | F218: 0 | G218: 0 | H218: 0 | I218: 0 | J218: 0 | AY218: =IF($B22=0,0,B218) -> 0 | AZ218: 0 | BA218: 0 | BB218: 0 | BC218: 0 | BD218: 0 | BH218: =IF($D22=1,BB218+1,IF($D22=2,B$200,BB218)) -> 0 | BI218: 0 | BJ218: 0
A219: 19 | B219: 0 | C219: 0 | D219: 0 | E219: 0 | F219: 0 | G219: 0 | H219: 0 | I219: 0 | J219: 0 | AY219: 0 | AZ219: 0 | BA219: 0 | BB219: =IF($B23="",0,IF($E23=$E22,BB218,IF($E23>$E24,AY219,IF($E24>$E25,(AY219+AY220)/2,IF($E25>$E26,(AY219+AY220+AY221)/3,(AY219+AY220+AY221+AY222)/4))))) -> 0 | BC219: 0 | BD219: 0 | BH219: 0 | BI219: 0 | BJ219: 0
A220: 20 | B220: 0 | C220: 0 | D220: 0 | E220: 0 | F220: 0 | G220: 0 | H220: 0 | I220: 0 | J220: 0 | AY220: 0 | AZ220: 0 | BA220: 0 | BB220: 0 | BC220: 0 | BD220: 0 | BH220: 0 | BI220: 0 | BJ220: 0
A221: 21 | B221: 0 | C221: 0 | D221: 0 | E221: 0 | F221: 0 | G221: 0 | H221: 0 | I221: 0 | J221: 0 | AY221: 0 | AZ221: 0 | BA221: 0 | BB221: 0 | BC221: 0 | BD221: 0 | BH221: 0 | BI221: 0 | BJ221: 0
A222: 22 | B222: 0 | C222: 0 | D222: 0 | E222: 0 | F222: 0 | G222: 0 | H222: 0 | I222: 0 | J222: 0 | AY222: 0 | AZ222: 0 | BA222: 0 | BB222: 0 | BC222: 0 | BD222: 0 | BH222: 0 | BI222: 0 | BJ222: 0
A223: 23 | B223: 0 | C223: 0 | D223: 0 | E223: 0 | F223: 0 | G223: 0 | H223: 0 | I223: 0 | J223: 0 | AY223: 0 | AZ223: 0 | BA223: 0 | BB223: 0 | BC223: 0 | BD223: 0 | BH223: 0 | BI223: 0 | BJ223: 0
A224: 24 | B224: 0 | C224: 0 | D224: 0 | E224: 0 | F224: 0 | G224: 0 | H224: 0 | I224: 0 | J224: 0 | AY224: 0 | AZ224: 0 | BA224: 0 | BB224: 0 | BC224: 0 | BD224: 0 | BH224: 0 | BI224: 0 | BJ224: 0
A225: 25 | B225: 0 | C225: 0 | D225: 0 | E225: 0 | F225: 0 | G225: 0 | H225: 0 | I225: 0 | J225: 0 | AY225: 0 | AZ225: 0 | BA225: 0 | BB225: 0 | BC225: 0 | BD225: 0 | BH225: 0 | BI225: 0 | BJ225: 0
A226: 26 | B226: 0 | C226: 0 | D226: 0 | E226: 0 | F226: 0 | G226: 0 | H226: 0 | I226: 0 | J226: 0 | AY226: 0 | AZ226: 0 | BA226: 0 | BB226: 0 | BC226: 0 | BD226: 0 | BH226: 0 | BI226: 0 | BJ226: 0
A227: 27 | B227: 0 | C227: 0 | D227: 0 | E227: 0 | F227: 0 | G227: 0 | H227: 0 | I227: 0 | J227: 0 | AY227: 0 | AZ227: 0 | BA227: 0 | BB227: 0 | BC227: 0 | BD227: 0 | BH227: 0 | BI227: 0 | BJ227: 0
A228: 28 | B228: 0 | C228: 0 | D228: 0 | E228: 0 | F228: 0 | G228: 0 | H228: 0 | I228: 0 | J228: 0 | AY228: 0 | AZ228: 0 | BA228: 0 | BB228: 0 | BC228: 0 | BD228: 0 | BH228: 0 | BI228: 0 | BJ228: 0
A229: 29 | B229: 0 | C229: 0 | D229: 0 | E229: 0 | F229: 0 | G229: 0 | H229: 0 | I229: 0 | J229: 0 | AY229: 0 | AZ229: 0 | BA229: 0 | BB229: 0 | BC229: 0 | BD229: 0 | BH229: 0 | BI229: 0 | BJ229: 0
A230: 30 | B230: 0 | C230: 0 | D230: 0 | E230: 0 | F230: 0 | G230: 0 | H230: 0 | I230: 0 | J230: 0 | AY230: 0 | AZ230: 0 | BA230: 0 | BB230: 0 | BC230: 0 | BD230: 0 | BH230: 0 | BI230: 0 | BJ230: 0
A231: 31 | B231: 0 | C231: 0 | D231: 0 | E231: 0 | F231: 0 | G231: 0 | H231: 0 | I231: 0 | J231: 0 | AY231: 0 | AZ231: 0 | BA231: 0 | BB231: 0 | BC231: 0 | BD231: 0 | BH231: 0 | BI231: 0 | BJ231: 0
A232: 32 | B232: 0 | C232: 0 | D232: 0 | E232: 0 | F232: 0 | G232: 0 | H232: 0 | I232: 0 | J232: 0 | AY232: 0 | AZ232: 0 | BA232: 0 | BB232: 0 | BC232: 0 | BD232: 0 | BH232: 0 | BI232: 0 | BJ232: 0
A233: 33 | B233: 0 | C233: 0 | D233: 0 | E233: 0 | F233: 0 | G233: 0 | H233: 0 | I233: 0 | J233: 0 | AY233: 0 | AZ233: 0 | BA233: 0 | BB233: 0 | BC233: 0 | BD233: 0 | BH233: 0 | BI233: 0 | BJ233: 0
A234: 34 | B234: 0 | C234: 0 | D234: 0 | E234: 0 | F234: 0 | G234: 0 | H234: 0 | I234: 0 | J234: 0 | AY234: =IF($B38=0,0,B234) -> 0 | AZ234: 0 | BA234: 0 | BB234: 0 | BC234: 0 | BD234: 0 | BH234: =IF($D38=1,BB234+1,IF($D38=2,B$200,BB234)) -> 0 | BI234: 0 | BJ234: 0
A235: 35 | B235: 0 | C235: 0 | D235: 0 | E235: 0 | F235: 0 | G235: 0 | H235: 0 | I235: 0 | J235: 0 | AY235: 0 | AZ235: 0 | BA235: 0 | BB235: =IF($B39="",0,IF($E39=$E38,BB234,IF($E39>$E40,AY235,IF($E40>$E41,(AY235+AY236)/2,IF($E41>$E42,(AY235+AY236+AY237)/3,(AY235+AY236+AY237+AY238)/4))))) -> 0 | BC235: 0 | BD235: 0 | BH235: 0 | BI235: 0 | BJ235: 0
A236: 36 | B236: 0 | C236: 0 | D236: 0 | E236: 0 | F236: 0 | G236: 0 | H236: 0 | I236: 0 | J236: 0 | AY236: 0 | AZ236: 0 | BA236: 0 | BB236: 0 | BC236: 0 | BD236: 0 | BH236: 0 | BI236: 0 | BJ236: 0
A237: 37 | B237: 0 | C237: 0 | D237: 0 | E237: 0 | F237: 0 | G237: 0 | H237: 0 | I237: 0 | J237: 0 | AY237: 0 | AZ237: 0 | BA237: 0 | BB237: 0 | BC237: 0 | BD237: 0 | BH237: 0 | BI237: 0 | BJ237: 0
A238: 38 | B238: 0 | C238: 0 | D238: 0 | E238: 0 | F238: 0 | G238: 0 | H238: 0 | I238: 0 | J238: 0 | AY238: 0 | AZ238: 0 | BA238: 0 | BB238: 0 | BC238: 0 | BD238: 0 | BH238: 0 | BI238: 0 | BJ238: 0
A239: 39 | B239: 0 | C239: 0 | D239: 0 | E239: 0 | F239: 0 | G239: 0 | H239: 0 | I239: 0 | J239: 0 | AY239: 0 | AZ239: 0 | BA239: 0 | BB239: 0 | BC239: 0 | BD239: 0 | BH239: 0 | BI239: 0 | BJ239: 0
A240: 40 | B240: 0 | C240: 0 | D240: 0 | E240: 0 | F240: 0 | G240: 0 | H240: 0 | I240: 0 | J240: 0 | AY240: 0 | AZ240: 0 | BA240: 0 | BB240: 0 | BC240: 0 | BD240: 0 | BH240: 0 | BI240: 0 | BJ240: 0
A241: 41 | B241: 0 | C241: 0 | D241: 0 | E241: 0 | F241: 0 | G241: 0 | H241: 0 | I241: 0 | J241: 0 | AY241: 0 | AZ241: 0 | BA241: 0 | BB241: 0 | BC241: 0 | BD241: 0 | BH241: 0 | BI241: 0 | BJ241: 0
A242: 42 | B242: 0 | C242: 0 | D242: 0 | E242: 0 | F242: 0 | G242: 0 | H242: 0 | I242: 0 | J242: 0 | AY242: 0 | AZ242: 0 | BA242: 0 | BB242: 0 | BC242: 0 | BD242: 0 | BH242: 0 | BI242: 0 | BJ242: 0
A243: 43 | B243: 0 | C243: 0 | D243: 0 | E243: 0 | F243: 0 | G243: 0 | H243: 0 | I243: 0 | J243: 0 | AY243: 0 | AZ243: 0 | BA243: 0 | BB243: 0 | BC243: 0 | BD243: 0 | BH243: 0 | BI243: 0 | BJ243: 0
A244: 44 | B244: 0 | C244: 0 | D244: 0 | E244: 0 | F244: 0 | G244: 0 | H244: 0 | I244: 0 | J244: 0 | AY244: 0 | AZ244: 0 | BA244: 0 | BB244: 0 | BC244: 0 | BD244: 0 | BH244: 0 | BI244: 0 | BJ244: 0
A245: 45 | B245: 0 | C245: 0 | D245: 0 | E245: 0 | F245: 0 | G245: 0 | H245: 0 | I245: 0 | J245: 0 | AY245: 0 | AZ245: 0 | BA245: 0 | BB245: 0 | BC245: 0 | BD245: 0 | BH245: 0 | BI245: 0 | BJ245: 0
A246: 46 | B246: 0 | C246: 0 | D246: 0 | E246: 0 | F246: 0 | G246: 0 | H246: 0 | I246: 0 | J246: 0 | AY246: 0 | AZ246: 0 | BA246: 0 | BB246: 0 | BC246: 0 | BD246: 0 | BH246: 0 | BI246: 0 | BJ246: 0
A247: 47 | B247: 0 | C247: 0 | D247: 0 | E247: 0 | F247: 0 | G247: 0 | H247: 0 | I247: 0 | J247: 0 | AY247: 0 | AZ247: 0 | BA247: 0 | BB247: 0 | BC247: 0 | BD247: 0 | BH247: 0 | BI247: 0 | BJ247: 0
A248: 48 | B248: 0 | C248: 0 | D248: 0 | E248: 0 | F248: 0 | G248: 0 | H248: 0 | I248: 0 | J248: 0 | AY248: 0 | AZ248: 0 | BA248: 0 | BB248: 0 | BC248: 0 | BD248: 0 | BH248: 0 | BI248: 0 | BJ248: 0
A249: 49 | B249: 0 | C249: 0 | D249: 0 | E249: 0 | F249: 0 | G249: 0 | H249: 0 | I249: 0 | J249: 0 | AY249: 0 | AZ249: 0 | BA249: 0 | BB249: 0 | BC249: 0 | BD249: 0 | BH249: 0 | BI249: 0 | BJ249: 0
A250: 50 | B250: 0 | C250: 0 | D250: 0 | E250: 0 | F250: 0 | G250: 0 | H250: 0 | I250: 0 | J250: 0 | AY250: =IF($B54=0,0,B250) -> 0 | AZ250: 0 | BA250: 0 | BB250: 0 | BC250: 0 | BD250: 0 | BH250: =IF($D54=1,BB250+1,IF($D54=2,B$200,BB250)) -> 0 | BI250: 0 | BJ250: 0

Sheet 15feb
A1: Data | C1: 2020-02-15 | D1: BridgeMania 2019-20 - Torneo Howell
A2: luogo | C2: De Sanctis | D2: Coppie Ctrl+e | E2: Calcola Ctr+f | F2: Duplica Ctrl+g | G2: Clear Ctrl+h | J2: &
A3: # coppie | C3: =IF(B5="","",COUNT(B5:B54)) -> 11 | E3: =IF(E5="","",SUMIF(E5:E54,">0")) -> 547.7272727 | G3: =IF(G5="","",SUM(G5:G54)) -> 547.7272727 | H3: =IF(H5="","",SUM(H5:H54)) -> 964 | I3: =SUM(I5:I54) -> -4 | J3: =SUM(J5:J54) -> 968 | K3: =SUM(K5:K54) -> 44 | L3: =SUM(L5:L54) -> 44 | M3: 44 | N3: 44 | O3: 44 | P3: 44 | Q3: 44 | R3: 44 | S3: 44 | T3: 44 | U3: 44 | V3: 44 | W3: 44 | X3: 44 | Y3: 44 | Z3: 44 | AA3: 44 | AB3: 44 | AC3: 44 | AD3: 44 | AE3: 44 | AF3: 44 | AG3: 0 | AH3: 0 | AI3: 0 | AJ3: 0 | AK3: 0 | AL3: 0 | AM3: 0 | AN3: 0 | AO3: 0 | AP3: 0 | AQ3: 0 | AR3: 0 | AS3: 0 | AT3: 0 | AU3: 0 | AV3: 0 | AW3: 0 | AX3: 0
A4: Class. | B4: # | C4: Coppie | D4: Inserire a mano "1" = + 1 PTS "2" = PTS medio | E4: Punteggio Serata | G4: Punteggio % | H4: Punteggio Torneo | I4: Penalità (-) | J4: Totale punti mano | K4: 1 | L4: 2 | M4: 3 | N4: 4 | O4: 5 | P4: 6 | Q4: 7 | R4: 8 | S4: 9 | T4: 10 | U4: 11 | V4: 12 | W4: 13 | X4: 14 | Y4: 15 | Z4: 16 | AA4: 17 | AB4: 18 | AC4: 19 | AD4: 20 | AE4: 21 | AF4: 22 | AG4: 23 | AH4: 24 | AI4: 25 | AJ4: 26 | AK4: 27 | AL4: 28 | AM4: 29 | AN4: 30 | AO4: 31 | AP4: 32 | AQ4: 33 | AR4: 34 | AS4: 35 | AT4: 36 | AU4: 37 | AV4: 38 | AW4: 39 | AX4: 40 | AZ4: F1 Fast | BA4: IndyCar Hard | BB4: F1 Hybrid | BF4: # std coppie
A5: =IF(J$2="","",IF($E5="","",IF($E5=MAX($E$5:$E$54),1,IF($E5=$E4,$A4,COUNT($E$5:$E5))))) -> 1 | B5: 6 | C5: Renata-Sandro | E5: =IF(J$2="","",IF(G5=0,0,F5+G5)) -> 56.25 | G5: =IF(J$2="","",IF($J5=0,0,(H5*$C$3/$J$3)*50)) -> 56.25 | H5: =IF(J$2="","",IF(SUM($K5:$AX5)=0,0,SUM($K5:$AX5)+$I5)) -> 99 | J5: =IF(B5="",0,IF(SUM($K5:$AX5)=0,0,SUM($K5:$AX5))) -> 99 | K5: 8 | L5: 1 | M5: 6 | N5: 6 | O5: 4 | P5: 5 | Q5: 2 | R5: 5 | S5: 8 | T5: 7 | U5: 4 | V5: 4 | W5: 6 | X5: 0 | Y5: 7 | Z5: 0 | AA5: 4 | AB5: 6 | AC5: 7 | AD5: 7 | AE5: 0 | AF5: 2 | AY5: Renata-Sandro | AZ5: 25 | BA5: 50 | BB5: 22 | BF5: 9
A6: =IF(J$2="","",IF($E6="","",IF($E6=MAX($E$5:$E$54),1,IF($E6=$E5,$A5,COUNT($E$5:$E6))))) -> 2 | B6: 9 | C6: Lilli-Gianni | E6: 55.68181818 | G6: 55.68181818 | H6: 98 | J6: 98 | K6: 7 | L6: 4 | M6: 2 | N6: 2 | O6: 8 | P6: 3 | Q6: 8 | R6: 3 | S6: 3 | T6: 7 | U6: 6 | V6: 1 | W6: 2 | X6: 4 | Y6: 4 | Z6: 5 | AA6: 4 | AB6: 4 | AC6: 7 | AD6: 4 | AE6: 6 | AF6: 4 | AY6: Lilli-Gianni | AZ6: 18 | BA6: 40 | BB6: 18 | BF6: 6
A7: =IF(J$2="","",IF($E7="","",IF($E7=MAX($E$5:$E$54),1,IF($E7=$E6,$A6,COUNT($E$5:$E7))))) -> 3 | B7: 4 | C7: Barbara-Elio | E7: 53.97727273 | G7: 53.97727273 | H7: 95 | I7: -2 | J7: 97 | K7: 1 | L7: 4 | M7: 2 | N7: 0 | O7: 7 | P7: 5 | Q7: 4 | R7: 4 | S7: 0 | T7: 1 | U7: 4 | V7: 6 | W7: 6 | X7: 8 | Y7: 6 | Z7: 3 | AA7: 8 | AB7: 4 | AC7: 8 | AD7: 8 | AE7: 0 | AF7: 8 | AY7: Barbara-Elio | AZ7: 15 | BA7: 35 | BB7: 15 | BF7: 2
A8: =IF(J$2="","",IF($E8="","",IF($E8=MAX($E$5:$E$54),1,IF($E8=$E7,$A7,COUNT($E$5:$E8))))) -> 4 | B8: 10 | C8: Stefania-Massimo | D8: 1 | E8: 53.40909091 | G8: 53.40909091 | H8: 94 | J8: 94 | K8: 1 | L8: 6 | M8: 2 | N8: 5 | O8: 6 | P8: 8 | Q8: 0 | R8: 5 | S8: 3 | T8: 2 | U8: 8 | V8: 8 | W8: 2 | X8: 0 | Y8: 1 | Z8: 8 | AA8: 8 | AB8: 0 | AC8: 4 | AD8: 4 | AE8: 5 | AF8: 8 | AY8: Stefania-Massimo | AZ8: 13 | BA8: 33 | BB8: 13 | BF8: 10
A9: =IF(J$2="","",IF($E9="","",IF($E9=MAX($E$5:$E$54),1,IF($E9=$E8,$A8,COUNT($E$5:$E9))))) -> 5 | B9: 11 | C9: Antonella-Dino | E9: 51.13636364 | G9: 51.13636364 | H9: 90 | J9: 90 | K9: 2 | L9: 0 | M9: 6 | N9: 8 | O9: 4 | P9: 3 | Q9: 5 | R9: 5 | S9: 5 | T9: 6 | U9: 1 | V9: 4 | W9: 8 | X9: 4 | Y9: 7 | Z9: 5 | AA9: 2 | AB9: 2 | AC9: 1 | AD9: 4 | AE9: 4 | AF9: 4 | AY9: Antonella-Dino | AZ9: 10 | BA9: 30 | BB9: 10 | BF9: 1
A10: =IF(J$2="","",IF($E10="","",IF($E10=MAX($E$5:$E$54),1,IF($E10=$E9,$A9,COUNT($E$5:$E10))))) -> 6 | B10: 1 | C10: Olimpia-Sauro | E10: 50.56818182 | G10: 50.56818182 | H10: 89 | J10: 89 | K10: 4 | L10: 4 | M10: 7 | N10: 8 | O10: 7 | P10: 5 | Q10: 5 | R10: 0 | S10: 5 | T10: 1 | U10: 7 | V10: 4 | W10: 2 | X10: 4 | Y10: 2 | Z10: 5 | AA10: 4 | AB10: 2 | AC10: 3 | AD10: 7 | AE10: 3 | AF10: 0 | AY10: Olimpia-Sauro | AZ10: 8 | BA10: 28 | BB10: 9 | BF10: 8
A11: =IF(J$2="","",IF($E11="","",IF($E11=MAX($E$5:$E$54),1,IF($E11=$E10,$A10,COUNT($E$5:$E11))))) -> 7 | B11: 8 | C11: Manuela-Roberto | E11: 50 | G11: 50 | H11: 88 | J11: 88 | K11: 4 | L11: 7 | M11: 7 | N11: 5 | O11: 0 | P11: 5 | Q11: 3 | R11: 3 | S11: 3 | T11: 2 | U11: 4 | V11: 2 | W11: 2 | X11: 8 | Y11: 4 | Z11: 4 | AA11: 0 | AB11: 8 | AC11: 5 | AD11: 1 | AE11: 5 | AF11: 6 | AY11: Manuela-Roberto | AZ11: 6 | BA11: 26 | BB11: 7 | BF11: 7
A12: =IF(J$2="","",IF($E12="","",IF($E12=MAX($E$5:$E$54),1,IF($E12=$E11,$A11,COUNT($E$5:$E12))))) -> 8 | B12: 2 | C12: Elena-Stefano | E12: 48.86363636 | G12: 48.86363636 | H12: 86 | I12: -2 | J12: 88 | K12: 6 | L12: 8 | M12: 4 | N12: 4 | O12: 1 | P12: 3 | Q12: 6 | R12: 3 | S12: 5 | T12: 6 | U12: 0 | V12: 0 | W12: 6 | X12: 4 | Y12: 0 | Z12: 5 | AA12: 2 | AB12: 8 | AC12: 5 | AD12: 6 | AE12: 2 | AF12: 4 | AY12: Elena-Stefano | AZ12: 4 | BA12: 24 | BB12: 6 | BF12: 4
A13: =IF(J$2="","",IF($E13="","",IF($E13=MAX($E$5:$E$54),1,IF($E13=$E12,$A12,COUNT($E$5:$E13))))) -> 9 | B13: 7 | C13: Cesarina-Gaetano | E13: 43.75 | G13: 43.75 | H13: 77 | J13: 77 | K13: 0 | L13: 7 | M13: 1 | N13: 3 | O13: 2 | P13: 0 | Q13: 3 | R13: 8 | S13: 5 | T13: 6 | U13: 1 | V13: 1 | W13: 4 | X13: 4 | Y13: 4 | Z13: 3 | AA13: 6 | AB13: 6 | AC13: 3 | AD13: 2 | AE13: 8 | AF13: 0 | AY13: Cesarina-Gaetano | AZ13: 1.5 | BA13: 21 | BB13: 3 | BF13: 3
A14: =IF(J$2="","",IF($E14="","",IF($E14=MAX($E$5:$E$54),1,IF($E14=$E13,$A13,COUNT($E$5:$E14))))) -> 9 | B14: 5 | C14: Marilena-Sergio | E14: 43.75 | G14: 43.75 | H14: 77 | J14: 77 | K14: 4 | L14: 1 | M14: 6 | N14: 3 | O14: 1 | P14: 3 | Q14: 0 | R14: 3 | S14: 4 | T14: 4 | U14: 7 | V14: 7 | W14: 6 | X14: 4 | Y14: 1 | Z14: 3 | AA14: 6 | AB14: 0 | AC14: 0 | AD14: 0 | AE14: 8 | AF14: 6 | AY14: Marilena-Sergio | AZ14: 1.5 | BA14: 21 | BB14: 3 | BF14: 12
A15: =IF(J$2="","",IF($E15="","",IF($E15=MAX($E$5:$E$54),1,IF($E15=$E14,$A14,COUNT($E$5:$E15))))) -> 11 | B15: 3 | C15: Tatiana-Julio | E15: 40.34090909 | G15: 40.34090909 | H15: 71 | J15: 71 | K15: 7 | L15: 2 | M15: 1 | N15: 0 | O15: 4 | P15: 4 | Q15: 8 | R15: 5 | S15: 3 | T15: 2 | U15: 2 | V15: 7 | W15: 0 | X15: 4 | Y15: 8 | Z15: 3 | AA15: 0 | AB15: 4 | AC15: 1 | AD15: 1 | AE15: 3 | AF15: 2 | AY15: Tatiana-Julio | AZ15: 0 | BA15: 19 | BB15: 1 | BF15: 11
A16: =IF(J$2="","",IF($E16="","",IF($E16=MAX($E$5:$E$54),1,IF($E16=$E15,$A15,COUNT($E$5:$E16))))) -> 12 | C16: Isolde-Cristina | D16: 2 | E16: 0 | G16: 0 | H16: 0 | J16: 0 | AY16: Isolde-Cristina | AZ16: 8.417 | BA16: 28.667 | BB16: 9.64 | BF16: 5
A17: =IF(J$2="","",IF($E17="","",IF($E17=MAX($E$5:$E$54),1,IF($E17=$E16,$A16,COUNT($E$5:$E17))))) -> 12 | C17: A.Maria-Claudio | E17: 0 | G17: 0 | H17: 0 | J17: 0 | AY17: A.Maria-Claudio | AZ17: 0 | BA17: 0 | BB17: 0 | BF17: 13
A18: =IF(J$2="","",IF($E18="","",IF($E18=MAX($E$5:$E$54),1,IF($E18=$E17,$A17,COUNT($E$5:$E18))))) -> 12 | C18: June-Vincenzo | E18: 0 | G18: 0 | H18: 0 | J18: 0 | AY18: June-Vincenzo | AZ18: 0 | BA18: 0 | BB18: 0 | BF18: 14
A19: =IF(J$2="","",IF($E19="","",IF($E19=MAX($E$5:$E$54),1,IF($E19=$E18,$A18,COUNT($E$5:$E19))))) -> 12 | C19: Marina-Enzo | E19: 0 | G19: 0 | H19: 0 | J19: 0 | AY19: Marina-Enzo | AZ19: 0 | BA19: 0 | BB19: 0 | BF19: 15
A20: =IF(J$2="","",IF($E20="","",IF($E20=MAX($E$5:$E$54),1,IF($E20=$E19,$A19,COUNT($E$5:$E20))))) -> 12 | C20: Letizia-Enzo | E20: 0 | G20: 0 | H20: 0 | J20: 0 | AY20: Letizia-Enzo | AZ20: 0 | BA20: 0 | BB20: 0 | BF20: 16
A21: =IF(J$2="","",IF($E21="","",IF($E21=MAX($E$5:$E$54),1,IF($E21=$E20,$A20,COUNT($E$5:$E21))))) -> 12 | E21: 0 | G21: 0 | H21: 0 | J21: 0 | AZ21: 0 | BA21: 0 | BB21: 0 | BF21: 17
A22: =IF(J$2="","",IF($E22="","",IF($E22=MAX($E$5:$E$54),1,IF($E22=$E21,$A21,COUNT($E$5:$E22))))) -> 12 | E22: 0 | G22: 0 | H22: 0 | J22: 0 | AZ22: 0 | BA22: 0 | BB22: 0 | BF22: 18
A23: =IF(J$2="","",IF($E23="","",IF($E23=MAX($E$5:$E$54),1,IF($E23=$E22,$A22,COUNT($E$5:$E23))))) -> 12 | E23: 0 | G23: 0 | H23: 0 | J23: 0 | AZ23: 0 | BA23: 0 | BB23: 0 | BF23: 19
A24: =IF(J$2="","",IF($E24="","",IF($E24=MAX($E$5:$E$54),1,IF($E24=$E23,$A23,COUNT($E$5:$E24))))) -> 12 | E24: 0 | G24: 0 | H24: 0 | J24: 0 | AZ24: 0 | BA24: 0 | BB24: 0 | BF24: 20
A25: =IF(J$2="","",IF($E25="","",IF($E25=MAX($E$5:$E$54),1,IF($E25=$E24,$A24,COUNT($E$5:$E25))))) -> 12 | E25: 0 | G25: 0 | H25: 0 | J25: 0 | AZ25: 0 | BA25: 0 | BB25: 0 | BF25: 21
A26: =IF(J$2="","",IF($E26="","",IF($E26=MAX($E$5:$E$54),1,IF($E26=$E25,$A25,COUNT($E$5:$E26))))) -> 12 | E26: 0 | G26: 0 | H26: 0 | J26: 0 | AZ26: 0 | BA26: 0 | BB26: 0 | BF26: 22
A27: =IF(J$2="","",IF($E27="","",IF($E27=MAX($E$5:$E$54),1,IF($E27=$E26,$A26,COUNT($E$5:$E27))))) -> 12 | E27: 0 | G27: 0 | H27: 0 | J27: 0 | AZ27: 0 | BA27: 0 | BB27: 0 | BF27: 23
A28: =IF(J$2="","",IF($E28="","",IF($E28=MAX($E$5:$E$54),1,IF($E28=$E27,$A27,COUNT($E$5:$E28))))) -> 12 | E28: 0 | G28: 0 | H28: 0 | J28: 0 | AZ28: 0 | BA28: 0 | BB28: 0 | BF28: 24
A29: =IF(J$2="","",IF($E29="","",IF($E29=MAX($E$5:$E$54),1,IF($E29=$E28,$A28,COUNT($E$5:$E29))))) -> 12 | E29: 0 | G29: 0 | H29: 0 | J29: 0 | AZ29: 0 | BA29: 0 | BB29: 0 | BF29: 25
A30: =IF(J$2="","",IF($E30="","",IF($E30=MAX($E$5:$E$54),1,IF($E30=$E29,$A29,COUNT($E$5:$E30))))) -> 12 | E30: 0 | G30: 0 | H30: 0 | J30: 0 | AZ30: 0 | BA30: 0 | BB30: 0 | BF30: 26
A31: =IF(J$2="","",IF($E31="","",IF($E31=MAX($E$5:$E$54),1,IF($E31=$E30,$A30,COUNT($E$5:$E31))))) -> 12 | E31: 0 | G31: 0 | H31: 0 | J31: 0 | AZ31: 0 | BA31: 0 | BB31: 0 | BF31: 27
A32: =IF(J$2="","",IF($E32="","",IF($E32=MAX($E$5:$E$54),1,IF($E32=$E31,$A31,COUNT($E$5:$E32))))) -> 12 | E32: 0 | G32: 0 | H32: 0 | J32: 0 | AZ32: 0 | BA32: 0 | BB32: 0 | BF32: 28
A33: =IF(J$2="","",IF($E33="","",IF($E33=MAX($E$5:$E$54),1,IF($E33=$E32,$A32,COUNT($E$5:$E33))))) -> 12 | E33: 0 | G33: 0 | H33: 0 | J33: 0 | AZ33: 0 | BA33: 0 | BB33: 0 | BF33: 29
A34: =IF(J$2="","",IF($E34="","",IF($E34=MAX($E$5:$E$54),1,IF($E34=$E33,$A33,COUNT($E$5:$E34))))) -> 12 | E34: 0 | G34: 0 | H34: 0 | J34: 0 | AZ34: 0 | BA34: 0 | BB34: 0 | BF34: 30
A35: =IF(J$2="","",IF($E35="","",IF($E35=MAX($E$5:$E$54),1,IF($E35=$E34,$A34,COUNT($E$5:$E35))))) -> 12 | E35: 0 | G35: 0 | H35: 0 | J35: 0 | AZ35: 0 | BA35: 0 | BB35: 0 | BF35: 31
A36: =IF(J$2="","",IF($E36="","",IF($E36=MAX($E$5:$E$54),1,IF($E36=$E35,$A35,COUNT($E$5:$E36))))) -> 12 | E36: 0 | G36: 0 | H36: 0 | J36: 0 | AZ36: 0 | BA36: 0 | BB36: 0 | BF36: 32
A37: =IF(J$2="","",IF($E37="","",IF($E37=MAX($E$5:$E$54),1,IF($E37=$E36,$A36,COUNT($E$5:$E37))))) -> 12 | E37: =IF(J$2="","",IF(G37=0,0,F37+G37)) -> 0 | G37: =IF(J$2="","",IF($J37=0,0,(H37*$C$3/$J$3)*50)) -> 0 | H37: =IF(J$2="","",IF(SUM($K37:$AX37)=0,0,SUM($K37:$AX37)+$I37)) -> 0 | J37: =IF(B37="",0,IF(SUM($K37:$AX37)=0,0,SUM($K37:$AX37))) -> 0 | AZ37: 0 | BA37: 0 | BB37: 0 | BF37: 33
A38: =IF(J$2="","",IF($E38="","",IF($E38=MAX($E$5:$E$54),1,IF($E38=$E37,$A37,COUNT($E$5:$E38))))) -> 12 | E38: 0 | G38: 0 | H38: 0 | J38: 0 | AZ38: 0 | BA38: 0 | BB38: 0 | BF38: 34
A39: =IF(J$2="","",IF($E39="","",IF($E39=MAX($E$5:$E$54),1,IF($E39=$E38,$A38,COUNT($E$5:$E39))))) -> 12 | E39: 0 | G39: 0 | H39: 0 | J39: 0 | AZ39: 0 | BA39: 0 | BB39: 0 | BF39: 35
A40: =IF(J$2="","",IF($E40="","",IF($E40=MAX($E$5:$E$54),1,IF($E40=$E39,$A39,COUNT($E$5:$E40))))) -> 12 | E40: 0 | G40: 0 | H40: 0 | J40: 0 | AZ40: 0 | BA40: 0 | BB40: 0 | BF40: 36
A41: =IF(J$2="","",IF($E41="","",IF($E41=MAX($E$5:$E$54),1,IF($E41=$E40,$A40,COUNT($E$5:$E41))))) -> 12 | E41: 0 | G41: 0 | H41: 0 | J41: 0 | AZ41: 0 | BA41: 0 | BB41: 0 | BF41: 37
A42: =IF(J$2="","",IF($E42="","",IF($E42=MAX($E$5:$E$54),1,IF($E42=$E41,$A41,COUNT($E$5:$E42))))) -> 12 | E42: 0 | G42: 0 | H42: 0 | J42: 0 | AZ42: 0 | BA42: 0 | BB42: 0 | BF42: 38
A43: =IF(J$2="","",IF($E43="","",IF($E43=MAX($E$5:$E$54),1,IF($E43=$E42,$A42,COUNT($E$5:$E43))))) -> 12 | E43: 0 | G43: 0 | H43: 0 | J43: 0 | AZ43: 0 | BA43: 0 | BB43: 0 | BF43: 39
A44: =IF(J$2="","",IF($E44="","",IF($E44=MAX($E$5:$E$54),1,IF($E44=$E43,$A43,COUNT($E$5:$E44))))) -> 12 | E44: 0 | G44: 0 | H44: 0 | J44: 0 | AZ44: 0 | BA44: 0 | BB44: 0 | BF44: 40
A45: =IF(J$2="","",IF($E45="","",IF($E45=MAX($E$5:$E$54),1,IF($E45=$E44,$A44,COUNT($E$5:$E45))))) -> 12 | E45: 0 | G45: 0 | H45: 0 | J45: 0 | AZ45: 0 | BA45: 0 | BB45: 0 | BF45: 41
A46: =IF(J$2="","",IF($E46="","",IF($E46=MAX($E$5:$E$54),1,IF($E46=$E45,$A45,COUNT($E$5:$E46))))) -> 12 | E46: 0 | G46: 0 | H46: 0 | J46: 0 | AZ46: 0 | BA46: 0 | BB46: 0 | BF46: 42
A47: =IF(J$2="","",IF($E47="","",IF($E47=MAX($E$5:$E$54),1,IF($E47=$E46,$A46,COUNT($E$5:$E47))))) -> 12 | E47: 0 | G47: 0 | H47: 0 | J47: 0 | AZ47: 0 | BA47: 0 | BB47: 0 | BF47: 43
A48: =IF(J$2="","",IF($E48="","",IF($E48=MAX($E$5:$E$54),1,IF($E48=$E47,$A47,COUNT($E$5:$E48))))) -> 12 | E48: 0 | G48: 0 | H48: 0 | J48: 0 | AZ48: 0 | BA48: 0 | BB48: 0 | BF48: 44
A49: =IF(J$2="","",IF($E49="","",IF($E49=MAX($E$5:$E$54),1,IF($E49=$E48,$A48,COUNT($E$5:$E49))))) -> 12 | E49: 0 | G49: 0 | H49: 0 | J49: 0 | AZ49: 0 | BA49: 0 | BB49: 0 | BF49: 45
A50: =IF(J$2="","",IF($E50="","",IF($E50=MAX($E$5:$E$54),1,IF($E50=$E49,$A49,COUNT($E$5:$E50))))) -> 12 | E50: 0 | G50: 0 | H50: 0 | J50: 0 | AZ50: 0 | BA50: 0 | BB50: 0 | BF50: 46
A51: =IF(J$2="","",IF($E51="","",IF($E51=MAX($E$5:$E$54),1,IF($E51=$E50,$A50,COUNT($E$5:$E51))))) -> 12 | E51: 0 | G51: 0 | H51: 0 | J51: 0 | AZ51: 0 | BA51: 0 | BB51: 0 | BF51: 47
A52: =IF(J$2="","",IF($E52="","",IF($E52=MAX($E$5:$E$54),1,IF($E52=$E51,$A51,COUNT($E$5:$E52))))) -> 12 | E52: 0 | G52: 0 | H52: 0 | J52: 0 | AZ52: 0 | BA52: 0 | BB52: 0 | BF52: 48
A53: =IF(J$2="","",IF($E53="","",IF($E53=MAX($E$5:$E$54),1,IF($E53=$E52,$A52,COUNT($E$5:$E53))))) -> 12 | E53: 0 | G53: 0 | H53: 0 | J53: 0 | AZ53: 0 | BA53: 0 | BB53: 0 | BF53: 49
A54: =IF(J$2="","",IF($E54="","",IF($E54=MAX($E$5:$E$54),1,IF($E54=$E53,$A53,COUNT($E$5:$E54))))) -> 12 | E54: 0 | G54: 0 | H54: 0 | J54: 0 | AZ54: 0 | BA54: 0 | BB54: 0 | BF54: 50
D59: punteggi torneo ordinati per # di coppia
B60: # coppia | E60: con zeri | F60: senza zeri | G60: senza zeri
B61: 1 | E61: 50.56818182 | F61: =IF(E61=0,"",E61) -> 50.56818182 | G61: 50.56818182 | BF61: 8
B62: 2 | E62: 48.86363636 | F62: 48.86363636 | G62: 48.86363636 | I62: =IF(H62=0,"",H62) ->  | BF62: 4
B63: 3 | E63: 40.34090909 | F63: 40.34090909 | G63: 40.34090909 | BF63: 11
B64: 4 | E64: 53.97727273 | F64: 53.97727273 | G64: 53.97727273 | BF64: 2
B65: 5 | E65: 43.75 | F65: 43.75 | G65: 43.75 | I65: =IF(H65=0,"",H65) ->  | BF65: 12
B66: 6 | E66: 56.25 | F66: 56.25 | G66: 56.25 | BF66: 9
B67: 7 | E67: 43.75 | F67: 43.75 | G67: 43.75 | I67: =IF(H67=0,"",H67) ->  | BF67: 3
B68: 8 | E68: 50 | F68: 50 | G68: 50 | I68: =IF(H68=0,"",H68) ->  | BF68: 7
B69: 9 | E69: 55.68181818 | F69: 55.68181818 | G69: 55.68181818 | BF69: 6
B70: 10 | E70: 53.40909091 | F70: 53.40909091 | G70: 53.40909091 | BF70: 10
B71: 11 | E71: 51.13636364 | F71: 51.13636364 | G71: 51.13636364 | I71: =IF(H71=0,"",H71) ->  | BF71: 1
E72: 0 | I72: =IF(H72=0,"",H72) ->  | BF72: 5
E73: 0 | BF73: 13
E74: 0 | I74: =IF(H74=0,"",H74) ->  | BF74: 14
E75: 0 | I75: =IF(H75=0,"",H75) ->  | BF75: 15
E76: 0 | I76: =IF(H76=0,"",H76) ->  | BF76: 16
E77: 0 | BF77: 17
E78: 0 | BF78: 18
E79: 0 | I79: =IF(H79=0,"",H79) ->  | BF79: 19
E80: 0 | I80: =IF(H80=0,"",H80) ->  | BF80: 20
E81: 0 | BF81: 21
E82: 0 | BF82: 22
E83: 0 | BF83: 23
E84: 0 | BF84: 24
E85: 0 | BF85: 25
E86: 0 | BF86: 26
E87: 0 | BF87: 27
E88: 0 | BF88: 28
E89: 0 | BF89: 29
E90: 0 | BF90: 30
E91: 0 | BF91: 31
E92: 0 | BF92: 32
E93: 0 | F93: =IF(E93=0,"",E93) ->  | BF93: 33
E94: 0 | BF94: 34
E95: 0 | BF95: 35
E96: 0 | BF96: 36
E97: 0 | BF97: 37
E98: 0 | BF98: 38
E99: 0 | BF99: 39
E100: 0 | BF100: 40
E101: 0 | BF101: 41
E102: 0 | BF102: 42
E103: 0 | BF103: 43
E104: 0 | BF104: 44
E105: 0 | BF105: 45
E106: 0 | BF106: 46
E107: 0 | BF107: 47
E108: 0 | BF108: 48
E109: 0 | BF109: 49
E110: 0 | BF110: 50
A119: PTS ordinati per numero standard di coppia base
A120: #STD | B120: PTS
B121: 11 | E121: 51.13636364 | F121: =IF(E121=0,"",E121) -> 51.13636364 | G121: 51.13636364 | I121: =IF(H121=0,"",H121) ->  | BF121: 1
B122: 4 | E122: 53.97727273 | F122: 53.97727273 | G122: 53.97727273 | BF122: 2
B123: 7 | E123: 43.75 | F123: 43.75 | G123: 43.75 | I123: =IF(H123=0,"",H123) ->  | BF123: 3
B124: 2 | E124: 48.86363636 | F124: 48.86363636 | G124: 48.86363636 | I124: =IF(H124=0,"",H124) ->  | BF124: 4
E125: 0 | I125: =IF(H125=0,"",H125) ->  | BF125: 5
B126: 9 | E126: 55.68181818 | F126: 55.68181818 | G126: 55.68181818 | BF126: 6
B127: 8 | E127: 50 | F127: 50 | G127: 50 | I127: =IF(H127=0,"",H127) ->  | BF127: 7
B128: 1 | E128: 50.56818182 | F128: 50.56818182 | G128: 50.56818182 | BF128: 8
B129: 6 | E129: 56.25 | F129: 56.25 | G129: 56.25 | BF129: 9
B130: 10 | E130: 53.40909091 | F130: 53.40909091 | G130: 53.40909091 | BF130: 10
B131: 3 | E131: 40.34090909 | F131: 40.34090909 | G131: 40.34090909 | BF131: 11
B198: F1 Fast | C198: IndyCar Hard | D198: F1 Hibryd | AY198: F1 Fast | AZ198: IndyCar Hard | BA198: F1 Hybrid | BB198: F1 Fast | BC198: IndyCar Hard | BD198: F1 Hybrid
A199: classifica | D199: 6+ | E199: 5.5 | F199: 5 | G199: 4.5 | H199: 4 | I199: 3.5 | J199: 3 | AY199: scale-punti base | BB199: con medie e parimerito | BH199: con correzioni (punti finali)
A200: p.medio | B200: 8.417 | C200: 28.667 | D200: 10.17 | E200: 9.64 | F200: 9 | G200: 8.33 | H200: 7.38 | I200: 6.43 | J200: 5.5 | BB200: =B200 -> 8.417 | BC200: =C200 -> 28.667 | BD200: =IF($B4=0,0,IF($C$3=6,J200))+IF($C$3=7,I200)+IF($C$3=8,H200)+IF($C$3=9,G200)+IF($C$3=10,F200)+IF($C$3=11,E200)+IF($C$3>=12,D200) -> 9.64 | BH200: F1 Fast | BI200: HindyCar Hard | BJ200: F1 Hibryd
A201: 1 | B201: 25 | C201: 50 | D201: 25 | E201: 22 | F201: 20 | G201: 18 | H201: 16 | I201: 14 | J201: 12 | AY201: =IF($B5=0,0,B201) -> 25 | AZ201: =IF($B5=0,0,C201) -> 50 | BA201: =IF($B5=0,0,IF($C$3=6,J201))+IF($C$3=7,I201)+IF($C$3=8,H201)+IF($C$3=9,G201)+IF($C$3=10,F201)+IF($C$3=11,E201)+IF($C$3>=12,D201) -> 22 | BB201: =IF($B5="",0,IF($E5>$E6,AY201,IF($E6>$E7,(AY201+AY202)/2,IF($E7>$E8,(AY201+AY202+AY203)/3,(AY201+AY202+AY203+AY204)/4)))) -> 25 | BC201: =IF($B5="",0,IF($E5>$E6,AZ201,IF($E6>$E7,(AZ201+AZ202)/2,IF($E7>$E8,(AZ201+AZ202+AZ203)/3,(AZ201+AZ202+AZ203+AZ204)/4)))) -> 50 | BD201: 22 | BH201: =IF($D5=1,BB201+1,IF($D5=2,B$200,BB201)) -> 25 | BI201: =IF($D5=1,BC201+1,IF($D5=2,C$200,BC201)) -> 50 | BJ201: =IF($D5=1,BD201+1,IF($D5=2,BD$200,BD201)) -> 22
A202: 2 | B202: 18 | C202: 40 | D202: 19 | E202: 18 | F202: 16 | G202: 14 | H202: 12 | I202: 10 | J202: 8 | AY202: =IF($B6=0,0,B202) -> 18 | AZ202: 40 | BA202: =IF($B6=0,0,IF($C$3=6,J202))+IF($C$3=7,I202)+IF($C$3=8,H202)+IF($C$3=9,G202)+IF($C$3=10,F202)+IF($C$3=11,E202)+IF($C$3>=12,D202) -> 18 | BB202: =IF($B6="",0,IF($E6=$E5,BB201,IF($E6>$E7,AY202,IF($E7>$E8,(AY202+AY203)/2,IF($E8>$E9,(AY202+AY203+AY204)/3,(AY202+AY203+AY204+AY205)/4))))) -> 18 | BC202: =IF($B6="",0,IF($E6=$E5,BC201,IF($E6>$E7,AZ202,IF($E7>$E8,(AZ202+AZ203)/2,IF($E8>$E9,(AZ202+AZ203+AZ204)/3,(AZ202+AZ203+AZ204+AZ205)/4))))) -> 40 | BD202: =IF($B6="",0,IF($E6=$E5,BD201,IF($E6>$E7,BA202,IF($E7>$E8,(BA202+BA203)/2,IF($E8>$E9,(BA202+BA203+BA204)/3,(BA202+BA203+BA204+BA205)/4))))) -> 18 | BH202: =IF($D6=1,BB202+1,IF($D6=2,B$200,BB202)) -> 18 | BI202: 40 | BJ202: =IF($D6=1,BD202+1,IF($D6=2,BD$200,BD202)) -> 18
A203: 3 | B203: 15 | C203: 35 | D203: 16 | E203: 15 | F203: 13 | G203: 12 | H203: 10 | I203: 8 | J203: 6 | AY203: 15 | AZ203: 35 | BA203: 15 | BB203: =IF($B7="",0,IF($E7=$E6,BB202,IF($E7>$E8,AY203,IF($E8>$E9,(AY203+AY204)/2,IF($E9>$E10,(AY203+AY204+AY205)/3,(AY203+AY204+AY205+AY206)/4))))) -> 15 | BC203: 35 | BD203: 15 | BH203: 15 | BI203: 35 | BJ203: 15
A204: 4 | B204: 12 | C204: 32 | D204: 13 | E204: 12 | F204: 11 | G204: 10 | H204: 8 | I204: 6 | J204: 4 | AY204: 12 | AZ204: 32 | BA204: 12 | BB204: 12 | BC204: 32 | BD204: 12 | BH204: 13 | BI204: 33 | BJ204: 13
A205: 5 | B205: 10 | C205: 30 | D205: 11 | E205: 10 | F205: 9 | G205: 8 | H205: 6 | I205: 4 | J205: 2 | AY205: 10 | AZ205: 30 | BA205: 10 | BB205: 10 | BC205: 30 | BD205: 10 | BH205: 10 | BI205: 30 | BJ205: 10
A206: 6 | B206: 8 | C206: 28 | D206: 10 | E206: 9 | F206: 8 | G206: 6 | H206: 4 | I206: 2 | J206: 1 | AY206: 8 | AZ206: 28 | BA206: 9 | BB206: 8 | BC206: 28 | BD206: 9 | BH206: 8 | BI206: 28 | BJ206: 9
A207: 7 | B207: 6 | C207: 26 | D207: 8 | E207: 7 | F207: 6 | G207: 4 | H207: 2 | I207: 1 | J207: 0 | AY207: 6 | AZ207: 26 | BA207: 7 | BB207: 6 | BC207: 26 | BD207: 7 | BH207: 6 | BI207: 26 | BJ207: 7
A208: 8 | B208: 4 | C208: 24 | D208: 7 | E208: 6 | F208: 4 | G208: 2 | H208: 1 | I208: 0 | J208: 0 | AY208: 4 | AZ208: 24 | BA208: 6 | BB208: 4 | BC208: 24 | BD208: 6 | BH208: 4 | BI208: 24 | BJ208: 6
A209: 9 | B209: 2 | C209: 22 | D209: 6 | E209: 4 | F209: 2 | G209: 1 | H209: 0 | I209: 0 | J209: 0 | AY209: 2 | AZ209: 22 | BA209: 4 | BB209: 1.5 | BC209: 21 | BD209: 3 | BH209: 1.5 | BI209: 21 | BJ209: 3
A210: 10 | B210: 1 | C210: 20 | D210: 4 | E210: 2 | F210: 1 | G210: 0 | H210: 0 | I210: 0 | J210: 0 | AY210: 1 | AZ210: 20 | BA210: 2 | BB210: 1.5 | BC210: 21 | BD210: 3 | BH210: 1.5 | BI210: 21 | BJ210: 3
A211: 11 | B211: 0 | C211: 19 | D211: 2 | E211: 1 | F211: 0 | G211: 0 | H211: 0 | I211: 0 | J211: 0 | AY211: 0 | AZ211: 19 | BA211: 1 | BB211: 0 | BC211: 19 | BD211: 1 | BH211: 0 | BI211: 19 | BJ211: 1
A212: 12 | B212: 0 | C212: 18 | D212: 1 | E212: 0 | F212: 0 | G212: 0 | H212: 0 | I212: 0 | J212: 0 | AY212: 0 | AZ212: 0 | BA212: 0 | BB212: 0 | BC212: 0 | BD212: 0 | BH212: 8.417 | BI212: 28.667 | BJ212: 9.64
A213: 13 | B213: 0 | C213: 0 | D213: 0 | E213: 0 | F213: 0 | G213: 0 | H213: 0 | I213: 0 | J213: 0 | AY213: 0 | AZ213: 0 | BA213: 0 | BB213: 0 | BC213: 0 | BD213: 0 | BH213: 0 | BI213: 0 | BJ213: 0
A214: 14 | B214: 0 | C214: 0 | D214: 0 | E214: 0 | F214: 0 | G214: 0 | H214: 0 | I214: 0 | J214: 0 | AY214: 0 | AZ214: 0 | BA214: 0 | BB214: 0 | BC214: 0 | BD214: 0 | BH214: 0 | BI214: 0 | BJ214: 0
A215: 15 | B215: 0 | C215: 0 | D215: 0 | E215: 0 | F215: 0 | G215: 0 | H215: 0 | I215: 0 | J215: 0 | AY215: 0 | AZ215: 0 | BA215: 0 | BB215: 0 | BC215: 0 | BD215: 0 | BH215: 0 | BI215: 0 | BJ215: 0
A216: 16 | B216: 0 | C216: 0 | D216: 0 | E216: 0 | F216: 0 | G216: 0 | H216: 0 | I216: 0 | J216: 0 | AY216: 0 | AZ216: 0 | BA216: 0 | BB216: 0 | BC216: 0 | BD216: 0 | BH216: 0 | BI216: 0 | BJ216: 0
A217: 17 | B217: 0 | C217: 0 | D217: 0 | E217: 0 | F217: 0 | G217: 0 | H217: 0 | I217: 0 | J217: 0 | AY217: 0 | AZ217: 0 | BA217: 0 | BB217: 0 | BC217: 0 | BD217: 0 | BH217: 0 | BI217: 0 | BJ217: 0
A218: 18 | B218: 0 | C218: 0 | D218: 0 | E218: 0 | F218: 0 | G218: 0 | H218: 0 | I218: 0 | J218: 0 | AY218: =IF($B22=0,0,B218) -> 0 | AZ218: 0 | BA218: 0 | BB218: 0 | BC218: 0 | BD218: 0 | BH218: =IF($D22=1,BB218+1,IF($D22=2,B$200,BB218)) -> 0 | BI218: 0 | BJ218: 0
A219: 19 | B219: 0 | C219: 0 | D219: 0 | E219: 0 | F219: 0 | G219: 0 | H219: 0 | I219: 0 | J219: 0 | AY219: 0 | AZ219: 0 | BA219: 0 | BB219: =IF($B23="",0,IF($E23=$E22,BB218,IF($E23>$E24,AY219,IF($E24>$E25,(AY219+AY220)/2,IF($E25>$E26,(AY219+AY220+AY221)/3,(AY219+AY220+AY221+AY222)/4))))) -> 0 | BC219: 0 | BD219: 0 | BH219: 0 | BI219: 0 | BJ219: 0
A220: 20 | B220: 0 | C220: 0 | D220: 0 | E220: 0 | F220: 0 | G220: 0 | H220: 0 | I220: 0 | J220: 0 | AY220: 0 | AZ220: 0 | BA220: 0 | BB220: 0 | BC220: 0 | BD220: 0 | BH220: 0 | BI220: 0 | BJ220: 0
A221: 21 | B221: 0 | C221: 0 | D221: 0 | E221: 0 | F221: 0 | G221: 0 | H221: 0 | I221: 0 | J221: 0 | AY221: 0 | AZ221: 0 | BA221: 0 | BB221: 0 | BC221: 0 | BD221: 0 | BH221: 0 | BI221: 0 | BJ221: 0
A222: 22 | B222: 0 | C222: 0 | D222: 0 | E222: 0 | F222: 0 | G222: 0 | H222: 0 | I222: 0 | J222: 0 | AY222: 0 | AZ222: 0 | BA222: 0 | BB222: 0 | BC222: 0 | BD222: 0 | BH222: 0 | BI222: 0 | BJ222: 0
A223: 23 | B223: 0 | C223: 0 | D223: 0 | E223: 0 | F223: 0 | G223: 0 | H223: 0 | I223: 0 | J223: 0 | AY223: 0 | AZ223: 0 | BA223: 0 | BB223: 0 | BC223: 0 | BD223: 0 | BH223: 0 | BI223: 0 | BJ223: 0
A224: 24 | B224: 0 | C224: 0 | D224: 0 | E224: 0 | F224: 0 | G224: 0 | H224: 0 | I224: 0 | J224: 0 | AY224: 0 | AZ224: 0 | BA224: 0 | BB224: 0 | BC224: 0 | BD224: 0 | BH224: 0 | BI224: 0 | BJ224: 0
A225: 25 | B225: 0 | C225: 0 | D225: 0 | E225: 0 | F225: 0 | G225: 0 | H225: 0 | I225: 0 | J225: 0 | AY225: 0 | AZ225: 0 | BA225: 0 | BB225: 0 | BC225: 0 | BD225: 0 | BH225: 0 | BI225: 0 | BJ225: 0
A226: 26 | B226: 0 | C226: 0 | D226: 0 | E226: 0 | F226: 0 | G226: 0 | H226: 0 | I226: 0 | J226: 0 | AY226: 0 | AZ226: 0 | BA226: 0 | BB226: 0 | BC226: 0 | BD226: 0 | BH226: 0 | BI226: 0 | BJ226: 0
A227: 27 | B227: 0 | C227: 0 | D227: 0 | E227: 0 | F227: 0 | G227: 0 | H227: 0 | I227: 0 | J227: 0 | AY227: 0 | AZ227: 0 | BA227: 0 | BB227: 0 | BC227: 0 | BD227: 0 | BH227: 0 | BI227: 0 | BJ227: 0
A228: 28 | B228: 0 | C228: 0 | D228: 0 | E228: 0 | F228: 0 | G228: 0 | H228: 0 | I228: 0 | J228: 0 | AY228: 0 | AZ228: 0 | BA228: 0 | BB228: 0 | BC228: 0 | BD228: 0 | BH228: 0 | BI228: 0 | BJ228: 0
A229: 29 | B229: 0 | C229: 0 | D229: 0 | E229: 0 | F229: 0 | G229: 0 | H229: 0 | I229: 0 | J229: 0 | AY229: 0 | AZ229: 0 | BA229: 0 | BB229: 0 | BC229: 0 | BD229: 0 | BH229: 0 | BI229: 0 | BJ229: 0
A230: 30 | B230: 0 | C230: 0 | D230: 0 | E230: 0 | F230: 0 | G230: 0 | H230: 0 | I230: 0 | J230: 0 | AY230: 0 | AZ230: 0 | BA230: 0 | BB230: 0 | BC230: 0 | BD230: 0 | BH230: 0 | BI230: 0 | BJ230: 0
A231: 31 | B231: 0 | C231: 0 | D231: 0 | E231: 0 | F231: 0 | G231: 0 | H231: 0 | I231: 0 | J231: 0 | AY231: 0 | AZ231: 0 | BA231: 0 | BB231: 0 | BC231: 0 | BD231: 0 | BH231: 0 | BI231: 0 | BJ231: 0
A232: 32 | B232: 0 | C232: 0 | D232: 0 | E232: 0 | F232: 0 | G232: 0 | H232: 0 | I232: 0 | J232: 0 | AY232: 0 | AZ232: 0 | BA232: 0 | BB232: 0 | BC232: 0 | BD232: 0 | BH232: 0 | BI232: 0 | BJ232: 0
A233: 33 | B233: 0 | C233: 0 | D233: 0 | E233: 0 | F233: 0 | G233: 0 | H233: 0 | I233: 0 | J233: 0 | AY233: 0 | AZ233: 0 | BA233: 0 | BB233: 0 | BC233: 0 | BD233: 0 | BH233: 0 | BI233: 0 | BJ233: 0
A234: 34 | B234: 0 | C234: 0 | D234: 0 | E234: 0 | F234: 0 | G234: 0 | H234: 0 | I234: 0 | J234: 0 | AY234: =IF($B38=0,0,B234) -> 0 | AZ234: 0 | BA234: 0 | BB234: 0 | BC234: 0 | BD234: 0 | BH234: =IF($D38=1,BB234+1,IF($D38=2,B$200,BB234)) -> 0 | BI234: 0 | BJ234: 0
A235: 35 | B235: 0 | C235: 0 | D235: 0 | E235: 0 | F235: 0 | G235: 0 | H235: 0 | I235: 0 | J235: 0 | AY235: 0 | AZ235: 0 | BA235: 0 | BB235: =IF($B39="",0,IF($E39=$E38,BB234,IF($E39>$E40,AY235,IF($E40>$E41,(AY235+AY236)/2,IF($E41>$E42,(AY235+AY236+AY237)/3,(AY235+AY236+AY237+AY238)/4))))) -> 0 | BC235: 0 | BD235: 0 | BH235: 0 | BI235: 0 | BJ235: 0
A236: 36 | B236: 0 | C236: 0 | D236: 0 | E236: 0 | F236: 0 | G236: 0 | H236: 0 | I236: 0 | J236: 0 | AY236: 0 | AZ236: 0 | BA236: 0 | BB236: 0 | BC236: 0 | BD236: 0 | BH236: 0 | BI236: 0 | BJ236: 0
A237: 37 | B237: 0 | C237: 0 | D237: 0 | E237: 0 | F237: 0 | G237: 0 | H237: 0 | I237: 0 | J237: 0 | AY237: 0 | AZ237: 0 | BA237: 0 | BB237: 0 | BC237: 0 | BD237: 0 | BH237: 0 | BI237: 0 | BJ237: 0
A238: 38 | B238: 0 | C238: 0 | D238: 0 | E238: 0 | F238: 0 | G238: 0 | H238: 0 | I238: 0 | J238: 0 | AY238: 0 | AZ238: 0 | BA238: 0 | BB238: 0 | BC238: 0 | BD238: 0 | BH238: 0 | BI238: 0 | BJ238: 0
A239: 39 | B239: 0 | C239: 0 | D239: 0 | E239: 0 | F239: 0 | G239: 0 | H239: 0 | I239: 0 | J239: 0 | AY239: 0 | AZ239: 0 | BA239: 0 | BB239: 0 | BC239: 0 | BD239: 0 | BH239: 0 | BI239: 0 | BJ239: 0
A240: 40 | B240: 0 | C240: 0 | D240: 0 | E240: 0 | F240: 0 | G240: 0 | H240: 0 | I240: 0 | J240: 0 | AY240: 0 | AZ240: 0 | BA240: 0 | BB240: 0 | BC240: 0 | BD240: 0 | BH240: 0 | BI240: 0 | BJ240: 0
A241: 41 | B241: 0 | C241: 0 | D241: 0 | E241: 0 | F241: 0 | G241: 0 | H241: 0 | I241: 0 | J241: 0 | AY241: 0 | AZ241: 0 | BA241: 0 | BB241: 0 | BC241: 0 | BD241: 0 | BH241: 0 | BI241: 0 | BJ241: 0
A242: 42 | B242: 0 | C242: 0 | D242: 0 | E242: 0 | F242: 0 | G242: 0 | H242: 0 | I242: 0 | J242: 0 | AY242: 0 | AZ242: 0 | BA242: 0 | BB242: 0 | BC242: 0 | BD242: 0 | BH242: 0 | BI242: 0 | BJ242: 0
A243: 43 | B243: 0 | C243: 0 | D243: 0 | E243: 0 | F243: 0 | G243: 0 | H243: 0 | I243: 0 | J243: 0 | AY243: 0 | AZ243: 0 | BA243: 0 | BB243: 0 | BC243: 0 | BD243: 0 | BH243: 0 | BI243: 0 | BJ243: 0
A244: 44 | B244: 0 | C244: 0 | D244: 0 | E244: 0 | F244: 0 | G244: 0 | H244: 0 | I244: 0 | J244: 0 | AY244: 0 | AZ244: 0 | BA244: 0 | BB244: 0 | BC244: 0 | BD244: 0 | BH244: 0 | BI244: 0 | BJ244: 0
A245: 45 | B245: 0 | C245: 0 | D245: 0 | E245: 0 | F245: 0 | G245: 0 | H245: 0 | I245: 0 | J245: 0 | AY245: 0 | AZ245: 0 | BA245: 0 | BB245: 0 | BC245: 0 | BD245: 0 | BH245: 0 | BI245: 0 | BJ245: 0
A246: 46 | B246: 0 | C246: 0 | D246: 0 | E246: 0 | F246: 0 | G246: 0 | H246: 0 | I246: 0 | J246: 0 | AY246: 0 | AZ246: 0 | BA246: 0 | BB246: 0 | BC246: 0 | BD246: 0 | BH246: 0 | BI246: 0 | BJ246: 0
A247: 47 | B247: 0 | C247: 0 | D247: 0 | E247: 0 | F247: 0 | G247: 0 | H247: 0 | I247: 0 | J247: 0 | AY247: 0 | AZ247: 0 | BA247: 0 | BB247: 0 | BC247: 0 | BD247: 0 | BH247: 0 | BI247: 0 | BJ247: 0
A248: 48 | B248: 0 | C248: 0 | D248: 0 | E248: 0 | F248: 0 | G248: 0 | H248: 0 | I248: 0 | J248: 0 | AY248: 0 | AZ248: 0 | BA248: 0 | BB248: 0 | BC248: 0 | BD248: 0 | BH248: 0 | BI248: 0 | BJ248: 0
A249: 49 | B249: 0 | C249: 0 | D249: 0 | E249: 0 | F249: 0 | G249: 0 | H249: 0 | I249: 0 | J249: 0 | AY249: 0 | AZ249: 0 | BA249: 0 | BB249: 0 | BC249: 0 | BD249: 0 | BH249: 0 | BI249: 0 | BJ249: 0
A250: 50 | B250: 0 | C250: 0 | D250: 0 | E250: 0 | F250: 0 | G250: 0 | H250: 0 | I250: 0 | J250: 0 | AY250: =IF($B54=0,0,B250) -> 0 | AZ250: 0 | BA250: 0 | BB250: 0 | BC250: 0 | BD250: 0 | BH250: =IF($D54=1,BB250+1,IF($D54=2,B$200,BB250)) -> 0 | BI250: 0 | BJ250: 0

Sheet 8feb
A1: Data | C1: 2020-02-08 | D1: BridgeMania 2019-20 - Torneo Howell
A2: luogo | C2: Presezzi | D2: Coppie Ctrl+e | E2: Calcola Ctr+f | F2: Duplica Ctrl+g | G2: Clear Ctrl+h | J2: &
A3: # coppie | C3: =IF(B5="","",COUNT(B5:B54)) -> 10 | E3: =IF(E5="","",SUMIF(E5:E54,">0")) -> 500 | G3: =IF(G5="","",SUM(G5:G54)) -> 500 | H3: =IF(H5="","",SUM(H5:H54)) -> 720 | I3: =SUM(I5:I54) -> 0 | J3: =SUM(J5:J54) -> 720 | K3: =SUM(K5:K54) -> 40 | L3: =SUM(L5:L54) -> 40 | M3: 40 | N3: 40 | O3: 40 | P3: 40 | Q3: 40 | R3: 40 | S3: 40 | T3: 40 | U3: 40 | V3: 40 | W3: 40 | X3: 40 | Y3: 40 | Z3: 40 | AA3: 40 | AB3: 40 | AC3: 0 | AD3: 0 | AE3: 0 | AF3: 0 | AG3: 0 | AH3: 0 | AI3: 0 | AJ3: 0 | AK3: 0 | AL3: 0 | AM3: 0 | AN3: 0 | AO3: 0 | AP3: 0 | AQ3: 0 | AR3: 0 | AS3: 0 | AT3: 0 | AU3: 0 | AV3: 0 | AW3: 0 | AX3: 0
A4: Class. | B4: # | C4: Coppie | D4: Inserire a mano "1" = + 1 PTS "2" = PTS medio | E4: Punteggio Serata | G4: Punteggio % | H4: Punteggio Torneo | I4: Penalità (-) | J4: Totale punti mano | K4: 1 | L4: 2 | M4: 3 | N4: 4 | O4: 5 | P4: 6 | Q4: 7 | R4: 8 | S4: 9 | T4: 10 | U4: 11 | V4: 12 | W4: 13 | X4: 14 | Y4: 15 | Z4: 16 | AA4: 17 | AB4: 18 | AC4: 19 | AD4: 20 | AE4: 21 | AF4: 22 | AG4: 23 | AH4: 24 | AI4: 25 | AJ4: 26 | AK4: 27 | AL4: 28 | AM4: 29 | AN4: 30 | AO4: 31 | AP4: 32 | AQ4: 33 | AR4: 34 | AS4: 35 | AT4: 36 | AU4: 37 | AV4: 38 | AW4: 39 | AX4: 40 | AZ4: F1 Fast | BA4: IndyCar Hard | BB4: F1 Hybrid | BF4: # std coppie
A5: =IF(J$2="","",IF($E5="","",IF($E5=MAX($E$5:$E$54),1,IF($E5=$E4,$A4,COUNT($E$5:$E5))))) -> 1 | B5: 6 | C5: Olimpia-Sauro | E5: =IF(J$2="","",IF(G5=0,0,F5+G5)) -> 59.72222222 | G5: =IF(J$2="","",IF($J5=0,0,(H5*$C$3/$J$3)*50)) -> 59.72222222 | H5: =IF(J$2="","",IF(SUM($K5:$AX5)=0,0,SUM($K5:$AX5)+$I5)) -> 86 | J5: =IF(B5="",0,IF(SUM($K5:$AX5)=0,0,SUM($K5:$AX5))) -> 86 | K5: 6 | L5: 1 | M5: 6 | N5: 1 | O5: 8 | P5: 0 | Q5: 3 | R5: 7 | S5: 5 | T5: 6 | U5: 8 | V5: 8 | W5: 8 | X5: 5 | Y5: 0 | Z5: 3 | AA5: 7 | AB5: 4 | AY5: Olimpia-Sauro | AZ5: 25 | BA5: 50 | BB5: 20 | BF5: 8
A6: =IF(J$2="","",IF($E6="","",IF($E6=MAX($E$5:$E$54),1,IF($E6=$E5,$A5,COUNT($E$5:$E6))))) -> 2 | B6: 2 | C6: Manuela-Roberto | E6: 56.94444444 | G6: 56.94444444 | H6: 82 | J6: 82 | K6: 2 | L6: 4 | M6: 8 | N6: 2 | O6: 4 | P6: 8 | Q6: 5 | R6: 6 | S6: 3 | T6: 2 | U6: 2 | V6: 4 | W6: 3 | X6: 8 | Y6: 6 | Z6: 3 | AA6: 4 | AB6: 8 | AY6: Manuela-Roberto | AZ6: 18 | BA6: 40 | BB6: 16 | BF6: 7
A7: =IF(J$2="","",IF($E7="","",IF($E7=MAX($E$5:$E$54),1,IF($E7=$E6,$A6,COUNT($E$5:$E7))))) -> 3 | B7: 8 | C7: Barbara-Elio | E7: 50.69444444 | G7: 50.69444444 | H7: 73 | J7: 73 | K7: 2 | L7: 7 | M7: 2 | N7: 2 | O7: 4 | P7: 6 | Q7: 6 | R7: 0 | S7: 8 | T7: 0 | U7: 7 | V7: 4 | W7: 8 | X7: 3 | Y7: 2 | Z7: 8 | AA7: 4 | AB7: 0 | AY7: Barbara-Elio | AZ7: 13.5 | BA7: 33.5 | BB7: 12 | BF7: 2
A8: =IF(J$2="","",IF($E8="","",IF($E8=MAX($E$5:$E$54),1,IF($E8=$E7,$A7,COUNT($E$5:$E8))))) -> 3 | B8: 4 | C8: Elena-Stefano | E8: 50.69444444 | G8: 50.69444444 | H8: 73 | J8: 73 | K8: 6 | L8: 2 | M8: 6 | N8: 1 | O8: 4 | P8: 4 | Q8: 0 | R8: 4 | S8: 3 | T8: 8 | U8: 6 | V8: 4 | W8: 0 | X8: 5 | Y8: 8 | Z8: 5 | AA8: 7 | AB8: 0 | AY8: Elena-Stefano | AZ8: 13.5 | BA8: 33.5 | BB8: 12 | BF8: 4
A9: =IF(J$2="","",IF($E9="","",IF($E9=MAX($E$5:$E$54),1,IF($E9=$E8,$A8,COUNT($E$5:$E9))))) -> 5 | B9: 10 | C9: Renata-Sandro | E9: 50 | G9: 50 | H9: 72 | J9: 72 | K9: 8 | L9: 8 | M9: 0 | N9: 6 | O9: 8 | P9: 2 | Q9: 8 | R9: 4 | S9: 5 | T9: 2 | U9: 0 | V9: 0 | W9: 3 | X9: 3 | Y9: 6 | Z9: 0 | AA9: 7 | AB9: 2 | AY9: Renata-Sandro | AZ9: 9 | BA9: 29 | BB9: 8.5 | BF9: 9
A10: =IF(J$2="","",IF($E10="","",IF($E10=MAX($E$5:$E$54),1,IF($E10=$E9,$A9,COUNT($E$5:$E10))))) -> 5 | B10: 7 | C10: Tatiana-Julio | E10: 50 | G10: 50 | H10: 72 | J10: 72 | K10: 6 | L10: 4 | M10: 2 | N10: 6 | O10: 0 | P10: 8 | Q10: 2 | R10: 8 | S10: 5 | T10: 0 | U10: 4 | V10: 4 | W10: 5 | X10: 5 | Y10: 4 | Z10: 0 | AA10: 7 | AB10: 2 | AY10: Tatiana-Julio | AZ10: 9 | BA10: 29 | BB10: 8.5 | BF10: 11
A11: =IF(J$2="","",IF($E11="","",IF($E11=MAX($E$5:$E$54),1,IF($E11=$E10,$A10,COUNT($E$5:$E11))))) -> 7 | B11: 1 | C11: Antonella-Dino | D11: 1 | E11: 48.61111111 | G11: 48.61111111 | H11: 70 | J11: 70 | K11: 0 | L11: 0 | M11: 2 | N11: 7 | O11: 4 | P11: 2 | Q11: 8 | R11: 1 | S11: 5 | T11: 4 | U11: 7 | V11: 8 | W11: 5 | X11: 0 | Y11: 4 | Z11: 8 | AA11: 1 | AB11: 4 | AY11: Antonella-Dino | AZ11: 6 | BA11: 26 | BB11: 6 | BF11: 1
A12: =IF(J$2="","",IF($E12="","",IF($E12=MAX($E$5:$E$54),1,IF($E12=$E11,$A11,COUNT($E$5:$E12))))) -> 7 | B12: 5 | C12: Cesarina-Gaetano | E12: 48.61111111 | G12: 48.61111111 | H12: 70 | J12: 70 | K12: 2 | L12: 6 | M12: 2 | N12: 7 | O12: 4 | P12: 0 | Q12: 0 | R12: 7 | S12: 3 | T12: 6 | U12: 1 | V12: 4 | W12: 2 | X12: 5 | Y12: 8 | Z12: 6 | AA12: 1 | AB12: 6 | AY12: Cesarina-Gaetano | AZ12: 5 | BA12: 25 | BB12: 5 | BF12: 3
A13: =IF(J$2="","",IF($E13="","",IF($E13=MAX($E$5:$E$54),1,IF($E13=$E12,$A12,COUNT($E$5:$E13))))) -> 9 | B13: 3 | C13: Stefania-Massimo | E13: 46.52777778 | G13: 46.52777778 | H13: 67 | J13: 67 | K13: 2 | L13: 1 | M13: 6 | N13: 6 | O13: 0 | P13: 6 | Q13: 5 | R13: 1 | S13: 3 | T13: 4 | U13: 4 | V13: 4 | W13: 6 | X13: 3 | Y13: 2 | Z13: 5 | AA13: 1 | AB13: 8 | AY13: Stefania-Massimo | AZ13: 2 | BA13: 22 | BB13: 2 | BF13: 10
A14: =IF(J$2="","",IF($E14="","",IF($E14=MAX($E$5:$E$54),1,IF($E14=$E13,$A13,COUNT($E$5:$E14))))) -> 10 | B14: 9 | C14: Lilli-Gianni | E14: 38.19444444 | G14: 38.19444444 | H14: 55 | J14: 55 | K14: 6 | L14: 7 | M14: 6 | N14: 2 | O14: 4 | P14: 4 | Q14: 3 | R14: 2 | S14: 0 | T14: 8 | U14: 1 | V14: 0 | W14: 0 | X14: 3 | Y14: 0 | Z14: 2 | AA14: 1 | AB14: 6 | AY14: Lilli-Gianni | AZ14: 1 | BA14: 20 | BB14: 1 | BF14: 6
A15: =IF(J$2="","",IF($E15="","",IF($E15=MAX($E$5:$E$54),1,IF($E15=$E14,$A14,COUNT($E$5:$E15))))) -> 11 | C15: Isolde-Cristina | E15: 0 | G15: 0 | H15: 0 | J15: 0 | AY15: Isolde-Cristina | AZ15: 0 | BA15: 0 | BB15: 0 | BF15: 5
A16: =IF(J$2="","",IF($E16="","",IF($E16=MAX($E$5:$E$54),1,IF($E16=$E15,$A15,COUNT($E$5:$E16))))) -> 11 | C16: Marilena-Sergio | E16: 0 | G16: 0 | H16: 0 | J16: 0 | AY16: Marilena-Sergio | AZ16: 0 | BA16: 0 | BB16: 0 | BF16: 12
A17: =IF(J$2="","",IF($E17="","",IF($E17=MAX($E$5:$E$54),1,IF($E17=$E16,$A16,COUNT($E$5:$E17))))) -> 11 | C17: A.Maria-Claudio | E17: 0 | G17: 0 | H17: 0 | J17: 0 | AY17: A.Maria-Claudio | AZ17: 0 | BA17: 0 | BB17: 0 | BF17: 13
A18: =IF(J$2="","",IF($E18="","",IF($E18=MAX($E$5:$E$54),1,IF($E18=$E17,$A17,COUNT($E$5:$E18))))) -> 11 | C18: June-Vincenzo | E18: 0 | G18: 0 | H18: 0 | J18: 0 | AY18: June-Vincenzo | AZ18: 0 | BA18: 0 | BB18: 0 | BF18: 14
A19: =IF(J$2="","",IF($E19="","",IF($E19=MAX($E$5:$E$54),1,IF($E19=$E18,$A18,COUNT($E$5:$E19))))) -> 11 | C19: Marina-Enzo | E19: 0 | G19: 0 | H19: 0 | J19: 0 | AY19: Marina-Enzo | AZ19: 0 | BA19: 0 | BB19: 0 | BF19: 15
A20: =IF(J$2="","",IF($E20="","",IF($E20=MAX($E$5:$E$54),1,IF($E20=$E19,$A19,COUNT($E$5:$E20))))) -> 11 | C20: Letizia-Enzo | E20: 0 | G20: 0 | H20: 0 | J20: 0 | AY20: Letizia-Enzo | AZ20: 0 | BA20: 0 | BB20: 0 | BF20: 16
A21: =IF(J$2="","",IF($E21="","",IF($E21=MAX($E$5:$E$54),1,IF($E21=$E20,$A20,COUNT($E$5:$E21))))) -> 11 | E21: 0 | G21: 0 | H21: 0 | J21: 0 | AZ21: 0 | BA21: 0 | BB21: 0 | BF21: 17
A22: =IF(J$2="","",IF($E22="","",IF($E22=MAX($E$5:$E$54),1,IF($E22=$E21,$A21,COUNT($E$5:$E22))))) -> 11 | E22: 0 | G22: 0 | H22: 0 | J22: 0 | AZ22: 0 | BA22: 0 | BB22: 0 | BF22: 18
A23: =IF(J$2="","",IF($E23="","",IF($E23=MAX($E$5:$E$54),1,IF($E23=$E22,$A22,COUNT($E$5:$E23))))) -> 11 | E23: 0 | G23: 0 | H23: 0 | J23: 0 | AZ23: 0 | BA23: 0 | BB23: 0 | BF23: 19
A24: =IF(J$2="","",IF($E24="","",IF($E24=MAX($E$5:$E$54),1,IF($E24=$E23,$A23,COUNT($E$5:$E24))))) -> 11 | E24: 0 | G24: 0 | H24: 0 | J24: 0 | AZ24: 0 | BA24: 0 | BB24: 0 | BF24: 20
A25: =IF(J$2="","",IF($E25="","",IF($E25=MAX($E$5:$E$54),1,IF($E25=$E24,$A24,COUNT($E$5:$E25))))) -> 11 | E25: 0 | G25: 0 | H25: 0 | J25: 0 | AZ25: 0 | BA25: 0 | BB25: 0 | BF25: 21
A26: =IF(J$2="","",IF($E26="","",IF($E26=MAX($E$5:$E$54),1,IF($E26=$E25,$A25,COUNT($E$5:$E26))))) -> 11 | E26: 0 | G26: 0 | H26: 0 | J26: 0 | AZ26: 0 | BA26: 0 | BB26: 0 | BF26: 22
A27: =IF(J$2="","",IF($E27="","",IF($E27=MAX($E$5:$E$54),1,IF($E27=$E26,$A26,COUNT($E$5:$E27))))) -> 11 | E27: 0 | G27: 0 | H27: 0 | J27: 0 | AZ27: 0 | BA27: 0 | BB27: 0 | BF27: 23
A28: =IF(J$2="","",IF($E28="","",IF($E28=MAX($E$5:$E$54),1,IF($E28=$E27,$A27,COUNT($E$5:$E28))))) -> 11 | E28: 0 | G28: 0 | H28: 0 | J28: 0 | AZ28: 0 | BA28: 0 | BB28: 0 | BF28: 24
A29: =IF(J$2="","",IF($E29="","",IF($E29=MAX($E$5:$E$54),1,IF($E29=$E28,$A28,COUNT($E$5:$E29))))) -> 11 | E29: 0 | G29: 0 | H29: 0 | J29: 0 | AZ29: 0 | BA29: 0 | BB29: 0 | BF29: 25
A30: =IF(J$2="","",IF($E30="","",IF($E30=MAX($E$5:$E$54),1,IF($E30=$E29,$A29,COUNT($E$5:$E30))))) -> 11 | E30: 0 | G30: 0 | H30: 0 | J30: 0 | AZ30: 0 | BA30: 0 | BB30: 0 | BF30: 26
A31: =IF(J$2="","",IF($E31="","",IF($E31=MAX($E$5:$E$54),1,IF($E31=$E30,$A30,COUNT($E$5:$E31))))) -> 11 | E31: 0 | G31: 0 | H31: 0 | J31: 0 | AZ31: 0 | BA31: 0 | BB31: 0 | BF31: 27
A32: =IF(J$2="","",IF($E32="","",IF($E32=MAX($E$5:$E$54),1,IF($E32=$E31,$A31,COUNT($E$5:$E32))))) -> 11 | E32: 0 | G32: 0 | H32: 0 | J32: 0 | AZ32: 0 | BA32: 0 | BB32: 0 | BF32: 28
A33: =IF(J$2="","",IF($E33="","",IF($E33=MAX($E$5:$E$54),1,IF($E33=$E32,$A32,COUNT($E$5:$E33))))) -> 11 | E33: 0 | G33: 0 | H33: 0 | J33: 0 | AZ33: 0 | BA33: 0 | BB33: 0 | BF33: 29
A34: =IF(J$2="","",IF($E34="","",IF($E34=MAX($E$5:$E$54),1,IF($E34=$E33,$A33,COUNT($E$5:$E34))))) -> 11 | E34: 0 | G34: 0 | H34: 0 | J34: 0 | AZ34: 0 | BA34: 0 | BB34: 0 | BF34: 30
A35: =IF(J$2="","",IF($E35="","",IF($E35=MAX($E$5:$E$54),1,IF($E35=$E34,$A34,COUNT($E$5:$E35))))) -> 11 | E35: 0 | G35: 0 | H35: 0 | J35: 0 | AZ35: 0 | BA35: 0 | BB35: 0 | BF35: 31
A36: =IF(J$2="","",IF($E36="","",IF($E36=MAX($E$5:$E$54),1,IF($E36=$E35,$A35,COUNT($E$5:$E36))))) -> 11 | E36: 0 | G36: 0 | H36: 0 | J36: 0 | AZ36: 0 | BA36: 0 | BB36: 0 | BF36: 32
A37: =IF(J$2="","",IF($E37="","",IF($E37=MAX($E$5:$E$54),1,IF($E37=$E36,$A36,COUNT($E$5:$E37))))) -> 11 | E37: =IF(J$2="","",IF(G37=0,0,F37+G37)) -> 0 | G37: =IF(J$2="","",IF($J37=0,0,(H37*$C$3/$J$3)*50)) -> 0 | H37: =IF(J$2="","",IF(SUM($K37:$AX37)=0,0,SUM($K37:$AX37)+$I37)) -> 0 | J37: =IF(B37="",0,IF(SUM($K37:$AX37)=0,0,SUM($K37:$AX37))) -> 0 | AZ37: 0 | BA37: 0 | BB37: 0 | BF37: 33
A38: =IF(J$2="","",IF($E38="","",IF($E38=MAX($E$5:$E$54),1,IF($E38=$E37,$A37,COUNT($E$5:$E38))))) -> 11 | E38: 0 | G38: 0 | H38: 0 | J38: 0 | AZ38: 0 | BA38: 0 | BB38: 0 | BF38: 34
A39: =IF(J$2="","",IF($E39="","",IF($E39=MAX($E$5:$E$54),1,IF($E39=$E38,$A38,COUNT($E$5:$E39))))) -> 11 | E39: 0 | G39: 0 | H39: 0 | J39: 0 | AZ39: 0 | BA39: 0 | BB39: 0 | BF39: 35
A40: =IF(J$2="","",IF($E40="","",IF($E40=MAX($E$5:$E$54),1,IF($E40=$E39,$A39,COUNT($E$5:$E40))))) -> 11 | E40: 0 | G40: 0 | H40: 0 | J40: 0 | AZ40: 0 | BA40: 0 | BB40: 0 | BF40: 36
A41: =IF(J$2="","",IF($E41="","",IF($E41=MAX($E$5:$E$54),1,IF($E41=$E40,$A40,COUNT($E$5:$E41))))) -> 11 | E41: 0 | G41: 0 | H41: 0 | J41: 0 | AZ41: 0 | BA41: 0 | BB41: 0 | BF41: 37
A42: =IF(J$2="","",IF($E42="","",IF($E42=MAX($E$5:$E$54),1,IF($E42=$E41,$A41,COUNT($E$5:$E42))))) -> 11 | E42: 0 | G42: 0 | H42: 0 | J42: 0 | AZ42: 0 | BA42: 0 | BB42: 0 | BF42: 38
A43: =IF(J$2="","",IF($E43="","",IF($E43=MAX($E$5:$E$54),1,IF($E43=$E42,$A42,COUNT($E$5:$E43))))) -> 11 | E43: 0 | G43: 0 | H43: 0 | J43: 0 | AZ43: 0 | BA43: 0 | BB43: 0 | BF43: 39
A44: =IF(J$2="","",IF($E44="","",IF($E44=MAX($E$5:$E$54),1,IF($E44=$E43,$A43,COUNT($E$5:$E44))))) -> 11 | E44: 0 | G44: 0 | H44: 0 | J44: 0 | AZ44: 0 | BA44: 0 | BB44: 0 | BF44: 40
A45: =IF(J$2="","",IF($E45="","",IF($E45=MAX($E$5:$E$54),1,IF($E45=$E44,$A44,COUNT($E$5:$E45))))) -> 11 | E45: 0 | G45: 0 | H45: 0 | J45: 0 | AZ45: 0 | BA45: 0 | BB45: 0 | BF45: 41
A46: =IF(J$2="","",IF($E46="","",IF($E46=MAX($E$5:$E$54),1,IF($E46=$E45,$A45,COUNT($E$5:$E46))))) -> 11 | E46: 0 | G46: 0 | H46: 0 | J46: 0 | AZ46: 0 | BA46: 0 | BB46: 0 | BF46: 42
A47: =IF(J$2="","",IF($E47="","",IF($E47=MAX($E$5:$E$54),1,IF($E47=$E46,$A46,COUNT($E$5:$E47))))) -> 11 | E47: 0 | G47: 0 | H47: 0 | J47: 0 | AZ47: 0 | BA47: 0 | BB47: 0 | BF47: 43
A48: =IF(J$2="","",IF($E48="","",IF($E48=MAX($E$5:$E$54),1,IF($E48=$E47,$A47,COUNT($E$5:$E48))))) -> 11 | E48: 0 | G48: 0 | H48: 0 | J48: 0 | AZ48: 0 | BA48: 0 | BB48: 0 | BF48: 44
A49: =IF(J$2="","",IF($E49="","",IF($E49=MAX($E$5:$E$54),1,IF($E49=$E48,$A48,COUNT($E$5:$E49))))) -> 11 | E49: 0 | G49: 0 | H49: 0 | J49: 0 | AZ49: 0 | BA49: 0 | BB49: 0 | BF49: 45
A50: =IF(J$2="","",IF($E50="","",IF($E50=MAX($E$5:$E$54),1,IF($E50=$E49,$A49,COUNT($E$5:$E50))))) -> 11 | E50: 0 | G50: 0 | H50: 0 | J50: 0 | AZ50: 0 | BA50: 0 | BB50: 0 | BF50: 46
A51: =IF(J$2="","",IF($E51="","",IF($E51=MAX($E$5:$E$54),1,IF($E51=$E50,$A50,COUNT($E$5:$E51))))) -> 11 | E51: 0 | G51: 0 | H51: 0 | J51: 0 | AZ51: 0 | BA51: 0 | BB51: 0 | BF51: 47
A52: =IF(J$2="","",IF($E52="","",IF($E52=MAX($E$5:$E$54),1,IF($E52=$E51,$A51,COUNT($E$5:$E52))))) -> 11 | E52: 0 | G52: 0 | H52: 0 | J52: 0 | AZ52: 0 | BA52: 0 | BB52: 0 | BF52: 48
A53: =IF(J$2="","",IF($E53="","",IF($E53=MAX($E$5:$E$54),1,IF($E53=$E52,$A52,COUNT($E$5:$E53))))) -> 11 | E53: 0 | G53: 0 | H53: 0 | J53: 0 | AZ53: 0 | BA53: 0 | BB53: 0 | BF53: 49
A54: =IF(J$2="","",IF($E54="","",IF($E54=MAX($E$5:$E$54),1,IF($E54=$E53,$A53,COUNT($E$5:$E54))))) -> 11 | E54: 0 | G54: 0 | H54: 0 | J54: 0 | AZ54: 0 | BA54: 0 | BB54: 0 | BF54: 50
D59: punteggi torneo ordinati per # di coppia
B60: # coppia | E60: con zeri | F60: senza zeri | G60: senza zeri
B61: 1 | E61: 48.61111111 | F61: =IF(E61=0,"",E61) -> 48.61111111 | G61: 48.61111111 | I61: =IF(H61=0,"",H61) ->  | BF61: 1
B62: 2 | E62: 56.94444444 | F62: 56.94444444 | G62: 56.94444444 | BF62: 7
B63: 3 | E63: 46.52777778 | F63: 46.52777778 | G63: 46.52777778 | I63: =IF(H63=0,"",H63) ->  | BF63: 10
B64: 4 | E64: 50.69444444 | F64: 50.69444444 | G64: 50.69444444 | I64: =IF(H64=0,"",H64) ->  | BF64: 4
B65: 5 | E65: 48.61111111 | F65: 48.61111111 | G65: 48.61111111 | I65: =IF(H65=0,"",H65) ->  | BF65: 3
B66: 6 | E66: 59.72222222 | F66: 59.72222222 | G66: 59.72222222 | BF66: 8
B67: 7 | E67: 50 | F67: 50 | G67: 50 | I67: =IF(H67=0,"",H67) ->  | BF67: 11
B68: 8 | E68: 50.69444444 | F68: 50.69444444 | G68: 50.69444444 | BF68: 2
B69: 9 | E69: 38.19444444 | F69: 38.19444444 | G69: 38.19444444 | BF69: 6
B70: 10 | E70: 50 | F70: 50 | G70: 50 | BF70: 9
E71: 0 | BF71: 5
E72: 0 | I72: =IF(H72=0,"",H72) ->  | BF72: 12
E73: 0 | BF73: 13
E74: 0 | I74: =IF(H74=0,"",H74) ->  | BF74: 14
E75: 0 | I75: =IF(H75=0,"",H75) ->  | BF75: 15
E76: 0 | I76: =IF(H76=0,"",H76) ->  | BF76: 16
E77: 0 | BF77: 17
E78: 0 | BF78: 18
E79: 0 | I79: =IF(H79=0,"",H79) ->  | BF79: 19
E80: 0 | I80: =IF(H80=0,"",H80) ->  | BF80: 20
E81: 0 | BF81: 21
E82: 0 | BF82: 22
E83: 0 | BF83: 23
E84: 0 | BF84: 24
E85: 0 | BF85: 25
E86: 0 | BF86: 26
E87: 0 | BF87: 27
E88: 0 | BF88: 28
E89: 0 | BF89: 29
E90: 0 | BF90: 30
E91: 0 | BF91: 31
E92: 0 | BF92: 32
E93: 0 | F93: =IF(E93=0,"",E93) ->  | BF93: 33
E94: 0 | BF94: 34
E95: 0 | BF95: 35
E96: 0 | BF96: 36
E97: 0 | BF97: 37
E98: 0 | BF98: 38
E99: 0 | BF99: 39
E100: 0 | BF100: 40
E101: 0 | BF101: 41
E102: 0 | BF102: 42
E103: 0 | BF103: 43
E104: 0 | BF104: 44
E105: 0 | BF105: 45
E106: 0 | BF106: 46
E107: 0 | BF107: 47
E108: 0 | BF108: 48
E109: 0 | BF109: 49
E110: 0 | BF110: 50
A119: PTS ordinati per numero standard di coppia base
A120: #STD | B120: PTS
B121: 1 | E121: 48.61111111 | F121: =IF(E121=0,"",E121) -> 48.61111111 | G121: 48.61111111 | I121: =IF(H121=0,"",H121) ->  | BF121: 1
B122: 8 | E122: 50.69444444 | F122: 50.69444444 | G122: 50.69444444 | BF122: 2
B123: 5 | E123: 48.61111111 | F123: 48.61111111 | G123: 48.61111111 | I123: =IF(H123=0,"",H123) ->  | BF123: 3
B124: 4 | E124: 50.69444444 | F124: 50.69444444 | G124: 50.69444444 | I124: =IF(H124=0,"",H124) ->  | BF124: 4
E125: 0 | BF125: 5
B126: 9 | E126: 38.19444444 | F126: 38.19444444 | G126: 38.19444444 | BF126: 6
B127: 2 | E127: 56.94444444 | F127: 56.94444444 | G127: 56.94444444 | BF127: 7
B128: 6 | E128: 59.72222222 | F128: 59.72222222 | G128: 59.72222222 | BF128: 8
B129: 10 | E129: 50 | F129: 50 | G129: 50 | BF129: 9
B130: 3 | E130: 46.52777778 | F130: 46.52777778 | G130: 46.52777778 | I130: =IF(H130=0,"",H130) ->  | BF130: 10
B131: 7 | E131: 50 | F131: 50 | G131: 50 | I131: =IF(H131=0,"",H131) ->  | BF131: 11
B198: F1 Fast | C198: IndyCar Hard | D198: F1 Hibryd | AY198: F1 Fast | AZ198: IndyCar Hard | BA198: F1 Hybrid | BB198: F1 Fast | BC198: IndyCar Hard | BD198: F1 Hybrid
A199: classifica | D199: 6+ | E199: 5.5 | F199: 5 | G199: 4.5 | H199: 4 | I199: 3.5 | J199: 3 | AY199: scale-punti base | BB199: con medie e parimerito | BH199: con correzioni (punti finali)
A200: p.medio | B200: 8.417 | C200: 28.667 | D200: 10.17 | E200: 9.64 | F200: 9 | G200: 8.33 | H200: 7.38 | I200: 6.43 | J200: 5.5 | BB200: =B200 -> 8.417 | BC200: =C200 -> 28.667 | BD200: =IF($B4=0,0,IF($C$3=6,J200))+IF($C$3=7,I200)+IF($C$3=8,H200)+IF($C$3=9,G200)+IF($C$3=10,F200)+IF($C$3=11,E200)+IF($C$3>=12,D200) -> 9 | BH200: F1 Fast | BI200: HindyCar Hard | BJ200: F1 Hibryd
A201: 1 | B201: 25 | C201: 50 | D201: 25 | E201: 22 | F201: 20 | G201: 18 | H201: 16 | I201: 14 | J201: 12 | AY201: =IF($B5=0,0,B201) -> 25 | AZ201: =IF($B5=0,0,C201) -> 50 | BA201: =IF($B5=0,0,IF($C$3=6,J201))+IF($C$3=7,I201)+IF($C$3=8,H201)+IF($C$3=9,G201)+IF($C$3=10,F201)+IF($C$3=11,E201)+IF($C$3>=12,D201) -> 20 | BB201: =IF($B5="",0,IF($E5>$E6,AY201,IF($E6>$E7,(AY201+AY202)/2,IF($E7>$E8,(AY201+AY202+AY203)/3,(AY201+AY202+AY203+AY204)/4)))) -> 25 | BC201: =IF($B5="",0,IF($E5>$E6,AZ201,IF($E6>$E7,(AZ201+AZ202)/2,IF($E7>$E8,(AZ201+AZ202+AZ203)/3,(AZ201+AZ202+AZ203+AZ204)/4)))) -> 50 | BD201: 20 | BH201: =IF($D5=1,BB201+1,IF($D5=2,B$200,BB201)) -> 25 | BI201: =IF($D5=1,BC201+1,IF($D5=2,C$200,BC201)) -> 50 | BJ201: =IF($D5=1,BD201+1,IF($D5=2,BD$200,BD201)) -> 20
A202: 2 | B202: 18 | C202: 40 | D202: 19 | E202: 18 | F202: 16 | G202: 14 | H202: 12 | I202: 10 | J202: 8 | AY202: =IF($B6=0,0,B202) -> 18 | AZ202: 40 | BA202: =IF($B6=0,0,IF($C$3=6,J202))+IF($C$3=7,I202)+IF($C$3=8,H202)+IF($C$3=9,G202)+IF($C$3=10,F202)+IF($C$3=11,E202)+IF($C$3>=12,D202) -> 16 | BB202: =IF($B6="",0,IF($E6=$E5,BB201,IF($E6>$E7,AY202,IF($E7>$E8,(AY202+AY203)/2,IF($E8>$E9,(AY202+AY203+AY204)/3,(AY202+AY203+AY204+AY205)/4))))) -> 18 | BC202: =IF($B6="",0,IF($E6=$E5,BC201,IF($E6>$E7,AZ202,IF($E7>$E8,(AZ202+AZ203)/2,IF($E8>$E9,(AZ202+AZ203+AZ204)/3,(AZ202+AZ203+AZ204+AZ205)/4))))) -> 40 | BD202: =IF($B6="",0,IF($E6=$E5,BD201,IF($E6>$E7,BA202,IF($E7>$E8,(BA202+BA203)/2,IF($E8>$E9,(BA202+BA203+BA204)/3,(BA202+BA203+BA204+BA205)/4))))) -> 16 | BH202: =IF($D6=1,BB202+1,IF($D6=2,B$200,BB202)) -> 18 | BI202: 40 | BJ202: =IF($D6=1,BD202+1,IF($D6=2,BD$200,BD202)) -> 16
A203: 3 | B203: 15 | C203: 35 | D203: 16 | E203: 15 | F203: 13 | G203: 12 | H203: 10 | I203: 8 | J203: 6 | AY203: 15 | AZ203: 35 | BA203: 13 | BB203: =IF($B7="",0,IF($E7=$E6,BB202,IF($E7>$E8,AY203,IF($E8>$E9,(AY203+AY204)/2,IF($E9>$E10,(AY203+AY204+AY205)/3,(AY203+AY204+AY205+AY206)/4))))) -> 13.5 | BC203: 33.5 | BD203: 12 | BH203: 13.5 | BI203: 33.5 | BJ203: 12
A204: 4 | B204: 12 | C204: 32 | D204: 13 | E204: 12 | F204: 11 | G204: 10 | H204: 8 | I204: 6 | J204: 4 | AY204: 12 | AZ204: 32 | BA204: 11 | BB204: 13.5 | BC204: 33.5 | BD204: 12 | BH204: 13.5 | BI204: 33.5 | BJ204: 12
A205: 5 | B205: 10 | C205: 30 | D205: 11 | E205: 10 | F205: 9 | G205: 8 | H205: 6 | I205: 4 | J205: 2 | AY205: 10 | AZ205: 30 | BA205: 9 | BB205: 9 | BC205: 29 | BD205: 8.5 | BH205: 9 | BI205: 29 | BJ205: 8.5
A206: 6 | B206: 8 | C206: 28 | D206: 10 | E206: 9 | F206: 8 | G206: 6 | H206: 4 | I206: 2 | J206: 1 | AY206: 8 | AZ206: 28 | BA206: 8 | BB206: 9 | BC206: 29 | BD206: 8.5 | BH206: 9 | BI206: 29 | BJ206: 8.5
A207: 7 | B207: 6 | C207: 26 | D207: 8 | E207: 7 | F207: 6 | G207: 4 | H207: 2 | I207: 1 | J207: 0 | AY207: 6 | AZ207: 26 | BA207: 6 | BB207: 5 | BC207: 25 | BD207: 5 | BH207: 6 | BI207: 26 | BJ207: 6
A208: 8 | B208: 4 | C208: 24 | D208: 7 | E208: 6 | F208: 4 | G208: 2 | H208: 1 | I208: 0 | J208: 0 | AY208: 4 | AZ208: 24 | BA208: 4 | BB208: 5 | BC208: 25 | BD208: 5 | BH208: 5 | BI208: 25 | BJ208: 5
A209: 9 | B209: 2 | C209: 22 | D209: 6 | E209: 4 | F209: 2 | G209: 1 | H209: 0 | I209: 0 | J209: 0 | AY209: 2 | AZ209: 22 | BA209: 2 | BB209: 2 | BC209: 22 | BD209: 2 | BH209: 2 | BI209: 22 | BJ209: 2
A210: 10 | B210: 1 | C210: 20 | D210: 4 | E210: 2 | F210: 1 | G210: 0 | H210: 0 | I210: 0 | J210: 0 | AY210: 1 | AZ210: 20 | BA210: 1 | BB210: 1 | BC210: 20 | BD210: 1 | BH210: 1 | BI210: 20 | BJ210: 1
A211: 11 | B211: 0 | C211: 19 | D211: 2 | E211: 1 | F211: 0 | G211: 0 | H211: 0 | I211: 0 | J211: 0 | AY211: 0 | AZ211: 0 | BA211: 0 | BB211: 0 | BC211: 0 | BD211: 0 | BH211: 0 | BI211: 0 | BJ211: 0
A212: 12 | B212: 0 | C212: 18 | D212: 1 | E212: 0 | F212: 0 | G212: 0 | H212: 0 | I212: 0 | J212: 0 | AY212: 0 | AZ212: 0 | BA212: 0 | BB212: 0 | BC212: 0 | BD212: 0 | BH212: 0 | BI212: 0 | BJ212: 0
A213: 13 | B213: 0 | C213: 0 | D213: 0 | E213: 0 | F213: 0 | G213: 0 | H213: 0 | I213: 0 | J213: 0 | AY213: 0 | AZ213: 0 | BA213: 0 | BB213: 0 | BC213: 0 | BD213: 0 | BH213: 0 | BI213: 0 | BJ213: 0
A214: 14 | B214: 0 | C214: 0 | D214: 0 | E214: 0 | F214: 0 | G214: 0 | H214: 0 | I214: 0 | J214: 0 | AY214: 0 | AZ214: 0 | BA214: 0 | BB214: 0 | BC214: 0 | BD214: 0 | BH214: 0 | BI214: 0 | BJ214: 0
A215: 15 | B215: 0 | C215: 0 | D215: 0 | E215: 0 | F215: 0 | G215: 0 | H215: 0 | I215: 0 | J215: 0 | AY215: 0 | AZ215: 0 | BA215: 0 | BB215: 0 | BC215: 0 | BD215: 0 | BH215: 0 | BI215: 0 | BJ215: 0
A216: 16 | B216: 0 | C216: 0 | D216: 0 | E216: 0 | F216: 0 | G216: 0 | H216: 0 | I216: 0 | J216: 0 | AY216: 0 | AZ216: 0 | BA216: 0 | BB216: 0 | BC216: 0 | BD216: 0 | BH216: 0 | BI216: 0 | BJ216: 0
A217: 17 | B217: 0 | C217: 0 | D217: 0 | E217: 0 | F217: 0 | G217: 0 | H217: 0 | I217: 0 | J217: 0 | AY217: 0 | AZ217: 0 | BA217: 0 | BB217: 0 | BC217: 0 | BD217: 0 | BH217: 0 | BI217: 0 | BJ217: 0
A218: 18 | B218: 0 | C218: 0 | D218: 0 | E218: 0 | F218: 0 | G218: 0 | H218: 0 | I218: 0 | J218: 0 | AY218: =IF($B22=0,0,B218) -> 0 | AZ218: 0 | BA218: 0 | BB218: 0 | BC218: 0 | BD218: 0 | BH218: =IF($D22=1,BB218+1,IF($D22=2,B$200,BB218)) -> 0 | BI218: 0 | BJ218: 0
A219: 19 | B219: 0 | C219: 0 | D219: 0 | E219: 0 | F219: 0 | G219: 0 | H219: 0 | I219: 0 | J219: 0 | AY219: 0 | AZ219: 0 | BA219: 0 | BB219: =IF($B23="",0,IF($E23=$E22,BB218,IF($E23>$E24,AY219,IF($E24>$E25,(AY219+AY220)/2,IF($E25>$E26,(AY219+AY220+AY221)/3,(AY219+AY220+AY221+AY222)/4))))) -> 0 | BC219: 0 | BD219: 0 | BH219: 0 | BI219: 0 | BJ219: 0
A220: 20 | B220: 0 | C220: 0 | D220: 0 | E220: 0 | F220: 0 | G220: 0 | H220: 0 | I220: 0 | J220: 0 | AY220: 0 | AZ220: 0 | BA220: 0 | BB220: 0 | BC220: 0 | BD220: 0 | BH220: 0 | BI220: 0 | BJ220: 0
A221: 21 | B221: 0 | C221: 0 | D221: 0 | E221: 0 | F221: 0 | G221: 0 | H221: 0 | I221: 0 | J221: 0 | AY221: 0 | AZ221: 0 | BA221: 0 | BB221: 0 | BC221: 0 | BD221: 0 | BH221: 0 | BI221: 0 | BJ221: 0
A222: 22 | B222: 0 | C222: 0 | D222: 0 | E222: 0 | F222: 0 | G222: 0 | H222: 0 | I222: 0 | J222: 0 | AY222: 0 | AZ222: 0 | BA222: 0 | BB222: 0 | BC222: 0 | BD222: 0 | BH222: 0 | BI222: 0 | BJ222: 0
A223: 23 | B223: 0 | C223: 0 | D223: 0 | E223: 0 | F223: 0 | G223: 0 | H223: 0 | I223: 0 | J223: 0 | AY223: 0 | AZ223: 0 | BA223: 0 | BB223: 0 | BC223: 0 | BD223: 0 | BH223: 0 | BI223: 0 | BJ223: 0
A224: 24 | B224: 0 | C224: 0 | D224: 0 | E224: 0 | F224: 0 | G224: 0 | H224: 0 | I224: 0 | J224: 0 | AY224: 0 | AZ224: 0 | BA224: 0 | BB224: 0 | BC224: 0 | BD224: 0 | BH224: 0 | BI224: 0 | BJ224: 0
A225: 25 | B225: 0 | C225: 0 | D225: 0 | E225: 0 | F225: 0 | G225: 0 | H225: 0 | I225: 0 | J225: 0 | AY225: 0 | AZ225: 0 | BA225: 0 | BB225: 0 | BC225: 0 | BD225: 0 | BH225: 0 | BI225: 0 | BJ225: 0
A226: 26 | B226: 0 | C226: 0 | D226: 0 | E226: 0 | F226: 0 | G226: 0 | H226: 0 | I226: 0 | J226: 0 | AY226: 0 | AZ226: 0 | BA226: 0 | BB226: 0 | BC226: 0 | BD226: 0 | BH226: 0 | BI226: 0 | BJ226: 0
A227: 27 | B227: 0 | C227: 0 | D227: 0 | E227: 0 | F227: 0 | G227: 0 | H227: 0 | I227: 0 | J227: 0 | AY227: 0 | AZ227: 0 | BA227: 0 | BB227: 0 | BC227: 0 | BD227: 0 | BH227: 0 | BI227: 0 | BJ227: 0
A228: 28 | B228: 0 | C228: 0 | D228: 0 | E228: 0 | F228: 0 | G228: 0 | H228: 0 | I228: 0 | J228: 0 | AY228: 0 | AZ228: 0 | BA228: 0 | BB228: 0 | BC228: 0 | BD228: 0 | BH228: 0 | BI228: 0 | BJ228: 0
A229: 29 | B229: 0 | C229: 0 | D229: 0 | E229: 0 | F229: 0 | G229: 0 | H229: 0 | I229: 0 | J229: 0 | AY229: 0 | AZ229: 0 | BA229: 0 | BB229: 0 | BC229: 0 | BD229: 0 | BH229: 0 | BI229: 0 | BJ229: 0
A230: 30 | B230: 0 | C230: 0 | D230: 0 | E230: 0 | F230: 0 | G230: 0 | H230: 0 | I230: 0 | J230: 0 | AY230: 0 | AZ230: 0 | BA230: 0 | BB230: 0 | BC230: 0 | BD230: 0 | BH230: 0 | BI230: 0 | BJ230: 0
A231: 31 | B231: 0 | C231: 0 | D231: 0 | E231: 0 | F231: 0 | G231: 0 | H231: 0 | I231: 0 | J231: 0 | AY231: 0 | AZ231: 0 | BA231: 0 | BB231: 0 | BC231: 0 | BD231: 0 | BH231: 0 | BI231: 0 | BJ231: 0
A232: 32 | B232: 0 | C232: 0 | D232: 0 | E232: 0 | F232: 0 | G232: 0 | H232: 0 | I232: 0 | J232: 0 | AY232: 0 | AZ232: 0 | BA232: 0 | BB232: 0 | BC232: 0 | BD232: 0 | BH232: 0 | BI232: 0 | BJ232: 0
A233: 33 | B233: 0 | C233: 0 | D233: 0 | E233: 0 | F233: 0 | G233: 0 | H233: 0 | I233: 0 | J233: 0 | AY233: 0 | AZ233: 0 | BA233: 0 | BB233: 0 | BC233: 0 | BD233: 0 | BH233: 0 | BI233: 0 | BJ233: 0
A234: 34 | B234: 0 | C234: 0 | D234: 0 | E234: 0 | F234: 0 | G234: 0 | H234: 0 | I234: 0 | J234: 0 | AY234: =IF($B38=0,0,B234) -> 0 | AZ234: 0 | BA234: 0 | BB234: 0 | BC234: 0 | BD234: 0 | BH234: =IF($D38=1,BB234+1,IF($D38=2,B$200,BB234)) -> 0 | BI234: 0 | BJ234: 0
A235: 35 | B235: 0 | C235: 0 | D235: 0 | E235: 0 | F235: 0 | G235: 0 | H235: 0 | I235: 0 | J235: 0 | AY235: 0 | AZ235: 0 | BA235: 0 | BB235: =IF($B39="",0,IF($E39=$E38,BB234,IF($E39>$E40,AY235,IF($E40>$E41,(AY235+AY236)/2,IF($E41>$E42,(AY235+AY236+AY237)/3,(AY235+AY236+AY237+AY238)/4))))) -> 0 | BC235: 0 | BD235: 0 | BH235: 0 | BI235: 0 | BJ235: 0
A236: 36 | B236: 0 | C236: 0 | D236: 0 | E236: 0 | F236: 0 | G236: 0 | H236: 0 | I236: 0 | J236: 0 | AY236: 0 | AZ236: 0 | BA236: 0 | BB236: 0 | BC236: 0 | BD236: 0 | BH236: 0 | BI236: 0 | BJ236: 0
A237: 37 | B237: 0 | C237: 0 | D237: 0 | E237: 0 | F237: 0 | G237: 0 | H237: 0 | I237: 0 | J237: 0 | AY237: 0 | AZ237: 0 | BA237: 0 | BB237: 0 | BC237: 0 | BD237: 0 | BH237: 0 | BI237: 0 | BJ237: 0
A238: 38 | B238: 0 | C238: 0 | D238: 0 | E238: 0 | F238: 0 | G238: 0 | H238: 0 | I238: 0 | J238: 0 | AY238: 0 | AZ238: 0 | BA238: 0 | BB238: 0 | BC238: 0 | BD238: 0 | BH238: 0 | BI238: 0 | BJ238: 0
A239: 39 | B239: 0 | C239: 0 | D239: 0 | E239: 0 | F239: 0 | G239: 0 | H239: 0 | I239: 0 | J239: 0 | AY239: 0 | AZ239: 0 | BA239: 0 | BB239: 0 | BC239: 0 | BD239: 0 | BH239: 0 | BI239: 0 | BJ239: 0
A240: 40 | B240: 0 | C240: 0 | D240: 0 | E240: 0 | F240: 0 | G240: 0 | H240: 0 | I240: 0 | J240: 0 | AY240: 0 | AZ240: 0 | BA240: 0 | BB240: 0 | BC240: 0 | BD240: 0 | BH240: 0 | BI240: 0 | BJ240: 0
A241: 41 | B241: 0 | C241: 0 | D241: 0 | E241: 0 | F241: 0 | G241: 0 | H241: 0 | I241: 0 | J241: 0 | AY241: 0 | AZ241: 0 | BA241: 0 | BB241: 0 | BC241: 0 | BD241: 0 | BH241: 0 | BI241: 0 | BJ241: 0
A242: 42 | B242: 0 | C242: 0 | D242: 0 | E242: 0 | F242: 0 | G242: 0 | H242: 0 | I242: 0 | J242: 0 | AY242: 0 | AZ242: 0 | BA242: 0 | BB242: 0 | BC242: 0 | BD242: 0 | BH242: 0 | BI242: 0 | BJ242: 0
A243: 43 | B243: 0 | C243: 0 | D243: 0 | E243: 0 | F243: 0 | G243: 0 | H243: 0 | I243: 0 | J243: 0 | AY243: 0 | AZ243: 0 | BA243: 0 | BB243: 0 | BC243: 0 | BD243: 0 | BH243: 0 | BI243: 0 | BJ243: 0
A244: 44 | B244: 0 | C244: 0 | D244: 0 | E244: 0 | F244: 0 | G244: 0 | H244: 0 | I244: 0 | J244: 0 | AY244: 0 | AZ244: 0 | BA244: 0 | BB244: 0 | BC244: 0 | BD244: 0 | BH244: 0 | BI244: 0 | BJ244: 0
A245: 45 | B245: 0 | C245: 0 | D245: 0 | E245: 0 | F245: 0 | G245: 0 | H245: 0 | I245: 0 | J245: 0 | AY245: 0 | AZ245: 0 | BA245: 0 | BB245: 0 | BC245: 0 | BD245: 0 | BH245: 0 | BI245: 0 | BJ245: 0
A246: 46 | B246: 0 | C246: 0 | D246: 0 | E246: 0 | F246: 0 | G246: 0 | H246: 0 | I246: 0 | J246: 0 | AY246: 0 | AZ246: 0 | BA246: 0 | BB246: 0 | BC246: 0 | BD246: 0 | BH246: 0 | BI246: 0 | BJ246: 0
A247: 47 | B247: 0 | C247: 0 | D247: 0 | E247: 0 | F247: 0 | G247: 0 | H247: 0 | I247: 0 | J247: 0 | AY247: 0 | AZ247: 0 | BA247: 0 | BB247: 0 | BC247: 0 | BD247: 0 | BH247: 0 | BI247: 0 | BJ247: 0
A248: 48 | B248: 0 | C248: 0 | D248: 0 | E248: 0 | F248: 0 | G248: 0 | H248: 0 | I248: 0 | J248: 0 | AY248: 0 | AZ248: 0 | BA248: 0 | BB248: 0 | BC248: 0 | BD248: 0 | BH248: 0 | BI248: 0 | BJ248: 0
A249: 49 | B249: 0 | C249: 0 | D249: 0 | E249: 0 | F249: 0 | G249: 0 | H249: 0 | I249: 0 | J249: 0 | AY249: 0 | AZ249: 0 | BA249: 0 | BB249: 0 | BC249: 0 | BD249: 0 | BH249: 0 | BI249: 0 | BJ249: 0
A250: 50 | B250: 0 | C250: 0 | D250: 0 | E250: 0 | F250: 0 | G250: 0 | H250: 0 | I250: 0 | J250: 0 | AY250: =IF($B54=0,0,B250) -> 0 | AZ250: 0 | BA250: 0 | BB250: 0 | BC250: 0 | BD250: 0 | BH250: =IF($D54=1,BB250+1,IF($D54=2,B$200,BB250)) -> 0 | BI250: 0 | BJ250: 0

Sheet 1feb
A1: Data | C1: 2020-02-01 | D1: BridgeMania 2019-20 - Torneo Howell
A2: luogo | C2: Savoca | D2: Coppie Ctrl+e | E2: Calcola Ctr+f | F2: Duplica Ctrl+g | G2: Clear Ctrl+h | J2: &
A3: # coppie | C3: =IF(B5="","",COUNT(B5:B54)) -> 10 | E3: =IF(E5="","",SUMIF(E5:E54,">0")) -> 500 | G3: =IF(G5="","",SUM(G5:G54)) -> 500 | H3: =IF(H5="","",SUM(H5:H54)) -> 720 | I3: =SUM(I5:I54) -> 0 | J3: =SUM(J5:J54) -> 720 | K3: =SUM(K5:K54) -> 40 | L3: =SUM(L5:L54) -> 40 | M3: 40 | N3: 40 | O3: 40 | P3: 40 | Q3: 40 | R3: 40 | S3: 40 | T3: 40 | U3: 40 | V3: 40 | W3: 40 | X3: 40 | Y3: 40 | Z3: 40 | AA3: 40 | AB3: 40 | AC3: 0 | AD3: 0 | AE3: 0 | AF3: 0 | AG3: 0 | AH3: 0 | AI3: 0 | AJ3: 0 | AK3: 0 | AL3: 0 | AM3: 0 | AN3: 0 | AO3: 0 | AP3: 0 | AQ3: 0 | AR3: 0 | AS3: 0 | AT3: 0 | AU3: 0 | AV3: 0 | AW3: 0 | AX3: 0
A4: Class. | B4: # | C4: Coppie | D4: Inserire a mano "1" = + 1 PTS "2" = PTS medio | E4: Punteggio Serata | G4: Punteggio % | H4: Punteggio Torneo | I4: Penalità (-) | J4: Totale punti mano | K4: 1 | L4: 2 | M4: 3 | N4: 4 | O4: 5 | P4: 6 | Q4: 7 | R4: 8 | S4: 9 | T4: 10 | U4: 11 | V4: 12 | W4: 13 | X4: 14 | Y4: 15 | Z4: 16 | AA4: 17 | AB4: 18 | AC4: 19 | AD4: 20 | AE4: 21 | AF4: 22 | AG4: 23 | AH4: 24 | AI4: 25 | AJ4: 26 | AK4: 27 | AL4: 28 | AM4: 29 | AN4: 30 | AO4: 31 | AP4: 32 | AQ4: 33 | AR4: 34 | AS4: 35 | AT4: 36 | AU4: 37 | AV4: 38 | AW4: 39 | AX4: 40 | AZ4: F1 Fast | BA4: IndyCar Hard | BB4: F1 Hybrid | BF4: # std coppie
A5: =IF(J$2="","",IF($E5="","",IF($E5=MAX($E$5:$E$54),1,IF($E5=$E4,$A4,COUNT($E$5:$E5))))) -> 1 | B5: 6 | C5: Stefania-Massimo | E5: =IF(J$2="","",IF(G5=0,0,F5+G5)) -> 56.94444444 | G5: =IF(J$2="","",IF($J5=0,0,(H5*$C$3/$J$3)*50)) -> 56.94444444 | H5: =IF(J$2="","",IF(SUM($K5:$AX5)=0,0,SUM($K5:$AX5)+$I5)) -> 82 | J5: =IF(B5="",0,IF(SUM($K5:$AX5)=0,0,SUM($K5:$AX5))) -> 82 | K5: 1 | L5: 2 | M5: 8 | N5: 4 | O5: 0 | P5: 7 | Q5: 7 | R5: 2 | S5: 6 | T5: 7 | U5: 1 | V5: 8 | W5: 7 | X5: 2 | Y5: 2 | Z5: 6 | AA5: 7 | AB5: 5 | AY5: Stefania-Massimo | AZ5: 25 | BA5: 50 | BB5: 20 | BF5: 10
A6: =IF(J$2="","",IF($E6="","",IF($E6=MAX($E$5:$E$54),1,IF($E6=$E5,$A5,COUNT($E$5:$E6))))) -> 2 | B6: 5 | C6: Antonella-Dino | E6: 56.25 | G6: 56.25 | H6: 81 | J6: 81 | K6: 5 | L6: 6 | M6: 0 | N6: 4 | O6: 5 | P6: 4 | Q6: 3 | R6: 6 | S6: 2 | T6: 5 | U6: 5 | V6: 6 | W6: 7 | X6: 2 | Y6: 6 | Z6: 6 | AA6: 1 | AB6: 8 | AY6: Antonella-Dino | AZ6: 16.5 | BA6: 37.5 | BB6: 14.5 | BF6: 1
A7: =IF(J$2="","",IF($E7="","",IF($E7=MAX($E$5:$E$54),1,IF($E7=$E6,$A6,COUNT($E$5:$E7))))) -> 2 | B7: 8 | C7: Barbara-Elio | E7: 56.25 | G7: 56.25 | H7: 81 | J7: 81 | K7: 7 | L7: 6 | M7: 8 | N7: 2 | O7: 5 | P7: 1 | Q7: 3 | R7: 8 | S7: 7 | T7: 5 | U7: 3 | V7: 2 | W7: 4 | X7: 0 | Y7: 8 | Z7: 1 | AA7: 3 | AB7: 8 | AY7: Barbara-Elio | AZ7: 16.5 | BA7: 37.5 | BB7: 14.5 | BF7: 2
A8: =IF(J$2="","",IF($E8="","",IF($E8=MAX($E$5:$E$54),1,IF($E8=$E7,$A7,COUNT($E$5:$E8))))) -> 4 | B8: 2 | C8: Lilli-Gianni | E8: 54.16666667 | G8: 54.16666667 | H8: 78 | J8: 78 | K8: 8 | L8: 8 | M8: 6 | N8: 6 | O8: 3 | P8: 4 | Q8: 8 | R8: 6 | S8: 2 | T8: 1 | U8: 3 | V8: 6 | W8: 7 | X8: 2 | Y8: 2 | Z8: 1 | AA8: 5 | AB8: 0 | AY8: Lilli-Gianni | AZ8: 12 | BA8: 32 | BB8: 11 | BF8: 6
A9: =IF(J$2="","",IF($E9="","",IF($E9=MAX($E$5:$E$54),1,IF($E9=$E8,$A8,COUNT($E$5:$E9))))) -> 5 | B9: 10 | C9: Manuela-Roberto | E9: 52.77777778 | G9: 52.77777778 | H9: 76 | J9: 76 | K9: 1 | L9: 4 | M9: 2 | N9: 2 | O9: 2 | P9: 6 | Q9: 7 | R9: 2 | S9: 6 | T9: 3 | U9: 7 | V9: 0 | W9: 7 | X9: 6 | Y9: 0 | Z9: 7 | AA9: 8 | AB9: 6 | AY9: Manuela-Roberto | AZ9: 10 | BA9: 30 | BB9: 9 | BF9: 7
A10: =IF(J$2="","",IF($E10="","",IF($E10=MAX($E$5:$E$54),1,IF($E10=$E9,$A9,COUNT($E$5:$E10))))) -> 6 | B10: 1 | C10: Olimpia-Sauro | D10: 1 | E10: 49.30555556 | G10: 49.30555556 | H10: 71 | J10: 71 | K10: 7 | L10: 4 | M10: 4 | N10: 8 | O10: 3 | P10: 7 | Q10: 5 | R10: 2 | S10: 6 | T10: 0 | U10: 0 | V10: 6 | W10: 1 | X10: 6 | Y10: 6 | Z10: 2 | AA10: 1 | AB10: 3 | AY10: Olimpia-Sauro | AZ10: 9 | BA10: 29 | BB10: 9 | BF10: 8
A11: =IF(J$2="","",IF($E11="","",IF($E11=MAX($E$5:$E$54),1,IF($E11=$E10,$A10,COUNT($E$5:$E11))))) -> 7 | B11: 3 | C11: Cesarina-Gaetano | E11: 46.52777778 | G11: 46.52777778 | H11: 67 | J11: 67 | K11: 5 | L11: 0 | M11: 0 | N11: 6 | O11: 6 | P11: 2 | Q11: 1 | R11: 6 | S11: 2 | T11: 8 | U11: 1 | V11: 2 | W11: 1 | X11: 6 | Y11: 6 | Z11: 7 | AA11: 3 | AB11: 5 | AY11: Cesarina-Gaetano | AZ11: 4 | BA11: 24 | BB11: 4 | BF11: 3
A12: =IF(J$2="","",IF($E12="","",IF($E12=MAX($E$5:$E$54),1,IF($E12=$E11,$A11,COUNT($E$5:$E12))))) -> 7 | B12: 7 | C12: Isolde-Cristina | E12: 46.52777778 | G12: 46.52777778 | H12: 67 | J12: 67 | K12: 0 | L12: 0 | M12: 6 | N12: 8 | O12: 8 | P12: 1 | Q12: 5 | R12: 0 | S12: 1 | T12: 7 | U12: 7 | V12: 6 | W12: 1 | X12: 2 | Y12: 2 | Z12: 6 | AA12: 7 | AB12: 0 | AY12: Isolde-Cristina | AZ12: 4 | BA12: 24 | BB12: 4 | BF12: 5
A13: =IF(J$2="","",IF($E13="","",IF($E13=MAX($E$5:$E$54),1,IF($E13=$E12,$A12,COUNT($E$5:$E13))))) -> 7 | B13: 4 | C13: Letizia-Enzo | E13: 46.52777778 | G13: 46.52777778 | H13: 67 | J13: 67 | K13: 3 | L13: 2 | M13: 4 | N13: 0 | O13: 0 | P13: 8 | Q13: 1 | R13: 6 | S13: 7 | T13: 1 | U13: 5 | V13: 2 | W13: 4 | X13: 8 | Y13: 6 | Z13: 2 | AA13: 5 | AB13: 3 | AY13: Letizia-Enzo | AZ13: 4 | BA13: 24 | BB13: 4 | BF13: 16
A14: =IF(J$2="","",IF($E14="","",IF($E14=MAX($E$5:$E$54),1,IF($E14=$E13,$A13,COUNT($E$5:$E14))))) -> 10 | B14: 9 | C14: Tatiana-Julio | E14: 34.72222222 | G14: 34.72222222 | H14: 50 | J14: 50 | K14: 3 | L14: 8 | M14: 2 | N14: 0 | O14: 8 | P14: 0 | Q14: 0 | R14: 2 | S14: 1 | T14: 3 | U14: 8 | V14: 2 | W14: 1 | X14: 6 | Y14: 2 | Z14: 2 | AA14: 0 | AB14: 2 | AY14: Tatiana-Julio | AZ14: 1 | BA14: 20 | BB14: 1 | BF14: 11
A15: =IF(J$2="","",IF($E15="","",IF($E15=MAX($E$5:$E$54),1,IF($E15=$E14,$A14,COUNT($E$5:$E15))))) -> 11 | C15: Elena-Stefano | E15: 0 | G15: 0 | H15: 0 | J15: 0 | AY15: Elena-Stefano | AZ15: 0 | BA15: 0 | BB15: 0 | BF15: 4
A16: =IF(J$2="","",IF($E16="","",IF($E16=MAX($E$5:$E$54),1,IF($E16=$E15,$A15,COUNT($E$5:$E16))))) -> 11 | C16: Renata-Sandro | D16: 2 | E16: 0 | G16: 0 | H16: 0 | J16: 0 | AY16: Renata-Sandro | AZ16: 8.417 | BA16: 28.667 | BB16: 9 | BF16: 9
A17: =IF(J$2="","",IF($E17="","",IF($E17=MAX($E$5:$E$54),1,IF($E17=$E16,$A16,COUNT($E$5:$E17))))) -> 11 | C17: Marilena-Sergio | E17: 0 | G17: 0 | H17: 0 | J17: 0 | AY17: Marilena-Sergio | AZ17: 0 | BA17: 0 | BB17: 0 | BF17: 12
A18: =IF(J$2="","",IF($E18="","",IF($E18=MAX($E$5:$E$54),1,IF($E18=$E17,$A17,COUNT($E$5:$E18))))) -> 11 | C18: A.Maria-Claudio | E18: 0 | G18: 0 | H18: 0 | J18: 0 | AY18: A.Maria-Claudio | AZ18: 0 | BA18: 0 | BB18: 0 | BF18: 13
A19: =IF(J$2="","",IF($E19="","",IF($E19=MAX($E$5:$E$54),1,IF($E19=$E18,$A18,COUNT($E$5:$E19))))) -> 11 | C19: June-Vincenzo | E19: 0 | G19: 0 | H19: 0 | J19: 0 | AY19: June-Vincenzo | AZ19: 0 | BA19: 0 | BB19: 0 | BF19: 14
A20: =IF(J$2="","",IF($E20="","",IF($E20=MAX($E$5:$E$54),1,IF($E20=$E19,$A19,COUNT($E$5:$E20))))) -> 11 | C20: Marina-Enzo | E20: 0 | G20: 0 | H20: 0 | J20: 0 | AY20: Marina-Enzo | AZ20: 0 | BA20: 0 | BB20: 0 | BF20: 15
A21: =IF(J$2="","",IF($E21="","",IF($E21=MAX($E$5:$E$54),1,IF($E21=$E20,$A20,COUNT($E$5:$E21))))) -> 11 | E21: 0 | G21: 0 | H21: 0 | J21: 0 | AZ21: 0 | BA21: 0 | BB21: 0 | BF21: 17
A22: =IF(J$2="","",IF($E22="","",IF($E22=MAX($E$5:$E$54),1,IF($E22=$E21,$A21,COUNT($E$5:$E22))))) -> 11 | E22: 0 | G22: 0 | H22: 0 | J22: 0 | AZ22: 0 | BA22: 0 | BB22: 0 | BF22: 18
A23: =IF(J$2="","",IF($E23="","",IF($E23=MAX($E$5:$E$54),1,IF($E23=$E22,$A22,COUNT($E$5:$E23))))) -> 11 | E23: 0 | G23: 0 | H23: 0 | J23: 0 | AZ23: 0 | BA23: 0 | BB23: 0 | BF23: 19
A24: =IF(J$2="","",IF($E24="","",IF($E24=MAX($E$5:$E$54),1,IF($E24=$E23,$A23,COUNT($E$5:$E24))))) -> 11 | E24: 0 | G24: 0 | H24: 0 | J24: 0 | AZ24: 0 | BA24: 0 | BB24: 0 | BF24: 20
A25: =IF(J$2="","",IF($E25="","",IF($E25=MAX($E$5:$E$54),1,IF($E25=$E24,$A24,COUNT($E$5:$E25))))) -> 11 | E25: 0 | G25: 0 | H25: 0 | J25: 0 | AZ25: 0 | BA25: 0 | BB25: 0 | BF25: 21
A26: =IF(J$2="","",IF($E26="","",IF($E26=MAX($E$5:$E$54),1,IF($E26=$E25,$A25,COUNT($E$5:$E26))))) -> 11 | E26: 0 | G26: 0 | H26: 0 | J26: 0 | AZ26: 0 | BA26: 0 | BB26: 0 | BF26: 22
A27: =IF(J$2="","",IF($E27="","",IF($E27=MAX($E$5:$E$54),1,IF($E27=$E26,$A26,COUNT($E$5:$E27))))) -> 11 | E27: 0 | G27: 0 | H27: 0 | J27: 0 | AZ27: 0 | BA27: 0 | BB27: 0 | BF27: 23
A28: =IF(J$2="","",IF($E28="","",IF($E28=MAX($E$5:$E$54),1,IF($E28=$E27,$A27,COUNT($E$5:$E28))))) -> 11 | E28: 0 | G28: 0 | H28: 0 | J28: 0 | AZ28: 0 | BA28: 0 | BB28: 0 | BF28: 24
A29: =IF(J$2="","",IF($E29="","",IF($E29=MAX($E$5:$E$54),1,IF($E29=$E28,$A28,COUNT($E$5:$E29))))) -> 11 | E29: 0 | G29: 0 | H29: 0 | J29: 0 | AZ29: 0 | BA29: 0 | BB29: 0 | BF29: 25
A30: =IF(J$2="","",IF($E30="","",IF($E30=MAX($E$5:$E$54),1,IF($E30=$E29,$A29,COUNT($E$5:$E30))))) -> 11 | E30: 0 | G30: 0 | H30: 0 | J30: 0 | AZ30: 0 | BA30: 0 | BB30: 0 | BF30: 26
A31: =IF(J$2="","",IF($E31="","",IF($E31=MAX($E$5:$E$54),1,IF($E31=$E30,$A30,COUNT($E$5:$E31))))) -> 11 | E31: 0 | G31: 0 | H31: 0 | J31: 0 | AZ31: 0 | BA31: 0 | BB31: 0 | BF31: 27
A32: =IF(J$2="","",IF($E32="","",IF($E32=MAX($E$5:$E$54),1,IF($E32=$E31,$A31,COUNT($E$5:$E32))))) -> 11 | E32: 0 | G32: 0 | H32: 0 | J32: 0 | AZ32: 0 | BA32: 0 | BB32: 0 | BF32: 28
A33: =IF(J$2="","",IF($E33="","",IF($E33=MAX($E$5:$E$54),1,IF($E33=$E32,$A32,COUNT($E$5:$E33))))) -> 11 | E33: 0 | G33: 0 | H33: 0 | J33: 0 | AZ33: 0 | BA33: 0 | BB33: 0 | BF33: 29
A34: =IF(J$2="","",IF($E34="","",IF($E34=MAX($E$5:$E$54),1,IF($E34=$E33,$A33,COUNT($E$5:$E34))))) -> 11 | E34: 0 | G34: 0 | H34: 0 | J34: 0 | AZ34: 0 | BA34: 0 | BB34: 0 | BF34: 30
A35: =IF(J$2="","",IF($E35="","",IF($E35=MAX($E$5:$E$54),1,IF($E35=$E34,$A34,COUNT($E$5:$E35))))) -> 11 | E35: 0 | G35: 0 | H35: 0 | J35: 0 | AZ35: 0 | BA35: 0 | BB35: 0 | BF35: 31
A36: =IF(J$2="","",IF($E36="","",IF($E36=MAX($E$5:$E$54),1,IF($E36=$E35,$A35,COUNT($E$5:$E36))))) -> 11 | E36: 0 | G36: 0 | H36: 0 | J36: 0 | AZ36: 0 | BA36: 0 | BB36: 0 | BF36: 32
A37: =IF(J$2="","",IF($E37="","",IF($E37=MAX($E$5:$E$54),1,IF($E37=$E36,$A36,COUNT($E$5:$E37))))) -> 11 | E37: 0 | G37: 0 | H37: 0 | J37: 0 | AZ37: 0 | BA37: 0 | BB37: 0 | BF37: 33
A38: =IF(J$2="","",IF($E38="","",IF($E38=MAX($E$5:$E$54),1,IF($E38=$E37,$A37,COUNT($E$5:$E38))))) -> 11 | E38: 0 | G38: 0 | H38: 0 | J38: 0 | AZ38: 0 | BA38: 0 | BB38: 0 | BF38: 34
A39: =IF(J$2="","",IF($E39="","",IF($E39=MAX($E$5:$E$54),1,IF($E39=$E38,$A38,COUNT($E$5:$E39))))) -> 11 | E39: 0 | G39: 0 | H39: 0 | J39: 0 | AZ39: 0 | BA39: 0 | BB39: 0 | BF39: 35
A40: =IF(J$2="","",IF($E40="","",IF($E40=MAX($E$5:$E$54),1,IF($E40=$E39,$A39,COUNT($E$5:$E40))))) -> 11 | E40: 0 | G40: 0 | H40: 0 | J40: 0 | AZ40: 0 | BA40: 0 | BB40: 0 | BF40: 36
A41: =IF(J$2="","",IF($E41="","",IF($E41=MAX($E$5:$E$54),1,IF($E41=$E40,$A40,COUNT($E$5:$E41))))) -> 11 | E41: 0 | G41: 0 | H41: 0 | J41: 0 | AZ41: 0 | BA41: 0 | BB41: 0 | BF41: 37
A42: =IF(J$2="","",IF($E42="","",IF($E42=MAX($E$5:$E$54),1,IF($E42=$E41,$A41,COUNT($E$5:$E42))))) -> 11 | E42: 0 | G42: 0 | H42: 0 | J42: 0 | AZ42: 0 | BA42: 0 | BB42: 0 | BF42: 38
A43: =IF(J$2="","",IF($E43="","",IF($E43=MAX($E$5:$E$54),1,IF($E43=$E42,$A42,COUNT($E$5:$E43))))) -> 11 | E43: 0 | G43: 0 | H43: 0 | J43: 0 | AZ43: 0 | BA43: 0 | BB43: 0 | BF43: 39
A44: =IF(J$2="","",IF($E44="","",IF($E44=MAX($E$5:$E$54),1,IF($E44=$E43,$A43,COUNT($E$5:$E44))))) -> 11 | E44: 0 | G44: 0 | H44: 0 | J44: 0 | AZ44: 0 | BA44: 0 | BB44: 0 | BF44: 40
A45: =IF(J$2="","",IF($E45="","",IF($E45=MAX($E$5:$E$54),1,IF($E45=$E44,$A44,COUNT($E$5:$E45))))) -> 11 | E45: 0 | G45: 0 | H45: 0 | J45: 0 | AZ45: 0 | BA45: 0 | BB45: 0 | BF45: 41
A46: =IF(J$2="","",IF($E46="","",IF($E46=MAX($E$5:$E$54),1,IF($E46=$E45,$A45,COUNT($E$5:$E46))))) -> 11 | E46: 0 | G46: 0 | H46: 0 | J46: 0 | AZ46: 0 | BA46: 0 | BB46: 0 | BF46: 42
A47: =IF(J$2="","",IF($E47="","",IF($E47=MAX($E$5:$E$54),1,IF($E47=$E46,$A46,COUNT($E$5:$E47))))) -> 11 | E47: 0 | G47: 0 | H47: 0 | J47: 0 | AZ47: 0 | BA47: 0 | BB47: 0 | BF47: 43
A48: =IF(J$2="","",IF($E48="","",IF($E48=MAX($E$5:$E$54),1,IF($E48=$E47,$A47,COUNT($E$5:$E48))))) -> 11 | E48: 0 | G48: 0 | H48: 0 | J48: 0 | AZ48: 0 | BA48: 0 | BB48: 0 | BF48: 44
A49: =IF(J$2="","",IF($E49="","",IF($E49=MAX($E$5:$E$54),1,IF($E49=$E48,$A48,COUNT($E$5:$E49))))) -> 11 | E49: 0 | G49: 0 | H49: 0 | J49: 0 | AZ49: 0 | BA49: 0 | BB49: 0 | BF49: 45
A50: =IF(J$2="","",IF($E50="","",IF($E50=MAX($E$5:$E$54),1,IF($E50=$E49,$A49,COUNT($E$5:$E50))))) -> 11 | E50: 0 | G50: 0 | H50: 0 | J50: 0 | AZ50: 0 | BA50: 0 | BB50: 0 | BF50: 46
A51: =IF(J$2="","",IF($E51="","",IF($E51=MAX($E$5:$E$54),1,IF($E51=$E50,$A50,COUNT($E$5:$E51))))) -> 11 | E51: 0 | G51: 0 | H51: 0 | J51: 0 | AZ51: 0 | BA51: 0 | BB51: 0 | BF51: 47
A52: =IF(J$2="","",IF($E52="","",IF($E52=MAX($E$5:$E$54),1,IF($E52=$E51,$A51,COUNT($E$5:$E52))))) -> 11 | E52: 0 | G52: 0 | H52: 0 | J52: 0 | AZ52: 0 | BA52: 0 | BB52: 0 | BF52: 48
A53: =IF(J$2="","",IF($E53="","",IF($E53=MAX($E$5:$E$54),1,IF($E53=$E52,$A52,COUNT($E$5:$E53))))) -> 11 | E53: 0 | G53: 0 | H53: 0 | J53: 0 | AZ53: 0 | BA53: 0 | BB53: 0 | BF53: 49
A54: =IF(J$2="","",IF($E54="","",IF($E54=MAX($E$5:$E$54),1,IF($E54=$E53,$A53,COUNT($E$5:$E54))))) -> 11 | E54: 0 | G54: 0 | H54: 0 | J54: 0 | AZ54: 0 | BA54: 0 | BB54: 0 | BF54: 50
D59: punteggi torneo ordinati per # di coppia
B60: # coppia | E60: con zeri | F60: senza zeri | G60: senza zeri
B61: 1 | E61: 49.30555556 | F61: =IF(E61=0,"",E61) -> 49.30555556 | G61: 49.30555556 | I61: =IF(H61=0,"",H61) ->  | BF61: 8
B62: 2 | E62: 54.16666667 | F62: 54.16666667 | G62: 54.16666667 | BF62: 6
B63: 3 | E63: 46.52777778 | F63: 46.52777778 | G63: 46.52777778 | I63: =IF(H63=0,"",H63) ->  | BF63: 3
B64: 4 | E64: 46.52777778 | F64: 46.52777778 | G64: 46.52777778 | I64: =IF(H64=0,"",H64) ->  | BF64: 16
B65: 5 | E65: 56.25 | F65: 56.25 | G65: 56.25 | I65: =IF(H65=0,"",H65) ->  | BF65: 1
B66: 6 | E66: 56.94444444 | F66: 56.94444444 | G66: 56.94444444 | BF66: 10
B67: 7 | E67: 46.52777778 | F67: 46.52777778 | G67: 46.52777778 | I67: =IF(H67=0,"",H67) ->  | BF67: 5
B68: 8 | E68: 56.25 | F68: 56.25 | G68: 56.25 | BF68: 2
B69: 9 | E69: 34.72222222 | F69: 34.72222222 | G69: 34.72222222 | BF69: 11
B70: 10 | E70: 52.77777778 | F70: 52.77777778 | G70: 52.77777778 | BF70: 7
E71: 0 | BF71: 4
E72: 0 | I72: =IF(H72=0,"",H72) ->  | BF72: 9
E73: 0 | BF73: 12
E74: 0 | I74: =IF(H74=0,"",H74) ->  | BF74: 13
E75: 0 | I75: =IF(H75=0,"",H75) ->  | BF75: 14
E76: 0 | I76: =IF(H76=0,"",H76) ->  | BF76: 15
E77: 0 | BF77: 17
E78: 0 | BF78: 18
E79: 0 | I79: =IF(H79=0,"",H79) ->  | BF79: 19
E80: 0 | I80: =IF(H80=0,"",H80) ->  | BF80: 20
E81: 0 | BF81: 21
E82: 0 | BF82: 22
E83: 0 | BF83: 23
E84: 0 | BF84: 24
E85: 0 | BF85: 25
E86: 0 | BF86: 26
E87: 0 | BF87: 27
E88: 0 | BF88: 28
E89: 0 | BF89: 29
E90: 0 | BF90: 30
E91: 0 | BF91: 31
E92: 0 | BF92: 32
E93: 0 | BF93: 33
E94: 0 | BF94: 34
E95: 0 | BF95: 35
E96: 0 | BF96: 36
E97: 0 | BF97: 37
E98: 0 | BF98: 38
E99: 0 | BF99: 39
E100: 0 | BF100: 40
E101: 0 | BF101: 41
E102: 0 | BF102: 42
E103: 0 | BF103: 43
E104: 0 | BF104: 44
E105: 0 | BF105: 45
E106: 0 | BF106: 46
E107: 0 | BF107: 47
E108: 0 | BF108: 48
E109: 0 | BF109: 49
E110: 0 | BF110: 50
A119: PTS ordinati per numero standard di coppia base
A120: #STD | B120: PTS
B121: 5 | E121: 56.25 | F121: =IF(E121=0,"",E121) -> 56.25 | G121: 56.25 | I121: =IF(H121=0,"",H121) ->  | BF121: 1
B122: 8 | E122: 56.25 | F122: 56.25 | G122: 56.25 | BF122: 2
B123: 3 | E123: 46.52777778 | F123: 46.52777778 | G123: 46.52777778 | I123: =IF(H123=0,"",H123) ->  | BF123: 3
E124: 0 | BF124: 4
B125: 7 | E125: 46.52777778 | F125: 46.52777778 | G125: 46.52777778 | I125: =IF(H125=0,"",H125) ->  | BF125: 5
B126: 2 | E126: 54.16666667 | F126: 54.16666667 | G126: 54.16666667 | BF126: 6
B127: 10 | E127: 52.77777778 | F127: 52.77777778 | G127: 52.77777778 | BF127: 7
B128: 1 | E128: 49.30555556 | F128: 49.30555556 | G128: 49.30555556 | I128: =IF(H128=0,"",H128) ->  | BF128: 8
E129: 0 | I129: =IF(H129=0,"",H129) ->  | BF129: 9
B130: 6 | E130: 56.94444444 | F130: 56.94444444 | G130: 56.94444444 | BF130: 10
B131: 9 | E131: 34.72222222 | F131: 34.72222222 | G131: 34.72222222 | BF131: 11
B198: F1 Fast | C198: IndyCar Hard | D198: F1 Hibryd | AY198: F1 Fast | AZ198: IndyCar Hard | BA198: F1 Hybrid | BB198: F1 Fast | BC198: IndyCar Hard | BD198: F1 Hybrid
A199: classifica | D199: 6+ | E199: 5.5 | F199: 5 | G199: 4.5 | H199: 4 | I199: 3.5 | J199: 3 | AY199: scale-punti base | BB199: con medie e parimerito | BH199: con correzioni (punti finali)
A200: p.medio | B200: 8.417 | C200: 28.667 | D200: 10.17 | E200: 9.64 | F200: 9 | G200: 8.33 | H200: 7.38 | I200: 6.43 | J200: 5.5 | BB200: =B200 -> 8.417 | BC200: =C200 -> 28.667 | BD200: =IF($B4=0,0,IF($C$3=6,J200))+IF($C$3=7,I200)+IF($C$3=8,H200)+IF($C$3=9,G200)+IF($C$3=10,F200)+IF($C$3=11,E200)+IF($C$3>=12,D200) -> 9 | BH200: F1 Fast | BI200: HindyCar Hard | BJ200: F1 Hibryd
A201: 1 | B201: 25 | C201: 50 | D201: 25 | E201: 22 | F201: 20 | G201: 18 | H201: 16 | I201: 14 | J201: 12 | AY201: =IF($B5=0,0,B201) -> 25 | AZ201: =IF($B5=0,0,C201) -> 50 | BA201: =IF($B5=0,0,IF($C$3=6,J201))+IF($C$3=7,I201)+IF($C$3=8,H201)+IF($C$3=9,G201)+IF($C$3=10,F201)+IF($C$3=11,E201)+IF($C$3>=12,D201) -> 20 | BB201: =IF($B5="",0,IF($E5>$E6,AY201,IF($E6>$E7,(AY201+AY202)/2,IF($E7>$E8,(AY201+AY202+AY203)/3,(AY201+AY202+AY203+AY204)/4)))) -> 25 | BC201: =IF($B5="",0,IF($E5>$E6,AZ201,IF($E6>$E7,(AZ201+AZ202)/2,IF($E7>$E8,(AZ201+AZ202+AZ203)/3,(AZ201+AZ202+AZ203+AZ204)/4)))) -> 50 | BD201: 20 | BH201: =IF($D5=1,BB201+1,IF($D5=2,B$200,BB201)) -> 25 | BI201: =IF($D5=1,BC201+1,IF($D5=2,C$200,BC201)) -> 50 | BJ201: =IF($D5=1,BD201+1,IF($D5=2,BD$200,BD201)) -> 20
A202: 2 | B202: 18 | C202: 40 | D202: 19 | E202: 18 | F202: 16 | G202: 14 | H202: 12 | I202: 10 | J202: 8 | AY202: =IF($B6=0,0,B202) -> 18 | AZ202: 40 | BA202: =IF($B6=0,0,IF($C$3=6,J202))+IF($C$3=7,I202)+IF($C$3=8,H202)+IF($C$3=9,G202)+IF($C$3=10,F202)+IF($C$3=11,E202)+IF($C$3>=12,D202) -> 16 | BB202: =IF($B6="",0,IF($E6=$E5,BB201,IF($E6>$E7,AY202,IF($E7>$E8,(AY202+AY203)/2,IF($E8>$E9,(AY202+AY203+AY204)/3,(AY202+AY203+AY204+AY205)/4))))) -> 16.5 | BC202: =IF($B6="",0,IF($E6=$E5,BC201,IF($E6>$E7,AZ202,IF($E7>$E8,(AZ202+AZ203)/2,IF($E8>$E9,(AZ202+AZ203+AZ204)/3,(AZ202+AZ203+AZ204+AZ205)/4))))) -> 37.5 | BD202: =IF($B6="",0,IF($E6=$E5,BD201,IF($E6>$E7,BA202,IF($E7>$E8,(BA202+BA203)/2,IF($E8>$E9,(BA202+BA203+BA204)/3,(BA202+BA203+BA204+BA205)/4))))) -> 14.5 | BH202: =IF($D6=1,BB202+1,IF($D6=2,B$200,BB202)) -> 16.5 | BI202: 37.5 | BJ202: =IF($D6=1,BD202+1,IF($D6=2,BD$200,BD202)) -> 14.5
A203: 3 | B203: 15 | C203: 35 | D203: 16 | E203: 15 | F203: 13 | G203: 12 | H203: 10 | I203: 8 | J203: 6 | AY203: 15 | AZ203: 35 | BA203: 13 | BB203: =IF($B7="",0,IF($E7=$E6,BB202,IF($E7>$E8,AY203,IF($E8>$E9,(AY203+AY204)/2,IF($E9>$E10,(AY203+AY204+AY205)/3,(AY203+AY204+AY205+AY206)/4))))) -> 16.5 | BC203: 37.5 | BD203: 14.5 | BH203: 16.5 | BI203: 37.5 | BJ203: 14.5
A204: 4 | B204: 12 | C204: 32 | D204: 13 | E204: 12 | F204: 11 | G204: 10 | H204: 8 | I204: 6 | J204: 4 | AY204: 12 | AZ204: 32 | BA204: 11 | BB204: 12 | BC204: 32 | BD204: 11 | BH204: 12 | BI204: 32 | BJ204: 11
A205: 5 | B205: 10 | C205: 30 | D205: 11 | E205: 10 | F205: 9 | G205: 8 | H205: 6 | I205: 4 | J205: 2 | AY205: 10 | AZ205: 30 | BA205: 9 | BB205: 10 | BC205: 30 | BD205: 9 | BH205: 10 | BI205: 30 | BJ205: 9
A206: 6 | B206: 8 | C206: 28 | D206: 10 | E206: 9 | F206: 8 | G206: 6 | H206: 4 | I206: 2 | J206: 1 | AY206: 8 | AZ206: 28 | BA206: 8 | BB206: 8 | BC206: 28 | BD206: 8 | BH206: 9 | BI206: 29 | BJ206: 9
A207: 7 | B207: 6 | C207: 26 | D207: 8 | E207: 7 | F207: 6 | G207: 4 | H207: 2 | I207: 1 | J207: 0 | AY207: 6 | AZ207: 26 | BA207: 6 | BB207: 4 | BC207: 24 | BD207: 4 | BH207: 4 | BI207: 24 | BJ207: 4
A208: 8 | B208: 4 | C208: 24 | D208: 7 | E208: 6 | F208: 4 | G208: 2 | H208: 1 | I208: 0 | J208: 0 | AY208: 4 | AZ208: 24 | BA208: 4 | BB208: 4 | BC208: 24 | BD208: 4 | BH208: 4 | BI208: 24 | BJ208: 4
A209: 9 | B209: 2 | C209: 22 | D209: 6 | E209: 4 | F209: 2 | G209: 1 | H209: 0 | I209: 0 | J209: 0 | AY209: 2 | AZ209: 22 | BA209: 2 | BB209: 4 | BC209: 24 | BD209: 4 | BH209: 4 | BI209: 24 | BJ209: 4
A210: 10 | B210: 1 | C210: 20 | D210: 4 | E210: 2 | F210: 1 | G210: 0 | H210: 0 | I210: 0 | J210: 0 | AY210: 1 | AZ210: 20 | BA210: 1 | BB210: 1 | BC210: 20 | BD210: 1 | BH210: 1 | BI210: 20 | BJ210: 1
A211: 11 | B211: 0 | C211: 19 | D211: 2 | E211: 1 | F211: 0 | G211: 0 | H211: 0 | I211: 0 | J211: 0 | AY211: 0 | AZ211: 0 | BA211: 0 | BB211: 0 | BC211: 0 | BD211: 0 | BH211: 0 | BI211: 0 | BJ211: 0
A212: 12 | B212: 0 | C212: 18 | D212: 1 | E212: 0 | F212: 0 | G212: 0 | H212: 0 | I212: 0 | J212: 0 | AY212: 0 | AZ212: 0 | BA212: 0 | BB212: 0 | BC212: 0 | BD212: 0 | BH212: 8.417 | BI212: 28.667 | BJ212: 9
A213: 13 | B213: 0 | C213: 0 | D213: 0 | E213: 0 | F213: 0 | G213: 0 | H213: 0 | I213: 0 | J213: 0 | AY213: 0 | AZ213: 0 | BA213: 0 | BB213: 0 | BC213: 0 | BD213: 0 | BH213: 0 | BI213: 0 | BJ213: 0
A214: 14 | B214: 0 | C214: 0 | D214: 0 | E214: 0 | F214: 0 | G214: 0 | H214: 0 | I214: 0 | J214: 0 | AY214: 0 | AZ214: 0 | BA214: 0 | BB214: 0 | BC214: 0 | BD214: 0 | BH214: 0 | BI214: 0 | BJ214: 0
A215: 15 | B215: 0 | C215: 0 | D215: 0 | E215: 0 | F215: 0 | G215: 0 | H215: 0 | I215: 0 | J215: 0 | AY215: 0 | AZ215: 0 | BA215: 0 | BB215: 0 | BC215: 0 | BD215: 0 | BH215: 0 | BI215: 0 | BJ215: 0
A216: 16 | B216: 0 | C216: 0 | D216: 0 | E216: 0 | F216: 0 | G216: 0 | H216: 0 | I216: 0 | J216: 0 | AY216: 0 | AZ216: 0 | BA216: 0 | BB216: 0 | BC216: 0 | BD216: 0 | BH216: 0 | BI216: 0 | BJ216: 0
A217: 17 | B217: 0 | C217: 0 | D217: 0 | E217: 0 | F217: 0 | G217: 0 | H217: 0 | I217: 0 | J217: 0 | AY217: 0 | AZ217: 0 | BA217: 0 | BB217: 0 | BC217: 0 | BD217: 0 | BH217: 0 | BI217: 0 | BJ217: 0
A218: 18 | B218: 0 | C218: 0 | D218: 0 | E218: 0 | F218: 0 | G218: 0 | H218: 0 | I218: 0 | J218: 0 | AY218: =IF($B22=0,0,B218) -> 0 | AZ218: 0 | BA218: 0 | BB218: 0 | BC218: 0 | BD218: 0 | BH218: =IF($D22=1,BB218+1,IF($D22=2,B$200,BB218)) -> 0 | BI218: 0 | BJ218: 0
A219: 19 | B219: 0 | C219: 0 | D219: 0 | E219: 0 | F219: 0 | G219: 0 | H219: 0 | I219: 0 | J219: 0 | AY219: 0 | AZ219: 0 | BA219: 0 | BB219: =IF($B23="",0,IF($E23=$E22,BB218,IF($E23>$E24,AY219,IF($E24>$E25,(AY219+AY220)/2,IF($E25>$E26,(AY219+AY220+AY221)/3,(AY219+AY220+AY221+AY222)/4))))) -> 0 | BC219: 0 | BD219: 0 | BH219: 0 | BI219: 0 | BJ219: 0
A220: 20 | B220: 0 | C220: 0 | D220: 0 | E220: 0 | F220: 0 | G220: 0 | H220: 0 | I220: 0 | J220: 0 | AY220: 0 | AZ220: 0 | BA220: 0 | BB220: 0 | BC220: 0 | BD220: 0 | BH220: 0 | BI220: 0 | BJ220: 0
A221: 21 | B221: 0 | C221: 0 | D221: 0 | E221: 0 | F221: 0 | G221: 0 | H221: 0 | I221: 0 | J221: 0 | AY221: 0 | AZ221: 0 | BA221: 0 | BB221: 0 | BC221: 0 | BD221: 0 | BH221: 0 | BI221: 0 | BJ221: 0
A222: 22 | B222: 0 | C222: 0 | D222: 0 | E222: 0 | F222: 0 | G222: 0 | H222: 0 | I222: 0 | J222: 0 | AY222: 0 | AZ222: 0 | BA222: 0 | BB222: 0 | BC222: 0 | BD222: 0 | BH222: 0 | BI222: 0 | BJ222: 0
A223: 23 | B223: 0 | C223: 0 | D223: 0 | E223: 0 | F223: 0 | G223: 0 | H223: 0 | I223: 0 | J223: 0 | AY223: 0 | AZ223: 0 | BA223: 0 | BB223: 0 | BC223: 0 | BD223: 0 | BH223: 0 | BI223: 0 | BJ223: 0
A224: 24 | B224: 0 | C224: 0 | D224: 0 | E224: 0 | F224: 0 | G224: 0 | H224: 0 | I224: 0 | J224: 0 | AY224: 0 | AZ224: 0 | BA224: 0 | BB224: 0 | BC224: 0 | BD224: 0 | BH224: 0 | BI224: 0 | BJ224: 0
A225: 25 | B225: 0 | C225: 0 | D225: 0 | E225: 0 | F225: 0 | G225: 0 | H225: 0 | I225: 0 | J225: 0 | AY225: 0 | AZ225: 0 | BA225: 0 | BB225: 0 | BC225: 0 | BD225: 0 | BH225: 0 | BI225: 0 | BJ225: 0
A226: 26 | B226: 0 | C226: 0 | D226: 0 | E226: 0 | F226: 0 | G226: 0 | H226: 0 | I226: 0 | J226: 0 | AY226: 0 | AZ226: 0 | BA226: 0 | BB226: 0 | BC226: 0 | BD226: 0 | BH226: 0 | BI226: 0 | BJ226: 0
A227: 27 | B227: 0 | C227: 0 | D227: 0 | E227: 0 | F227: 0 | G227: 0 | H227: 0 | I227: 0 | J227: 0 | AY227: 0 | AZ227: 0 | BA227: 0 | BB227: 0 | BC227: 0 | BD227: 0 | BH227: 0 | BI227: 0 | BJ227: 0
A228: 28 | B228: 0 | C228: 0 | D228: 0 | E228: 0 | F228: 0 | G228: 0 | H228: 0 | I228: 0 | J228: 0 | AY228: 0 | AZ228: 0 | BA228: 0 | BB228: 0 | BC228: 0 | BD228: 0 | BH228: 0 | BI228: 0 | BJ228: 0
A229: 29 | B229: 0 | C229: 0 | D229: 0 | E229: 0 | F229: 0 | G229: 0 | H229: 0 | I229: 0 | J229: 0 | AY229: 0 | AZ229: 0 | BA229: 0 | BB229: 0 | BC229: 0 | BD229: 0 | BH229: 0 | BI229: 0 | BJ229: 0
A230: 30 | B230: 0 | C230: 0 | D230: 0 | E230: 0 | F230: 0 | G230: 0 | H230: 0 | I230: 0 | J230: 0 | AY230: 0 | AZ230: 0 | BA230: 0 | BB230: 0 | BC230: 0 | BD230: 0 | BH230: 0 | BI230: 0 | BJ230: 0
A231: 31 | B231: 0 | C231: 0 | D231: 0 | E231: 0 | F231: 0 | G231: 0 | H231: 0 | I231: 0 | J231: 0 | AY231: 0 | AZ231: 0 | BA231: 0 | BB231: 0 | BC231: 0 | BD231: 0 | BH231: 0 | BI231: 0 | BJ231: 0
A232: 32 | B232: 0 | C232: 0 | D232: 0 | E232: 0 | F232: 0 | G232: 0 | H232: 0 | I232: 0 | J232: 0 | AY232: 0 | AZ232: 0 | BA232: 0 | BB232: 0 | BC232: 0 | BD232: 0 | BH232: 0 | BI232: 0 | BJ232: 0
A233: 33 | B233: 0 | C233: 0 | D233: 0 | E233: 0 | F233: 0 | G233: 0 | H233: 0 | I233: 0 | J233: 0 | AY233: 0 | AZ233: 0 | BA233: 0 | BB233: 0 | BC233: 0 | BD233: 0 | BH233: 0 | BI233: 0 | BJ233: 0
A234: 34 | B234: 0 | C234: 0 | D234: 0 | E234: 0 | F234: 0 | G234: 0 | H234: 0 | I234: 0 | J234: 0 | AY234: =IF($B38=0,0,B234) -> 0 | AZ234: 0 | BA234: 0 | BB234: 0 | BC234: 0 | BD234: 0 | BH234: =IF($D38=1,BB234+1,IF($D38=2,B$200,BB234)) -> 0 | BI234: 0 | BJ234: 0
A235: 35 | B235: 0 | C235: 0 | D235: 0 | E235: 0 | F235: 0 | G235: 0 | H235: 0 | I235: 0 | J235: 0 | AY235: 0 | AZ235: 0 | BA235: 0 | BB235: =IF($B39="",0,IF($E39=$E38,BB234,IF($E39>$E40,AY235,IF($E40>$E41,(AY235+AY236)/2,IF($E41>$E42,(AY235+AY236+AY237)/3,(AY235+AY236+AY237+AY238)/4))))) -> 0 | BC235: 0 | BD235: 0 | BH235: 0 | BI235: 0 | BJ235: 0
A236: 36 | B236: 0 | C236: 0 | D236: 0 | E236: 0 | F236: 0 | G236: 0 | H236: 0 | I236: 0 | J236: 0 | AY236: 0 | AZ236: 0 | BA236: 0 | BB236: 0 | BC236: 0 | BD236: 0 | BH236: 0 | BI236: 0 | BJ236: 0
A237: 37 | B237: 0 | C237: 0 | D237: 0 | E237: 0 | F237: 0 | G237: 0 | H237: 0 | I237: 0 | J237: 0 | AY237: 0 | AZ237: 0 | BA237: 0 | BB237: 0 | BC237: 0 | BD237: 0 | BH237: 0 | BI237: 0 | BJ237: 0
A238: 38 | B238: 0 | C238: 0 | D238: 0 | E238: 0 | F238: 0 | G238: 0 | H238: 0 | I238: 0 | J238: 0 | AY238: 0 | AZ238: 0 | BA238: 0 | BB238: 0 | BC238: 0 | BD238: 0 | BH238: 0 | BI238: 0 | BJ238: 0
A239: 39 | B239: 0 | C239: 0 | D239: 0 | E239: 0 | F239: 0 | G239: 0 | H239: 0 | I239: 0 | J239: 0 | AY239: 0 | AZ239: 0 | BA239: 0 | BB239: 0 | BC239: 0 | BD239: 0 | BH239: 0 | BI239: 0 | BJ239: 0
A240: 40 | B240: 0 | C240: 0 | D240: 0 | E240: 0 | F240: 0 | G240: 0 | H240: 0 | I240: 0 | J240: 0 | AY240: 0 | AZ240: 0 | BA240: 0 | BB240: 0 | BC240: 0 | BD240: 0 | BH240: 0 | BI240: 0 | BJ240: 0
A241: 41 | B241: 0 | C241: 0 | D241: 0 | E241: 0 | F241: 0 | G241: 0 | H241: 0 | I241: 0 | J241: 0 | AY241: 0 | AZ241: 0 | BA241: 0 | BB241: 0 | BC241: 0 | BD241: 0 | BH241: 0 | BI241: 0 | BJ241: 0
A242: 42 | B242: 0 | C242: 0 | D242: 0 | E242: 0 | F242: 0 | G242: 0 | H242: 0 | I242: 0 | J242: 0 | AY242: 0 | AZ242: 0 | BA242: 0 | BB242: 0 | BC242: 0 | BD242: 0 | BH242: 0 | BI242: 0 | BJ242: 0
A243: 43 | B243: 0 | C243: 0 | D243: 0 | E243: 0 | F243: 0 | G243: 0 | H243: 0 | I243: 0 | J243: 0 | AY243: 0 | AZ243: 0 | BA243: 0 | BB243: 0 | BC243: 0 | BD243: 0 | BH243: 0 | BI243: 0 | BJ243: 0
A244: 44 | B244: 0 | C244: 0 | D244: 0 | E244: 0 | F244: 0 | G244: 0 | H244: 0 | I244: 0 | J244: 0 | AY244: 0 | AZ244: 0 | BA244: 0 | BB244: 0 | BC244: 0 | BD244: 0 | BH244: 0 | BI244: 0 | BJ244: 0
A245: 45 | B245: 0 | C245: 0 | D245: 0 | E245: 0 | F245: 0 | G245: 0 | H245: 0 | I245: 0 | J245: 0 | AY245: 0 | AZ245: 0 | BA245: 0 | BB245: 0 | BC245: 0 | BD245: 0 | BH245: 0 | BI245: 0 | BJ245: 0
A246: 46 | B246: 0 | C246: 0 | D246: 0 | E246: 0 | F246: 0 | G246: 0 | H246: 0 | I246: 0 | J246: 0 | AY246: 0 | AZ246: 0 | BA246: 0 | BB246: 0 | BC246: 0 | BD246: 0 | BH246: 0 | BI246: 0 | BJ246: 0
A247: 47 | B247: 0 | C247: 0 | D247: 0 | E247: 0 | F247: 0 | G247: 0 | H247: 0 | I247: 0 | J247: 0 | AY247: 0 | AZ247: 0 | BA247: 0 | BB247: 0 | BC247: 0 | BD247: 0 | BH247: 0 | BI247: 0 | BJ247: 0
A248: 48 | B248: 0 | C248: 0 | D248: 0 | E248: 0 | F248: 0 | G248: 0 | H248: 0 | I248: 0 | J248: 0 | AY248: 0 | AZ248: 0 | BA248: 0 | BB248: 0 | BC248: 0 | BD248: 0 | BH248: 0 | BI248: 0 | BJ248: 0
A249: 49 | B249: 0 | C249: 0 | D249: 0 | E249: 0 | F249: 0 | G249: 0 | H249: 0 | I249: 0 | J249: 0 | AY249: 0 | AZ249: 0 | BA249: 0 | BB249: 0 | BC249: 0 | BD249: 0 | BH249: 0 | BI249: 0 | BJ249: 0
A250: 50 | B250: 0 | C250: 0 | D250: 0 | E250: 0 | F250: 0 | G250: 0 | H250: 0 | I250: 0 | J250: 0 | AY250: =IF($B54=0,0,B250) -> 0 | AZ250: 0 | BA250: 0 | BB250: 0 | BC250: 0 | BD250: 0 | BH250: =IF($D54=1,BB250+1,IF($D54=2,B$200,BB250)) -> 0 | BI250: 0 | BJ250: 0

Sheet 25gen
A1: Data | C1: 2020-01-25 | D1: BridgeMania 2019-20 - Torneo Howell
A2: luogo | C2: Simonelli | D2: Coppie Ctrl+e | E2: Calcola Ctr+f | F2: Duplica Ctrl+g | G2: Clear Ctrl+h | J2: &
A3: # coppie | C3: =IF(B5="","",COUNT(B5:B54)) -> 8 | E3: =IF(E5="","",SUMIF(E5:E54,">0")) -> 400 | G3: =IF(G5="","",SUM(G5:G54)) -> 400 | H3: =IF(H5="","",SUM(H5:H54)) -> 504 | I3: =SUM(I5:I54) -> 0 | J3: =SUM(J5:J54) -> 504 | K3: =SUM(K5:K54) -> 24 | L3: =SUM(L5:L54) -> 24 | M3: 24 | N3: 24 | O3: 24 | P3: 24 | Q3: 24 | R3: 24 | S3: 24 | T3: 24 | U3: 24 | V3: 24 | W3: 24 | X3: 24 | Y3: 24 | Z3: 24 | AA3: 24 | AB3: 24 | AC3: 24 | AD3: 24 | AE3: 24 | AF3: 0 | AG3: 0 | AH3: 0 | AI3: 0 | AJ3: 0 | AK3: 0 | AL3: 0 | AM3: 0 | AN3: 0 | AO3: 0 | AP3: 0 | AQ3: 0 | AR3: 0 | AS3: 0 | AT3: 0 | AU3: 0 | AV3: 0 | AW3: 0 | AX3: 0
A4: Class. | B4: # | C4: Coppie | D4: Inserire a mano "1" = + 1 PTS "2" = PTS medio | E4: Punteggio Serata | G4: Punteggio % | H4: Punteggio Torneo | I4: Penalità (-) | J4: Totale punti mano | K4: 1 | L4: 2 | M4: 3 | N4: 4 | O4: 5 | P4: 6 | Q4: 7 | R4: 8 | S4: 9 | T4: 10 | U4: 11 | V4: 12 | W4: 13 | X4: 14 | Y4: 15 | Z4: 16 | AA4: 17 | AB4: 18 | AC4: 19 | AD4: 20 | AE4: 21 | AF4: 22 | AG4: 23 | AH4: 24 | AI4: 25 | AJ4: 26 | AK4: 27 | AL4: 28 | AM4: 29 | AN4: 30 | AO4: 31 | AP4: 32 | AQ4: 33 | AR4: 34 | AS4: 35 | AT4: 36 | AU4: 37 | AV4: 38 | AW4: 39 | AX4: 40 | AZ4: F1 Fast | BA4: IndyCar Hard | BB4: F1 Hybrid | BF4: # std coppie
A5: =IF(J$2="","",IF($E5="","",IF($E5=MAX($E$5:$E$54),1,IF($E5=$E4,$A4,COUNT($E$5:$E5))))) -> 1 | B5: 2 | C5: Stefania-Massimo | E5: =IF(J$2="","",IF(G5=0,0,F5+G5)) -> 61.11111111 | G5: =IF(J$2="","",IF($J5=0,0,(H5*$C$3/$J$3)*50)) -> 61.11111111 | H5: =IF(J$2="","",IF(SUM($K5:$AX5)=0,0,SUM($K5:$AX5)+$I5)) -> 77 | J5: =IF(B5="",0,IF(SUM($K5:$AX5)=0,0,SUM($K5:$AX5))) -> 77 | K5: 4 | L5: 6 | M5: 1 | N5: 5 | O5: 5 | P5: 0 | Q5: 4 | R5: 4 | S5: 2 | T5: 4 | U5: 3 | V5: 2 | W5: 4 | X5: 2 | Y5: 5 | Z5: 3 | AA5: 2 | AB5: 4 | AC5: 6 | AD5: 6 | AE5: 5 | AY5: Stefania-Massimo | AZ5: 25 | BA5: 50 | BB5: 16 | BF5: 10
A6: =IF(J$2="","",IF($E6="","",IF($E6=MAX($E$5:$E$54),1,IF($E6=$E5,$A5,COUNT($E$5:$E6))))) -> 2 | B6: 7 | C6: Elena-Stefano | E6: 60.31746032 | G6: 60.31746032 | H6: 76 | J6: 76 | K6: 6 | L6: 2 | M6: 1 | N6: 6 | O6: 6 | P6: 2 | Q6: 6 | R6: 0 | S6: 2 | T6: 2 | U6: 3 | V6: 0 | W6: 6 | X6: 2 | Y6: 5 | Z6: 3 | AA6: 4 | AB6: 2 | AC6: 6 | AD6: 6 | AE6: 6 | AY6: Elena-Stefano | AZ6: 16.5 | BA6: 37.5 | BB6: 11 | BF6: 4
A7: =IF(J$2="","",IF($E7="","",IF($E7=MAX($E$5:$E$54),1,IF($E7=$E6,$A6,COUNT($E$5:$E7))))) -> 2 | B7: 5 | C7: Manuela-Roberto | E7: 60.31746032 | G7: 60.31746032 | H7: 76 | J7: 76 | K7: 2 | L7: 6 | M7: 5 | N7: 2 | O7: 5 | P7: 4 | Q7: 2 | R7: 2 | S7: 4 | T7: 4 | U7: 3 | V7: 6 | W7: 2 | X7: 6 | Y7: 1 | Z7: 3 | AA7: 4 | AB7: 4 | AC7: 2 | AD7: 4 | AE7: 5 | AY7: Manuela-Roberto | AZ7: 16.5 | BA7: 37.5 | BB7: 11 | BF7: 7
A8: =IF(J$2="","",IF($E8="","",IF($E8=MAX($E$5:$E$54),1,IF($E8=$E7,$A7,COUNT($E$5:$E8))))) -> 4 | B8: 1 | C8: Tatiana-Julio | E8: 50 | G8: 50 | H8: 63 | J8: 63 | K8: 2 | L8: 4 | M8: 1 | N8: 5 | O8: 2 | P8: 4 | Q8: 0 | R8: 6 | S8: 4 | T8: 2 | U8: 3 | V8: 4 | W8: 6 | X8: 0 | Y8: 5 | Z8: 3 | AA8: 2 | AB8: 2 | AC8: 4 | AD8: 2 | AE8: 2 | AY8: Tatiana-Julio | AZ8: 12 | BA8: 32 | BB8: 8 | BF8: 11
A9: =IF(J$2="","",IF($E9="","",IF($E9=MAX($E$5:$E$54),1,IF($E9=$E8,$A8,COUNT($E$5:$E9))))) -> 5 | B9: 4 | C9: Antonella-Dino | D9: 1 | E9: 49.20634921 | G9: 49.20634921 | H9: 62 | J9: 62 | K9: 2 | L9: 0 | M9: 5 | N9: 1 | O9: 4 | P9: 2 | Q9: 6 | R9: 2 | S9: 4 | T9: 6 | U9: 3 | V9: 4 | W9: 0 | X9: 4 | Y9: 1 | Z9: 3 | AA9: 6 | AB9: 2 | AC9: 4 | AD9: 2 | AE9: 1 | AY9: Antonella-Dino | AZ9: 11 | BA9: 31 | BB9: 7 | BF9: 1
A10: =IF(J$2="","",IF($E10="","",IF($E10=MAX($E$5:$E$54),1,IF($E10=$E9,$A9,COUNT($E$5:$E10))))) -> 6 | B10: 3 | C10: Barbara-Elio | E10: 48.41269841 | G10: 48.41269841 | H10: 61 | J10: 61 | K10: 0 | L10: 4 | M10: 5 | N10: 4 | O10: 1 | P10: 2 | Q10: 2 | R10: 4 | S10: 6 | T10: 2 | U10: 3 | V10: 4 | W10: 2 | X10: 4 | Y10: 1 | Z10: 3 | AA10: 0 | AB10: 4 | AC10: 2 | AD10: 4 | AE10: 4 | AY10: Barbara-Elio | AZ10: 8 | BA10: 28 | BB10: 4 | BF10: 2
A11: =IF(J$2="","",IF($E11="","",IF($E11=MAX($E$5:$E$54),1,IF($E11=$E10,$A10,COUNT($E$5:$E11))))) -> 7 | B11: 8 | C11: Lilli-Gianni | E11: 38.0952381 | G11: 38.0952381 | H11: 48 | J11: 48 | K11: 4 | L11: 2 | M11: 5 | N11: 1 | O11: 1 | P11: 6 | Q11: 4 | R11: 2 | S11: 0 | T11: 0 | U11: 3 | V11: 2 | W11: 4 | X11: 0 | Y11: 5 | Z11: 3 | AA11: 0 | AB11: 6 | AC11: 0 | AD11: 0 | AE11: 0 | AY11: Lilli-Gianni | AZ11: 6 | BA11: 26 | BB11: 2 | BF11: 6
A12: =IF(J$2="","",IF($E12="","",IF($E12=MAX($E$5:$E$54),1,IF($E12=$E11,$A11,COUNT($E$5:$E12))))) -> 8 | B12: 6 | C12: Cesarina-Gaetano | E12: 32.53968254 | G12: 32.53968254 | H12: 41 | J12: 41 | K12: 4 | L12: 0 | M12: 1 | N12: 0 | O12: 0 | P12: 4 | Q12: 0 | R12: 4 | S12: 2 | T12: 4 | U12: 3 | V12: 2 | W12: 0 | X12: 6 | Y12: 1 | Z12: 3 | AA12: 6 | AB12: 0 | AC12: 0 | AD12: 0 | AE12: 1 | AY12: Cesarina-Gaetano | AZ12: 4 | BA12: 24 | BB12: 1 | BF12: 3
A13: =IF(J$2="","",IF($E13="","",IF($E13=MAX($E$5:$E$54),1,IF($E13=$E12,$A12,COUNT($E$5:$E13))))) -> 9 | C13: Isolde-Cristina | E13: 0 | G13: 0 | H13: 0 | J13: 0 | AY13: Isolde-Cristina | AZ13: 0 | BA13: 0 | BB13: 0 | BF13: 5
A14: =IF(J$2="","",IF($E14="","",IF($E14=MAX($E$5:$E$54),1,IF($E14=$E13,$A13,COUNT($E$5:$E14))))) -> 9 | C14: Olimpia-Sauro | E14: 0 | G14: 0 | H14: 0 | J14: 0 | AY14: Olimpia-Sauro | AZ14: 0 | BA14: 0 | BB14: 0 | BF14: 8
A15: =IF(J$2="","",IF($E15="","",IF($E15=MAX($E$5:$E$54),1,IF($E15=$E14,$A14,COUNT($E$5:$E15))))) -> 9 | C15: Renata-Sandro | D15: 2 | E15: 0 | G15: 0 | H15: 0 | J15: 0 | AY15: Renata-Sandro | AZ15: 8.417 | BA15: 28.667 | BB15: 7.38 | BF15: 9
A16: =IF(J$2="","",IF($E16="","",IF($E16=MAX($E$5:$E$54),1,IF($E16=$E15,$A15,COUNT($E$5:$E16))))) -> 9 | C16: Marilena-Sergio | E16: 0 | G16: 0 | H16: 0 | J16: 0 | AY16: Marilena-Sergio | AZ16: 0 | BA16: 0 | BB16: 0 | BF16: 12
A17: =IF(J$2="","",IF($E17="","",IF($E17=MAX($E$5:$E$54),1,IF($E17=$E16,$A16,COUNT($E$5:$E17))))) -> 9 | C17: A.Maria-Claudio | E17: 0 | G17: 0 | H17: 0 | J17: 0 | AY17: A.Maria-Claudio | AZ17: 0 | BA17: 0 | BB17: 0 | BF17: 13
A18: =IF(J$2="","",IF($E18="","",IF($E18=MAX($E$5:$E$54),1,IF($E18=$E17,$A17,COUNT($E$5:$E18))))) -> 9 | C18: June-Vincenzo | E18: 0 | G18: 0 | H18: 0 | J18: 0 | AY18: June-Vincenzo | AZ18: 0 | BA18: 0 | BB18: 0 | BF18: 14
A19: =IF(J$2="","",IF($E19="","",IF($E19=MAX($E$5:$E$54),1,IF($E19=$E18,$A18,COUNT($E$5:$E19))))) -> 9 | C19: Marina-Enzo | E19: 0 | G19: 0 | H19: 0 | J19: 0 | AY19: Marina-Enzo | AZ19: 0 | BA19: 0 | BB19: 0 | BF19: 15
A20: =IF(J$2="","",IF($E20="","",IF($E20=MAX($E$5:$E$54),1,IF($E20=$E19,$A19,COUNT($E$5:$E20))))) -> 9 | C20: Letizia-Enzo | E20: 0 | G20: 0 | H20: 0 | J20: 0 | AY20: Letizia-Enzo | AZ20: 0 | BA20: 0 | BB20: 0 | BF20: 16
A21: =IF(J$2="","",IF($E21="","",IF($E21=MAX($E$5:$E$54),1,IF($E21=$E20,$A20,COUNT($E$5:$E21))))) -> 9 | E21: 0 | G21: 0 | H21: 0 | J21: 0 | AZ21: 0 | BA21: 0 | BB21: 0 | BF21: 17
A22: =IF(J$2="","",IF($E22="","",IF($E22=MAX($E$5:$E$54),1,IF($E22=$E21,$A21,COUNT($E$5:$E22))))) -> 9 | E22: 0 | G22: 0 | H22: 0 | J22: 0 | AZ22: 0 | BA22: 0 | BB22: 0 | BF22: 18
A23: =IF(J$2="","",IF($E23="","",IF($E23=MAX($E$5:$E$54),1,IF($E23=$E22,$A22,COUNT($E$5:$E23))))) -> 9 | E23: 0 | G23: 0 | H23: 0 | J23: 0 | AZ23: 0 | BA23: 0 | BB23: 0 | BF23: 19
A24: =IF(J$2="","",IF($E24="","",IF($E24=MAX($E$5:$E$54),1,IF($E24=$E23,$A23,COUNT($E$5:$E24))))) -> 9 | E24: 0 | G24: 0 | H24: 0 | J24: 0 | AZ24: 0 | BA24: 0 | BB24: 0 | BF24: 20
A25: =IF(J$2="","",IF($E25="","",IF($E25=MAX($E$5:$E$54),1,IF($E25=$E24,$A24,COUNT($E$5:$E25))))) -> 9 | E25: 0 | G25: 0 | H25: 0 | J25: 0 | AZ25: 0 | BA25: 0 | BB25: 0 | BF25: 21
A26: =IF(J$2="","",IF($E26="","",IF($E26=MAX($E$5:$E$54),1,IF($E26=$E25,$A25,COUNT($E$5:$E26))))) -> 9 | E26: 0 | G26: 0 | H26: 0 | J26: 0 | AZ26: 0 | BA26: 0 | BB26: 0 | BF26: 22
A27: =IF(J$2="","",IF($E27="","",IF($E27=MAX($E$5:$E$54),1,IF($E27=$E26,$A26,COUNT($E$5:$E27))))) -> 9 | E27: 0 | G27: 0 | H27: 0 | J27: 0 | AZ27: 0 | BA27: 0 | BB27: 0 | BF27: 23
A28: =IF(J$2="","",IF($E28="","",IF($E28=MAX($E$5:$E$54),1,IF($E28=$E27,$A27,COUNT($E$5:$E28))))) -> 9 | E28: 0 | G28: 0 | H28: 0 | J28: 0 | AZ28: 0 | BA28: 0 | BB28: 0 | BF28: 24
A29: =IF(J$2="","",IF($E29="","",IF($E29=MAX($E$5:$E$54),1,IF($E29=$E28,$A28,COUNT($E$5:$E29))))) -> 9 | E29: 0 | G29: 0 | H29: 0 | J29: 0 | AZ29: 0 | BA29: 0 | BB29: 0 | BF29: 25
A30: =IF(J$2="","",IF($E30="","",IF($E30=MAX($E$5:$E$54),1,IF($E30=$E29,$A29,COUNT($E$5:$E30))))) -> 9 | E30: 0 | G30: 0 | H30: 0 | J30: 0 | AZ30: 0 | BA30: 0 | BB30: 0 | BF30: 26
A31: =IF(J$2="","",IF($E31="","",IF($E31=MAX($E$5:$E$54),1,IF($E31=$E30,$A30,COUNT($E$5:$E31))))) -> 9 | E31: 0 | G31: 0 | H31: 0 | J31: 0 | AZ31: 0 | BA31: 0 | BB31: 0 | BF31: 27
A32: =IF(J$2="","",IF($E32="","",IF($E32=MAX($E$5:$E$54),1,IF($E32=$E31,$A31,COUNT($E$5:$E32))))) -> 9 | E32: 0 | G32: 0 | H32: 0 | J32: 0 | AZ32: 0 | BA32: 0 | BB32: 0 | BF32: 28
A33: =IF(J$2="","",IF($E33="","",IF($E33=MAX($E$5:$E$54),1,IF($E33=$E32,$A32,COUNT($E$5:$E33))))) -> 9 | E33: 0 | G33: 0 | H33: 0 | J33: 0 | AZ33: 0 | BA33: 0 | BB33: 0 | BF33: 29
A34: =IF(J$2="","",IF($E34="","",IF($E34=MAX($E$5:$E$54),1,IF($E34=$E33,$A33,COUNT($E$5:$E34))))) -> 9 | E34: 0 | G34: 0 | H34: 0 | J34: 0 | AZ34: 0 | BA34: 0 | BB34: 0 | BF34: 30
A35: =IF(J$2="","",IF($E35="","",IF($E35=MAX($E$5:$E$54),1,IF($E35=$E34,$A34,COUNT($E$5:$E35))))) -> 9 | E35: 0 | G35: 0 | H35: 0 | J35: 0 | AZ35: 0 | BA35: 0 | BB35: 0 | BF35: 31
A36: =IF(J$2="","",IF($E36="","",IF($E36=MAX($E$5:$E$54),1,IF($E36=$E35,$A35,COUNT($E$5:$E36))))) -> 9 | E36: 0 | G36: 0 | H36: 0 | J36: 0 | AZ36: 0 | BA36: 0 | BB36: 0 | BF36: 32
A37: =IF(J$2="","",IF($E37="","",IF($E37=MAX($E$5:$E$54),1,IF($E37=$E36,$A36,COUNT($E$5:$E37))))) -> 9 | E37: 0 | G37: 0 | H37: 0 | J37: 0 | AZ37: 0 | BA37: 0 | BB37: 0 | BF37: 33
A38: =IF(J$2="","",IF($E38="","",IF($E38=MAX($E$5:$E$54),1,IF($E38=$E37,$A37,COUNT($E$5:$E38))))) -> 9 | E38: 0 | G38: 0 | H38: 0 | J38: 0 | AZ38: 0 | BA38: 0 | BB38: 0 | BF38: 34
A39: =IF(J$2="","",IF($E39="","",IF($E39=MAX($E$5:$E$54),1,IF($E39=$E38,$A38,COUNT($E$5:$E39))))) -> 9 | E39: 0 | G39: 0 | H39: 0 | J39: 0 | AZ39: 0 | BA39: 0 | BB39: 0 | BF39: 35
A40: =IF(J$2="","",IF($E40="","",IF($E40=MAX($E$5:$E$54),1,IF($E40=$E39,$A39,COUNT($E$5:$E40))))) -> 9 | E40: 0 | G40: 0 | H40: 0 | J40: 0 | AZ40: 0 | BA40: 0 | BB40: 0 | BF40: 36
A41: =IF(J$2="","",IF($E41="","",IF($E41=MAX($E$5:$E$54),1,IF($E41=$E40,$A40,COUNT($E$5:$E41))))) -> 9 | E41: 0 | G41: 0 | H41: 0 | J41: 0 | AZ41: 0 | BA41: 0 | BB41: 0 | BF41: 37
A42: =IF(J$2="","",IF($E42="","",IF($E42=MAX($E$5:$E$54),1,IF($E42=$E41,$A41,COUNT($E$5:$E42))))) -> 9 | E42: 0 | G42: 0 | H42: 0 | J42: 0 | AZ42: 0 | BA42: 0 | BB42: 0 | BF42: 38
A43: =IF(J$2="","",IF($E43="","",IF($E43=MAX($E$5:$E$54),1,IF($E43=$E42,$A42,COUNT($E$5:$E43))))) -> 9 | E43: 0 | G43: 0 | H43: 0 | J43: 0 | AZ43: 0 | BA43: 0 | BB43: 0 | BF43: 39
A44: =IF(J$2="","",IF($E44="","",IF($E44=MAX($E$5:$E$54),1,IF($E44=$E43,$A43,COUNT($E$5:$E44))))) -> 9 | E44: 0 | G44: 0 | H44: 0 | J44: 0 | AZ44: 0 | BA44: 0 | BB44: 0 | BF44: 40
A45: =IF(J$2="","",IF($E45="","",IF($E45=MAX($E$5:$E$54),1,IF($E45=$E44,$A44,COUNT($E$5:$E45))))) -> 9 | E45: 0 | G45: 0 | H45: 0 | J45: 0 | AZ45: 0 | BA45: 0 | BB45: 0 | BF45: 41
A46: =IF(J$2="","",IF($E46="","",IF($E46=MAX($E$5:$E$54),1,IF($E46=$E45,$A45,COUNT($E$5:$E46))))) -> 9 | E46: 0 | G46: 0 | H46: 0 | J46: 0 | AZ46: 0 | BA46: 0 | BB46: 0 | BF46: 42
A47: =IF(J$2="","",IF($E47="","",IF($E47=MAX($E$5:$E$54),1,IF($E47=$E46,$A46,COUNT($E$5:$E47))))) -> 9 | E47: 0 | G47: 0 | H47: 0 | J47: 0 | AZ47: 0 | BA47: 0 | BB47: 0 | BF47: 43
A48: =IF(J$2="","",IF($E48="","",IF($E48=MAX($E$5:$E$54),1,IF($E48=$E47,$A47,COUNT($E$5:$E48))))) -> 9 | E48: 0 | G48: 0 | H48: 0 | J48: 0 | AZ48: 0 | BA48: 0 | BB48: 0 | BF48: 44
A49: =IF(J$2="","",IF($E49="","",IF($E49=MAX($E$5:$E$54),1,IF($E49=$E48,$A48,COUNT($E$5:$E49))))) -> 9 | E49: 0 | G49: 0 | H49: 0 | J49: 0 | AZ49: 0 | BA49: 0 | BB49: 0 | BF49: 45
A50: =IF(J$2="","",IF($E50="","",IF($E50=MAX($E$5:$E$54),1,IF($E50=$E49,$A49,COUNT($E$5:$E50))))) -> 9 | E50: 0 | G50: 0 | H50: 0 | J50: 0 | AZ50: 0 | BA50: 0 | BB50: 0 | BF50: 46
A51: =IF(J$2="","",IF($E51="","",IF($E51=MAX($E$5:$E$54),1,IF($E51=$E50,$A50,COUNT($E$5:$E51))))) -> 9 | E51: 0 | G51: 0 | H51: 0 | J51: 0 | AZ51: 0 | BA51: 0 | BB51: 0 | BF51: 47
A52: =IF(J$2="","",IF($E52="","",IF($E52=MAX($E$5:$E$54),1,IF($E52=$E51,$A51,COUNT($E$5:$E52))))) -> 9 | E52: 0 | G52: 0 | H52: 0 | J52: 0 | AZ52: 0 | BA52: 0 | BB52: 0 | BF52: 48
A53: =IF(J$2="","",IF($E53="","",IF($E53=MAX($E$5:$E$54),1,IF($E53=$E52,$A52,COUNT($E$5:$E53))))) -> 9 | E53: 0 | G53: 0 | H53: 0 | J53: 0 | AZ53: 0 | BA53: 0 | BB53: 0 | BF53: 49
A54: =IF(J$2="","",IF($E54="","",IF($E54=MAX($E$5:$E$54),1,IF($E54=$E53,$A53,COUNT($E$5:$E54))))) -> 9 | E54: 0 | G54: 0 | H54: 0 | J54: 0 | AZ54: 0 | BA54: 0 | BB54: 0 | BF54: 50
D59: punteggi torneo ordinati per # di coppia
B60: # coppia | E60: con zeri | F60: senza zeri | G60: senza zeri
B61: 1 | E61: 50 | F61: =IF(E61=0,"",E61) -> 50 | G61: 50 | I61: =IF(H61=0,"",H61) ->  | BF61: 11
B62: 2 | E62: 61.11111111 | F62: 61.11111111 | G62: 61.11111111 | BF62: 10
B63: 3 | E63: 48.41269841 | F63: 48.41269841 | G63: 48.41269841 | I63: =IF(H63=0,"",H63) ->  | BF63: 2
B64: 4 | E64: 49.20634921 | F64: 49.20634921 | G64: 49.20634921 | I64: =IF(H64=0,"",H64) ->  | BF64: 1
B65: 5 | E65: 60.31746032 | F65: 60.31746032 | G65: 60.31746032 | I65: =IF(H65=0,"",H65) ->  | BF65: 7
B66: 6 | E66: 32.53968254 | F66: 32.53968254 | G66: 32.53968254 | BF66: 3
B67: 7 | E67: 60.31746032 | F67: 60.31746032 | G67: 60.31746032 | I67: =IF(H67=0,"",H67) ->  | BF67: 4
B68: 8 | E68: 38.0952381 | F68: 38.0952381 | G68: 38.0952381 | BF68: 6
E69: 0 | BF69: 5
E70: 0 | BF70: 8
E71: 0 | BF71: 9
E72: 0 | I72: =IF(H72=0,"",H72) ->  | BF72: 12
E73: 0 | BF73: 13
E74: 0 | I74: =IF(H74=0,"",H74) ->  | BF74: 14
E75: 0 | I75: =IF(H75=0,"",H75) ->  | BF75: 15
E76: 0 | I76: =IF(H76=0,"",H76) ->  | BF76: 16
E77: 0 | BF77: 17
E78: 0 | BF78: 18
E79: 0 | I79: =IF(H79=0,"",H79) ->  | BF79: 19
E80: 0 | I80: =IF(H80=0,"",H80) ->  | BF80: 20
E81: 0 | BF81: 21
E82: 0 | BF82: 22
E83: 0 | BF83: 23
E84: 0 | BF84: 24
E85: 0 | BF85: 25
E86: 0 | BF86: 26
E87: 0 | BF87: 27
E88: 0 | BF88: 28
E89: 0 | BF89: 29
E90: 0 | BF90: 30
E91: 0 | BF91: 31
E92: 0 | BF92: 32
E93: 0 | BF93: 33
E94: 0 | BF94: 34
E95: 0 | BF95: 35
E96: 0 | BF96: 36
E97: 0 | BF97: 37
E98: 0 | BF98: 38
E99: 0 | BF99: 39
E100: 0 | BF100: 40
E101: 0 | BF101: 41
E102: 0 | BF102: 42
E103: 0 | BF103: 43
E104: 0 | BF104: 44
E105: 0 | BF105: 45
E106: 0 | BF106: 46
E107: 0 | BF107: 47
E108: 0 | BF108: 48
E109: 0 | BF109: 49
E110: 0 | BF110: 50
A119: PTS ordinati per numero standard di coppia base
A120: #STD | B120: PTS
B121: 4 | E121: 49.20634921 | F121: =IF(E121=0,"",E121) -> 49.20634921 | G121: 49.20634921 | I121: =IF(H121=0,"",H121) ->  | BF121: 1
B122: 3 | E122: 48.41269841 | F122: 48.41269841 | G122: 48.41269841 | I122: =IF(H122=0,"",H122) ->  | BF122: 2
B123: 6 | E123: 32.53968254 | F123: 32.53968254 | G123: 32.53968254 | BF123: 3
B124: 7 | E124: 60.31746032 | F124: 60.31746032 | G124: 60.31746032 | I124: =IF(H124=0,"",H124) ->  | BF124: 4
E125: 0 | BF125: 5
B126: 8 | E126: 38.0952381 | F126: 38.0952381 | G126: 38.0952381 | BF126: 6
B127: 5 | E127: 60.31746032 | F127: 60.31746032 | G127: 60.31746032 | I127: =IF(H127=0,"",H127) ->  | BF127: 7
E128: 0 | BF128: 8
E129: 0 | BF129: 9
B130: 2 | E130: 61.11111111 | F130: 61.11111111 | G130: 61.11111111 | BF130: 10
B131: 1 | E131: 50 | F131: 50 | G131: 50 | I131: =IF(H131=0,"",H131) ->  | BF131: 11
B198: F1 Fast | C198: IndyCar Hard | D198: F1 Hibryd | AY198: F1 Fast | AZ198: IndyCar Hard | BA198: F1 Hybrid | BB198: F1 Fast | BC198: IndyCar Hard | BD198: F1 Hybrid
A199: classifica | D199: 6+ | E199: 5.5 | F199: 5 | G199: 4.5 | H199: 4 | I199: 3.5 | J199: 3 | AY199: scale-punti base | BB199: con medie e parimerito | BH199: con correzioni (punti finali)
A200: p.medio | B200: 8.417 | C200: 28.667 | D200: 10.17 | E200: 9.64 | F200: 9 | G200: 8.33 | H200: 7.38 | I200: 6.43 | J200: 5.5 | BB200: =B200 -> 8.417 | BC200: =C200 -> 28.667 | BD200: =IF($B4=0,0,IF($C$3=6,J200))+IF($C$3=7,I200)+IF($C$3=8,H200)+IF($C$3=9,G200)+IF($C$3=10,F200)+IF($C$3=11,E200)+IF($C$3>=12,D200) -> 7.38 | BH200: F1 Fast | BI200: HindyCar Hard | BJ200: F1 Hibryd
A201: 1 | B201: 25 | C201: 50 | D201: 25 | E201: 22 | F201: 20 | G201: 18 | H201: 16 | I201: 14 | J201: 12 | AY201: =IF($B5=0,0,B201) -> 25 | AZ201: =IF($B5=0,0,C201) -> 50 | BA201: =IF($B5=0,0,IF($C$3=6,J201))+IF($C$3=7,I201)+IF($C$3=8,H201)+IF($C$3=9,G201)+IF($C$3=10,F201)+IF($C$3=11,E201)+IF($C$3>=12,D201) -> 16 | BB201: =IF($B5="",0,IF($E5>$E6,AY201,IF($E6>$E7,(AY201+AY202)/2,IF($E7>$E8,(AY201+AY202+AY203)/3,(AY201+AY202+AY203+AY204)/4)))) -> 25 | BC201: =IF($B5="",0,IF($E5>$E6,AZ201,IF($E6>$E7,(AZ201+AZ202)/2,IF($E7>$E8,(AZ201+AZ202+AZ203)/3,(AZ201+AZ202+AZ203+AZ204)/4)))) -> 50 | BD201: 16 | BH201: =IF($D5=1,BB201+1,IF($D5=2,B$200,BB201)) -> 25 | BI201: =IF($D5=1,BC201+1,IF($D5=2,C$200,BC201)) -> 50 | BJ201: =IF($D5=1,BD201+1,IF($D5=2,BD$200,BD201)) -> 16
A202: 2 | B202: 18 | C202: 40 | D202: 19 | E202: 18 | F202: 16 | G202: 14 | H202: 12 | I202: 10 | J202: 8 | AY202: =IF($B6=0,0,B202) -> 18 | AZ202: 40 | BA202: =IF($B6=0,0,IF($C$3=6,J202))+IF($C$3=7,I202)+IF($C$3=8,H202)+IF($C$3=9,G202)+IF($C$3=10,F202)+IF($C$3=11,E202)+IF($C$3>=12,D202) -> 12 | BB202: =IF($B6="",0,IF($E6=$E5,BB201,IF($E6>$E7,AY202,IF($E7>$E8,(AY202+AY203)/2,IF($E8>$E9,(AY202+AY203+AY204)/3,(AY202+AY203+AY204+AY205)/4))))) -> 16.5 | BC202: =IF($B6="",0,IF($E6=$E5,BC201,IF($E6>$E7,AZ202,IF($E7>$E8,(AZ202+AZ203)/2,IF($E8>$E9,(AZ202+AZ203+AZ204)/3,(AZ202+AZ203+AZ204+AZ205)/4))))) -> 37.5 | BD202: =IF($B6="",0,IF($E6=$E5,BD201,IF($E6>$E7,BA202,IF($E7>$E8,(BA202+BA203)/2,IF($E8>$E9,(BA202+BA203+BA204)/3,(BA202+BA203+BA204+BA205)/4))))) -> 11 | BH202: =IF($D6=1,BB202+1,IF($D6=2,B$200,BB202)) -> 16.5 | BI202: 37.5 | BJ202: =IF($D6=1,BD202+1,IF($D6=2,BD$200,BD202)) -> 11
A203: 3 | B203: 15 | C203: 35 | D203: 16 | E203: 15 | F203: 13 | G203: 12 | H203: 10 | I203: 8 | J203: 6 | AY203: 15 | AZ203: 35 | BA203: 10 | BB203: =IF($B7="",0,IF($E7=$E6,BB202,IF($E7>$E8,AY203,IF($E8>$E9,(AY203+AY204)/2,IF($E9>$E10,(AY203+AY204+AY205)/3,(AY203+AY204+AY205+AY206)/4))))) -> 16.5 | BC203: 37.5 | BD203: 11 | BH203: 16.5 | BI203: 37.5 | BJ203: 11
